Workbook

Sheet Model
A1: Purdue Setback Model (2015)
A2: Send questions and comments to purdueodor@gmail.com or heber@purdue.edu
A3: Step 1: Find the smallest rectangle that encompasses all of the emitting sources on the livestock production site
A4: Step 2: Mark the SW corner of this rectangle as the site reference point. Individual emission source x-y origins are SW corners of rectangular sources and centers of circular sources.
A5: Step 3: Input X-Y coordinates (distance in feet from source origin to east and north of site reference point) for each emission source (GoogleEarth or similar tool can be used).
A6: Step 4: Choose the orientation and input the dimensions of each emission source.
A8: PLOTTING INFORMATION
A9: SITE REFERENCE POINT (SRP) | D9: GE Lat/Long Locator | E9: REFERENCE CIRCLE (OPTIONAL)
A10: Latitude (decimal) | B10: 45 | C10: Longitude (decimal) | D10: -86 | E10: Circle radius, ft | F10: 2640 | G10: Plot circle? | H10: Yes
A12: SOURCE LOCATIONS AND DIMENSIONS
A13: SOURCE | B13: SHAPE | C13: LOCATION OF SOURCE (x-y origin) | E13: ORIENTATION | F13: DIMENSIONS OF EMISSION SOURCES
C14: N DISTANCE (ft) | D14: E DISTANCE (ft) | F14: LENGTH (ft) | G14: WIDTH (ft) | H14: RADIUS (ft)
I15: =s1L*s1W -> 0
I16: =s1L*s1W -> 0
A26: SOURCE CHARACTERISTICS
A27: SOURCE | B27: ODOR EMISSIONS PER SOURCE | E27: MANURE MANAGEMENT | G27: PLOT SETBACK?
B28: SPECIES | C28: EMISSION SOURCE | D28: NUMBER or AU | E28: REMOVAL FREQUENCY | F28: DILUTION/DRYING/COLLECTION
A29: =IF(A15="","",A15) -> 
A40: ODOR ABATEMENT | F40: EXPOSURE RECOMMENDATIONS:
A41: SOURCE | B41: TECHNIQUE 1 | C41: TECHNIQUE 2 | D41: TECHNIQUE 3 | E41: OTHER (%) | F41: LAND USE | G41: EXPOSURE
A42: =IF(A29="","",A29) ->  | F42: Agricultural, Few Residences | G42: 91% odor free
F43: Rural Residential | G43: 94% odor free
F44: Small Residential ( < 50 homes) | G44: 96% odor free
F45: Large Residential (50+ homes) | G45: 97% odor free
F46: Town ( < 5000 people) | G46: 98% odor free
F47: City (5000+ people) | G47: 99% odor free
A53: TERRAIN AROUND SITE | C53: EXPOSURE AROUND SITE | E53: HISTORICAL WIND DIRECTIONS FROM DATABASE
A54: SAME ALL DIRECTIONS? | B54: UNIFORM TERRAIN | C54: SAME ALL DIRECTIONS? | D54: UNIFORM EXPOSURE | E54: SELECT WEATHER STATION? | F54: STATE | G54: STATION | H54: DISTANCE (miles)
A55: Yes | B55: Treeline / shelterbelt | C55: Yes | D55: 96% odor free | E55: Yes | F55: Indiana | G55: West Lafayette | H55: =VLOOKUP(windstate,STATETABLE,12,FALSE) -> 320.460008
A57: DIRECTIONAL TERRAIN
A58: ENTER BELOW IF TERRAIN IS NOT THE SAME IN ALL DIRECTIONS
A59: NORTH | B59: NORTHEAST | C59: EAST | D59: SOUTHEAST | E59: SOUTH | F59: SOUTHWEST | G59: WEST | H59: NORTHWEST
A60: No trees, relatively flat | B60: No trees, relatively flat | C60: No trees, relatively flat | D60: Hillside/valley up-flow | E60: Treeline / shelterbelt | F60: No trees, relatively flat | G60: No trees, relatively flat | H60: Treeline / shelterbelt
A61: USED IN SETBACK CALCULATIONS (Depends on answer to "Same All Directions?" question above)
A62: =IF(pallterrain="YES",palltype,toponorthdir) -> Treeline / shelterbelt | B62: =IF(pallterrain="YES",palltype,toponortheastdir) -> Treeline / shelterbelt | C62: =IF(pallterrain="YES",palltype,topoeastdir) -> Treeline / shelterbelt | D62: =IF(pallterrain="YES",palltype,toposoutheastdir) -> Treeline / shelterbelt | E62: =IF(pallterrain="YES",palltype,toposouthdir) -> Treeline / shelterbelt | F62: =IF(pallterrain="YES",palltype,toposouthwestdir) -> Treeline / shelterbelt | G62: =IF(pallterrain="YES",palltype,topowestdir) -> Treeline / shelterbelt | H62: =IF(pallterrain="YES",palltype,toponorthwestdir) -> Treeline / shelterbelt
A64: DIRECTIONAL EXPOSURE
A65: ENTER BELOW IF LAND USE OR EXPOSURE IS NOT THE SAME IN ALL DIRECTIONS
A66: NORTH | B66: NORTHEAST | C66: EAST | D66: SOUTHEAST | E66: SOUTH | F66: SOUTHWEST | G66: WEST | H66: NORTHWEST
A67: 91% odor free | B67: 99% odor free | C67: 99% odor free | D67: 99% odor free | E67: 96% odor free | F67: 96% odor free | G67: 96% odor free | H67: 94% odor free
A68: USED IN SETBACK CALCULATIONS (Depends on answer to "Same All Directions?" question above)
A69: =IF(pallland="YES",pallexp,A67) -> 96% odor free | B69: 96% odor free | C69: 96% odor free | D69: 96% odor free | E69: 96% odor free | F69: 96% odor free | G69: 96% odor free | H69: 96% odor free
A71: DIRECTIONAL WIND FREQUENCIES (Blowing From)
A72: FROM DATABASE FOR WEATHER STATION SELECTED ABOVE
A73: NORTH | B73: NORTHEAST | C73: EAST | D73: SOUTHEAST | E73: SOUTH | F73: SOUTHWEST | G73: WEST | H73: NORTHWEST
A74: =IF(windflag="OK",VLOOKUP(windstate,STATETABLE,6,"false"),"") -> 8.05 | B74: =IF(windflag="OK",VLOOKUP(windstate,STATETABLE,7,"false"),"") -> 7.9 | C74: =IF(windflag="OK",VLOOKUP(windstate,STATETABLE,8,"false"),"") -> 11.55 | D74: =IF(windflag="OK",VLOOKUP(windstate,STATETABLE,9,"false"),"") -> 6.45 | E74: =IF(windflag="OK",VLOOKUP(windstate,STATETABLE,2,"false"),"") -> 11.6 | F74: =IF(windflag="OK",VLOOKUP(windstate,STATETABLE,3,"false"),"") -> 14.8 | G74: =IF(windflag="OK",VLOOKUP(windstate,STATETABLE,4,"false"),"") -> 18.3 | H74: =IF(windflag="OK",VLOOKUP(windstate,STATETABLE,5,"false"),"") -> 8.5
A75: FROM USER ENTRY OF WIND FREQUENCIES BELOW
A76: =Wind!C10 -> 11.8 | B76: =Wind!C11 -> 11.8 | C76: =Wind!C12 -> 11.8 | D76: =Wind!C13 -> 11.8 | E76: =Wind!C6 -> 11.8 | F76: =Wind!C7 -> 11.8 | G76: =Wind!C8 -> 11.8 | H76: =Wind!C9 -> 11.8
A77: USED IN SETBACK CALCULATIONS (Depends on answer to "Select Weather Station" question above)
A78: =Wind!D10 -> 8.05 | B78: =Wind!D11 -> 7.9 | C78: =Wind!D12 -> 11.55 | D78: =Wind!D13 -> 6.45 | E78: =Wind!D6 -> 11.6 | F78: =Wind!D7 -> 14.8 | G78: =Wind!D8 -> 18.3 | H78: =Wind!D9 -> 8.5
A80: USER ENTRY OF WIND FREQUENCIES
A81: WIND FREQUENCY (BLOWING FROM)
A82: DIRECTION | B82: Frequency, %
A83: N | B83: 5.9
A84: NNE | B84: 5.9
A85: NE | B85: 5.9
A86: ENE | B86: 5.9
A87: E | B87: 5.9
A88: ESE | B88: 5.9
A89: SE | B89: 5.9
A90: SSE | B90: 5.9
A91: S | B91: 5.9
A92: SSW | B92: 5.9
A93: SW | B93: 5.9
A94: WSW | B94: 5.9
A95: W | B95: 5.9
A96: WNW | B96: 5.9
A97: NW | B97: 5.9
A98: NNW | B98: 5.9
A99: Calms | B99: 5.6
A100: Total | B100: =SUM(B83:B99) -> 100

Sheet Inputs
E1: SUMMARY OF MODEL INPUTS
B3: SOURCE ID | C3: SOURCE NAME | D3: BASELINE EMISSIONS (OU/s) | E3: MANURE REMOVAL | F3: MANURE DILUTION | G3: ADJUSTED EMISSIONS (OU/s) | H3: ODOR ABATEMENT | I3: ABATED EMISSION (OU/s) | K3: NUMBER OF SOURCES: | L3: =COUNT(Model!C15:C24) -> 0
B4: =IF(Number_of_Sources>0,1,"") ->  | C4: =IF(ISNUMBER(B4)=TRUE,s1name,"") ->  | D4: =s1emsn ->  | E4: =s1rmvlfctr ->  | F4: =s1dilfctr ->  | G4: =(IF(D4="","",IF(AND(E4="",F4=""),D4,D4*(E4-F4)))) ->  | H4: =IF(AND(B4="",s1abfctr=""),"",IF(s1abfctr="",1,s1abfctr)) ->  | I4: =(IF(D4="","",G4*H4)) -> 
B5: =IF(Number_of_Sources>1,2,"") ->  | C5: =IF(ISNUMBER(B5)=TRUE,s2name,"") ->  | D5: =s2emsn ->  | E5: =s2rmvlfctr ->  | F5: =s2dilfctr ->  | H5: =IF(AND(B5="",s2abfctr=""),"",IF(s2abfctr="", 1,s2abfctr)) -> 
B6: =IF(Number_of_Sources>2,3,"") ->  | C6: =IF(ISNUMBER(B6)=TRUE,s3name,"") ->  | D6: =s3emsn ->  | E6: =s3rmvlfctr ->  | F6: =s3dilfctr ->  | H6: =IF(AND(B6="",s3abfctr=""),"",IF(s3abfctr="",1,s3abfctr)) -> 
B7: =IF(Number_of_Sources>3,4,"") ->  | C7: =IF(ISNUMBER(B7)=TRUE,s4name,"") ->  | D7: =s4emsn ->  | E7: =s4rmvlfctr ->  | F7: =s4dilfctr ->  | H7: =IF(AND(B7="",s4abfctr=""),"",IF(s4abfctr="",1,s4abfctr)) -> 
B8: =IF(Number_of_Sources>4,5,"") ->  | C8: =IF(ISNUMBER(B8)=TRUE,s5name,"") ->  | D8: =s5emsn ->  | E8: =s5rmvlfctr ->  | F8: =s5dilfctr ->  | H8: =IF(AND(B8="",s5abfctr=""),"",IF(s5abfctr="",1,s5abfctr)) -> 
B9: =IF(Number_of_Sources>5,6,"") ->  | C9: =IF(ISNUMBER(B9)=TRUE,s6name,"") ->  | D9: =s6emsn ->  | E9: =s6rmvlfctr ->  | F9: =s6dilfctr ->  | H9: =IF(AND(B9="",s6abfctr=""),"",IF(s6abfctr="",1,s6abfctr)) -> 
B10: =IF(Number_of_Sources>6,7,"") ->  | C10: =IF(ISNUMBER(B10)=TRUE,s7name,"") ->  | D10: =s7emsn ->  | E10: =s7rmvlfctr ->  | F10: =s7dilfctr ->  | H10: =IF(AND(B10="",s7abfctr=""),"",IF(s7abfctr="",1,s7abfctr)) -> 
B11: =IF(Number_of_Sources>7,8,"") ->  | C11: =IF(ISNUMBER(B11)=TRUE,s8name,"") ->  | D11: =s8emsn ->  | E11: =s8rmvlfctr ->  | F11: =s8dilfctr ->  | H11: =IF(AND(B11="",s8abfctr=""),"",IF(s8abfctr="",1,s8abfctr)) -> 
B12: =IF(Number_of_Sources>8,9,"") ->  | C12: =IF(ISNUMBER(B12)=TRUE,s9name,"") ->  | D12: =s9emsn ->  | E12: =s9rmvlfctr ->  | F12: =s9dilfctr ->  | H12: =IF(AND(B12="",s9abfctr=""),"",IF(s9abfctr="",1,s9abfctr)) -> 
B13: =IF(Number_of_Sources>9,10,"") ->  | C13: =IF(ISNUMBER(B13)=TRUE,s10name,"") ->  | D13: =s10emsn ->  | E13: =s10rmvlfctr ->  | F13: =s10dilfctr ->  | H13: =IF(AND(B13="",s10abfctr=""),"",IF(s10abfctr="",1,s10abfctr)) -> 
C14: TOTALS | D14: =SUM(D4:D13) -> 0 | G14: =SUM(G4:G13) -> 0 | I14: =SUM(I4:I13) -> 0
A16: SHAPE FACTORS WITH ORIENTATION
A17: SOURCE ID | B17: NAME | C17: N | D17: NE | E17: E | F17: SE | G17: S | H17: SW | I17: W | J17: NW
A18: =IF($L$3>0,1,"") ->  | B18: =IF(ISNUMBER(A18)=TRUE,s1name,"") ->  | C18: =IF(OR(s1ORNT="",s1name=""),"",1+s1vfctr) ->  | D18: =IF(OR(s1ORNT="",s1name=""),"",1+(s1vfctr/2)) ->  | E18: =IF(OR(s1ORNT="",s1name=""),"",1+s1vfctr) ->  | F18: =IF(OR(s1ORNT="",s1name=""),"",1+(s1vfctr/2)) ->  | G18: =IF(OR(s1ORNT="",s1name=""),"",1+s1vfctr) ->  | H18: =IF(OR(s1ORNT="",s1name=""),"",1+(s1vfctr/2)) ->  | I18: =IF(OR(s1ORNT="",s1name=""),"",1+s1vfctr) ->  | J18: =IF(OR(s1ORNT="",s1name=""),"",1+(s1vfctr/2)) -> 
A19: =IF($L$3>1,2,"") ->  | B19: =IF(ISNUMBER(A19)=TRUE,s2name,"") ->  | C19: =IF(OR(s2ORNT="",s2name=""),"",1+s2vfctr) ->  | D19: =IF(OR(s2ORNT="",s2name=""),"",1+(s2vfctr/2)) ->  | E19: =IF(OR(s2ORNT="",s2name=""),"",1+s2vfctr) ->  | F19: =IF(OR(s2ORNT="",s2name=""),"",1+(s2vfctr/2)) ->  | G19: =IF(OR(s2ORNT="",s2name=""),"",1+s2vfctr) ->  | H19: =IF(OR(s2ORNT="",s2name=""),"",1+(s2vfctr/2)) ->  | I19: =IF(OR(s2ORNT="",s2name=""),"",1+s2vfctr) ->  | J19: =IF(OR(s2ORNT="",s2name=""),"",1+(s2vfctr/2)) -> 
A20: =IF($L$3>2,3,"") ->  | B20: =IF(ISNUMBER(A20)=TRUE,s3name,"") ->  | C20: =IF(OR(s3ORNT="",s3name=""),"",1+s3vfctr) ->  | D20: =IF(OR(s3ORNT="",s3name=""),"",1+(s3vfctr/2)) ->  | E20: =IF(OR(s3ORNT="",s3name=""),"",1+s3vfctr) ->  | F20: =IF(OR(s3ORNT="",s3name=""),"",1+(s3vfctr/2)) ->  | G20: =IF(OR(s3ORNT="",s3name=""),"",1+s3vfctr) ->  | H20: =IF(OR(s3ORNT="",s3name=""),"",1+(s3vfctr/2)) ->  | I20: =IF(OR(s3ORNT="",s3name=""),"",1+s3vfctr) ->  | J20: =IF(OR(s3ORNT="",s3name=""),"",1+(s3vfctr/2)) -> 
A21: =IF($L$3>3,4,"") ->  | B21: =IF(ISNUMBER(A21)=TRUE,s4name,"") ->  | C21: =IF(OR(s4ORNT="",s4name=""),"",1+s4vfctr) ->  | D21: =IF(OR(s4ORNT="",s4name=""),"",1+(s4vfctr/2)) ->  | E21: =IF(OR(s4ORNT="",s4name=""),"",1+s4vfctr) ->  | F21: =IF(OR(s4ORNT="",s4name=""),"",1+(s4vfctr/2)) ->  | G21: =IF(OR(s4ORNT="",s4name=""),"",1+s4vfctr) ->  | H21: =IF(OR(s4ORNT="",s4name=""),"",1+(s4vfctr/2)) ->  | I21: =IF(OR(s4ORNT="",s4name=""),"",1+s4vfctr) ->  | J21: =IF(OR(s4ORNT="",s4name=""),"",1+(s4vfctr/2)) -> 
A22: =IF($L$3>4,5,"") ->  | B22: =IF(ISNUMBER(A22)=TRUE,s5name,"") ->  | C22: =IF(OR(s5ORNT="",s5name=""),"",1+s5vfctr) ->  | D22: =IF(OR(s5ORNT="",s5name=""),"",1+(s5vfctr/2)) ->  | E22: =IF(OR(s5ORNT="",s5name=""),"",1+s5vfctr) ->  | F22: =IF(OR(s5ORNT="",s5name=""),"",1+(s5vfctr/2)) ->  | G22: =IF(OR(s5ORNT="",s5name=""),"",1+s5vfctr) ->  | H22: =IF(OR(s5ORNT="",s5name=""),"",1+(s5vfctr/2)) ->  | I22: =IF(OR(s5ORNT="",s5name=""),"",1+s5vfctr) ->  | J22: =IF(OR(s5ORNT="",s5name=""),"",1+(s5vfctr/2)) -> 
A23: =IF($L$3>5,6,"") ->  | B23: =IF(ISNUMBER(A23)=TRUE,s6name,"") ->  | C23: =IF(OR(s6ORNT="",s6name=""),"",1+s6vfctr) ->  | D23: =IF(OR(s6ORNT="",s6name=""),"",1+(s6vfctr/2)) ->  | E23: =IF(OR(s6ORNT="",s6name=""),"",1+s6vfctr) ->  | F23: =IF(OR(s6ORNT="",s6name=""),"",1+(s6vfctr/2)) ->  | G23: =IF(OR(s6ORNT="",s6name=""),"",1+s6vfctr) ->  | H23: =IF(OR(s6ORNT="",s6name=""),"",1+(s6vfctr/2)) ->  | I23: =IF(OR(s6ORNT="",s6name=""),"",1+s6vfctr) ->  | J23: =IF(OR(s6ORNT="",s6name=""),"",1+(s6vfctr/2)) -> 
A24: =IF($L$3>6,7,"") ->  | B24: =IF(ISNUMBER(A24)=TRUE,s7name,"") ->  | C24: =IF(OR(s7ORNT="",s7name=""),"",1+s7vfctr) ->  | D24: =IF(OR(s7ORNT="",s7name=""),"",1+(s7vfctr/2)) ->  | E24: =IF(OR(s7ORNT="",s7name=""),"",1+s7vfctr) ->  | F24: =IF(OR(s7ORNT="",s7name=""),"",1+(s7vfctr/2)) ->  | G24: =IF(OR(s7ORNT="",s7name=""),"",1+s7vfctr) ->  | H24: =IF(OR(s7ORNT="",s7name=""),"",1+(s7vfctr/2)) ->  | I24: =IF(OR(s7ORNT="",s7name=""),"",1+s7vfctr) ->  | J24: =IF(OR(s7ORNT="",s7name=""),"",1+(s7vfctr/2)) -> 
A25: =IF($L$3>7,8,"") ->  | B25: =IF(ISNUMBER(A25)=TRUE,s8name,"") ->  | C25: =IF(OR(s8ORNT="",s8name=""),"",1+s8vfctr) ->  | D25: =IF(OR(s8ORNT="",s8name=""),"",1+(s8vfctr/2)) ->  | E25: =IF(OR(s8ORNT="",s8name=""),"",1+s8vfctr) ->  | F25: =IF(OR(s8ORNT="",s8name=""),"",1+(s8vfctr/2)) ->  | G25: =IF(OR(s8ORNT="",s8name=""),"",1+s8vfctr) ->  | H25: =IF(OR(s8ORNT="",s8name=""),"",1+(s8vfctr/2)) ->  | I25: =IF(OR(s8ORNT="",s8name=""),"",1+s8vfctr) ->  | J25: =IF(OR(s8ORNT="",s8name=""),"",1+(s8vfctr/2)) -> 
A26: =IF($L$3>8,9,"") ->  | B26: =IF(ISNUMBER(A26)=TRUE,s9name,"") ->  | C26: =IF(OR(s9ORNT="",s9name=""),"",1+s9vfctr) ->  | D26: =IF(OR(s9ORNT="",s9name=""),"",1+(s9vfctr/2)) ->  | E26: =IF(OR(s9ORNT="",s9name=""),"",1+s9vfctr) ->  | F26: =IF(OR(s9ORNT="",s9name=""),"",1+(s9vfctr/2)) ->  | G26: =IF(OR(s9ORNT="",s9name=""),"",1+s9vfctr) ->  | H26: =IF(OR(s9ORNT="",s9name=""),"",1+(s9vfctr/2)) ->  | I26: =IF(OR(s9ORNT="",s9name=""),"",1+s9vfctr) ->  | J26: =IF(OR(s9ORNT="",s9name=""),"",1+(s9vfctr/2)) -> 
A27: =IF($L$3>9,10,"") ->  | B27: =IF(ISNUMBER(A27)=TRUE,s10name,"") ->  | C27: =IF(OR(s10ORNT="",s10name=""),"",1+s10vfctr) ->  | D27: =IF(OR(s10ORNT="",s10name=""),"",1+(s10vfctr/2)) ->  | E27: =IF(OR(s10ORNT="",s10name=""),"",1+s10vfctr) ->  | F27: =IF(OR(s10ORNT="",s10name=""),"",1+(s10vfctr/2)) ->  | G27: =IF(OR(s10ORNT="",s10name=""),"",1+s10vfctr) ->  | H27: =IF(OR(s10ORNT="",s10name=""),"",1+(s10vfctr/2)) ->  | I27: =IF(OR(s10ORNT="",s10name=""),"",1+s10vfctr) ->  | J27: =IF(OR(s10ORNT="",s10name=""),"",1+(s10vfctr/2)) -> 
B28: PERIMETER | C28: =IF(B35="","",1+pvfctr) ->  | D28: =IF(C35="","",1+(pvfctr/2)) ->  | E28: =IF(D35="","",1+pvfctr) ->  | F28: =IF(E35="","",1+(pvfctr/2)) ->  | G28: =IF(F35="","",1+pvfctr) ->  | H28: =IF(G35="","",1+(pvfctr/2)) ->  | I28: =IF(H35="","",1+pvfctr) ->  | J28: =IF(I35="","",1+(pvfctr/2)) -> 
B30: TERRAIN FACTORS
B31: N | C31: NE | D31: E | E31: SE | F31: S | G31: SW | H31: W | I31: NW
B32: =IF(Model!A62="","",VLOOKUP(Model!A62,topotable,2,"false")) -> 0.8 | C32: =IF(Model!B62="","",VLOOKUP(Model!B62,topotable,2,"false")) -> 0.8 | D32: =IF(Model!C62="","",VLOOKUP(Model!C62,topotable,2,"false")) -> 0.8 | E32: =IF(Model!D62="","",VLOOKUP(Model!D62,topotable,2,"false")) -> 0.8 | F32: =IF(Model!E62="","",VLOOKUP(Model!E62,topotable,2,"false")) -> 0.8 | G32: =IF(Model!F62="","",VLOOKUP(Model!F62,topotable,2,"false")) -> 0.8 | H32: =IF(Model!G62="","",VLOOKUP(Model!G62,topotable,2,"false")) -> 0.8 | I32: =IF(Model!H62="","",VLOOKUP(Model!H62,topotable,2,"false")) -> 0.8
B33: EXPOSURE FACTORS
B34: N | C34: NE | D34: E | E34: SE | F34: S | G34: SW | H34: W | I34: NW
B35: =IF(Model!A69="","",VLOOKUP(Model!A69,landusetable,2,"false")) -> 0.7 | C35: =IF(Model!B69="","",VLOOKUP(Model!B69,landusetable,2,"false")) -> 0.7 | D35: =IF(Model!C69="","",VLOOKUP(Model!C69,landusetable,2,"false")) -> 0.7 | E35: =IF(Model!D69="","",VLOOKUP(Model!D69,landusetable,2,"false")) -> 0.7 | F35: =IF(Model!E69="","",VLOOKUP(Model!E69,landusetable,2,"false")) -> 0.7 | G35: =IF(Model!F69="","",VLOOKUP(Model!F69,landusetable,2,"false")) -> 0.7 | H35: =IF(Model!G69="","",VLOOKUP(Model!G69,landusetable,2,"false")) -> 0.7 | I35: =IF(Model!H69="","",VLOOKUP(Model!H69,landusetable,2,"false")) -> 0.7
B36: WIND FREQUENCY FACTORS
B37: N | C37: NE | D37: E | E37: SE | F37: S | G37: SW | H37: W | I37: NW
B38: =Wind!E$6 -> 0.8635 | C38: =Wind!E$7 -> 0.9275 | D38: =Wind!E$8 -> 0.9975 | E38: =Wind!E$9 -> 0.8015 | F38: =Wind!E$10 -> 0.7925 | G38: =Wind!E$11 -> 0.7895 | H38: =Wind!E$12 -> 0.8625 | I38: =Wind!E$13 -> 0.7605
B39: WIND FREQUENCY DOWNWIND (BLOWING TO)
B40: N | C40: NE | D40: E | E40: SE | F40: S | G40: SW | H40: W | I40: NW
B41: =Wind!D$6 -> 11.6 | C41: =Wind!D$7 -> 14.8 | D41: =Wind!D$8 -> 18.3 | E41: =Wind!D$9 -> 8.5 | F41: =Wind!D$10 -> 8.05 | G41: =Wind!D$11 -> 7.9 | H41: =Wind!D$12 -> 11.55 | I41: =Wind!D$13 -> 6.45

Sheet Setback
A1: SETBACK CALCULATION RESULTS
A2: SOURCE | B2: SETBACK DISTANCES FROM EACH INDIVIDUAL SOURCE, FT.
B3: N | C3: NE | D3: E | E3: SE | F3: S | G3: SW | H3: W | I3: NW | P3: Test
A4: =IF(ISNUMBER(Inputs!$B4),s1name,"") ->  | B4: =IF(OR(terrain_north="",exposure_north="",windfreq_north="",s1shape_north=""),"",20*windfreq_north*terrain_north*exposure_north*s1shape_north*((s1emission*s1abate)^PowerExpo)) ->  | C4: =IF(OR(terrain_ne="",exposure_ne="",windfreq_ne="",s1shape_ne=""),"",20*windfreq_ne*terrain_ne*exposure_ne*s1shape_ne*((s1emission*s1abate)^PowerExpo)) ->  | D4: =IF(OR(terrain_east="",exposure_east="",windfreq_east="",s1shape_east=""),"",20*windfreq_east*terrain_east*exposure_east*s1shape_east*((s1emission*s1abate)^PowerExpo)) ->  | E4: =IF(OR(terrain_se="",exposure_se="",windfreq_se="",s1shape_se=""),"",20*windfreq_se*terrain_se*exposure_se*s1shape_se*((s1emission*s1abate)^PowerExpo)) ->  | F4: =IF(OR(terrain_south="",exposure_south="",windfreq_south="",s1shape_south=""),"",20*windfreq_south*terrain_south*exposure_south*s1shape_south*((s1emission*s1abate)^PowerExpo)) ->  | G4: =IF(OR(terrain_sw="",exposure_sw="",windfreq_sw="",s1shape_sw=""),"",20*windfreq_sw*terrain_sw*exposure_sw*s1shape_sw*((s1emission*s1abate)^PowerExpo)) ->  | H4: =IF(OR(terrain_west="",exposure_west="",windfreq_west="",s1shape_west=""),"",20*windfreq_west*terrain_west*exposure_west*s1shape_west*((s1emission*s1abate)^PowerExpo)) ->  | I4: =IF(OR(terrain_nw="",exposure_nw="",windfreq_nw="",s1shape_nw=""),"",20*windfreq_nw*terrain_nw*exposure_nw*s1shape_nw*((s1emission*s1abate)^PowerExpo)) -> 
A5: =IF(ISNUMBER(Inputs!$B5),s2name,"") ->  | B5: =IF(OR(terrain_north="",exposure_north="",windfreq_north="",s2shape_north=""),"",20*windfreq_north*terrain_north*exposure_north*s2shape_north*((s2emission*s2abate)^PowerExpo)) ->  | C5: =IF(OR(terrain_ne="",exposure_ne="",windfreq_ne="",s2shape_ne=""),"",20*windfreq_ne*terrain_ne*exposure_ne*s2shape_ne*((s2emission*s2abate)^PowerExpo)) ->  | D5: =IF(OR(terrain_east="",exposure_east="",windfreq_east="",s2shape_east=""),"",20*windfreq_east*terrain_east*exposure_east*s2shape_east*((s2emission*s2abate)^PowerExpo)) ->  | E5: =IF(OR(terrain_se="",exposure_se="",windfreq_se="",s2shape_se=""),"",20*windfreq_se*terrain_se*exposure_se*s2shape_se*((s2emission*s2abate)^PowerExpo)) ->  | F5: =IF(OR(terrain_south="",exposure_south="",windfreq_south="",s2shape_south=""),"",20*windfreq_south*terrain_south*exposure_south*s2shape_south*((s2emission*s2abate)^PowerExpo)) ->  | G5: =IF(OR(terrain_sw="",exposure_sw="",windfreq_sw="",s2shape_sw=""),"",20*windfreq_sw*terrain_sw*exposure_sw*s2shape_sw*((s2emission*s2abate)^PowerExpo)) ->  | H5: =IF(OR(terrain_west="",exposure_west="",windfreq_west="",s2shape_west=""),"",20*windfreq_west*terrain_west*exposure_west*s2shape_west*((s2emission*s2abate)^PowerExpo)) ->  | I5: =IF(OR(terrain_nw="",exposure_nw="",windfreq_nw="",s2shape_nw=""),"",20*windfreq_nw*terrain_nw*exposure_nw*s2shape_nw*((s2emission*s2abate)^PowerExpo)) -> 
A6: =IF(ISNUMBER(Inputs!$B6),s3name,"") ->  | B6: =IF(OR(terrain_north="",exposure_north="",windfreq_north="",s3shape_north=""),"",20*windfreq_north*terrain_north*exposure_north*s3shape_north*((s3emission*s3abate)^PowerExpo)) ->  | C6: =IF(OR(terrain_ne="",exposure_ne="",windfreq_ne="",s3shape_ne=""),"",20*windfreq_ne*terrain_ne*exposure_ne*s3shape_ne*((s3emission*s3abate)^PowerExpo)) ->  | D6: =IF(OR(terrain_east="",exposure_east="",windfreq_east="",s3shape_east=""),"",20*windfreq_east*terrain_east*exposure_east*s3shape_east*((s3emission*s3abate)^PowerExpo)) ->  | E6: =IF(OR(terrain_se="",exposure_se="",windfreq_se="",s3shape_se=""),"",20*windfreq_se*terrain_se*exposure_se*s3shape_se*((s3emission*s3abate)^PowerExpo)) ->  | F6: =IF(OR(terrain_south="",exposure_south="",windfreq_south="",s3shape_south=""),"",20*windfreq_south*terrain_south*exposure_south*s3shape_south*((s3emission*s3abate)^PowerExpo)) ->  | G6: =IF(OR(terrain_sw="",exposure_sw="",windfreq_sw="",s3shape_sw=""),"",20*windfreq_sw*terrain_sw*exposure_sw*s3shape_sw*((s3emission*s3abate)^PowerExpo)) ->  | H6: =IF(OR(terrain_west="",exposure_west="",windfreq_west="",s3shape_west=""),"",20*windfreq_west*terrain_west*exposure_west*s3shape_west*((s3emission*s3abate)^PowerExpo)) ->  | I6: =IF(OR(terrain_nw="",exposure_nw="",windfreq_nw="",s3shape_nw=""),"",20*windfreq_nw*terrain_nw*exposure_nw*s3shape_nw*((s3emission*s3abate)^PowerExpo)) ->  | P6: =IF(OR(terrain_nw="",exposure_nw="",windfreq_nw="",s3shape_nw=""),"",20*windfreq_nw*terrain_nw*exposure_nw*s3shape_nw*((s3emission*s3abate)^PowerExpo)) -> 
A7: =IF(ISNUMBER(Inputs!$B7),s4name,"") ->  | B7: =IF(OR(terrain_north="",exposure_north="",windfreq_north="",s4shape_north=""),"",20*windfreq_north*terrain_north*exposure_north*s4shape_north*((s4emission*s4abate)^PowerExpo)) ->  | C7: =IF(OR(terrain_ne="",exposure_ne="",windfreq_ne="",s4shape_ne=""),"",20*windfreq_ne*terrain_ne*exposure_ne*s4shape_ne*((s4emission*s4abate)^PowerExpo)) ->  | D7: =IF(OR(terrain_east="",exposure_east="",windfreq_east="",s4shape_east=""),"",20*windfreq_east*terrain_east*exposure_east*s4shape_east*((s4emission*s4abate)^PowerExpo)) ->  | E7: =IF(OR(terrain_se="",exposure_se="",windfreq_se="",s4shape_se=""),"",20*windfreq_se*terrain_se*exposure_se*s4shape_se*((s4emission*s4abate)^PowerExpo)) ->  | F7: =IF(OR(terrain_south="",exposure_south="",windfreq_south="",s4shape_south=""),"",20*windfreq_south*terrain_south*exposure_south*s4shape_south*((s4emission*s4abate)^PowerExpo)) ->  | G7: =IF(OR(terrain_sw="",exposure_sw="",windfreq_sw="",s4shape_sw=""),"",20*windfreq_sw*terrain_sw*exposure_sw*s4shape_sw*((s4emission*s4abate)^PowerExpo)) ->  | H7: =IF(OR(terrain_west="",exposure_west="",windfreq_west="",s4shape_west=""),"",20*windfreq_west*terrain_west*exposure_west*s4shape_west*((s4emission*s4abate)^PowerExpo)) ->  | I7: =IF(OR(terrain_nw="",exposure_nw="",windfreq_nw="",s4shape_nw=""),"",20*windfreq_nw*terrain_nw*exposure_nw*s4shape_nw*((s4emission*s4abate)^PowerExpo)) ->  | P7: =IF(OR(terrain_nw="",exposure_nw="",windfreq_nw="",s4shape_nw=""),"",20*windfreq_nw*terrain_nw*exposure_nw*s4shape_nw*((s4emission*s4abate)^PowerExpo)) -> 
A8: =IF(ISNUMBER(Inputs!$B8),s5name,"") ->  | B8: =IF(OR(terrain_north="",exposure_north="",windfreq_north="",s5shape_north=""),"",20*windfreq_north*terrain_north*exposure_north*s5shape_north*((s5emission*s5abate)^PowerExpo)) ->  | C8: =IF(OR(terrain_ne="",exposure_ne="",windfreq_ne="",s5shape_ne=""),"",20*windfreq_ne*terrain_ne*exposure_ne*s5shape_ne*((s5emission*s5abate)^PowerExpo)) ->  | D8: =IF(OR(terrain_east="",exposure_east="",windfreq_east="",s5shape_east=""),"",20*windfreq_east*terrain_east*exposure_east*s5shape_east*((s5emission*s5abate)^PowerExpo)) ->  | E8: =IF(OR(terrain_se="",exposure_se="",windfreq_se="",s5shape_se=""),"",20*windfreq_se*terrain_se*exposure_se*s5shape_se*((s5emission*s5abate)^PowerExpo)) ->  | F8: =IF(OR(terrain_south="",exposure_south="",windfreq_south="",s5shape_south=""),"",20*windfreq_south*terrain_south*exposure_south*s5shape_south*((s5emission*s5abate)^PowerExpo)) ->  | G8: =IF(OR(terrain_sw="",exposure_sw="",windfreq_sw="",s5shape_sw=""),"",20*windfreq_sw*terrain_sw*exposure_sw*s5shape_sw*((s5emission*s5abate)^PowerExpo)) ->  | H8: =IF(OR(terrain_west="",exposure_west="",windfreq_west="",s5shape_west=""),"",20*windfreq_west*terrain_west*exposure_west*s5shape_west*((s5emission*s5abate)^PowerExpo)) ->  | I8: =IF(OR(terrain_nw="",exposure_nw="",windfreq_nw="",s5shape_nw=""),"",20*windfreq_nw*terrain_nw*exposure_nw*s5shape_nw*((s5emission*s5abate)^PowerExpo)) ->  | P8: =IF(OR(terrain_nw="",exposure_nw="",windfreq_nw="",s5shape_nw=""),"",20*windfreq_nw*terrain_nw*exposure_nw*s5shape_nw*((s5emission*s5abate)^PowerExpo)) -> 
A9: =IF(ISNUMBER(Inputs!$B9),s6name,"") ->  | B9: =IF(OR(terrain_north="",exposure_north="",windfreq_north="",s6shape_north=""),"",20*windfreq_north*terrain_north*exposure_north*s6shape_north*((s6emission*s6abate)^PowerExpo)) ->  | C9: =IF(OR(terrain_ne="",exposure_ne="",windfreq_ne="",s6shape_ne=""),"",20*windfreq_ne*terrain_ne*exposure_ne*s6shape_ne*((s6emission*s6abate)^PowerExpo)) ->  | D9: =IF(OR(terrain_east="",exposure_east="",windfreq_east="",s6shape_east=""),"",20*windfreq_east*terrain_east*exposure_east*s6shape_east*((s6emission*s6abate)^PowerExpo)) ->  | E9: =IF(OR(terrain_se="",exposure_se="",windfreq_se="",s6shape_se=""),"",20*windfreq_se*terrain_se*exposure_se*s6shape_se*((s6emission*s6abate)^PowerExpo)) ->  | F9: =IF(OR(terrain_south="",exposure_south="",windfreq_south="",s6shape_south=""),"",20*windfreq_south*terrain_south*exposure_south*s6shape_south*((s6emission*s6abate)^PowerExpo)) ->  | G9: =IF(OR(terrain_sw="",exposure_sw="",windfreq_sw="",s6shape_sw=""),"",20*windfreq_sw*terrain_sw*exposure_sw*s6shape_sw*((s6emission*s6abate)^PowerExpo)) ->  | H9: =IF(OR(terrain_west="",exposure_west="",windfreq_west="",s6shape_west=""),"",20*windfreq_west*terrain_west*exposure_west*s6shape_west*((s6emission*s6abate)^PowerExpo)) ->  | I9: =IF(OR(terrain_nw="",exposure_nw="",windfreq_nw="",s6shape_nw=""),"",20*windfreq_nw*terrain_nw*exposure_nw*s6shape_nw*((s6emission*s6abate)^PowerExpo)) ->  | P9: =IF(OR(terrain_nw="",exposure_nw="",windfreq_nw="",s6shape_nw=""),"",20*windfreq_nw*terrain_nw*exposure_nw*s6shape_nw*((s6emission*s6abate)^PowerExpo)) -> 
A10: =IF(ISNUMBER(Inputs!$B10),s7name,"") ->  | B10: =IF(OR(terrain_north="",exposure_north="",windfreq_north="",s7shape_north=""),"",20*windfreq_north*terrain_north*exposure_north*s7shape_north*((s7emission*s7abate)^PowerExpo)) ->  | C10: =IF(OR(terrain_ne="",exposure_ne="",windfreq_ne="",s7shape_ne=""),"",20*windfreq_ne*terrain_ne*exposure_ne*s7shape_ne*((s7emission*s7abate)^PowerExpo)) ->  | D10: =IF(OR(terrain_east="",exposure_east="",windfreq_east="",s7shape_east=""),"",20*windfreq_east*terrain_east*exposure_east*s7shape_east*((s7emission*s7abate)^PowerExpo)) ->  | E10: =IF(OR(terrain_se="",exposure_se="",windfreq_se="",s7shape_se=""),"",20*windfreq_se*terrain_se*exposure_se*s7shape_se*((s7emission*s7abate)^PowerExpo)) ->  | F10: =IF(OR(terrain_south="",exposure_south="",windfreq_south="",s7shape_south=""),"",20*windfreq_south*terrain_south*exposure_south*s7shape_south*((s7emission*s7abate)^PowerExpo)) ->  | G10: =IF(OR(terrain_sw="",exposure_sw="",windfreq_sw="",s7shape_sw=""),"",20*windfreq_sw*terrain_sw*exposure_sw*s7shape_sw*((s7emission*s7abate)^PowerExpo)) ->  | H10: =IF(OR(terrain_west="",exposure_west="",windfreq_west="",s7shape_west=""),"",20*windfreq_west*terrain_west*exposure_west*s7shape_west*((s7emission*s7abate)^PowerExpo)) ->  | I10: =IF(OR(terrain_nw="",exposure_nw="",windfreq_nw="",s7shape_nw=""),"",20*windfreq_nw*terrain_nw*exposure_nw*s7shape_nw*((s7emission*s7abate)^PowerExpo)) ->  | P10: =IF(OR(terrain_nw="",exposure_nw="",windfreq_nw="",s7shape_nw=""),"",20*windfreq_nw*terrain_nw*exposure_nw*s7shape_nw*((s7emission*s7abate)^PowerExpo)) -> 
A11: =IF(ISNUMBER(Inputs!$B11),s8name,"") ->  | B11: =IF(OR(terrain_north="",exposure_north="",windfreq_north="",s8shape_north=""),"",20*windfreq_north*terrain_north*exposure_north*s8shape_north*((s8emission*s8abate)^PowerExpo)) ->  | C11: =IF(OR(terrain_ne="",exposure_ne="",windfreq_ne="",s8shape_ne=""),"",20*windfreq_ne*terrain_ne*exposure_ne*s8shape_ne*((s8emission*s8abate)^PowerExpo)) ->  | D11: =IF(OR(terrain_east="",exposure_east="",windfreq_east="",s8shape_east=""),"",20*windfreq_east*terrain_east*exposure_east*s8shape_east*((s8emission*s8abate)^PowerExpo)) ->  | E11: =IF(OR(terrain_se="",exposure_se="",windfreq_se="",s8shape_se=""),"",20*windfreq_se*terrain_se*exposure_se*s8shape_se*((s8emission*s8abate)^PowerExpo)) ->  | F11: =IF(OR(terrain_south="",exposure_south="",windfreq_south="",s8shape_south=""),"",20*windfreq_south*terrain_south*exposure_south*s8shape_south*((s8emission*s8abate)^PowerExpo)) ->  | G11: =IF(OR(terrain_sw="",exposure_sw="",windfreq_sw="",s8shape_sw=""),"",20*windfreq_sw*terrain_sw*exposure_sw*s8shape_sw*((s8emission*s8abate)^PowerExpo)) ->  | H11: =IF(OR(terrain_west="",exposure_west="",windfreq_west="",s8shape_west=""),"",20*windfreq_west*terrain_west*exposure_west*s8shape_west*((s8emission*s8abate)^PowerExpo)) ->  | I11: =IF(OR(terrain_nw="",exposure_nw="",windfreq_nw="",s8shape_nw=""),"",20*windfreq_nw*terrain_nw*exposure_nw*s8shape_nw*((s8emission*s8abate)^PowerExpo)) ->  | P11: =IF(OR(terrain_nw="",exposure_nw="",windfreq_nw="",s8shape_nw=""),"",20*windfreq_nw*terrain_nw*exposure_nw*s8shape_nw*((s8emission*s8abate)^PowerExpo)) -> 
A12: =IF(ISNUMBER(Inputs!$B12),s9name,"") ->  | B12: =IF(OR(terrain_north="",exposure_north="",windfreq_north="",s9shape_north=""),"",20*windfreq_north*terrain_north*exposure_north*s9shape_north*((s9emission*s9abate)^PowerExpo)) ->  | C12: =IF(OR(terrain_ne="",exposure_ne="",windfreq_ne="",s9shape_ne=""),"",20*windfreq_ne*terrain_ne*exposure_ne*s9shape_ne*((s9emission*s9abate)^PowerExpo)) ->  | D12: =IF(OR(terrain_east="",exposure_east="",windfreq_east="",s9shape_east=""),"",20*windfreq_east*terrain_east*exposure_east*s9shape_east*((s9emission*s9abate)^PowerExpo)) ->  | E12: =IF(OR(terrain_se="",exposure_se="",windfreq_se="",s9shape_se=""),"",20*windfreq_se*terrain_se*exposure_se*s9shape_se*((s9emission*s9abate)^PowerExpo)) ->  | F12: =IF(OR(terrain_south="",exposure_south="",windfreq_south="",s9shape_south=""),"",20*windfreq_south*terrain_south*exposure_south*s9shape_south*((s9emission*s9abate)^PowerExpo)) ->  | G12: =IF(OR(terrain_sw="",exposure_sw="",windfreq_sw="",s9shape_sw=""),"",20*windfreq_sw*terrain_sw*exposure_sw*s9shape_sw*((s9emission*s9abate)^PowerExpo)) ->  | H12: =IF(OR(terrain_west="",exposure_west="",windfreq_west="",s9shape_west=""),"",20*windfreq_west*terrain_west*exposure_west*s9shape_west*((s9emission*s9abate)^PowerExpo)) ->  | I12: =IF(OR(terrain_nw="",exposure_nw="",windfreq_nw="",s9shape_nw=""),"",20*windfreq_nw*terrain_nw*exposure_nw*s9shape_nw*((s9emission*s9abate)^PowerExpo)) ->  | P12: =IF(OR(terrain_nw="",exposure_nw="",windfreq_nw="",s9shape_nw=""),"",20*windfreq_nw*terrain_nw*exposure_nw*s9shape_nw*((s9emission*s9abate)^PowerExpo)) -> 
A13: =IF(ISNUMBER(Inputs!$B13),s10name,"") ->  | B13: =IF(OR(terrain_north="",exposure_north="",windfreq_north="",s10shape_north=""),"",20*windfreq_north*terrain_north*exposure_north*s10shape_north*((s10emission*s10abate)^PowerExpo)) ->  | C13: =IF(OR(terrain_ne="",exposure_ne="",windfreq_ne="",s10shape_ne=""),"",20*windfreq_ne*terrain_ne*exposure_ne*s10shape_ne*((s10emission*s10abate)^PowerExpo)) ->  | D13: =IF(OR(terrain_east="",exposure_east="",windfreq_east="",s10shape_east=""),"",20*windfreq_east*terrain_east*exposure_east*s10shape_east*((s10emission*s10abate)^PowerExpo)) ->  | E13: =IF(OR(terrain_se="",exposure_se="",windfreq_se="",s10shape_se=""),"",20*windfreq_se*terrain_se*exposure_se*s10shape_se*((s10emission*s10abate)^PowerExpo)) ->  | F13: =IF(OR(terrain_south="",exposure_south="",windfreq_south="",s10shape_south=""),"",20*windfreq_south*terrain_south*exposure_south*s10shape_south*((s10emission*s10abate)^PowerExpo)) ->  | G13: =IF(OR(terrain_sw="",exposure_sw="",windfreq_sw="",s10shape_sw=""),"",20*windfreq_sw*terrain_sw*exposure_sw*s10shape_sw*((s10emission*s10abate)^PowerExpo)) ->  | H13: =IF(OR(terrain_west="",exposure_west="",windfreq_west="",s10shape_west=""),"",20*windfreq_west*terrain_west*exposure_west*s10shape_west*((s10emission*s10abate)^PowerExpo)) ->  | I13: =IF(OR(terrain_nw="",exposure_nw="",windfreq_nw="",s10shape_nw=""),"",20*windfreq_nw*terrain_nw*exposure_nw*s10shape_nw*((s10emission*s10abate)^PowerExpo)) ->  | P13: =IF(OR(terrain_nw="",exposure_nw="",windfreq_nw="",s10shape_nw=""),"",20*windfreq_nw*terrain_nw*exposure_nw*s10shape_nw*((s10emission*s10abate)^PowerExpo)) -> 
A14: SITE | B14: SETBACK DISTANCES FROM SITE
A15: Unadjusted site setback, ft. | B15: =IF(OR(terrain_north="",exposure_north="",windfreq_north="",pshape_north=""),"",20*windfreq_north*exposure_north*terrain_north*pshape_north*((site_emission_abated)^PowerExpo)) ->  | C15: =IF(OR(terrain_ne="",exposure_ne="",windfreq_ne="",pshape_ne=""),"",20*windfreq_ne*exposure_ne*terrain_ne*pshape_ne*((site_emission_abated)^PowerExpo)) ->  | D15: =IF(OR(terrain_east="",exposure_east="",windfreq_east="",pshape_east=""),"",20*windfreq_east*exposure_east*terrain_east*pshape_east*((site_emission_abated)^PowerExpo)) ->  | E15: =IF(OR(terrain_se="",exposure_se="",windfreq_se="",pshape_se=""),"",20*windfreq_se*exposure_se*terrain_se*pshape_se*((site_emission_abated)^PowerExpo)) ->  | F15: =IF(OR(terrain_south="",exposure_south="",windfreq_south="",pshape_south=""),"",20*windfreq_south*exposure_south*terrain_south*pshape_south*((site_emission_abated)^PowerExpo)) ->  | G15: =IF(OR(terrain_sw="",exposure_sw="",windfreq_sw="",pshape_sw=""),"",20*windfreq_sw*exposure_sw*terrain_sw*pshape_sw*((site_emission_abated)^PowerExpo)) ->  | H15: =IF(OR(terrain_west="",exposure_west="",windfreq_west="",pshape_west=""),"",20*windfreq_west*exposure_west*terrain_west*pshape_west*((site_emission_abated)^PowerExpo)) ->  | I15: =IF(OR(terrain_nw="",exposure_nw="",windfreq_nw="",pshape_nw=""),"",20*windfreq_nw*exposure_nw*terrain_nw*pshape_nw*((site_emission_abated)^PowerExpo)) ->  | P15: =AVERAGE(B15:I15) -> 
A16: Site Setback, ft. | B16: =IF(Site_Setback_N="","",Site_Setback_N-com_diff_N) ->  | C16: =SQRT((Site_Setback_NE*COS(PI()*45/180)-com_diff_N)^2+(Site_Setback_NE*SIN(PI()*45/180)-com_diff_E)^2) ->  | D16: =IF(Site_Setback_E="","",Site_Setback_E-com_diff_E) ->  | E16: =SQRT((Site_Setback_Se*COS(PI()*45/180)+com_diff_N)^2+(Site_Setback_Se*SIN(PI()*45/180)-com_diff_E)^2) ->  | F16: =IF(Site_Setback_S="","",Site_Setback_S+com_diff_N) ->  | G16: =SQRT((Site_Setback_SW*COS(PI()*45/180)+com_diff_N)^2+(Site_Setback_SW*SIN(PI()*45/180)+com_diff_E)^2) ->  | H16: =IF(Site_Setback_W="","",Site_Setback_W+com_diff_E) ->  | I16: =SQRT((Site_Setback_NW*COS(PI()*45/180)-com_diff_N)^2+(Site_Setback_NW*SIN(PI()*45/180)+com_diff_E)^2) ->  | K16: Min | L16: =MIN(B16:I16) ->  | M16: Max | N16: =MAX(B16:I16) ->  | P16: 2560
A17: Site Setback, m | B17: =B16/3.28 ->  | D17: =D16/3.28 ->  | P17: =P16/3.28 -> 780.4878049
A18: Site Setback, yd | B18: =B16/3 ->  | C18: =C16/3 ->  | D18: =D16/3 ->  | P18: =P16/3 -> 853.3333333
A19: Site Setback, miles | B19: =B16/5280 ->  | C19: =C16/5280 ->  | D19: =D16/5280 ->  | P19: =P16/5280 -> 0.4848484848
A20: Site Setback, km | B20: =B17/1000 ->  | C20: =C17/1000 ->  | P20: =P17/1000 -> 0.7804878049
A21: Bearing, deg | B21: 0 | C21: 45 | D21: 90 | E21: 135 | F21: 180 | G21: 225 | H21: 270 | I21: 315 | P21: 90
A22: Latitude 2 | B22: =DEGREES(ASIN(SIN(RADIANS(sitelatitude))*COS(B17/RadiusEarth)+COS(RADIANS(sitelatitude))*SIN(B17/RadiusEarth)*COS(RADIANS(B21)))) ->  | P22: =DEGREES(ASIN(SIN(RADIANS(sitelatitude))*COS(P17/RadiusEarth)+COS(RADIANS(sitelatitude))*SIN(P17/RadiusEarth)*COS(RADIANS(P21)))) -> 44.99999957
A23: Longitude 2 | B23: =sitelongitude+DEGREES(ATAN2(COS(B17/RadiusEarth)-SIN(RADIANS(sitelatitude))*SIN(RADIANS(B22)),SIN(RADIANS(B21))*SIN(B17/RadiusEarth)*COS(RADIANS(sitelatitude)))) ->  | P23: =sitelongitude+DEGREES(ATAN2(COS(P17/RadiusEarth)-SIN(RADIANS(sitelatitude))*SIN(RADIANS(P22)),SIN(RADIANS(P21))*SIN(P17/RadiusEarth)*COS(RADIANS(sitelatitude)))) -> -85.99007346
A25: Check Distance, ft | B25: =3.28*RadiusEarth*((2*ASIN(SQRT((SIN((RADIANS(sitelatitude)-RADIANS(B22))/2)^2)+COS(RADIANS(sitelatitude))*COS(RADIANS(B22))*(SIN((RADIANS(sitelongitude)-RADIANS(B23))/2)^2))))) ->  | P25: =3.28*RadiusEarth*((2*ASIN(SQRT((SIN((RADIANS(sitelatitude)-RADIANS(P22))/2)^2)+COS(RADIANS(sitelatitude))*COS(RADIANS(P22))*(SIN((RADIANS(sitelongitude)-RADIANS(P23))/2)^2))))) -> 2560

Sheet Plots
B1: LAYOUT OF EMITTING SOURCES (aspect ratio may be not to scale as it changes automatically)
Q2: Legend
Q3: =IF(s1name="","",s1name) -> 
Q4: =IF(s2name="","",s2name) -> 
Q5: =IF(s3name="","",s3name) -> 
Q6: =IF(s4name="","",s4name) -> 
Q7: =IF(s5name="","",s5name) -> 
Q8: =IF(s6name="","",s6name) -> 
Q9: =IF(s7name="","",s7name) -> 
Q10: =IF(s8name="","",s8name) -> 
Q11: =IF(s9name="","",s9name) -> 
Q12: =IF(s10name="","",s10name) -> 
B35: LAYOUT OF EMITTING SOURCES AND SETBACK DISTANCES (see legend to the right) | O35: LEGEND | Q35: Solid = Source | T35: Dashed = Ref. Circle | W35: Dotted = Setback
O36: =IF(s1name="","",s1name) ->  | P36: =IF(s2name="","",s2name) ->  | Q36: =IF(s3name="","",s3name) ->  | R36: =IF(s4name="","",s4name) ->  | S36: =IF(s5name="","",s5name) ->  | T36: =IF(s6name="","",s6name) ->  | U36: =IF(s7name="","",s7name) ->  | V36: =IF(s8name="","",s8name) ->  | W36: =IF(s9name="","",s9name) ->  | X36: =IF(s10name="","",s10name) -> 
B46: LAYOUT OF EMITTING SOURCES AND SETBACK DISTANCES

Sheet Maps
A1: Follow these steps to view the calculated odor setback on Google Earth, Google Maps, etc.
A3: Requirements
A4: 1. Have Google Earth installed on your computer.
A5: 2. Name the file to which your GPS data will be saved in the cell to the right. | B5: datapoints
A6: 3. Note: Be sure that the site reference point has the correct latitude and longitude.
A7: 4. Use this "Click Here" button to create a new workbook that contains the calculated GPS data.
A8: 5. Search your computer for the file name you entered in step 2 and note the location.
A11: Earth Point
A12: 1. Pressing Earth Point button will take you to the web site (http://www.earthpoint.us/ExcelToKml.aspx)
A13: 2. Browse for the file you named in the first step above.
A14: 3. Click on the "View on Google Earth" button.
A15: 4. If asked, select "Open in Google Earth" and "Allow".
A16: 5. You can save the plotted points on Google Earth as a reference later.
A19: GPS Visualizer
A20: 1. Go to GPS Visualizer website ('http://www.gpsvisualizer.com)
A21: 2. Hit the "browse…" button and select GE Points from your documents.
A22: 3. Select what type of output you would like to view your data in (ie, Google Earth, Google Maps, etc).
A23: 4. Click the [Go!] box and you will be brought to a new page with access to your KML or KMZ files.
A24: 5. Click on the file and choose to either open file with Google Earth or save the file to your computer.

Sheet AU Calc
B3: MANURE STORAGE = ANIMAL UNITS CALCULATOR
B4: Animal Type | C4: Enter Number | D4: Animal Units
B5: Dairy
B6: Lactating Cow (Holstein) | C6: 0 | D6: =Animal!W5*C6 -> 0
B7: Dry Cow (Holstein) | C7: 0 | D7: =Animal!W6*C7 -> 0
B8: Heifer (Holstein) | C8: 0 | D8: =Animal!W7*C8 -> 0
B9: Calves (0-2 mo.) | C9: 0 | D9: =Animal!W13*C9 -> 0
B10: Swine
B11: Nursery pig | C11: 0 | D11: =Animal!W16*C11 -> 0
B12: Grower pig | C12: 0 | D12: =Animal!W17*C12 -> 0
B13: Finishing pig | C13: 4000 | D13: =Animal!W18*C13 -> 544.2176871
B14: Gilt | C14: 0 | D14: =Animal!W19*C14 -> 0
B15: Gestating sow | C15: 0 | D15: =Animal!W20*C15 -> 0
B16: Sow and litter | C16: 0 | D16: =Animal!W21*C16 -> 0
B17: Boar | C17: 0 | D17: =Animal!W22*C17 -> 0
B18: Poultry
B19: Laying hen | C19: 0 | D19: =Animal!W25*C19 -> 0
B20: Pullet | C20: 0 | D20: =Animal!W26*C20 -> 0
B21: Broiler | C21: 0 | D21: =Animal!W27*C21 -> 0
B22: Total Animal Units | D22: =SUM(D6:D21) -> 544.2176871
B23: *One Animal Unit = 500 kg or 1,100 lb live weight

Sheet Scratch

Sheet Links
A1: IDEM CFOs/CAFOs Web Site
A2: Indiana Beef Cattle Association
A3: Indiana Corn Growers
A4: Indiana Pork Producers Association
A5: Indiana Soybean Alliance
A6: Indiana State Dairy Association
A7: Indiana State Poultry Association
A8: Purdue Agricultural Air Quality Laboratory
A9: Purdue Agricultural and Biological Engineering Department
A10: Purdue BioEnergy Web Page
A11: Purdue CAFO Web Site
A12: Purdue Dairy Page
A13: Purdue Extension
A14: Purdue Manure Management Website
A15: Purdue Pork Page
A16: Purdue Poultry Page

Sheet Plotdata (hidden)
A2: PLOT SETBACK DISTANCES BY SOURCE
K3: PLOT ENCOMPASSING RECTANGLE
A4: SOURCE | B4: SxSWy? | C4: CORNER POINTS: | D4: N-DIRECTION | E4: E-DIRECTION | G4: SOURCE | H4: 45 DEGREE CORNERS | I4: POINTS | K4: CORNER POINTS: | L4: N-DIRECTION | M4: E-DIRECTION | N4: Latitude | O4: Longitude
A5: 1 | B5: =ISNUMBER(s1SWy) -> FALSE | C5: W-SW | D5: =IF(s1plot="NO",NA(),IF(s1shape=rectangle_shape,SrcFactors!CE8,IF(s1shape=circle_shape,Circ!C10,NA()))) ->  | E5: =IF(s1plot="NO",NA(),IF(s1shape=rectangle_shape,SrcFactors!CF8-Setback!H4,IF(s1shape=circle_shape,Circ!D10-Setback!H4,NA()))) ->  | G5: =A5 -> 1 | H5: NW | I5: =IF(Setback!I4="","",Setback!I4*((SQRT(2)/2))) ->  | K5: SW | L5: =North_min -> 0 | M5: =East_min -> 0 | N5: =IF(AND(L5=0,M5=0),sitelatitude,(DEGREES(ASIN(SIN(RADIANS(sitelatitude))*COS((SQRT(L5^2+M5^2)/3.28)/RadiusEarth)+COS(RADIANS(sitelatitude))*SIN((SQRT(L5^2+M5^2)/3.28)/RadiusEarth)*COS(RADIANS((IF(M5>=0,DEGREES(ATAN2(L5,M5)),360+DEGREES(ATAN2(L5,M5)))))))))) -> 45 | O5: =sitelongitude+IF(AND(L5=0,M5=0),0,DEGREES(ATAN2(COS((SQRT(L5^2+M5^2)/3.28)/RadiusEarth)-SIN(RADIANS(sitelatitude))*SIN(RADIANS(Plotdata!N5)),SIN(RADIANS((IF(M5>=0,DEGREES(ATAN2(L5,M5)),360+DEGREES(ATAN2(L5,M5))))))*SIN((SQRT(L5^2+M5^2)/3.28)/RadiusEarth)*COS(RADIANS(sitelatitude))))) -> -86 | Q5: SW Source site
A6: =IF(s1name="","",s1name) ->  | C6: W-NW | D6: =IF(s1plot="NO",NA(),IF(s1shape=rectangle_shape,SrcFactors!CE9,IF(s1shape=circle_shape,Circ!C10,NA()))) ->  | E6: =IF(s1plot="NO",NA(),IF(s1shape=rectangle_shape,SrcFactors!CF9-Setback!H4,IF(s1shape=circle_shape,Circ!D10-Setback!H4,NA()))) ->  | H6: NE | I6: =IF(Setback!C4="","",Setback!C4*((SQRT(2)/2))) ->  | K6: NW | L6: =North_max -> 0 | M6: =East_min -> 0 | N6: =IF(AND(L6=0,M6=0),sitelatitude,(DEGREES(ASIN(SIN(RADIANS(sitelatitude))*COS((SQRT(L6^2+M6^2)/3.28)/RadiusEarth)+COS(RADIANS(sitelatitude))*SIN((SQRT(L6^2+M6^2)/3.28)/RadiusEarth)*COS(RADIANS((IF(M6>=0,DEGREES(ATAN2(L6,M6)),360+DEGREES(ATAN2(L6,M6)))))))))) -> 45 | O6: =sitelongitude+IF(AND(L6=0,M6=0),0,DEGREES(ATAN2(COS((SQRT(L6^2+M6^2)/3.28)/RadiusEarth)-SIN(RADIANS(sitelatitude))*SIN(RADIANS(Plotdata!N6)),SIN(RADIANS((IF(M6>=0,DEGREES(ATAN2(L6,M6)),360+DEGREES(ATAN2(L6,M6))))))*SIN((SQRT(L6^2+M6^2)/3.28)/RadiusEarth)*COS(RADIANS(sitelatitude))))) -> -86 | Q6: NW Source site
C7: NW pt | D7: =IF(s1plot="NO",NA(),IF(s1shape=rectangle_shape,SrcFactors!CE9+I5,IF(s1shape=circle_shape,Circ!C11+I5,NA()))) ->  | E7: =IF(s1plot="NO",NA(),IF(s1shape=rectangle_shape,SrcFactors!CF9-I5,IF(s1shape=circle_shape,Circ!D11-I5,NA()))) ->  | H7: SE | I7: =IF(Setback!E4="","",Setback!E4*((SQRT(2)/2))) ->  | K7: NE | L7: =North_max -> 0 | M7: =East_max -> 0 | N7: =IF(AND(L7=0,M7=0),sitelatitude,(DEGREES(ASIN(SIN(RADIANS(sitelatitude))*COS((SQRT(L7^2+M7^2)/3.28)/RadiusEarth)+COS(RADIANS(sitelatitude))*SIN((SQRT(L7^2+M7^2)/3.28)/RadiusEarth)*COS(RADIANS((IF(M7>=0,DEGREES(ATAN2(L7,M7)),360+DEGREES(ATAN2(L7,M7)))))))))) -> 45 | O7: =sitelongitude+IF(AND(L7=0,M7=0),0,DEGREES(ATAN2(COS((SQRT(L7^2+M7^2)/3.28)/RadiusEarth)-SIN(RADIANS(sitelatitude))*SIN(RADIANS(Plotdata!N7)),SIN(RADIANS((IF(M7>=0,DEGREES(ATAN2(L7,M7)),360+DEGREES(ATAN2(L7,M7))))))*SIN((SQRT(L7^2+M7^2)/3.28)/RadiusEarth)*COS(RADIANS(sitelatitude))))) -> -86 | Q7: NE Source site
A8: Plot? | B8: =s1plot -> 0 | C8: N-NW | D8: =IF(s1plot="NO",NA(),IF(s1shape=rectangle_shape,SrcFactors!CE9+Setback!B4,IF(s1shape=circle_shape,Circ!C12+Setback!B4,NA()))) ->  | E8: =IF(s1plot="NO",NA(),IF(s1shape=rectangle_shape,SrcFactors!CF9,IF(s1shape=circle_shape,Circ!D12,NA()))) ->  | H8: SW | I8: =IF(Setback!G4="","",Setback!G4*((SQRT(2)/2))) ->  | K8: SE | L8: =North_min -> 0 | M8: =East_max -> 0 | N8: =IF(AND(L8=0,M8=0),sitelatitude,(DEGREES(ASIN(SIN(RADIANS(sitelatitude))*COS((SQRT(L8^2+M8^2)/3.28)/RadiusEarth)+COS(RADIANS(sitelatitude))*SIN((SQRT(L8^2+M8^2)/3.28)/RadiusEarth)*COS(RADIANS((IF(M8>=0,DEGREES(ATAN2(L8,M8)),360+DEGREES(ATAN2(L8,M8)))))))))) -> 45 | O8: =sitelongitude+IF(AND(L8=0,M8=0),0,DEGREES(ATAN2(COS((SQRT(L8^2+M8^2)/3.28)/RadiusEarth)-SIN(RADIANS(sitelatitude))*SIN(RADIANS(Plotdata!N8)),SIN(RADIANS((IF(M8>=0,DEGREES(ATAN2(L8,M8)),360+DEGREES(ATAN2(L8,M8))))))*SIN((SQRT(L8^2+M8^2)/3.28)/RadiusEarth)*COS(RADIANS(sitelatitude))))) -> -86 | Q8: SE Source site
C9: N-NE | D9: =IF(s1plot="NO",NA(),IF(s1shape=rectangle_shape,SrcFactors!CE10+Setback!B4,IF(s1shape=circle_shape,Circ!C12+Setback!B4,NA()))) ->  | E9: =IF(s1plot="NO",NA(),IF(s1shape=rectangle_shape,SrcFactors!CF10,IF(s1shape=circle_shape,Circ!D12,NA()))) ->  | K9: SW | L9: =North_min -> 0 | M9: =East_min -> 0 | N9: =IF(AND(L9=0,M9=0),sitelatitude,(DEGREES(ASIN(SIN(RADIANS(sitelatitude))*COS((SQRT(L9^2+M9^2)/3.28)/RadiusEarth)+COS(RADIANS(sitelatitude))*SIN((SQRT(L9^2+M9^2)/3.28)/RadiusEarth)*COS(RADIANS((IF(M9>=0,DEGREES(ATAN2(L9,M9)),360+DEGREES(ATAN2(L9,M9)))))))))) -> 45 | O9: =sitelongitude+IF(AND(L9=0,M9=0),0,DEGREES(ATAN2(COS((SQRT(L9^2+M9^2)/3.28)/RadiusEarth)-SIN(RADIANS(sitelatitude))*SIN(RADIANS(Plotdata!N9)),SIN(RADIANS((IF(M9>=0,DEGREES(ATAN2(L9,M9)),360+DEGREES(ATAN2(L9,M9))))))*SIN((SQRT(L9^2+M9^2)/3.28)/RadiusEarth)*COS(RADIANS(sitelatitude))))) -> -86 | Q9: SW Source site
C10: NE pt | D10: =IF(s1plot="NO",NA(),IF(s1shape=rectangle_shape,SrcFactors!CE10+I6,IF(s1shape=circle_shape,Circ!C13+I6,NA()))) ->  | E10: =IF(s1plot="NO",NA(),IF(s1shape=rectangle_shape,SrcFactors!CF10+I6,IF(s1shape=circle_shape,Circ!D13+I6,NA()))) ->  | G10: =A19 -> 2 | H10: NW | I10: =IF(Setback!I5="","",Setback!I5*((SQRT(2)/2))) -> 
C11: E-NE | D11: =IF(s1plot="NO",NA(),IF(s1shape=rectangle_shape,SrcFactors!CE10,IF(s1shape=circle_shape,Circ!C14,NA()))) ->  | E11: =IF(s1plot="NO",NA(),IF(s1shape=rectangle_shape,SrcFactors!CF10+Setback!D4,IF(s1shape=circle_shape,Circ!D14+Setback!D4,NA()))) ->  | H11: NE | I11: =IF(Setback!C5="","",Setback!C5*((SQRT(2)/2))) ->  | K11: PLOT SETBACK FROM ENCOMPASSING RECTANGLE
C12: E-SE | D12: =IF(s1plot="NO",NA(),IF(s1shape=rectangle_shape,SrcFactors!CE11,IF(s1shape=circle_shape,Circ!C14,NA()))) ->  | E12: =IF(s1plot="NO",NA(),IF(s1shape=rectangle_shape,SrcFactors!CF11+Setback!D4,IF(s1shape=circle_shape,Circ!D14+Setback!D4,NA()))) ->  | H12: SE | I12: =IF(Setback!E5="","",Setback!E5*((SQRT(2)/2))) ->  | K12: CORNER POINTS: | L12: N-DIRECTION | M12: E-DIRECTION | N12: Latitude | O12: Longitude | P12: SW Distance, m | Q12: Compass brg
C13: SE pt | D13: =IF(s1plot="NO",NA(),IF(s1shape=rectangle_shape,SrcFactors!CE11-I7,IF(s1shape=circle_shape,Circ!C15-I7,NA()))) ->  | E13: =IF(s1plot="NO",NA(),IF(s1shape=rectangle_shape,SrcFactors!CF11+I7,IF(s1shape=circle_shape,Circ!D15+I7,NA()))) ->  | H13: SW | I13: =IF(Setback!G5="","",Setback!G5*((SQRT(2)/2))) ->  | K13: W-SW | L13: =North_min -> 0 | M13: =East_min-Setback!H15-com_diff_E ->  | N13: =IF(AND(L13=0,M13=0),sitelatitude,(DEGREES(ASIN(SIN(RADIANS(sitelatitude))*COS((SQRT(L13^2+M13^2)/3.28)/RadiusEarth)+COS(RADIANS(sitelatitude))*SIN((SQRT(L13^2+M13^2)/3.28)/RadiusEarth)*COS(RADIANS((IF(M13>=0,DEGREES(ATAN2(L13,M13)),360+DEGREES(ATAN2(L13,M13)))))))))) ->  | O13: =sitelongitude+IF(AND(L13=0,M13=0),0,DEGREES(ATAN2(COS((SQRT(L13^2+M13^2)/3.28)/RadiusEarth)-SIN(RADIANS(sitelatitude))*SIN(RADIANS(Plotdata!N13)),SIN(RADIANS((IF(M13>=0,DEGREES(ATAN2(L13,M13)),360+DEGREES(ATAN2(L13,M13))))))*SIN((SQRT(L13^2+M13^2)/3.28)/RadiusEarth)*COS(RADIANS(sitelatitude))))) ->  | P13: =(SQRT(L13^2+M13^2)/3.28) ->  | Q13: =(IF(M13>=0,DEGREES(ATAN2(L13,M13)),360+DEGREES(ATAN2(L13,M13)))) -> 
C14: S-SE | D14: =IF(s1plot="NO",NA(),IF(s1shape=rectangle_shape,SrcFactors!CE11-Setback!F4,IF(s1shape=circle_shape,Circ!C16-Setback!F4,NA()))) ->  | E14: =IF(s1plot="NO",NA(),IF(s1shape=rectangle_shape,SrcFactors!CF11,IF(s1shape=circle_shape,Circ!D16,NA()))) ->  | K14: W-NW | L14: =North_max -> 0 | M14: =East_min-Setback!H15-com_diff_E ->  | O14: =sitelongitude+IF(AND(L14=0,M14=0),0,DEGREES(ATAN2(COS((SQRT(L14^2+M14^2)/3.28)/RadiusEarth)-SIN(RADIANS(sitelatitude))*SIN(RADIANS(Plotdata!N14)),SIN(RADIANS((IF(M14>=0,DEGREES(ATAN2(L14,M14)),360+DEGREES(ATAN2(L14,M14))))))*SIN((SQRT(L14^2+M14^2)/3.28)/RadiusEarth)*COS(RADIANS(sitelatitude))))) ->  | P14: =SQRT(L14^2+M14^2)/3.28 -> 
C15: S-SW | D15: =IF(s1plot="NO",NA(),IF(s1shape=rectangle_shape,SrcFactors!CE12-Setback!F4,IF(s1shape=circle_shape,Circ!C16-Setback!F4,NA()))) ->  | E15: =IF(s1plot="NO",NA(),IF(s1shape=rectangle_shape,SrcFactors!CF12,IF(s1shape=circle_shape,Circ!D16,NA()))) ->  | G15: =A33 -> 3 | H15: NW | I15: =IF(Setback!I6="","",Setback!I6*((SQRT(2)/2))) ->  | K15: NW pt | L15: =North_max+I55-com_diff_N ->  | M15: =East_min-I55-com_diff_E ->  | O15: =sitelongitude+IF(AND(L15=0,M15=0),0,DEGREES(ATAN2(COS((SQRT(L15^2+M15^2)/3.28)/RadiusEarth)-SIN(RADIANS(sitelatitude))*SIN(RADIANS(Plotdata!N15)),SIN(RADIANS((IF(M15>=0,DEGREES(ATAN2(L15,M15)),360+DEGREES(ATAN2(L15,M15))))))*SIN((SQRT(L15^2+M15^2)/3.28)/RadiusEarth)*COS(RADIANS(sitelatitude))))) -> 
C16: SW pt | D16: =IF(s1plot="NO",NA(),IF(s1shape=rectangle_shape,SrcFactors!CE11-I8,IF(s1shape=circle_shape,Circ!C17-I8,NA()))) ->  | E16: =IF(s1plot="NO",NA(),IF(s1shape=rectangle_shape,SrcFactors!CF12-I8,IF(s1shape=circle_shape,Circ!D17-I8,NA()))) ->  | H16: NE | I16: =IF(Setback!C6="","",Setback!C6*((SQRT(2)/2))) ->  | K16: N-NW | L16: =North_max+Setback!B15-com_diff_N ->  | M16: =East_min -> 0 | O16: =sitelongitude+IF(AND(L16=0,M16=0),0,DEGREES(ATAN2(COS((SQRT(L16^2+M16^2)/3.28)/RadiusEarth)-SIN(RADIANS(sitelatitude))*SIN(RADIANS(Plotdata!N16)),SIN(RADIANS((IF(M16>=0,DEGREES(ATAN2(L16,M16)),360+DEGREES(ATAN2(L16,M16))))))*SIN((SQRT(L16^2+M16^2)/3.28)/RadiusEarth)*COS(RADIANS(sitelatitude))))) -> 
C17: W-SW | D17: =D5 ->  | E17: =E5 ->  | H17: SE | I17: =IF(Setback!E6="","",Setback!E6*((SQRT(2)/2))) ->  | K17: N-NE | L17: =North_max+Setback!B15-com_diff_N ->  | M17: =East_max -> 0 | O17: =sitelongitude+IF(AND(L17=0,M17=0),0,DEGREES(ATAN2(COS((SQRT(L17^2+M17^2)/3.28)/RadiusEarth)-SIN(RADIANS(sitelatitude))*SIN(RADIANS(Plotdata!N17)),SIN(RADIANS((IF(M17>=0,DEGREES(ATAN2(L17,M17)),360+DEGREES(ATAN2(L17,M17))))))*SIN((SQRT(L17^2+M17^2)/3.28)/RadiusEarth)*COS(RADIANS(sitelatitude))))) -> 
H18: SW | I18: =IF(Setback!G6="","",Setback!G6*((SQRT(2)/2))) ->  | K18: NE pt | L18: =North_max+I56-com_diff_N ->  | M18: =East_max+I56-com_diff_E ->  | O18: =sitelongitude+IF(AND(L18=0,M18=0),0,DEGREES(ATAN2(COS((SQRT(L18^2+M18^2)/3.28)/RadiusEarth)-SIN(RADIANS(sitelatitude))*SIN(RADIANS(Plotdata!N18)),SIN(RADIANS((IF(M18>=0,DEGREES(ATAN2(L18,M18)),360+DEGREES(ATAN2(L18,M18))))))*SIN((SQRT(L18^2+M18^2)/3.28)/RadiusEarth)*COS(RADIANS(sitelatitude))))) -> 
A19: 2 | B19: =ISNUMBER(s2SWy) -> FALSE | C19: W-SW | D19: =IF(s2plot="NO",NA(),IF(s2shape=rectangle_shape,SrcFactors!CG8,IF(s2shape=circle_shape,Circ!H10,NA()))) ->  | E19: =IF(s2plot="NO",NA(),IF(s2shape=rectangle_shape,SrcFactors!CH8-Setback!H5,IF(s2shape=circle_shape,Circ!I10-Setback!H5,NA()))) ->  | K19: E-NE | L19: =North_max -> 0 | M19: =East_max+Setback!D15-com_diff_E ->  | O19: =sitelongitude+IF(AND(L19=0,M19=0),0,DEGREES(ATAN2(COS((SQRT(L19^2+M19^2)/3.28)/RadiusEarth)-SIN(RADIANS(sitelatitude))*SIN(RADIANS(Plotdata!N19)),SIN(RADIANS((IF(M19>=0,DEGREES(ATAN2(L19,M19)),360+DEGREES(ATAN2(L19,M19))))))*SIN((SQRT(L19^2+M19^2)/3.28)/RadiusEarth)*COS(RADIANS(sitelatitude))))) -> 
A20: =IF(s2name="","",s2name) ->  | C20: W-NW | D20: =IF(s2plot="NO",NA(),IF(s2shape=rectangle_shape,SrcFactors!CG9,IF(s2shape=circle_shape,Circ!H10,NA()))) ->  | E20: =IF(s2plot="NO",NA(),IF(s2shape=rectangle_shape,SrcFactors!CH9-Setback!H5,IF(s2shape=circle_shape,Circ!I10-Setback!H5,NA()))) ->  | G20: =A47 -> 4 | H20: NW | I20: =IF(Setback!I7="","",Setback!I7*((SQRT(2)/2))) ->  | K20: E-SE | L20: =North_min -> 0 | M20: =East_max+Setback!D15-com_diff_E ->  | O20: =sitelongitude+IF(AND(L20=0,M20=0),0,DEGREES(ATAN2(COS((SQRT(L20^2+M20^2)/3.28)/RadiusEarth)-SIN(RADIANS(sitelatitude))*SIN(RADIANS(Plotdata!N20)),SIN(RADIANS((IF(M20>=0,DEGREES(ATAN2(L20,M20)),360+DEGREES(ATAN2(L20,M20))))))*SIN((SQRT(L20^2+M20^2)/3.28)/RadiusEarth)*COS(RADIANS(sitelatitude))))) -> 
C21: NW pt | D21: =IF(s2plot="NO",NA(),IF(s2shape=rectangle_shape,SrcFactors!CG9+I10,IF(s2shape=circle_shape,Circ!H11+I10,NA()))) ->  | E21: =IF(s2plot="NO",NA(),IF(s2shape=rectangle_shape,SrcFactors!CH9-I10,IF(s2shape=circle_shape,Circ!I11-I10,NA()))) ->  | H21: NE | I21: =IF(Setback!C7="","",Setback!C7*((SQRT(2)/2))) ->  | K21: SE pt | L21: =North_min-I57-com_diff_N ->  | M21: =East_max+I57-com_diff_E ->  | O21: =sitelongitude+IF(AND(L21=0,M21=0),0,DEGREES(ATAN2(COS((SQRT(L21^2+M21^2)/3.28)/RadiusEarth)-SIN(RADIANS(sitelatitude))*SIN(RADIANS(Plotdata!N21)),SIN(RADIANS((IF(M21>=0,DEGREES(ATAN2(L21,M21)),360+DEGREES(ATAN2(L21,M21))))))*SIN((SQRT(L21^2+M21^2)/3.28)/RadiusEarth)*COS(RADIANS(sitelatitude))))) -> 
A22: Plot? | B22: =s2plot -> 0 | C22: N-NW | D22: =IF(s2plot="NO",NA(),IF(s2shape=rectangle_shape,SrcFactors!CG9+Setback!B5,IF(s2shape=circle_shape,Circ!H12+Setback!B5,NA()))) ->  | E22: =IF(s2plot="NO",NA(),IF(s2shape=rectangle_shape,SrcFactors!CH9,IF(s2shape=circle_shape,Circ!I12,NA()))) ->  | H22: SE | I22: =IF(Setback!E7="","",Setback!E7*((SQRT(2)/2))) ->  | K22: S-SE | L22: =North_min-Setback!F15-com_diff_N ->  | M22: =East_max -> 0 | O22: =sitelongitude+IF(AND(L22=0,M22=0),0,DEGREES(ATAN2(COS((SQRT(L22^2+M22^2)/3.28)/RadiusEarth)-SIN(RADIANS(sitelatitude))*SIN(RADIANS(Plotdata!N22)),SIN(RADIANS((IF(M22>=0,DEGREES(ATAN2(L22,M22)),360+DEGREES(ATAN2(L22,M22))))))*SIN((SQRT(L22^2+M22^2)/3.28)/RadiusEarth)*COS(RADIANS(sitelatitude))))) -> 
C23: N-NE | D23: =IF(s2plot="NO",NA(),IF(s2shape=rectangle_shape,SrcFactors!CG10+Setback!B5,IF(s2shape=circle_shape,Circ!H12+Setback!B5,NA()))) ->  | E23: =IF(s2plot="NO",NA(),IF(s2shape=rectangle_shape,SrcFactors!CH10,IF(s2shape=circle_shape,Circ!I12,NA()))) ->  | H23: SW | I23: =IF(Setback!G7="","",Setback!G7*((SQRT(2)/2))) ->  | K23: S-SW | L23: =North_min-Setback!F15-com_diff_N ->  | M23: =East_min -> 0 | O23: =sitelongitude+IF(AND(L23=0,M23=0),0,DEGREES(ATAN2(COS((SQRT(L23^2+M23^2)/3.28)/RadiusEarth)-SIN(RADIANS(sitelatitude))*SIN(RADIANS(Plotdata!N23)),SIN(RADIANS((IF(M23>=0,DEGREES(ATAN2(L23,M23)),360+DEGREES(ATAN2(L23,M23))))))*SIN((SQRT(L23^2+M23^2)/3.28)/RadiusEarth)*COS(RADIANS(sitelatitude))))) -> 
C24: NE pt | D24: =IF(s2plot="NO",NA(),IF(s2shape=rectangle_shape,SrcFactors!CG10+I11,IF(s2shape=circle_shape,Circ!H13+I11,NA()))) ->  | E24: =IF(s2plot="NO",NA(),IF(s2shape=rectangle_shape,SrcFactors!CH10+I11,IF(s2shape=circle_shape,Circ!I13+I11,NA()))) ->  | K24: SW pt | L24: =North_min-I58-com_diff_N ->  | M24: =East_min-I58-com_diff_E ->  | O24: =sitelongitude+IF(AND(L24=0,M24=0),0,DEGREES(ATAN2(COS((SQRT(L24^2+M24^2)/3.28)/RadiusEarth)-SIN(RADIANS(sitelatitude))*SIN(RADIANS(Plotdata!N24)),SIN(RADIANS((IF(M24>=0,DEGREES(ATAN2(L24,M24)),360+DEGREES(ATAN2(L24,M24))))))*SIN((SQRT(L24^2+M24^2)/3.28)/RadiusEarth)*COS(RADIANS(sitelatitude))))) -> 
C25: E-NE | D25: =IF(s2plot="NO",NA(),IF(s2shape=rectangle_shape,SrcFactors!CG10,IF(s2shape=circle_shape,Circ!H14,NA()))) ->  | E25: =IF(s2plot="NO",NA(),IF(s2shape=rectangle_shape,SrcFactors!CH10+Setback!D5,IF(s2shape=circle_shape,Circ!I14+Setback!D5,NA()))) ->  | G25: =A61 -> 5 | H25: NW | I25: =IF(Setback!I8="","",Setback!I8*((SQRT(2)/2))) ->  | K25: W-SW | L25: =North_min -> 0 | M25: =East_min-Setback!H15-com_diff_E ->  | O25: =sitelongitude+IF(AND(L25=0,M25=0),0,DEGREES(ATAN2(COS((SQRT(L25^2+M25^2)/3.28)/RadiusEarth)-SIN(RADIANS(sitelatitude))*SIN(RADIANS(Plotdata!N25)),SIN(RADIANS((IF(M25>=0,DEGREES(ATAN2(L25,M25)),360+DEGREES(ATAN2(L25,M25))))))*SIN((SQRT(L25^2+M25^2)/3.28)/RadiusEarth)*COS(RADIANS(sitelatitude))))) -> 
C26: E-SE | D26: =IF(s2plot="NO",NA(),IF(s2shape=rectangle_shape,SrcFactors!CG11,IF(s2shape=circle_shape,Circ!H14,NA()))) ->  | E26: =IF(s2plot="NO",NA(),IF(s2shape=rectangle_shape,SrcFactors!CH11+Setback!D5,IF(s2shape=circle_shape,Circ!I14+Setback!D5,NA()))) ->  | H26: NE | I26: =IF(Setback!C8="","",Setback!C8*((SQRT(2)/2))) -> 
C27: SE pt | D27: =IF(s2plot="NO",NA(),IF(s2shape=rectangle_shape,SrcFactors!CG11-I12,IF(s2shape=circle_shape,Circ!H15-I12,NA()))) ->  | E27: =IF(s2plot="NO",NA(),IF(s2shape=rectangle_shape,SrcFactors!CH11+I12,IF(s2shape=circle_shape,Circ!I15+I12,NA()))) ->  | H27: SE | I27: =IF(Setback!E8="","",Setback!E8*((SQRT(2)/2))) -> 
C28: S-SE | D28: =IF(s2plot="NO",NA(),IF(s2shape=rectangle_shape,SrcFactors!CG11-Setback!F5,IF(s2shape=circle_shape,Circ!H16-Setback!F5,NA()))) ->  | E28: =IF(s2plot="NO",NA(),IF(s2shape=rectangle_shape,SrcFactors!CH11,IF(s2shape=circle_shape,Circ!I16,NA()))) ->  | H28: SW | I28: =IF(Setback!G8="","",Setback!G8*((SQRT(2)/2))) ->  | K28: CENTER PT (GEO): | L28: =((North_max-North_min)/2)+North_min -> 0 | M28: =((East_max-East_min)/2)+East_min -> 0
C29: S-SW | D29: =IF(s2plot="NO",NA(),IF(s2shape=rectangle_shape,SrcFactors!CG12-Setback!F5,IF(s2shape=circle_shape,Circ!H16-Setback!F5,NA()))) ->  | E29: =IF(s2plot="NO",NA(),IF(s2shape=rectangle_shape,SrcFactors!CH12,IF(s2shape=circle_shape,Circ!I16,NA()))) ->  | K29: CENTER PT (MASS): | L29: =SUMPRODUCT(Inputs!I4:I13,com_northerlies/Inputs!I14) ->  | M29: =SUMPRODUCT(Inputs!I4:I13,com_easterlies/Inputs!I14) -> 
C30: SW pt | D30: =IF(s2plot="NO",NA(),IF(s2shape=rectangle_shape,SrcFactors!CG11-I13,IF(s2shape=circle_shape,Circ!H17-I13,NA()))) ->  | E30: =IF(s2plot="NO",NA(),IF(s2shape=rectangle_shape,SrcFactors!CH12-I13,IF(s2shape=circle_shape,Circ!I17-I13,NA()))) ->  | G30: =A75 -> 6 | H30: NW | I30: =IF(Setback!I9="","",Setback!I9*((SQRT(2)/2))) ->  | K30: CoM DIFF: | L30: =L28-L29 ->  | M30: =M28-M29 -> 
C31: W-SW | D31: =D19 ->  | E31: =E19 ->  | H31: NE | I31: =IF(Setback!C9="","",Setback!C9*((SQRT(2)/2))) -> 
H32: SE | I32: =IF(Setback!E9="","",Setback!E9*((SQRT(2)/2))) -> 
A33: 3 | B33: =ISNUMBER(s3SWy) -> FALSE | C33: W-SW | D33: =IF(s3plot="NO",NA(),IF(s3shape=rectangle_shape,SrcFactors!CI8,IF(s3shape=circle_shape,Circ!L10,NA()))) ->  | E33: =IF(s3plot="NO",NA(),IF(s3shape=rectangle_shape,SrcFactors!CJ8-Setback!H6,IF(s3shape=circle_shape,Circ!M10-Setback!H6,NA()))) ->  | H33: SW | I33: =IF(Setback!G9="","",Setback!G9*((SQRT(2)/2))) -> 
A34: =IF(s3name="","",s3name) ->  | C34: W-NW | D34: =IF(s3plot="NO",NA(),IF(s3shape=rectangle_shape,SrcFactors!CI9,IF(s3shape=circle_shape,Circ!L10,NA()))) ->  | E34: =IF(s3plot="NO",NA(),IF(s3shape=rectangle_shape,SrcFactors!CJ9-Setback!H6,IF(s3shape=circle_shape,Circ!M10-Setback!H6,NA()))) -> 
C35: NW pt | D35: =IF(s3plot="NO",NA(),IF(s3shape=rectangle_shape,SrcFactors!CI9+I15,IF(s3shape=circle_shape,Circ!L11+I15,NA()))) ->  | E35: =IF(s3plot="NO",NA(),IF(s3shape=rectangle_shape,SrcFactors!CJ9-I15,IF(s3shape=circle_shape,Circ!M11-I15,NA()))) ->  | G35: =A89 -> 7 | H35: NW | I35: =IF(Setback!I10="","",Setback!I10*((SQRT(2)/2))) -> 
A36: Plot? | B36: =s3plot -> 0 | C36: N-NW | D36: =IF(s3plot="NO",NA(),IF(s3shape=rectangle_shape,SrcFactors!CI9+Setback!B6,IF(s3shape=circle_shape,Circ!L12+Setback!B6,NA()))) ->  | E36: =IF(s3plot="NO",NA(),IF(s3shape=rectangle_shape,SrcFactors!CJ9,IF(s3shape=circle_shape,Circ!M12,NA()))) ->  | H36: NE | I36: =IF(Setback!C10="","",Setback!C10*((SQRT(2)/2))) -> 
C37: N-NE | D37: =IF(s3plot="NO",NA(),IF(s3shape=rectangle_shape,SrcFactors!CI10+Setback!B6,IF(s3shape=circle_shape,Circ!L12+Setback!B6,NA()))) ->  | E37: =IF(s3plot="NO",NA(),IF(s3shape=rectangle_shape,SrcFactors!CJ10,IF(s3shape=circle_shape,Circ!M12,NA()))) ->  | H37: SE | I37: =IF(Setback!E10="","",Setback!E10*((SQRT(2)/2))) -> 
C38: NE pt | D38: =IF(s3plot="NO",NA(),IF(s3shape=rectangle_shape,SrcFactors!CI10+I16,IF(s3shape=circle_shape,Circ!L13+I16,NA()))) ->  | E38: =IF(s3plot="NO",NA(),IF(s3shape=rectangle_shape,SrcFactors!CJ10+I16,IF(s3shape=circle_shape,Circ!M13+I16,NA()))) ->  | H38: SW | I38: =IF(Setback!G10="","",Setback!G10*((SQRT(2)/2))) -> 
C39: E-NE | D39: =IF(s3plot="NO",NA(),IF(s3shape=rectangle_shape,SrcFactors!CI10,IF(s3shape=circle_shape,Circ!L14,NA()))) ->  | E39: =IF(s3plot="NO",NA(),IF(s3shape=rectangle_shape,SrcFactors!CJ10+Setback!D6,IF(s3shape=circle_shape,Circ!M14+Setback!D6,NA()))) -> 
C40: E-SE | D40: =IF(s3plot="NO",NA(),IF(s3shape=rectangle_shape,SrcFactors!CI11,IF(s3shape=circle_shape,Circ!L14,NA()))) ->  | E40: =IF(s3plot="NO",NA(),IF(s3shape=rectangle_shape,SrcFactors!CJ11+Setback!D6,IF(s3shape=circle_shape,Circ!M14+Setback!D6,NA()))) ->  | G40: =A103 -> 8 | H40: NW | I40: =IF(Setback!I11="","",Setback!I11*((SQRT(2)/2))) -> 
C41: SE pt | D41: =IF(s3plot="NO",NA(),IF(s3shape=rectangle_shape,SrcFactors!CI11-I17,IF(s3shape=circle_shape,Circ!L15-I17,NA()))) ->  | E41: =IF(s3plot="NO",NA(),IF(s3shape=rectangle_shape,SrcFactors!CJ11+I17,IF(s3shape=circle_shape,Circ!M15+I17,NA()))) ->  | H41: NE | I41: =IF(Setback!C11="","",Setback!C11*((SQRT(2)/2))) -> 
C42: S-SE | D42: =IF(s3plot="NO",NA(),IF(s3shape=rectangle_shape,SrcFactors!CI11-Setback!F6,IF(s3shape=circle_shape,Circ!L16-Setback!F6,NA()))) ->  | E42: =IF(s3plot="NO",NA(),IF(s3shape=rectangle_shape,SrcFactors!CJ11,IF(s3shape=circle_shape,Circ!M16,NA()))) ->  | H42: SE | I42: =IF(Setback!E11="","",Setback!E11*((SQRT(2)/2))) -> 
C43: S-SW | D43: =IF(s3plot="NO",NA(),IF(s3shape=rectangle_shape,SrcFactors!CI12-Setback!F6,IF(s3shape=circle_shape,Circ!L16-Setback!F6,NA()))) ->  | E43: =IF(s3plot="NO",NA(),IF(s3shape=rectangle_shape,SrcFactors!CJ12,IF(s3shape=circle_shape,Circ!M16,NA()))) ->  | H43: SW | I43: =IF(Setback!G11="","",Setback!G11*((SQRT(2)/2))) -> 
C44: SW pt | D44: =IF(s3plot="NO",NA(),IF(s3shape=rectangle_shape,SrcFactors!CI11-I18,IF(s3shape=circle_shape,Circ!L17-I18,NA()))) ->  | E44: =IF(s3plot="NO",NA(),IF(s3shape=rectangle_shape,SrcFactors!CJ12-I18,IF(s3shape=circle_shape,Circ!M17-I18,NA()))) -> 
C45: W-SW | D45: =D33 ->  | E45: =E33 ->  | G45: =A117 -> 9 | H45: NW | I45: =IF(Setback!I12="","",Setback!I12*((SQRT(2)/2))) -> 
H46: NE | I46: =IF(Setback!C12="","",Setback!C12*((SQRT(2)/2))) -> 
A47: 4 | B47: =ISNUMBER(s4SWy) -> FALSE | C47: W-SW | D47: =IF(s4plot="NO",NA(),IF(s4shape=rectangle_shape,SrcFactors!CK8,IF(s4shape=circle_shape,Circ!P10,NA()))) ->  | E47: =IF(s4plot="NO",NA(),IF(s4shape=rectangle_shape,SrcFactors!CL8-Setback!H7,IF(s4shape=circle_shape,Circ!Q10-Setback!H7,NA()))) ->  | H47: SE | I47: =IF(Setback!E12="","",Setback!E12*((SQRT(2)/2))) -> 
A48: =IF(s4name="","",s4name) ->  | C48: W-NW | D48: =IF(s4plot="NO",NA(),IF(s4shape=rectangle_shape,SrcFactors!CK9,IF(s4shape=circle_shape,Circ!P10,NA()))) ->  | E48: =IF(s4plot="NO",NA(),IF(s4shape=rectangle_shape,SrcFactors!CL9-Setback!H7,IF(s4shape=circle_shape,Circ!Q10-Setback!H7,NA()))) ->  | H48: SW | I48: =IF(Setback!G12="","",Setback!G12*((SQRT(2)/2))) -> 
C49: NW pt | D49: =IF(s4plot="NO",NA(),IF(s4shape=rectangle_shape,SrcFactors!CK9+I20,IF(s4shape=circle_shape,Circ!P11+I20,NA()))) ->  | E49: =IF(s4plot="NO",NA(),IF(s4shape=rectangle_shape,SrcFactors!CL9-I20,IF(s4shape=circle_shape,Circ!Q11-I20,NA()))) -> 
A50: Plot? | B50: =s4plot -> 0 | C50: N-NW | D50: =IF(s4plot="NO",NA(),IF(s4shape=rectangle_shape,SrcFactors!CK9+Setback!B7,IF(s4shape=circle_shape,Circ!P12+Setback!B7,NA()))) ->  | E50: =IF(s4plot="NO",NA(),IF(s4shape=rectangle_shape,SrcFactors!CL9,IF(s4shape=circle_shape,Circ!Q12,NA()))) ->  | G50: =A131 -> 10 | H50: NW | I50: =IF(Setback!I13="","",Setback!I13*((SQRT(2)/2))) -> 
C51: N-NE | D51: =IF(s4plot="NO",NA(),IF(s4shape=rectangle_shape,SrcFactors!CK10+Setback!B7,IF(s4shape=circle_shape,Circ!P12+Setback!B7,NA()))) ->  | E51: =IF(s4plot="NO",NA(),IF(s4shape=rectangle_shape,SrcFactors!CL10,IF(s4shape=circle_shape,Circ!Q12,NA()))) ->  | H51: NE | I51: =IF(Setback!C13="","",Setback!C13*((SQRT(2)/2))) -> 
C52: NE pt | D52: =IF(s4plot="NO",NA(),IF(s4shape=rectangle_shape,SrcFactors!CK10+I21,IF(s4shape=circle_shape,Circ!P13+I21,NA()))) ->  | E52: =IF(s4plot="NO",NA(),IF(s4shape=rectangle_shape,SrcFactors!CL10+I21,IF(s4shape=circle_shape,Circ!Q13+I21,NA()))) ->  | H52: SE | I52: =IF(Setback!E13="","",Setback!E13*((SQRT(2)/2))) -> 
C53: E-NE | D53: =IF(s4plot="NO",NA(),IF(s4shape=rectangle_shape,SrcFactors!CK10,IF(s4shape=circle_shape,Circ!P14,NA()))) ->  | E53: =IF(s4plot="NO",NA(),IF(s4shape=rectangle_shape,SrcFactors!CL10+Setback!D7,IF(s4shape=circle_shape,Circ!Q14+Setback!D7,NA()))) ->  | H53: SW | I53: =IF(Setback!G13="","",Setback!G13*((SQRT(2)/2))) -> 
C54: E-SE | D54: =IF(s4plot="NO",NA(),IF(s4shape=rectangle_shape,SrcFactors!CK11,IF(s4shape=circle_shape,Circ!P14,NA()))) ->  | E54: =IF(s4plot="NO",NA(),IF(s4shape=rectangle_shape,SrcFactors!CL11+Setback!D7,IF(s4shape=circle_shape,Circ!Q14+Setback!D7,NA()))) -> 
C55: SE pt | D55: =IF(s4plot="NO",NA(),IF(s4shape=rectangle_shape,SrcFactors!CK11-I22,IF(s4shape=circle_shape,Circ!P15-I22,NA()))) ->  | E55: =IF(s4plot="NO",NA(),IF(s4shape=rectangle_shape,SrcFactors!CL11+I22,IF(s4shape=circle_shape,Circ!Q15+I22,NA()))) ->  | G55: PERIMETER | H55: NW | I55: =IF(Setback!I15="","",Setback!I15*((SQRT(2)/2))) -> 
C56: S-SE | D56: =IF(s4plot="NO",NA(),IF(s4shape=rectangle_shape,SrcFactors!CK11-Setback!F7,IF(s4shape=circle_shape,Circ!P16-Setback!F7,NA()))) ->  | E56: =IF(s4plot="NO",NA(),IF(s4shape=rectangle_shape,SrcFactors!CL11,IF(s4shape=circle_shape,Circ!Q16,NA()))) ->  | H56: NE | I56: =IF(Setback!C15="","",Setback!C15*((SQRT(2)/2))) -> 
C57: S-SW | D57: =IF(s4plot="NO",NA(),IF(s4shape=rectangle_shape,SrcFactors!CK12-Setback!F7,IF(s4shape=circle_shape,Circ!P16-Setback!F7,NA()))) ->  | E57: =IF(s4plot="NO",NA(),IF(s4shape=rectangle_shape,SrcFactors!CL12,IF(s4shape=circle_shape,Circ!Q16,NA()))) ->  | H57: SE | I57: =IF(Setback!E15="","",Setback!E15*((SQRT(2)/2))) -> 
C58: SW pt | D58: =IF(s4plot="NO",NA(),IF(s4shape=rectangle_shape,SrcFactors!CK11-I23,IF(s4shape=circle_shape,Circ!P17-I23,NA()))) ->  | E58: =IF(s4plot="NO",NA(),IF(s4shape=rectangle_shape,SrcFactors!CL12-I23,IF(s4shape=circle_shape,Circ!Q17-I23,NA()))) ->  | H58: SW | I58: =IF(Setback!G15="","",Setback!G15*((SQRT(2)/2))) -> 
C59: W-SW | D59: =D47 ->  | E59: =E47 -> 
A61: 5 | B61: =ISNUMBER(s5SWy) -> FALSE | C61: W-SW | D61: =IF(s5plot="NO",NA(),IF(s5shape=rectangle_shape,SrcFactors!CM8,IF(s5shape=circle_shape,Circ!T10,NA()))) ->  | E61: =IF(s5plot="NO",NA(),IF(s5shape=rectangle_shape,SrcFactors!CN8-Setback!H8,IF(s5shape=circle_shape,Circ!U10-Setback!H8,NA()))) -> 
A62: =IF(s5name="","",s5name) ->  | C62: W-NW | D62: =IF(s5plot="NO",NA(),IF(s5shape=rectangle_shape,SrcFactors!CM9,IF(s5shape=circle_shape,Circ!T10,NA()))) ->  | E62: =IF(s5plot="NO",NA(),IF(s5shape=rectangle_shape,SrcFactors!CN9-Setback!H8,IF(s5shape=circle_shape,Circ!U10-Setback!H8,NA()))) -> 
C63: NW pt | D63: =IF(s5plot="NO",NA(),IF(s5shape=rectangle_shape,SrcFactors!CM9+I25,IF(s5shape=circle_shape,Circ!T11+I25,NA()))) ->  | E63: =IF(s5plot="NO",NA(),IF(s5shape=rectangle_shape,SrcFactors!CN9-I25,IF(s5shape=circle_shape,Circ!U11-I25,NA()))) -> 
A64: Plot? | B64: =s5plot -> 0 | C64: N-NW | D64: =IF(s5plot="NO",NA(),IF(s5shape=rectangle_shape,SrcFactors!CM9+Setback!B8,IF(s5shape=circle_shape,Circ!T12+Setback!B8,NA()))) ->  | E64: =IF(s5plot="NO",NA(),IF(s5shape=rectangle_shape,SrcFactors!CN9,IF(s5shape=circle_shape,Circ!U12,NA()))) -> 
C65: N-NE | D65: =IF(s5plot="NO",NA(),IF(s5shape=rectangle_shape,SrcFactors!CM10+Setback!B8,IF(s5shape=circle_shape,Circ!T12+Setback!B8,NA()))) ->  | E65: =IF(s5plot="NO",NA(),IF(s5shape=rectangle_shape,SrcFactors!CN10,IF(s5shape=circle_shape,Circ!U12,NA()))) -> 
C66: NE pt | D66: =IF(s5plot="NO",NA(),IF(s5shape=rectangle_shape,SrcFactors!CM10+I26,IF(s5shape=circle_shape,Circ!T13+I26,NA()))) ->  | E66: =IF(s5plot="NO",NA(),IF(s5shape=rectangle_shape,SrcFactors!CN10+I26,IF(s5shape=circle_shape,Circ!U13+I26,NA()))) -> 
C67: E-NE | D67: =IF(s5plot="NO",NA(),IF(s5shape=rectangle_shape,SrcFactors!CM10,IF(s5shape=circle_shape,Circ!T14,NA()))) ->  | E67: =IF(s5plot="NO",NA(),IF(s5shape=rectangle_shape,SrcFactors!CN10+Setback!D8,IF(s5shape=circle_shape,Circ!U14+Setback!D8,NA()))) -> 
C68: E-SE | D68: =IF(s5plot="NO",NA(),IF(s5shape=rectangle_shape,SrcFactors!CM11,IF(s5shape=circle_shape,Circ!T14,NA()))) ->  | E68: =IF(s5plot="NO",NA(),IF(s5shape=rectangle_shape,SrcFactors!CN11+Setback!D8,IF(s5shape=circle_shape,Circ!U14+Setback!D8,NA()))) -> 
C69: SE pt | D69: =IF(s5plot="NO",NA(),IF(s5shape=rectangle_shape,SrcFactors!CM11-I27,IF(s5shape=circle_shape,Circ!T15-I27,NA()))) ->  | E69: =IF(s5plot="NO",NA(),IF(s5shape=rectangle_shape,SrcFactors!CN11+I27,IF(s5shape=circle_shape,Circ!U15+I27,NA()))) -> 
C70: S-SE | D70: =IF(s5plot="NO",NA(),IF(s5shape=rectangle_shape,SrcFactors!CM11-Setback!F8,IF(s5shape=circle_shape,Circ!T16-Setback!F8,NA()))) ->  | E70: =IF(s5plot="NO",NA(),IF(s5shape=rectangle_shape,SrcFactors!CN11,IF(s5shape=circle_shape,Circ!U16,NA()))) -> 
C71: S-SW | D71: =IF(s5plot="NO",NA(),IF(s5shape=rectangle_shape,SrcFactors!CM12-Setback!F8,IF(s5shape=circle_shape,Circ!T16-Setback!F8,NA()))) ->  | E71: =IF(s5plot="NO",NA(),IF(s5shape=rectangle_shape,SrcFactors!CN12,IF(s5shape=circle_shape,Circ!U16,NA()))) -> 
C72: SW pt | D72: =IF(s5plot="NO",NA(),IF(s5shape=rectangle_shape,SrcFactors!CM11-I28,IF(s5shape=circle_shape,Circ!T17-I28,NA()))) ->  | E72: =IF(s5plot="NO",NA(),IF(s5shape=rectangle_shape,SrcFactors!CN12-I28,IF(s5shape=circle_shape,Circ!U17-I28,NA()))) -> 
C73: W-SW | D73: =D61 ->  | E73: =E61 -> 
A75: 6 | B75: =ISNUMBER(s6SWy) -> FALSE | C75: W-SW | D75: =IF(s6plot="NO",NA(),IF(s6shape=rectangle_shape,SrcFactors!CO8,IF(s6shape=circle_shape,Circ!X10,NA()))) ->  | E75: =IF(s6plot="NO",NA(),IF(s6shape=rectangle_shape,SrcFactors!CP8-Setback!H9,IF(s6shape=circle_shape,Circ!Y10-Setback!H9,NA()))) -> 
A76: =IF(s6name="","",s6name) ->  | C76: W-NW | D76: =IF(s6plot="NO",NA(),IF(s6shape=rectangle_shape,SrcFactors!CO9,IF(s6shape=circle_shape,Circ!X10,NA()))) ->  | E76: =IF(s6plot="NO",NA(),IF(s6shape=rectangle_shape,SrcFactors!CP9-Setback!H9,IF(s6shape=circle_shape,Circ!Y10-Setback!H9,NA()))) -> 
C77: NW pt | D77: =IF(s6plot="NO",NA(),IF(s6shape=rectangle_shape,SrcFactors!CO9+I30,IF(s6shape=circle_shape,Circ!X11+I30,NA()))) ->  | E77: =IF(s6plot="NO",NA(),IF(s6shape=rectangle_shape,SrcFactors!CP9-I30,IF(s6shape=circle_shape,Circ!Y11-I30,NA()))) -> 
A78: Plot? | B78: =s6plot -> 0 | C78: N-NW | D78: =IF(s6plot="NO",NA(),IF(s6shape=rectangle_shape,SrcFactors!CO9+Setback!B9,IF(s6shape=circle_shape,Circ!X12+Setback!B9,NA()))) ->  | E78: =IF(s6plot="NO",NA(),IF(s6shape=rectangle_shape,SrcFactors!CP9,IF(s6shape=circle_shape,Circ!Y12,NA()))) -> 
C79: N-NE | D79: =IF(s6plot="NO",NA(),IF(s6shape=rectangle_shape,SrcFactors!CO10+Setback!B9,IF(s6shape=circle_shape,Circ!X12+Setback!B9,NA()))) ->  | E79: =IF(s6plot="NO",NA(),IF(s6shape=rectangle_shape,SrcFactors!CP10,IF(s6shape=circle_shape,Circ!Y12,NA()))) -> 
C80: NE pt | D80: =IF(s6plot="NO",NA(),IF(s6shape=rectangle_shape,SrcFactors!CO10+I31,IF(s6shape=circle_shape,Circ!X13+I31,NA()))) ->  | E80: =IF(s6plot="NO",NA(),IF(s6shape=rectangle_shape,SrcFactors!CP10+I31,IF(s6shape=circle_shape,Circ!Y13+I31,NA()))) -> 
C81: E-NE | D81: =IF(s6plot="NO",NA(),IF(s6shape=rectangle_shape,SrcFactors!CO10,IF(s6shape=circle_shape,Circ!X14,NA()))) ->  | E81: =IF(s6plot="NO",NA(),IF(s6shape=rectangle_shape,SrcFactors!CP10+Setback!D9,IF(s6shape=circle_shape,Circ!Y14+Setback!D9,NA()))) -> 
C82: E-SE | D82: =IF(s6plot="NO",NA(),IF(s6shape=rectangle_shape,SrcFactors!CO11,IF(s6shape=circle_shape,Circ!X14,NA()))) ->  | E82: =IF(s6plot="NO",NA(),IF(s6shape=rectangle_shape,SrcFactors!CP11+Setback!D9,IF(s6shape=circle_shape,Circ!Y14+Setback!D9,NA()))) -> 
C83: SE pt | D83: =IF(s6plot="NO",NA(),IF(s6shape=rectangle_shape,SrcFactors!CO11-I32,IF(s6shape=circle_shape,Circ!X15-I32,NA()))) ->  | E83: =IF(s6plot="NO",NA(),IF(s6shape=rectangle_shape,SrcFactors!CP11+I32,IF(s6shape=circle_shape,Circ!Y15+I32,NA()))) -> 
C84: S-SE | D84: =IF(s6plot="NO",NA(),IF(s6shape=rectangle_shape,SrcFactors!CO11-Setback!F9,IF(s6shape=circle_shape,Circ!X16-Setback!F9,NA()))) ->  | E84: =IF(s6plot="NO",NA(),IF(s6shape=rectangle_shape,SrcFactors!CP11,IF(s6shape=circle_shape,Circ!Y16,NA()))) -> 
C85: S-SW | D85: =IF(s6plot="NO",NA(),IF(s6shape=rectangle_shape,SrcFactors!CO12-Setback!F9,IF(s6shape=circle_shape,Circ!X16-Setback!F9,NA()))) ->  | E85: =IF(s6plot="NO",NA(),IF(s6shape=rectangle_shape,SrcFactors!CP12,IF(s6shape=circle_shape,Circ!Y16,NA()))) -> 
C86: SW pt | D86: =IF(s6plot="NO",NA(),IF(s6shape=rectangle_shape,SrcFactors!CO11-I33,IF(s6shape=circle_shape,Circ!X17-I33,NA()))) ->  | E86: =IF(s6plot="NO",NA(),IF(s6shape=rectangle_shape,SrcFactors!CP12-I33,IF(s6shape=circle_shape,Circ!Y17-I33,NA()))) -> 
C87: W-SW | D87: =D75 ->  | E87: =E75 -> 
A89: 7 | B89: =ISNUMBER(s7SWy) -> FALSE | C89: W-SW | D89: =IF(s7plot="NO",NA(),IF(s7shape=rectangle_shape,SrcFactors!CQ8,IF(s7shape=circle_shape,Circ!AB10,NA()))) ->  | E89: =IF(s7plot="NO",NA(),IF(s7shape=rectangle_shape,SrcFactors!CR8-Setback!H10,IF(s7shape=circle_shape,Circ!AC10-Setback!H10,NA()))) -> 
A90: =IF(s7name="","",s7name) ->  | C90: W-NW | D90: =IF(s7plot="NO",NA(),IF(s7shape=rectangle_shape,SrcFactors!CQ9,IF(s7shape=circle_shape,Circ!AB10,NA()))) ->  | E90: =IF(s7plot="NO",NA(),IF(s7shape=rectangle_shape,SrcFactors!CR9-Setback!H10,IF(s7shape=circle_shape,Circ!AC10-Setback!H10,NA()))) -> 
C91: NW pt | D91: =IF(s7plot="NO",NA(),IF(s7shape=rectangle_shape,SrcFactors!CQ9+I35,IF(s7shape=circle_shape,Circ!AB11+I35,NA()))) ->  | E91: =IF(s7plot="NO",NA(),IF(s7shape=rectangle_shape,SrcFactors!CR9-I35,IF(s7shape=circle_shape,Circ!AC11-I35,NA()))) -> 
A92: Plot? | B92: =s7plot -> 0 | C92: N-NW | D92: =IF(s7plot="NO",NA(),IF(s7shape=rectangle_shape,SrcFactors!CQ9+Setback!B10,IF(s7shape=circle_shape,Circ!AB12+Setback!B10,NA()))) ->  | E92: =IF(s7plot="NO",NA(),IF(s7shape=rectangle_shape,SrcFactors!CR9,IF(s7shape=circle_shape,Circ!AC12,NA()))) -> 
C93: N-NE | D93: =IF(s7plot="NO",NA(),IF(s7shape=rectangle_shape,SrcFactors!CQ10+Setback!B10,IF(s7shape=circle_shape,Circ!AB12+Setback!B10,NA()))) ->  | E93: =IF(s7plot="NO",NA(),IF(s7shape=rectangle_shape,SrcFactors!CR10,IF(s7shape=circle_shape,Circ!AC12,NA()))) -> 
C94: NE pt | D94: =IF(s7plot="NO",NA(),IF(s7shape=rectangle_shape,SrcFactors!CQ10+I36,IF(s7shape=circle_shape,Circ!AB13+I36,NA()))) ->  | E94: =IF(s7plot="NO",NA(),IF(s7shape=rectangle_shape,SrcFactors!CR10+I36,IF(s7shape=circle_shape,Circ!AC13+I36,NA()))) -> 
C95: E-NE | D95: =IF(s7plot="NO",NA(),IF(s7shape=rectangle_shape,SrcFactors!CQ10,IF(s7shape=circle_shape,Circ!AB14,NA()))) ->  | E95: =IF(s7plot="NO",NA(),IF(s7shape=rectangle_shape,SrcFactors!CR10+Setback!D10,IF(s7shape=circle_shape,Circ!AC14+Setback!D10,NA()))) -> 
C96: E-SE | D96: =IF(s7plot="NO",NA(),IF(s7shape=rectangle_shape,SrcFactors!CQ11,IF(s7shape=circle_shape,Circ!AB14,NA()))) ->  | E96: =IF(s7plot="NO",NA(),IF(s7shape=rectangle_shape,SrcFactors!CR11+Setback!D10,IF(s7shape=circle_shape,Circ!AC14+Setback!D10,NA()))) -> 
C97: SE pt | D97: =IF(s7plot="NO",NA(),IF(s7shape=rectangle_shape,SrcFactors!CQ11-I37,IF(s7shape=circle_shape,Circ!AB15-I37,NA()))) ->  | E97: =IF(s7plot="NO",NA(),IF(s7shape=rectangle_shape,SrcFactors!CR11+I37,IF(s7shape=circle_shape,Circ!AC15+I37,NA()))) -> 
C98: S-SE | D98: =IF(s7plot="NO",NA(),IF(s7shape=rectangle_shape,SrcFactors!CQ11-Setback!F10,IF(s7shape=circle_shape,Circ!AB16-Setback!F10,NA()))) ->  | E98: =IF(s7plot="NO",NA(),IF(s7shape=rectangle_shape,SrcFactors!CR11,IF(s7shape=circle_shape,Circ!AC16,NA()))) -> 
C99: S-SW | D99: =IF(s7plot="NO",NA(),IF(s7shape=rectangle_shape,SrcFactors!CQ12-Setback!F10,IF(s7shape=circle_shape,Circ!AB16-Setback!F10,NA()))) ->  | E99: =IF(s7plot="NO",NA(),IF(s7shape=rectangle_shape,SrcFactors!CR12,IF(s7shape=circle_shape,Circ!AC16,NA()))) -> 
C100: SW pt | D100: =IF(s7plot="NO",NA(),IF(s7shape=rectangle_shape,SrcFactors!CQ11-I38,IF(s7shape=circle_shape,Circ!AB17-I38,NA()))) ->  | E100: =IF(s7plot="NO",NA(),IF(s7shape=rectangle_shape,SrcFactors!CR12-I38,IF(s7shape=circle_shape,Circ!AC17-I38,NA()))) -> 
C101: W-SW | D101: =D89 ->  | E101: =E89 -> 
A103: 8 | B103: =ISNUMBER(s8SWy) -> FALSE | C103: W-SW | D103: =IF(s8plot="NO",NA(),IF(s8shape=rectangle_shape,SrcFactors!CS8,IF(s8shape=circle_shape,Circ!AF10,NA()))) ->  | E103: =IF(s8plot="NO",NA(),IF(s8shape=rectangle_shape,SrcFactors!CT8-Setback!H11,IF(s8shape=circle_shape,Circ!AG10-Setback!H11,NA()))) -> 
A104: =IF(s8name="","",s8name) ->  | C104: W-NW | D104: =IF(s8plot="NO",NA(),IF(s8shape=rectangle_shape,SrcFactors!CS9,IF(s8shape=circle_shape,Circ!AF10,NA()))) ->  | E104: =IF(s8plot="NO",NA(),IF(s8shape=rectangle_shape,SrcFactors!CT9-Setback!H11,IF(s8shape=circle_shape,Circ!AG10-Setback!H11,NA()))) -> 
C105: NW pt | D105: =IF(s8plot="NO",NA(),IF(s8shape=rectangle_shape,SrcFactors!CS9+I40,IF(s8shape=circle_shape,Circ!AF11+I40,NA()))) ->  | E105: =IF(s8plot="NO",NA(),IF(s8shape=rectangle_shape,SrcFactors!CT9-I40,IF(s8shape=circle_shape,Circ!AG11-I40,NA()))) -> 
A106: Plot? | B106: =s8plot -> 0 | C106: N-NW | D106: =IF(s8plot="NO",NA(),IF(s8shape=rectangle_shape,SrcFactors!CS9+Setback!B11,IF(s8shape=circle_shape,Circ!AF12+Setback!B11,NA()))) ->  | E106: =IF(s8plot="NO",NA(),IF(s8shape=rectangle_shape,SrcFactors!CT9,IF(s8shape=circle_shape,Circ!AG12,NA()))) -> 
C107: N-NE | D107: =IF(s8plot="NO",NA(),IF(s8shape=rectangle_shape,SrcFactors!CS10+Setback!B11,IF(s8shape=circle_shape,Circ!AF12+Setback!B11,NA()))) ->  | E107: =IF(s8plot="NO",NA(),IF(s8shape=rectangle_shape,SrcFactors!CT10,IF(s8shape=circle_shape,Circ!AG12,NA()))) -> 
C108: NE pt | D108: =IF(s8plot="NO",NA(),IF(s8shape=rectangle_shape,SrcFactors!CS10+I41,IF(s8shape=circle_shape,Circ!AF13+I41,NA()))) ->  | E108: =IF(s8plot="NO",NA(),IF(s8shape=rectangle_shape,SrcFactors!CT10+I41,IF(s8shape=circle_shape,Circ!AG13+I41,NA()))) -> 
C109: E-NE | D109: =IF(s8plot="NO",NA(),IF(s8shape=rectangle_shape,SrcFactors!CS10,IF(s8shape=circle_shape,Circ!AF14,NA()))) ->  | E109: =IF(s8plot="NO",NA(),IF(s8shape=rectangle_shape,SrcFactors!CT10+Setback!D11,IF(s8shape=circle_shape,Circ!AG14+Setback!D11,NA()))) -> 
C110: E-SE | D110: =IF(s8plot="NO",NA(),IF(s8shape=rectangle_shape,SrcFactors!CS11,IF(s8shape=circle_shape,Circ!AF14,NA()))) ->  | E110: =IF(s8plot="NO",NA(),IF(s8shape=rectangle_shape,SrcFactors!CT11+Setback!D11,IF(s8shape=circle_shape,Circ!AG14+Setback!D11,NA()))) -> 
C111: SE pt | D111: =IF(s8plot="NO",NA(),IF(s8shape=rectangle_shape,SrcFactors!CS11-I42,IF(s8shape=circle_shape,Circ!AF15-I42,NA()))) ->  | E111: =IF(s8plot="NO",NA(),IF(s8shape=rectangle_shape,SrcFactors!CT11+I42,IF(s8shape=circle_shape,Circ!AG15+I42,NA()))) -> 
C112: S-SE | D112: =IF(s8plot="NO",NA(),IF(s8shape=rectangle_shape,SrcFactors!CS11-Setback!F11,IF(s8shape=circle_shape,Circ!AF16-Setback!F11,NA()))) ->  | E112: =IF(s8plot="NO",NA(),IF(s8shape=rectangle_shape,SrcFactors!CT11,IF(s8shape=circle_shape,Circ!AG16,NA()))) -> 
C113: S-SW | D113: =IF(s8plot="NO",NA(),IF(s8shape=rectangle_shape,SrcFactors!CS12-Setback!F11,IF(s8shape=circle_shape,Circ!AF16-Setback!F11,NA()))) ->  | E113: =IF(s8plot="NO",NA(),IF(s8shape=rectangle_shape,SrcFactors!CT12,IF(s8shape=circle_shape,Circ!AG16,NA()))) -> 
C114: SW pt | D114: =IF(s8plot="NO",NA(),IF(s8shape=rectangle_shape,SrcFactors!CS11-I43,IF(s8shape=circle_shape,Circ!AF17-I43,NA()))) ->  | E114: =IF(s8plot="NO",NA(),IF(s8shape=rectangle_shape,SrcFactors!CT12-I43,IF(s8shape=circle_shape,Circ!AG17-I43,NA()))) -> 
C115: W-SW | D115: =D103 ->  | E115: =E103 -> 
A117: 9 | B117: =ISNUMBER(s9SWy) -> FALSE | C117: W-SW | D117: =IF(s9plot="NO",NA(),IF(s9shape=rectangle_shape,SrcFactors!CU8,IF(s9shape=circle_shape,Circ!AJ10,NA()))) ->  | E117: =IF(s9plot="NO",NA(),IF(s9shape=rectangle_shape,SrcFactors!CV8-Setback!H12,IF(s9shape=circle_shape,Circ!AK10-Setback!H12,NA()))) -> 
A118: =IF(s9name="","",s9name) ->  | C118: W-NW | D118: =IF(s9plot="NO",NA(),IF(s9shape=rectangle_shape,SrcFactors!CU9,IF(s9shape=circle_shape,Circ!AJ10,NA()))) ->  | E118: =IF(s9plot="NO",NA(),IF(s9shape=rectangle_shape,SrcFactors!CV9-Setback!H12,IF(s9shape=circle_shape,Circ!AK10-Setback!H12,NA()))) -> 
C119: NW pt | D119: =IF(s9plot="NO",NA(),IF(s9shape=rectangle_shape,SrcFactors!CU9+I45,IF(s9shape=circle_shape,Circ!AJ11+I45,NA()))) ->  | E119: =IF(s9plot="NO",NA(),IF(s9shape=rectangle_shape,SrcFactors!CV9-I45,IF(s9shape=circle_shape,Circ!AK11-I45,NA()))) -> 
A120: Plot? | B120: =s9plot -> 0 | C120: N-NW | D120: =IF(s9plot="NO",NA(),IF(s9shape=rectangle_shape,SrcFactors!CU9+Setback!B12,IF(s9shape=circle_shape,Circ!AJ12+Setback!B12,NA()))) ->  | E120: =IF(s9plot="NO",NA(),IF(s9shape=rectangle_shape,SrcFactors!CV9,IF(s9shape=circle_shape,Circ!AK12,NA()))) -> 
C121: N-NE | D121: =IF(s9plot="NO",NA(),IF(s9shape=rectangle_shape,SrcFactors!CU10+Setback!B12,IF(s9shape=circle_shape,Circ!AJ12+Setback!B12,NA()))) ->  | E121: =IF(s9plot="NO",NA(),IF(s9shape=rectangle_shape,SrcFactors!CV10,IF(s9shape=circle_shape,Circ!AK12,NA()))) -> 
C122: NE pt | D122: =IF(s9plot="NO",NA(),IF(s9shape=rectangle_shape,SrcFactors!CU10+I46,IF(s9shape=circle_shape,Circ!AJ13+I46,NA()))) ->  | E122: =IF(s9plot="NO",NA(),IF(s9shape=rectangle_shape,SrcFactors!CV10+I46,IF(s9shape=circle_shape,Circ!AK13+I46,NA()))) -> 
C123: E-NE | D123: =IF(s9plot="NO",NA(),IF(s9shape=rectangle_shape,SrcFactors!CU10,IF(s9shape=circle_shape,Circ!AJ14,NA()))) ->  | E123: =IF(s9plot="NO",NA(),IF(s9shape=rectangle_shape,SrcFactors!CV10+Setback!D12,IF(s9shape=circle_shape,Circ!AK14+Setback!D12,NA()))) -> 
C124: E-SE | D124: =IF(s9plot="NO",NA(),IF(s9shape=rectangle_shape,SrcFactors!CU11,IF(s9shape=circle_shape,Circ!AJ14,NA()))) ->  | E124: =IF(s9plot="NO",NA(),IF(s9shape=rectangle_shape,SrcFactors!CV11+Setback!D12,IF(s9shape=circle_shape,Circ!AK14+Setback!D12,NA()))) -> 
C125: SE pt | D125: =IF(s9plot="NO",NA(),IF(s9shape=rectangle_shape,SrcFactors!CU11-I47,IF(s9shape=circle_shape,Circ!AJ15-I47,NA()))) ->  | E125: =IF(s9plot="NO",NA(),IF(s9shape=rectangle_shape,SrcFactors!CV11+I47,IF(s9shape=circle_shape,Circ!AK15+I47,NA()))) -> 
C126: S-SE | D126: =IF(s9plot="NO",NA(),IF(s9shape=rectangle_shape,SrcFactors!CU11-Setback!F12,IF(s9shape=circle_shape,Circ!AJ16-Setback!F12,NA()))) ->  | E126: =IF(s9plot="NO",NA(),IF(s9shape=rectangle_shape,SrcFactors!CV11,IF(s9shape=circle_shape,Circ!AK16,NA()))) -> 
C127: S-SW | D127: =IF(s9plot="NO",NA(),IF(s9shape=rectangle_shape,SrcFactors!CU12-Setback!F12,IF(s9shape=circle_shape,Circ!AJ16-Setback!F12,NA()))) ->  | E127: =IF(s9plot="NO",NA(),IF(s9shape=rectangle_shape,SrcFactors!CV12,IF(s9shape=circle_shape,Circ!AK16,NA()))) -> 
C128: SW pt | D128: =IF(s9plot="NO",NA(),IF(s9shape=rectangle_shape,SrcFactors!CU11-I48,IF(s9shape=circle_shape,Circ!AJ17-I48,NA()))) ->  | E128: =IF(s9plot="NO",NA(),IF(s9shape=rectangle_shape,SrcFactors!CV12-I48,IF(s9shape=circle_shape,Circ!AK17-I48,NA()))) -> 
C129: W-SW | D129: =D117 ->  | E129: =E117 -> 
A131: 10 | B131: =ISNUMBER(s10SWy) -> FALSE | C131: W-SW | D131: =IF(s10plot="NO",NA(),IF(s10shape=rectangle_shape,SrcFactors!CW8,IF(s10shape=circle_shape,Circ!AN10,NA()))) ->  | E131: =IF(s10plot="NO",NA(),IF(s10shape=rectangle_shape,SrcFactors!CX8-Setback!H13,IF(s10shape=circle_shape,Circ!AO10-Setback!H13,NA()))) -> 
A132: =IF(s10name="","",s10name) ->  | C132: W-NW | D132: =IF(s10plot="NO",NA(),IF(s10shape=rectangle_shape,SrcFactors!CW9,IF(s10shape=circle_shape,Circ!AN10,NA()))) ->  | E132: =IF(s10plot="NO",NA(),IF(s10shape=rectangle_shape,SrcFactors!CX9-Setback!H13,IF(s10shape=circle_shape,Circ!AO10-Setback!H13,NA()))) -> 
C133: NW pt | D133: =IF(s10plot="NO",NA(),IF(s10shape=rectangle_shape,SrcFactors!CW9+I50,IF(s10shape=circle_shape,Circ!AN11+I50,NA()))) ->  | E133: =IF(s10plot="NO",NA(),IF(s10shape=rectangle_shape,SrcFactors!CX9-I50,IF(s10shape=circle_shape,Circ!AO11-I50,NA()))) -> 
A134: Plot? | B134: =s10plot -> 0 | C134: N-NW | D134: =IF(s10plot="NO",NA(),IF(s10shape=rectangle_shape,SrcFactors!CW9+Setback!B13,IF(s10shape=circle_shape,Circ!AN12+Setback!B13,NA()))) ->  | E134: =IF(s10plot="NO",NA(),IF(s10shape=rectangle_shape,SrcFactors!CX9,IF(s10shape=circle_shape,Circ!AO12,NA()))) -> 
C135: N-NE | D135: =IF(s10plot="NO",NA(),IF(s10shape=rectangle_shape,SrcFactors!CW10+Setback!B13,IF(s10shape=circle_shape,Circ!AN12+Setback!B13,NA()))) ->  | E135: =IF(s10plot="NO",NA(),IF(s10shape=rectangle_shape,SrcFactors!CX10,IF(s10shape=circle_shape,Circ!AO12,NA()))) -> 
C136: NE pt | D136: =IF(s10plot="NO",NA(),IF(s10shape=rectangle_shape,SrcFactors!CW10+I51,IF(s10shape=circle_shape,Circ!AN13+I51,NA()))) ->  | E136: =IF(s10plot="NO",NA(),IF(s10shape=rectangle_shape,SrcFactors!CX10+I51,IF(s10shape=circle_shape,Circ!AO13+I51,NA()))) -> 
C137: E-NE | D137: =IF(s10plot="NO",NA(),IF(s10shape=rectangle_shape,SrcFactors!CW10,IF(s10shape=circle_shape,Circ!AN14,NA()))) ->  | E137: =IF(s10plot="NO",NA(),IF(s10shape=rectangle_shape,SrcFactors!CX10+Setback!D13,IF(s10shape=circle_shape,Circ!AO14+Setback!D13,NA()))) -> 
C138: E-SE | D138: =IF(s10plot="NO",NA(),IF(s10shape=rectangle_shape,SrcFactors!CW11,IF(s10shape=circle_shape,Circ!AN14,NA()))) ->  | E138: =IF(s10plot="NO",NA(),IF(s10shape=rectangle_shape,SrcFactors!CX11+Setback!D13,IF(s10shape=circle_shape,Circ!AO14+Setback!D13,NA()))) -> 
C139: SE pt | D139: =IF(s10plot="NO",NA(),IF(s10shape=rectangle_shape,SrcFactors!CW11-I52,IF(s10shape=circle_shape,Circ!AN15-I52,NA()))) ->  | E139: =IF(s10plot="NO",NA(),IF(s10shape=rectangle_shape,SrcFactors!CX11+I52,IF(s10shape=circle_shape,Circ!AO15+I52,NA()))) -> 
C140: S-SE | D140: =IF(s10plot="NO",NA(),IF(s10shape=rectangle_shape,SrcFactors!CW11-Setback!F13,IF(s10shape=circle_shape,Circ!AN16-Setback!F13,NA()))) ->  | E140: =IF(s10plot="NO",NA(),IF(s10shape=rectangle_shape,SrcFactors!CX11,IF(s10shape=circle_shape,Circ!AO16,NA()))) -> 
C141: S-SW | D141: =IF(s10plot="NO",NA(),IF(s10shape=rectangle_shape,SrcFactors!CW12-Setback!F13,IF(s10shape=circle_shape,Circ!AN16-Setback!F13,NA()))) ->  | E141: =IF(s10plot="NO",NA(),IF(s10shape=rectangle_shape,SrcFactors!CX12,IF(s10shape=circle_shape,Circ!AO16,NA()))) -> 
C142: SW pt | D142: =IF(s10plot="NO",NA(),IF(s10shape=rectangle_shape,SrcFactors!CW11-I53,IF(s10shape=circle_shape,Circ!AN17-I53,NA()))) ->  | E142: =IF(s10plot="NO",NA(),IF(s10shape=rectangle_shape,SrcFactors!CX12-I53,IF(s10shape=circle_shape,Circ!AO17-I53,NA()))) -> 
C143: W-SW | D143: =D131 ->  | E143: =E131 -> 

Sheet GEPoints
A1: Latitude | B1: Longitude | C1: Name | D1: Description | E1: Icon | F1: IconColor | G1: IconHeading | H1: IconLineColor | I1: IconScale | J1: LineStringColor | K1: This worksheet is for internal use only.
A2: =Plotdata!N5 -> 45 | B2: =Plotdata!O5 -> -86 | C2: Site SW | D2: SW Source site | E2: 98 | F2: blue | I2: 0.7 | J2: blue | K2: A.J. Heber
A3: =Plotdata!N6 -> 45 | B3: =Plotdata!O6 -> -86 | D3: NW Source site | E3: 98 | F3: blue | I3: 0.7 | J3: blue
A4: =Plotdata!N7 -> 45 | B4: =Plotdata!O7 -> -86 | D4: NE Source site | E4: 98 | F4: blue | I4: 0.7 | J4: blue
A5: =Plotdata!N8 -> 45 | B5: =Plotdata!O8 -> -86 | D5: SE Source site | E5: 98 | F5: blue | I5: 0.7 | J5: blue
A6: =Plotdata!N9 -> 45 | B6: =Plotdata!O9 -> -86 | D6: SW Source site | E6: 98 | F6: blue | I6: 0.7
A7: =Plotdata!N13 ->  | B7: =Plotdata!O13 ->  | D7: W-SW | E7: 33 | F7: yellow | J7: yellow
A8: =Plotdata!N14 ->  | B8: =Plotdata!O14 ->  | D8: W-NW | E8: 33 | F8: yellow | J8: yellow
A9: =Plotdata!N15 ->  | B9: =Plotdata!O15 ->  | D9: NW pt | E9: none | F9: yellow | J9: yellow
A10: =Plotdata!N16 ->  | B10: =Plotdata!O16 ->  | D10: N-NW | E10: 24 | F10: yellow | J10: yellow
A11: =Plotdata!N17 ->  | B11: =Plotdata!O17 ->  | D11: N-NE | E11: 24 | F11: yellow | J11: yellow
A12: =Plotdata!N18 ->  | B12: =Plotdata!O18 ->  | D12: NE pt | E12: none | F12: yellow | J12: yellow
A13: =Plotdata!N19 ->  | B13: =Plotdata!O19 ->  | D13: E-NE | E13: 15 | F13: yellow | J13: yellow
A14: =Plotdata!N20 ->  | B14: =Plotdata!O20 ->  | D14: E-SE | E14: 15 | F14: yellow | J14: yellow
A15: =Plotdata!N21 ->  | B15: =Plotdata!O21 ->  | D15: SE pt | E15: none | F15: yellow | J15: yellow
A16: =Plotdata!N22 ->  | B16: =Plotdata!O22 ->  | D16: S-SE | E16: 29 | F16: yellow | J16: yellow
A17: =Plotdata!N23 ->  | B17: =Plotdata!O23 ->  | D17: S-SW | E17: 29 | F17: yellow | J17: yellow
A18: =Plotdata!N24 ->  | B18: =Plotdata!O24 ->  | D18: SW pt | E18: none | F18: yellow | J18: yellow
A19: =Plotdata!N25 ->  | B19: =Plotdata!O25 ->  | D19: W-SW | E19: none | F19: yellow
A20: =Circ!AY4 ->  | B20: =Circ!AZ4 ->  | C20: =Circ!AX4 -> 2640' | D20: Circle pt 1 | E20: none | F20: red | G20: line | I20: 0.7 | J20: red
A21: =Circ!AY5 ->  | B21: =Circ!AZ5 ->  | D21: Circle pt 2 | E21: none | F21: red | G21: line | I21: 0.7 | J21: red
A22: =Circ!AY6 ->  | B22: =Circ!AZ6 ->  | D22: Circle pt 3 | E22: none | F22: red | G22: line | I22: 0.7 | J22: red
A23: =Circ!AY7 ->  | B23: =Circ!AZ7 ->  | D23: Circle pt 4 | E23: none | F23: red | G23: line | I23: 0.7 | J23: red
A24: =Circ!AY8 ->  | B24: =Circ!AZ8 ->  | D24: Circle pt 5 | E24: none | F24: red | G24: line | I24: 0.7 | J24: red
A25: =Circ!AY9 ->  | B25: =Circ!AZ9 ->  | D25: Circle pt 6 | E25: none | F25: red | G25: line | I25: 0.7 | J25: red
A26: =Circ!AY10 ->  | B26: =Circ!AZ10 ->  | D26: Circle pt 7 | E26: none | F26: red | G26: line | I26: 0.7 | J26: red
A27: =Circ!AY11 ->  | B27: =Circ!AZ11 ->  | D27: Circle pt 8 | E27: none | F27: red | G27: line | I27: 0.7 | J27: red
A28: =Circ!AY12 ->  | B28: =Circ!AZ12 ->  | D28: Circle pt 9 | E28: none | F28: red | G28: line | I28: 0.7 | J28: red
A29: =Circ!AY13 ->  | B29: =Circ!AZ13 ->  | D29: Circle pt 10 | E29: none | F29: red | G29: line | I29: 0.7 | J29: red
A30: =Circ!AY14 ->  | B30: =Circ!AZ14 ->  | D30: Circle pt 11 | E30: none | F30: red | G30: line | I30: 0.7 | J30: red
A31: =Circ!AY15 ->  | B31: =Circ!AZ15 ->  | D31: Circle pt 12 | E31: none | F31: red | G31: line | I31: 0.7 | J31: red
A32: =Circ!AY16 ->  | B32: =Circ!AZ16 ->  | D32: Circle pt 13 | E32: none | F32: red | G32: line | I32: 0.7 | J32: red
A33: =Circ!AY17 ->  | B33: =Circ!AZ17 ->  | D33: Circle pt 14 | E33: none | F33: red | G33: line | I33: 0.7 | J33: red
A34: =Circ!AY18 ->  | B34: =Circ!AZ18 ->  | D34: Circle pt 15 | E34: none | F34: red | G34: line | I34: 0.7 | J34: red
A35: =Circ!AY19 ->  | B35: =Circ!AZ19 ->  | D35: Circle pt 16 | E35: none | F35: red | G35: line | I35: 0.7 | J35: red
A36: =Circ!AY20 ->  | B36: =Circ!AZ20 ->  | D36: Circle pt 17 | E36: none | F36: red | G36: line | I36: 0.7 | J36: red
A37: =Circ!AY21 ->  | B37: =Circ!AZ21 ->  | D37: Circle pt 18 | E37: none | F37: red | G37: line | I37: 0.7 | J37: red
A38: =Circ!AY22 ->  | B38: =Circ!AZ22 ->  | D38: Circle pt 19 | E38: none | F38: red | G38: line | I38: 0.7 | J38: red
A39: =Circ!AY23 ->  | B39: =Circ!AZ23 ->  | D39: Circle pt 20 | E39: none | F39: red | G39: line | I39: 0.7 | J39: red
A40: =Circ!AY24 ->  | B40: =Circ!AZ24 ->  | D40: Circle pt 21 | E40: none | F40: red | G40: line | I40: 0.7 | J40: red
A41: =Circ!AY25 ->  | B41: =Circ!AZ25 ->  | D41: Circle pt 22 | E41: none | F41: red | G41: line | I41: 0.7 | J41: red
A42: =Circ!AY26 ->  | B42: =Circ!AZ26 ->  | D42: Circle pt 23 | E42: none | F42: red | G42: line | I42: 0.7 | J42: red
A43: =Circ!AY27 ->  | B43: =Circ!AZ27 ->  | D43: Circle pt 24 | E43: none | F43: red | G43: line | I43: 0.7 | J43: red
A44: =Circ!AY28 ->  | B44: =Circ!AZ28 ->  | D44: Circle pt 25 | E44: none | F44: red | G44: line | I44: 0.7 | J44: red
A45: =Circ!AY29 ->  | B45: =Circ!AZ29 ->  | D45: Circle pt 26 | E45: none | F45: red | G45: line | I45: 0.7 | J45: red
A46: =Circ!AY30 ->  | B46: =Circ!AZ30 ->  | D46: Circle pt 27 | E46: none | F46: red | G46: line | I46: 0.7 | J46: red
A47: =Circ!AY31 ->  | B47: =Circ!AZ31 ->  | D47: Circle pt 28 | E47: none | F47: red | G47: line | I47: 0.7 | J47: red
A48: =Circ!AY32 ->  | B48: =Circ!AZ32 ->  | D48: Circle pt 29 | E48: none | F48: red | G48: line | I48: 0.7 | J48: red
A49: =Circ!AY33 ->  | B49: =Circ!AZ33 ->  | D49: Circle pt 30 | E49: none | F49: red | G49: line | I49: 0.7 | J49: red
A50: =Circ!AY34 ->  | B50: =Circ!AZ34 ->  | D50: Circle pt 31 | E50: none | F50: red | G50: line | I50: 0.7 | J50: red
A51: =Circ!AY35 ->  | B51: =Circ!AZ35 ->  | D51: Circle pt 32 | E51: none | F51: red | G51: line | I51: 0.7 | J51: red
A52: =Circ!AY36 ->  | B52: =Circ!AZ36 ->  | D52: Circle pt 33 | E52: none | F52: red | G52: line | I52: 0.7 | J52: red
A53: =Circ!AY37 ->  | B53: =Circ!AZ37 ->  | D53: Circle pt 34 | E53: none | F53: red | G53: line | I53: 0.7 | J53: red
A54: =Circ!AY38 ->  | B54: =Circ!AZ38 ->  | D54: Circle pt 35 | E54: none | F54: red | G54: line | I54: 0.7 | J54: red
A55: =Circ!AY39 ->  | B55: =Circ!AZ39 ->  | D55: Circle pt 36 | E55: none | F55: red | G55: line | I55: 0.7 | J55: red
A56: =Circ!AY40 ->  | B56: =Circ!AZ40 ->  | D56: Circle pt 37 | E56: none | F56: red | G56: line | I56: 0.7 | J56: red
A57: =Circ!AY41 ->  | B57: =Circ!AZ41 ->  | D57: Circle pt 38 | E57: none | F57: red | G57: line | I57: 0.7 | J57: red
A58: =Circ!AY42 ->  | B58: =Circ!AZ42 ->  | D58: Circle pt 39 | E58: none | F58: red | G58: line | I58: 0.7 | J58: red
A59: =Circ!AY43 ->  | B59: =Circ!AZ43 ->  | D59: Circle pt 40 | E59: none | F59: red | G59: line | I59: 0.7 | J59: red
A60: =Circ!AY44 ->  | B60: =Circ!AZ44 ->  | D60: Circle pt 41 | E60: none | F60: red | G60: line | I60: 0.7 | J60: red
A61: =Circ!AY45 ->  | B61: =Circ!AZ45 ->  | D61: Circle pt 42 | E61: none | F61: red | G61: line | I61: 0.7 | J61: red
A62: =Circ!AY46 ->  | B62: =Circ!AZ46 ->  | D62: Circle pt 43 | E62: none | F62: red | G62: line | I62: 0.7 | J62: red
A63: =Circ!AY47 ->  | B63: =Circ!AZ47 ->  | D63: Circle pt 44 | E63: none | F63: red | G63: line | I63: 0.7 | J63: red
A64: =Circ!AY48 ->  | B64: =Circ!AZ48 ->  | D64: Circle pt 45 | E64: none | F64: red | G64: line | I64: 0.7 | J64: red
A65: =Circ!AY49 ->  | B65: =Circ!AZ49 ->  | D65: Circle pt 46 | E65: none | F65: red | G65: line | I65: 0.7 | J65: red
A66: =Circ!AY50 ->  | B66: =Circ!AZ50 ->  | D66: Circle pt 47 | E66: none | F66: red | G66: line | I66: 0.7 | J66: red
A67: =Circ!AY51 ->  | B67: =Circ!AZ51 ->  | D67: Circle pt 48 | E67: none | F67: red | G67: line | I67: 0.7 | J67: red
A68: =Circ!AY52 ->  | B68: =Circ!AZ52 ->  | D68: Circle pt 49 | E68: none | F68: red | G68: line | I68: 0.7 | J68: red
A69: =Circ!AY53 ->  | B69: =Circ!AZ53 ->  | D69: Circle pt 50 | E69: none | F69: red | G69: line | I69: 0.7 | J69: red
A70: =Circ!AY54 ->  | B70: =Circ!AZ54 ->  | D70: Circle pt 51 | E70: none | F70: red | G70: line | I70: 0.7 | J70: red
A71: =Circ!AY55 ->  | B71: =Circ!AZ55 ->  | D71: Circle pt 52 | E71: none | F71: red | G71: line | I71: 0.7 | J71: red
A72: =Circ!AY56 ->  | B72: =Circ!AZ56 ->  | D72: Circle pt 53 | E72: none | F72: red | G72: line | I72: 0.7 | J72: red
A73: =Circ!AY57 ->  | B73: =Circ!AZ57 ->  | D73: Circle pt 54 | E73: none | F73: red | G73: line | I73: 0.7 | J73: red
A74: =Circ!AY58 ->  | B74: =Circ!AZ58 ->  | D74: Circle pt 55 | E74: none | F74: red | G74: line | I74: 0.7 | J74: red
A75: =Circ!AY59 ->  | B75: =Circ!AZ59 ->  | D75: Circle pt 56 | E75: none | F75: red | G75: line | I75: 0.7 | J75: red
A76: =Circ!AY60 ->  | B76: =Circ!AZ60 ->  | D76: Circle pt 57 | E76: none | F76: red | G76: line | I76: 0.7 | J76: red
A77: =Circ!AY61 ->  | B77: =Circ!AZ61 ->  | D77: Circle pt 58 | E77: none | F77: red | G77: line | I77: 0.7 | J77: red
A78: =Circ!AY62 ->  | B78: =Circ!AZ62 ->  | D78: Circle pt 59 | E78: none | F78: red | G78: line | I78: 0.7 | J78: red
A79: =Circ!AY63 ->  | B79: =Circ!AZ63 ->  | D79: Circle pt 60 | E79: none | F79: red | G79: line | I79: 0.7 | J79: red
A80: =Circ!AY64 ->  | B80: =Circ!AZ64 ->  | D80: Circle pt 61 | E80: none | F80: red | G80: line | I80: 0.7 | J80: red
A81: =Circ!AY65 ->  | B81: =Circ!AZ65 ->  | D81: Circle pt 62 | E81: none | F81: red | G81: line | I81: 0.7 | J81: red
A82: =Circ!AY66 ->  | B82: =Circ!AZ66 ->  | D82: Circle pt 63 | E82: none | F82: red | G82: line | I82: 0.7 | J82: red
A83: =Circ!AY67 ->  | B83: =Circ!AZ67 ->  | D83: Circle pt 64 | E83: none | F83: red | G83: line | I83: 0.7 | J83: red
A84: =Circ!AY68 ->  | B84: =Circ!AZ68 ->  | D84: Circle pt 65 | E84: none | F84: red | G84: line | I84: 0.7 | J84: red
A85: =Circ!AY69 ->  | B85: =Circ!AZ69 ->  | D85: Circle pt 66 | E85: none | F85: red | G85: line | I85: 0.7 | J85: red
A86: =Circ!AY70 ->  | B86: =Circ!AZ70 ->  | D86: Circle pt 67 | E86: none | F86: red | G86: line | I86: 0.7 | J86: red
A87: =Circ!AY71 ->  | B87: =Circ!AZ71 ->  | D87: Circle pt 68 | E87: none | F87: red | G87: line | I87: 0.7 | J87: red
A88: =Circ!AY72 ->  | B88: =Circ!AZ72 ->  | D88: Circle pt 69 | E88: none | F88: red | G88: line | I88: 0.7 | J88: red
A89: =Circ!AY73 ->  | B89: =Circ!AZ73 ->  | D89: Circle pt 70 | E89: none | F89: red | G89: line | I89: 0.7 | J89: red
A90: =Circ!AY74 ->  | B90: =Circ!AZ74 ->  | D90: Circle pt 71 | E90: none | F90: red | G90: line | I90: 0.7 | J90: red
A91: =Circ!AY75 ->  | B91: =Circ!AZ75 ->  | D91: Circle pt 72 | E91: none | F91: red | G91: line | I91: 0.7 | J91: red
A92: =Circ!AY76 ->  | B92: =Circ!AZ76 ->  | D92: Circle pt 73 | E92: none | F92: red | G92: line | I92: 0.7 | J92: red

Sheet Circ (hidden)
E1: Plot circles if the source shapes are circles. Numbers appear in the N and E columns if the source shape is a circle. They are blank if they are not a circle. SWx is checked first and there has to be a number there, but why not the radius?
AR2: Standard Circle | AT2: From Weighted Center | AV2: Label | AY2: GE Points
A3: DEG | C3: SOURCE | D3: SWx? | E3: N | F3: E | H3: SOURCE | I3: SWx? | J3: N | K3: E | L3: SOURCE | M3: SWx? | N3: N | O3: E | P3: SOURCE | Q3: SWx? | R3: N | S3: E | T3: SOURCE | U3: SWx? | V3: N | W3: E | X3: SOURCE | Y3: SWx? | Z3: N | AA3: E | AB3: SOURCE | AC3: SWx? | AD3: N | AE3: E | AF3: SOURCE | AG3: SWx? | AH3: N | AI3: E | AJ3: SOURCE | AK3: SWx? | AL3: N | AM3: E | AN3: SOURCE | AO3: SWx? | AP3: N | AQ3: E | AR3: SOURCE | AS3: SWx? | AT3: N | AU3: E | AV3: N | AW3: E | AX3: Label | AY3: Latitude | AZ3: Longitude
A4: 0 | C4: 1 | D4: =ISNUMBER(s1SWy) -> FALSE | E4: =IF(AND($D$4=TRUE,$C$8=ListsFlags!$A$13),$D$5+(s1rad*(SIN(PI()*Circ!A4/180))),NA()) ->  | F4: =IF(AND($D$4=TRUE,$C$8=ListsFlags!$A$13),$D$6+(s1rad*(COS(PI()*Circ!A4/180))),NA()) ->  | G4: E | H4: 2 | I4: =ISNUMBER(s2SWy) -> FALSE | J4: =IF(AND($I$4=TRUE,$H$8=ListsFlags!$A$13),$I$5+(s2rad*(SIN(PI()*A4/180))),NA()) ->  | K4: =IF(AND($I$4=TRUE,$H$8=ListsFlags!$A$13),$I$6+(s2rad*(COS(PI()*A4/180))),NA()) ->  | L4: 3 | M4: =ISNUMBER(s3SWy) -> FALSE | N4: =IF(AND($M$4=TRUE,$L$8=ListsFlags!$A$13),$M$5+(s3rad*(SIN(PI()*A4/180))),NA()) ->  | O4: =IF(AND($M$4=TRUE,$L$8=ListsFlags!$A$13),$M$6+(s3rad*(COS(PI()*A4/180))),NA()) ->  | P4: 4 | Q4: =ISNUMBER(s4SWy) -> FALSE | R4: =IF(AND($Q$4=TRUE,$P$8=ListsFlags!$A$13),$Q$5+(s4rad*(SIN(PI()*A4/180))),NA()) ->  | S4: =IF(AND($Q$4=TRUE,$P$8=ListsFlags!$A$13),$Q$6+(s4rad*(COS(PI()*A4/180))),NA()) ->  | T4: 5 | U4: =ISNUMBER(s5SWy) -> FALSE | V4: =IF(AND($U$4=TRUE,$T$8=ListsFlags!$A$13),$U$5+(s5rad*(SIN(PI()*A4/180))),NA()) ->  | W4: =IF(AND($U$4=TRUE,$T$8=ListsFlags!$A$13),$U$6+(s5rad*(COS(PI()*A4/180))),NA()) ->  | X4: 6 | Y4: =ISNUMBER(s6SWy) -> FALSE | Z4: =IF(AND($Y$4=TRUE,$X$8=ListsFlags!$A$13),$Y$5+(s6rad*(SIN(PI()*A4/180))),NA()) ->  | AA4: =IF(AND($Y$4=TRUE,$X$8=ListsFlags!$A$13),$Y$6+(s6rad*(COS(PI()*A4/180))),NA()) ->  | AB4: 7 | AC4: =ISNUMBER(s7SWy) -> FALSE | AD4: =IF(AND($AC$4=TRUE,$AB$8=ListsFlags!$A$13),$AC$5+(s7rad*(SIN(PI()*A4/180))),NA()) ->  | AE4: =IF(AND($AC$4=TRUE,$AB$8=ListsFlags!$A$13),$AC$6+(s7rad*(COS(PI()*A4/180))),NA()) ->  | AF4: 8 | AG4: =ISNUMBER(s8SWy) -> FALSE | AH4: =IF(AND($AG$4=TRUE,$AF$8=ListsFlags!$A$13),$AG$5+(s8rad*(SIN(PI()*A4/180))),NA()) ->  | AI4: =IF(AND($AG$4=TRUE,$AF$8=ListsFlags!$A$13),$AG$6+(s8rad*(COS(PI()*A4/180))),NA()) ->  | AJ4: 9 | AK4: =ISNUMBER(s9SWy) -> FALSE | AL4: =IF(AND($AK$4=TRUE,$AJ$8=ListsFlags!$A$13),$AK$5+(s9rad*(SIN(PI()*A4/180))),NA()) ->  | AM4: =IF(AND($AK$4=TRUE,$AJ$8=ListsFlags!$A$13),$AK$6+(s9rad*(COS(PI()*A4/180))),NA()) ->  | AN4: 10 | AO4: =ISNUMBER(s10SWy) -> FALSE | AP4: =IF(AND($AO$4=TRUE,$AN$8=ListsFlags!$A$13),$AO$5+(s10rad*(SIN(PI()*A4/180))),NA()) ->  | AQ4: =IF(AND($AO$4=TRUE,$AN$8=ListsFlags!$A$13),$AO$6+(s10rad*(COS(PI()*A4/180))),NA()) ->  | AR4: Std Circle | AS4: =ISNUMBER(circleradius) -> TRUE | AT4: =IF($AS$4=TRUE,$AS$5+(circleradius*(SIN(PI()*A4/180))),"") ->  | AU4: =IF($AS$4=TRUE,$AS$6+(circleradius*(COS(PI()*A4/180))),"") ->  | AV4: =AU22 ->  | AW4: =AT22 ->  | AX4: =IF(circleplot="yes"," "&circleradius&"'","") -> 2640' | AY4: =IF(AND(AT4=0,AU4=0),sitelatitude,(DEGREES(ASIN(SIN(RADIANS(sitelatitude))*COS((SQRT(AT4^2+AU4^2)/3.28)/RadiusEarth)+COS(RADIANS(sitelatitude))*SIN((SQRT(AT4^2+AU4^2)/3.28)/RadiusEarth)*COS(RADIANS((IF(AU4>=0,DEGREES(ATAN2(AT4,AU4)),360+DEGREES(ATAN2(AT4,AU4)))))))))) ->  | AZ4: =sitelongitude+IF(AND(AT4=0,AU4=0),0,DEGREES(ATAN2(COS((SQRT(AT4^2+AU4^2)/3.28)/RadiusEarth)-SIN(RADIANS(sitelatitude))*SIN(RADIANS(AY4)),SIN(RADIANS((IF(AU4>=0,DEGREES(ATAN2(AT4,AU4)),360+DEGREES(ATAN2(AT4,AU4))))))*SIN((SQRT(AT4^2+AU4^2)/3.28)/RadiusEarth)*COS(RADIANS(sitelatitude))))) -> 
A5: 5 | C5: N Cgeo | D5: =IF(C8="circle",Model!$C15,"") ->  | E5: =IF(AND($D$4=TRUE,$C$8=ListsFlags!$A$13),$D$5+(s1rad*(SIN(PI()*Circ!A5/180))),NA()) ->  | F5: =IF(AND($D$4=TRUE,$C$8=ListsFlags!$A$13),$D$6+(s1rad*(COS(PI()*Circ!A5/180))),NA()) ->  | H5: N Cgeo | I5: =IF(H8="circle",Model!$C16,"") ->  | J5: =IF(AND($I$4=TRUE,$H$8=ListsFlags!$A$13),$I$5+(s2rad*(SIN(PI()*A5/180))),NA()) ->  | K5: =IF(AND($I$4=TRUE,$H$8=ListsFlags!$A$13),$I$6+(s2rad*(COS(PI()*A5/180))),NA()) ->  | L5: N Cgeo | M5: =IF(L8="circle",Model!$C17,"") ->  | N5: =IF(AND($M$4=TRUE,$L$8=ListsFlags!$A$13),$M$5+(s3rad*(SIN(PI()*A5/180))),NA()) ->  | O5: =IF(AND($M$4=TRUE,$L$8=ListsFlags!$A$13),$M$6+(s3rad*(COS(PI()*A5/180))),NA()) ->  | P5: N Cgeo | Q5: =IF(P8="circle",Model!$C18,"") ->  | R5: =IF(AND($Q$4=TRUE,$P$8=ListsFlags!$A$13),$Q$5+(s4rad*(SIN(PI()*A5/180))),NA()) ->  | S5: =IF(AND($Q$4=TRUE,$P$8=ListsFlags!$A$13),$Q$6+(s4rad*(COS(PI()*A5/180))),NA()) ->  | T5: N Cgeo | U5: =IF(T8="circle",Model!$C19,"") ->  | V5: =IF(AND($U$4=TRUE,$T$8=ListsFlags!$A$13),$U$5+(s5rad*(SIN(PI()*A5/180))),NA()) ->  | W5: =IF(AND($U$4=TRUE,$T$8=ListsFlags!$A$13),$U$6+(s5rad*(COS(PI()*A5/180))),NA()) ->  | X5: N Cgeo | Y5: =IF(X8="circle",Model!$C20,"") ->  | Z5: =IF(AND($Y$4=TRUE,$X$8=ListsFlags!$A$13),$Y$5+(s6rad*(SIN(PI()*A5/180))),NA()) ->  | AA5: =IF(AND($Y$4=TRUE,$X$8=ListsFlags!$A$13),$Y$6+(s6rad*(COS(PI()*A5/180))),NA()) ->  | AB5: N Cgeo | AC5: =IF(AB8="circle",Model!$C21,"") ->  | AD5: =IF(AND($AC$4=TRUE,$AB$8=ListsFlags!$A$13),$AC$5+(s7rad*(SIN(PI()*A5/180))),NA()) ->  | AE5: =IF(AND($AC$4=TRUE,$AB$8=ListsFlags!$A$13),$AC$6+(s7rad*(COS(PI()*A5/180))),NA()) ->  | AF5: N Cgeo | AG5: =IF(AF8="circle",Model!$C22,"") ->  | AH5: =IF(AND($AG$4=TRUE,$AF$8=ListsFlags!$A$13),$AG$5+(s8rad*(SIN(PI()*A5/180))),NA()) ->  | AI5: =IF(AND($AG$4=TRUE,$AF$8=ListsFlags!$A$13),$AG$6+(s8rad*(COS(PI()*A5/180))),NA()) ->  | AJ5: N Cgeo | AK5: =IF(AJ8="circle",Model!$C23,"") ->  | AL5: =IF(AND($AK$4=TRUE,$AJ$8=ListsFlags!$A$13),$AK$5+(s9rad*(SIN(PI()*A5/180))),NA()) ->  | AM5: =IF(AND($AK$4=TRUE,$AJ$8=ListsFlags!$A$13),$AK$6+(s9rad*(COS(PI()*A5/180))),NA()) ->  | AN5: N Cgeo | AO5: =IF(AN8="circle",Model!$C24,"") ->  | AP5: =IF(AND($AO$4=TRUE,$AN$8=ListsFlags!$A$13),$AO$5+(s10rad*(SIN(PI()*A5/180))),NA()) ->  | AQ5: =IF(AND($AO$4=TRUE,$AN$8=ListsFlags!$A$13),$AO$6+(s10rad*(COS(PI()*A5/180))),NA()) ->  | AR5: N Cgeo | AS5: =IF(AR8="yes",Center_Site_Geo_N-com_diff_N,"") -> 
A6: 10 | C6: E Cgeo | D6: =IF(C8="circle",Model!$D15,"") ->  | E6: =IF(AND($D$4=TRUE,$C$8=ListsFlags!$A$13),$D$5+(s1rad*(SIN(PI()*Circ!A6/180))),NA()) ->  | F6: =IF(AND($D$4=TRUE,$C$8=ListsFlags!$A$13),$D$6+(s1rad*(COS(PI()*Circ!A6/180))),NA()) ->  | H6: E Cgeo | I6: =IF(H8="circle",Model!$D16,"") ->  | J6: =IF(AND($I$4=TRUE,$H$8=ListsFlags!$A$13),$I$5+(s2rad*(SIN(PI()*A6/180))),NA()) ->  | K6: =IF(AND($I$4=TRUE,$H$8=ListsFlags!$A$13),$I$6+(s2rad*(COS(PI()*A6/180))),NA()) ->  | L6: E Cgeo | M6: =IF(L8="circle",Model!$D17,"") ->  | N6: =IF(AND($M$4=TRUE,$L$8=ListsFlags!$A$13),$M$5+(s3rad*(SIN(PI()*A6/180))),NA()) ->  | O6: =IF(AND($M$4=TRUE,$L$8=ListsFlags!$A$13),$M$6+(s3rad*(COS(PI()*A6/180))),NA()) ->  | P6: E Cgeo | Q6: =IF(P8="circle",Model!$D18,"") ->  | R6: =IF(AND($Q$4=TRUE,$P$8=ListsFlags!$A$13),$Q$5+(s4rad*(SIN(PI()*A6/180))),NA()) ->  | S6: =IF(AND($Q$4=TRUE,$P$8=ListsFlags!$A$13),$Q$6+(s4rad*(COS(PI()*A6/180))),NA()) ->  | T6: E Cgeo | U6: =IF(T8="circle",Model!$D19,"") ->  | V6: =IF(AND($U$4=TRUE,$T$8=ListsFlags!$A$13),$U$5+(s5rad*(SIN(PI()*A6/180))),NA()) ->  | W6: =IF(AND($U$4=TRUE,$T$8=ListsFlags!$A$13),$U$6+(s5rad*(COS(PI()*A6/180))),NA()) ->  | X6: E Cgeo | Y6: =IF(X8="circle",Model!$D20,"") ->  | Z6: =IF(AND($Y$4=TRUE,$X$8=ListsFlags!$A$13),$Y$5+(s6rad*(SIN(PI()*A6/180))),NA()) ->  | AA6: =IF(AND($Y$4=TRUE,$X$8=ListsFlags!$A$13),$Y$6+(s6rad*(COS(PI()*A6/180))),NA()) ->  | AB6: E Cgeo | AC6: =IF(AB8="circle",Model!$D21,"") ->  | AD6: =IF(AND($AC$4=TRUE,$AB$8=ListsFlags!$A$13),$AC$5+(s7rad*(SIN(PI()*A6/180))),NA()) ->  | AE6: =IF(AND($AC$4=TRUE,$AB$8=ListsFlags!$A$13),$AC$6+(s7rad*(COS(PI()*A6/180))),NA()) ->  | AF6: E Cgeo | AG6: =IF(AF8="circle",Model!$D22,"") ->  | AH6: =IF(AND($AG$4=TRUE,$AF$8=ListsFlags!$A$13),$AG$5+(s8rad*(SIN(PI()*A6/180))),NA()) ->  | AI6: =IF(AND($AG$4=TRUE,$AF$8=ListsFlags!$A$13),$AG$6+(s8rad*(COS(PI()*A6/180))),NA()) ->  | AJ6: E Cgeo | AK6: =IF(AJ8="circle",Model!$D23,"") ->  | AL6: =IF(AND($AK$4=TRUE,$AJ$8=ListsFlags!$A$13),$AK$5+(s9rad*(SIN(PI()*A6/180))),NA()) ->  | AM6: =IF(AND($AK$4=TRUE,$AJ$8=ListsFlags!$A$13),$AK$6+(s9rad*(COS(PI()*A6/180))),NA()) ->  | AN6: E Cgeo | AO6: =IF(AN8="circle",Model!$D24,"") ->  | AP6: =IF(AND($AO$4=TRUE,$AN$8=ListsFlags!$A$13),$AO$5+(s10rad*(SIN(PI()*A6/180))),NA()) ->  | AQ6: =IF(AND($AO$4=TRUE,$AN$8=ListsFlags!$A$13),$AO$6+(s10rad*(COS(PI()*A6/180))),NA()) ->  | AR6: E Cgeo | AS6: =IF(AR8="yes",Center_Site_Geo_E-com_diff_E,"") -> 
A7: 15 | E7: =IF(AND($D$4=TRUE,$C$8=ListsFlags!$A$13),$D$5+(s1rad*(SIN(PI()*Circ!A7/180))),NA()) ->  | F7: =IF(AND($D$4=TRUE,$C$8=ListsFlags!$A$13),$D$6+(s1rad*(COS(PI()*Circ!A7/180))),NA()) ->  | J7: =IF(AND($I$4=TRUE,$H$8=ListsFlags!$A$13),$I$5+(s2rad*(SIN(PI()*A7/180))),NA()) ->  | K7: =IF(AND($I$4=TRUE,$H$8=ListsFlags!$A$13),$I$6+(s2rad*(COS(PI()*A7/180))),NA()) ->  | N7: =IF(AND($M$4=TRUE,$L$8=ListsFlags!$A$13),$M$5+(s3rad*(SIN(PI()*A7/180))),NA()) ->  | O7: =IF(AND($M$4=TRUE,$L$8=ListsFlags!$A$13),$M$6+(s3rad*(COS(PI()*A7/180))),NA()) ->  | R7: =IF(AND($Q$4=TRUE,$P$8=ListsFlags!$A$13),$Q$5+(s4rad*(SIN(PI()*A7/180))),NA()) ->  | S7: =IF(AND($Q$4=TRUE,$P$8=ListsFlags!$A$13),$Q$6+(s4rad*(COS(PI()*A7/180))),NA()) ->  | V7: =IF(AND($U$4=TRUE,$T$8=ListsFlags!$A$13),$U$5+(s5rad*(SIN(PI()*A7/180))),NA()) ->  | W7: =IF(AND($U$4=TRUE,$T$8=ListsFlags!$A$13),$U$6+(s5rad*(COS(PI()*A7/180))),NA()) ->  | Z7: =IF(AND($Y$4=TRUE,$X$8=ListsFlags!$A$13),$Y$5+(s6rad*(SIN(PI()*A7/180))),NA()) ->  | AA7: =IF(AND($Y$4=TRUE,$X$8=ListsFlags!$A$13),$Y$6+(s6rad*(COS(PI()*A7/180))),NA()) ->  | AD7: =IF(AND($AC$4=TRUE,$AB$8=ListsFlags!$A$13),$AC$5+(s7rad*(SIN(PI()*A7/180))),NA()) ->  | AE7: =IF(AND($AC$4=TRUE,$AB$8=ListsFlags!$A$13),$AC$6+(s7rad*(COS(PI()*A7/180))),NA()) ->  | AH7: =IF(AND($AG$4=TRUE,$AF$8=ListsFlags!$A$13),$AG$5+(s8rad*(SIN(PI()*A7/180))),NA()) ->  | AI7: =IF(AND($AG$4=TRUE,$AF$8=ListsFlags!$A$13),$AG$6+(s8rad*(COS(PI()*A7/180))),NA()) ->  | AL7: =IF(AND($AK$4=TRUE,$AJ$8=ListsFlags!$A$13),$AK$5+(s9rad*(SIN(PI()*A7/180))),NA()) ->  | AM7: =IF(AND($AK$4=TRUE,$AJ$8=ListsFlags!$A$13),$AK$6+(s9rad*(COS(PI()*A7/180))),NA()) ->  | AP7: =IF(AND($AO$4=TRUE,$AN$8=ListsFlags!$A$13),$AO$5+(s10rad*(SIN(PI()*A7/180))),NA()) ->  | AQ7: =IF(AND($AO$4=TRUE,$AN$8=ListsFlags!$A$13),$AO$6+(s10rad*(COS(PI()*A7/180))),NA()) -> 
A8: 20 | C8: =IF(s1shape="","",s1shape) ->  | E8: =IF(AND($D$4=TRUE,$C$8=ListsFlags!$A$13),$D$5+(s1rad*(SIN(PI()*Circ!A8/180))),NA()) ->  | F8: =IF(AND($D$4=TRUE,$C$8=ListsFlags!$A$13),$D$6+(s1rad*(COS(PI()*Circ!A8/180))),NA()) ->  | H8: =IF(s2shape="","",s2shape) ->  | J8: =IF(AND($I$4=TRUE,$H$8=ListsFlags!$A$13),$I$5+(s2rad*(SIN(PI()*A8/180))),NA()) ->  | K8: =IF(AND($I$4=TRUE,$H$8=ListsFlags!$A$13),$I$6+(s2rad*(COS(PI()*A8/180))),NA()) ->  | L8: =IF(s3shape="","",s3shape) ->  | N8: =IF(AND($M$4=TRUE,$L$8=ListsFlags!$A$13),$M$5+(s3rad*(SIN(PI()*A8/180))),NA()) ->  | O8: =IF(AND($M$4=TRUE,$L$8=ListsFlags!$A$13),$M$6+(s3rad*(COS(PI()*A8/180))),NA()) ->  | P8: =IF(s4shape="","",s4shape) ->  | R8: =IF(AND($Q$4=TRUE,$P$8=ListsFlags!$A$13),$Q$5+(s4rad*(SIN(PI()*A8/180))),NA()) ->  | S8: =IF(AND($Q$4=TRUE,$P$8=ListsFlags!$A$13),$Q$6+(s4rad*(COS(PI()*A8/180))),NA()) ->  | T8: =IF(s5shape="","",s5shape) ->  | V8: =IF(AND($U$4=TRUE,$T$8=ListsFlags!$A$13),$U$5+(s5rad*(SIN(PI()*A8/180))),NA()) ->  | W8: =IF(AND($U$4=TRUE,$T$8=ListsFlags!$A$13),$U$6+(s5rad*(COS(PI()*A8/180))),NA()) ->  | X8: =IF(s6shape="","",s6shape) ->  | Z8: =IF(AND($Y$4=TRUE,$X$8=ListsFlags!$A$13),$Y$5+(s6rad*(SIN(PI()*A8/180))),NA()) ->  | AA8: =IF(AND($Y$4=TRUE,$X$8=ListsFlags!$A$13),$Y$6+(s6rad*(COS(PI()*A8/180))),NA()) ->  | AB8: =IF(s7shape="","",s7shape) ->  | AD8: =IF(AND($AC$4=TRUE,$AB$8=ListsFlags!$A$13),$AC$5+(s7rad*(SIN(PI()*A8/180))),NA()) ->  | AE8: =IF(AND($AC$4=TRUE,$AB$8=ListsFlags!$A$13),$AC$6+(s7rad*(COS(PI()*A8/180))),NA()) ->  | AF8: =IF(s8shape="","",s8shape) ->  | AH8: =IF(AND($AG$4=TRUE,$AF$8=ListsFlags!$A$13),$AG$5+(s8rad*(SIN(PI()*A8/180))),NA()) ->  | AI8: =IF(AND($AG$4=TRUE,$AF$8=ListsFlags!$A$13),$AG$6+(s8rad*(COS(PI()*A8/180))),NA()) ->  | AJ8: =IF(s9shape="","",s9shape) ->  | AL8: =IF(AND($AK$4=TRUE,$AJ$8=ListsFlags!$A$13),$AK$5+(s9rad*(SIN(PI()*A8/180))),NA()) ->  | AM8: =IF(AND($AK$4=TRUE,$AJ$8=ListsFlags!$A$13),$AK$6+(s9rad*(COS(PI()*A8/180))),NA()) ->  | AN8: =IF(s10shape="","",s10shape) ->  | AP8: =IF(AND($AO$4=TRUE,$AN$8=ListsFlags!$A$13),$AO$5+(s10rad*(SIN(PI()*A8/180))),NA()) ->  | AQ8: =IF(AND($AO$4=TRUE,$AN$8=ListsFlags!$A$13),$AO$6+(s10rad*(COS(PI()*A8/180))),NA()) ->  | AR8: =circleplot -> Yes
A9: 25 | E9: =IF(AND($D$4=TRUE,$C$8=ListsFlags!$A$13),$D$5+(s1rad*(SIN(PI()*Circ!A9/180))),NA()) ->  | F9: =IF(AND($D$4=TRUE,$C$8=ListsFlags!$A$13),$D$6+(s1rad*(COS(PI()*Circ!A9/180))),NA()) ->  | J9: =IF(AND($I$4=TRUE,$H$8=ListsFlags!$A$13),$I$5+(s2rad*(SIN(PI()*A9/180))),NA()) ->  | K9: =IF(AND($I$4=TRUE,$H$8=ListsFlags!$A$13),$I$6+(s2rad*(COS(PI()*A9/180))),NA()) ->  | N9: =IF(AND($M$4=TRUE,$L$8=ListsFlags!$A$13),$M$5+(s3rad*(SIN(PI()*A9/180))),NA()) ->  | O9: =IF(AND($M$4=TRUE,$L$8=ListsFlags!$A$13),$M$6+(s3rad*(COS(PI()*A9/180))),NA()) ->  | R9: =IF(AND($Q$4=TRUE,$P$8=ListsFlags!$A$13),$Q$5+(s4rad*(SIN(PI()*A9/180))),NA()) ->  | S9: =IF(AND($Q$4=TRUE,$P$8=ListsFlags!$A$13),$Q$6+(s4rad*(COS(PI()*A9/180))),NA()) ->  | V9: =IF(AND($U$4=TRUE,$T$8=ListsFlags!$A$13),$U$5+(s5rad*(SIN(PI()*A9/180))),NA()) ->  | W9: =IF(AND($U$4=TRUE,$T$8=ListsFlags!$A$13),$U$6+(s5rad*(COS(PI()*A9/180))),NA()) ->  | Z9: =IF(AND($Y$4=TRUE,$X$8=ListsFlags!$A$13),$Y$5+(s6rad*(SIN(PI()*A9/180))),NA()) ->  | AA9: =IF(AND($Y$4=TRUE,$X$8=ListsFlags!$A$13),$Y$6+(s6rad*(COS(PI()*A9/180))),NA()) ->  | AD9: =IF(AND($AC$4=TRUE,$AB$8=ListsFlags!$A$13),$AC$5+(s7rad*(SIN(PI()*A9/180))),NA()) ->  | AE9: =IF(AND($AC$4=TRUE,$AB$8=ListsFlags!$A$13),$AC$6+(s7rad*(COS(PI()*A9/180))),NA()) ->  | AH9: =IF(AND($AG$4=TRUE,$AF$8=ListsFlags!$A$13),$AG$5+(s8rad*(SIN(PI()*A9/180))),NA()) ->  | AI9: =IF(AND($AG$4=TRUE,$AF$8=ListsFlags!$A$13),$AG$6+(s8rad*(COS(PI()*A9/180))),NA()) ->  | AL9: =IF(AND($AK$4=TRUE,$AJ$8=ListsFlags!$A$13),$AK$5+(s9rad*(SIN(PI()*A9/180))),NA()) ->  | AM9: =IF(AND($AK$4=TRUE,$AJ$8=ListsFlags!$A$13),$AK$6+(s9rad*(COS(PI()*A9/180))),NA()) ->  | AP9: =IF(AND($AO$4=TRUE,$AN$8=ListsFlags!$A$13),$AO$5+(s10rad*(SIN(PI()*A9/180))),NA()) ->  | AQ9: =IF(AND($AO$4=TRUE,$AN$8=ListsFlags!$A$13),$AO$6+(s10rad*(COS(PI()*A9/180))),NA()) -> 
A10: 30 | B10: W | C10: =E40 ->  | D10: =F40 ->  | E10: =IF(AND($D$4=TRUE,$C$8=ListsFlags!$A$13),$D$5+(s1rad*(SIN(PI()*Circ!A10/180))),NA()) ->  | F10: =IF(AND($D$4=TRUE,$C$8=ListsFlags!$A$13),$D$6+(s1rad*(COS(PI()*Circ!A10/180))),NA()) ->  | H10: =J40 ->  | I10: =K40 ->  | J10: =IF(AND($I$4=TRUE,$H$8=ListsFlags!$A$13),$I$5+(s2rad*(SIN(PI()*A10/180))),NA()) ->  | K10: =IF(AND($I$4=TRUE,$H$8=ListsFlags!$A$13),$I$6+(s2rad*(COS(PI()*A10/180))),NA()) ->  | L10: =N40 ->  | M10: =O40 ->  | N10: =IF(AND($M$4=TRUE,$L$8=ListsFlags!$A$13),$M$5+(s3rad*(SIN(PI()*A10/180))),NA()) ->  | O10: =IF(AND($M$4=TRUE,$L$8=ListsFlags!$A$13),$M$6+(s3rad*(COS(PI()*A10/180))),NA()) ->  | P10: =R40 ->  | Q10: =S40 ->  | R10: =IF(AND($Q$4=TRUE,$P$8=ListsFlags!$A$13),$Q$5+(s4rad*(SIN(PI()*A10/180))),NA()) ->  | S10: =IF(AND($Q$4=TRUE,$P$8=ListsFlags!$A$13),$Q$6+(s4rad*(COS(PI()*A10/180))),NA()) ->  | T10: =V40 ->  | U10: =W40 ->  | V10: =IF(AND($U$4=TRUE,$T$8=ListsFlags!$A$13),$U$5+(s5rad*(SIN(PI()*A10/180))),NA()) ->  | W10: =IF(AND($U$4=TRUE,$T$8=ListsFlags!$A$13),$U$6+(s5rad*(COS(PI()*A10/180))),NA()) ->  | X10: =Z40 ->  | Y10: =AA40 ->  | Z10: =IF(AND($Y$4=TRUE,$X$8=ListsFlags!$A$13),$Y$5+(s6rad*(SIN(PI()*A10/180))),NA()) ->  | AA10: =IF(AND($Y$4=TRUE,$X$8=ListsFlags!$A$13),$Y$6+(s6rad*(COS(PI()*A10/180))),NA()) ->  | AB10: =AD40 ->  | AC10: =AE40 ->  | AD10: =IF(AND($AC$4=TRUE,$AB$8=ListsFlags!$A$13),$AC$5+(s7rad*(SIN(PI()*A10/180))),NA()) ->  | AE10: =IF(AND($AC$4=TRUE,$AB$8=ListsFlags!$A$13),$AC$6+(s7rad*(COS(PI()*A10/180))),NA()) ->  | AF10: =AH40 ->  | AG10: =AI40 ->  | AH10: =IF(AND($AG$4=TRUE,$AF$8=ListsFlags!$A$13),$AG$5+(s8rad*(SIN(PI()*A10/180))),NA()) ->  | AI10: =IF(AND($AG$4=TRUE,$AF$8=ListsFlags!$A$13),$AG$6+(s8rad*(COS(PI()*A10/180))),NA()) ->  | AJ10: =AL40 ->  | AK10: =AM40 ->  | AL10: =IF(AND($AK$4=TRUE,$AJ$8=ListsFlags!$A$13),$AK$5+(s9rad*(SIN(PI()*A10/180))),NA()) ->  | AM10: =IF(AND($AK$4=TRUE,$AJ$8=ListsFlags!$A$13),$AK$6+(s9rad*(COS(PI()*A10/180))),NA()) ->  | AN10: =AP40 ->  | AO10: =AQ40 ->  | AP10: =IF(AND($AO$4=TRUE,$AN$8=ListsFlags!$A$13),$AO$5+(s10rad*(SIN(PI()*A10/180))),NA()) ->  | AQ10: =IF(AND($AO$4=TRUE,$AN$8=ListsFlags!$A$13),$AO$6+(s10rad*(COS(PI()*A10/180))),NA()) ->  | AR10: =AT40 ->  | AS10: =AU40 -> 
A11: 35 | B11: NW | C11: =E31 ->  | D11: =F31 ->  | E11: =IF(AND($D$4=TRUE,$C$8=ListsFlags!$A$13),$D$5+(s1rad*(SIN(PI()*Circ!A11/180))),NA()) ->  | F11: =IF(AND($D$4=TRUE,$C$8=ListsFlags!$A$13),$D$6+(s1rad*(COS(PI()*Circ!A11/180))),NA()) ->  | H11: =J31 ->  | I11: =K31 ->  | J11: =IF(AND($I$4=TRUE,$H$8=ListsFlags!$A$13),$I$5+(s2rad*(SIN(PI()*A11/180))),NA()) ->  | K11: =IF(AND($I$4=TRUE,$H$8=ListsFlags!$A$13),$I$6+(s2rad*(COS(PI()*A11/180))),NA()) ->  | L11: =N31 ->  | M11: =O31 ->  | N11: =IF(AND($M$4=TRUE,$L$8=ListsFlags!$A$13),$M$5+(s3rad*(SIN(PI()*A11/180))),NA()) ->  | O11: =IF(AND($M$4=TRUE,$L$8=ListsFlags!$A$13),$M$6+(s3rad*(COS(PI()*A11/180))),NA()) ->  | P11: =R31 ->  | Q11: =S31 ->  | R11: =IF(AND($Q$4=TRUE,$P$8=ListsFlags!$A$13),$Q$5+(s4rad*(SIN(PI()*A11/180))),NA()) ->  | S11: =IF(AND($Q$4=TRUE,$P$8=ListsFlags!$A$13),$Q$6+(s4rad*(COS(PI()*A11/180))),NA()) ->  | T11: =V31 ->  | U11: =W31 ->  | V11: =IF(AND($U$4=TRUE,$T$8=ListsFlags!$A$13),$U$5+(s5rad*(SIN(PI()*A11/180))),NA()) ->  | W11: =IF(AND($U$4=TRUE,$T$8=ListsFlags!$A$13),$U$6+(s5rad*(COS(PI()*A11/180))),NA()) ->  | X11: =Z31 ->  | Y11: =AA31 ->  | Z11: =IF(AND($Y$4=TRUE,$X$8=ListsFlags!$A$13),$Y$5+(s6rad*(SIN(PI()*A11/180))),NA()) ->  | AA11: =IF(AND($Y$4=TRUE,$X$8=ListsFlags!$A$13),$Y$6+(s6rad*(COS(PI()*A11/180))),NA()) ->  | AB11: =AD31 ->  | AC11: =AE31 ->  | AD11: =IF(AND($AC$4=TRUE,$AB$8=ListsFlags!$A$13),$AC$5+(s7rad*(SIN(PI()*A11/180))),NA()) ->  | AE11: =IF(AND($AC$4=TRUE,$AB$8=ListsFlags!$A$13),$AC$6+(s7rad*(COS(PI()*A11/180))),NA()) ->  | AF11: =AH31 ->  | AG11: =AI31 ->  | AH11: =IF(AND($AG$4=TRUE,$AF$8=ListsFlags!$A$13),$AG$5+(s8rad*(SIN(PI()*A11/180))),NA()) ->  | AI11: =IF(AND($AG$4=TRUE,$AF$8=ListsFlags!$A$13),$AG$6+(s8rad*(COS(PI()*A11/180))),NA()) ->  | AJ11: =AL31 ->  | AK11: =AM31 ->  | AL11: =IF(AND($AK$4=TRUE,$AJ$8=ListsFlags!$A$13),$AK$5+(s9rad*(SIN(PI()*A11/180))),NA()) ->  | AM11: =IF(AND($AK$4=TRUE,$AJ$8=ListsFlags!$A$13),$AK$6+(s9rad*(COS(PI()*A11/180))),NA()) ->  | AN11: =AP31 ->  | AO11: =AQ31 ->  | AP11: =IF(AND($AO$4=TRUE,$AN$8=ListsFlags!$A$13),$AO$5+(s10rad*(SIN(PI()*A11/180))),NA()) ->  | AQ11: =IF(AND($AO$4=TRUE,$AN$8=ListsFlags!$A$13),$AO$6+(s10rad*(COS(PI()*A11/180))),NA()) ->  | AR11: =AT31 ->  | AS11: =AU31 -> 
A12: 40 | B12: N | C12: =E22 ->  | D12: =F22 ->  | E12: =IF(AND($D$4=TRUE,$C$8=ListsFlags!$A$13),$D$5+(s1rad*(SIN(PI()*Circ!A12/180))),NA()) ->  | F12: =IF(AND($D$4=TRUE,$C$8=ListsFlags!$A$13),$D$6+(s1rad*(COS(PI()*Circ!A12/180))),NA()) ->  | H12: =J22 ->  | I12: =K22 ->  | J12: =IF(AND($I$4=TRUE,$H$8=ListsFlags!$A$13),$I$5+(s2rad*(SIN(PI()*A12/180))),NA()) ->  | K12: =IF(AND($I$4=TRUE,$H$8=ListsFlags!$A$13),$I$6+(s2rad*(COS(PI()*A12/180))),NA()) ->  | L12: =N22 ->  | M12: =O22 ->  | N12: =IF(AND($M$4=TRUE,$L$8=ListsFlags!$A$13),$M$5+(s3rad*(SIN(PI()*A12/180))),NA()) ->  | O12: =IF(AND($M$4=TRUE,$L$8=ListsFlags!$A$13),$M$6+(s3rad*(COS(PI()*A12/180))),NA()) ->  | P12: =R22 ->  | Q12: =S22 ->  | R12: =IF(AND($Q$4=TRUE,$P$8=ListsFlags!$A$13),$Q$5+(s4rad*(SIN(PI()*A12/180))),NA()) ->  | S12: =IF(AND($Q$4=TRUE,$P$8=ListsFlags!$A$13),$Q$6+(s4rad*(COS(PI()*A12/180))),NA()) ->  | T12: =V22 ->  | U12: =W22 ->  | V12: =IF(AND($U$4=TRUE,$T$8=ListsFlags!$A$13),$U$5+(s5rad*(SIN(PI()*A12/180))),NA()) ->  | W12: =IF(AND($U$4=TRUE,$T$8=ListsFlags!$A$13),$U$6+(s5rad*(COS(PI()*A12/180))),NA()) ->  | X12: =Z22 ->  | Y12: =AA22 ->  | Z12: =IF(AND($Y$4=TRUE,$X$8=ListsFlags!$A$13),$Y$5+(s6rad*(SIN(PI()*A12/180))),NA()) ->  | AA12: =IF(AND($Y$4=TRUE,$X$8=ListsFlags!$A$13),$Y$6+(s6rad*(COS(PI()*A12/180))),NA()) ->  | AB12: =AD22 ->  | AC12: =AE22 ->  | AD12: =IF(AND($AC$4=TRUE,$AB$8=ListsFlags!$A$13),$AC$5+(s7rad*(SIN(PI()*A12/180))),NA()) ->  | AE12: =IF(AND($AC$4=TRUE,$AB$8=ListsFlags!$A$13),$AC$6+(s7rad*(COS(PI()*A12/180))),NA()) ->  | AF12: =AH22 ->  | AG12: =AI22 ->  | AH12: =IF(AND($AG$4=TRUE,$AF$8=ListsFlags!$A$13),$AG$5+(s8rad*(SIN(PI()*A12/180))),NA()) ->  | AI12: =IF(AND($AG$4=TRUE,$AF$8=ListsFlags!$A$13),$AG$6+(s8rad*(COS(PI()*A12/180))),NA()) ->  | AJ12: =AL22 ->  | AK12: =AM22 ->  | AL12: =IF(AND($AK$4=TRUE,$AJ$8=ListsFlags!$A$13),$AK$5+(s9rad*(SIN(PI()*A12/180))),NA()) ->  | AM12: =IF(AND($AK$4=TRUE,$AJ$8=ListsFlags!$A$13),$AK$6+(s9rad*(COS(PI()*A12/180))),NA()) ->  | AN12: =AP22 ->  | AO12: =AQ22 ->  | AP12: =IF(AND($AO$4=TRUE,$AN$8=ListsFlags!$A$13),$AO$5+(s10rad*(SIN(PI()*A12/180))),NA()) ->  | AQ12: =IF(AND($AO$4=TRUE,$AN$8=ListsFlags!$A$13),$AO$6+(s10rad*(COS(PI()*A12/180))),NA()) ->  | AR12: =AT22 ->  | AS12: =AU22 -> 
A13: 45 | B13: NE | C13: =E13 ->  | D13: =F13 ->  | E13: =IF(AND($D$4=TRUE,$C$8=ListsFlags!$A$13),$D$5+(s1rad*(SIN(PI()*Circ!A13/180))),NA()) ->  | F13: =IF(AND($D$4=TRUE,$C$8=ListsFlags!$A$13),$D$6+(s1rad*(COS(PI()*Circ!A13/180))),NA()) ->  | G13: NE | H13: =J13 ->  | I13: =K13 ->  | J13: =IF(AND($I$4=TRUE,$H$8=ListsFlags!$A$13),$I$5+(s2rad*(SIN(PI()*A13/180))),NA()) ->  | K13: =IF(AND($I$4=TRUE,$H$8=ListsFlags!$A$13),$I$6+(s2rad*(COS(PI()*A13/180))),NA()) ->  | L13: =N13 ->  | M13: =O13 ->  | N13: =IF(AND($M$4=TRUE,$L$8=ListsFlags!$A$13),$M$5+(s3rad*(SIN(PI()*A13/180))),NA()) ->  | O13: =IF(AND($M$4=TRUE,$L$8=ListsFlags!$A$13),$M$6+(s3rad*(COS(PI()*A13/180))),NA()) ->  | P13: =R13 ->  | Q13: =S13 ->  | R13: =IF(AND($Q$4=TRUE,$P$8=ListsFlags!$A$13),$Q$5+(s4rad*(SIN(PI()*A13/180))),NA()) ->  | S13: =IF(AND($Q$4=TRUE,$P$8=ListsFlags!$A$13),$Q$6+(s4rad*(COS(PI()*A13/180))),NA()) ->  | T13: =V13 ->  | U13: =W13 ->  | V13: =IF(AND($U$4=TRUE,$T$8=ListsFlags!$A$13),$U$5+(s5rad*(SIN(PI()*A13/180))),NA()) ->  | W13: =IF(AND($U$4=TRUE,$T$8=ListsFlags!$A$13),$U$6+(s5rad*(COS(PI()*A13/180))),NA()) ->  | X13: =Z13 ->  | Y13: =AA13 ->  | Z13: =IF(AND($Y$4=TRUE,$X$8=ListsFlags!$A$13),$Y$5+(s6rad*(SIN(PI()*A13/180))),NA()) ->  | AA13: =IF(AND($Y$4=TRUE,$X$8=ListsFlags!$A$13),$Y$6+(s6rad*(COS(PI()*A13/180))),NA()) ->  | AB13: =AD13 ->  | AC13: =AE13 ->  | AD13: =IF(AND($AC$4=TRUE,$AB$8=ListsFlags!$A$13),$AC$5+(s7rad*(SIN(PI()*A13/180))),NA()) ->  | AE13: =IF(AND($AC$4=TRUE,$AB$8=ListsFlags!$A$13),$AC$6+(s7rad*(COS(PI()*A13/180))),NA()) ->  | AF13: =AH13 ->  | AG13: =AI13 ->  | AH13: =IF(AND($AG$4=TRUE,$AF$8=ListsFlags!$A$13),$AG$5+(s8rad*(SIN(PI()*A13/180))),NA()) ->  | AI13: =IF(AND($AG$4=TRUE,$AF$8=ListsFlags!$A$13),$AG$6+(s8rad*(COS(PI()*A13/180))),NA()) ->  | AJ13: =AL13 ->  | AK13: =AM13 ->  | AL13: =IF(AND($AK$4=TRUE,$AJ$8=ListsFlags!$A$13),$AK$5+(s9rad*(SIN(PI()*A13/180))),NA()) ->  | AM13: =IF(AND($AK$4=TRUE,$AJ$8=ListsFlags!$A$13),$AK$6+(s9rad*(COS(PI()*A13/180))),NA()) ->  | AN13: =AP13 ->  | AO13: =AQ13 ->  | AP13: =IF(AND($AO$4=TRUE,$AN$8=ListsFlags!$A$13),$AO$5+(s10rad*(SIN(PI()*A13/180))),NA()) ->  | AQ13: =IF(AND($AO$4=TRUE,$AN$8=ListsFlags!$A$13),$AO$6+(s10rad*(COS(PI()*A13/180))),NA()) ->  | AR13: =AT13 ->  | AS13: =AU13 -> 
A14: 50 | B14: E | C14: =E4 ->  | D14: =F4 ->  | E14: =IF(AND($D$4=TRUE,$C$8=ListsFlags!$A$13),$D$5+(s1rad*(SIN(PI()*Circ!A14/180))),NA()) ->  | F14: =IF(AND($D$4=TRUE,$C$8=ListsFlags!$A$13),$D$6+(s1rad*(COS(PI()*Circ!A14/180))),NA()) ->  | H14: =J4 ->  | I14: =K4 ->  | J14: =IF(AND($I$4=TRUE,$H$8=ListsFlags!$A$13),$I$5+(s2rad*(SIN(PI()*A14/180))),NA()) ->  | K14: =IF(AND($I$4=TRUE,$H$8=ListsFlags!$A$13),$I$6+(s2rad*(COS(PI()*A14/180))),NA()) ->  | L14: =N4 ->  | M14: =O4 ->  | N14: =IF(AND($M$4=TRUE,$L$8=ListsFlags!$A$13),$M$5+(s3rad*(SIN(PI()*A14/180))),NA()) ->  | O14: =IF(AND($M$4=TRUE,$L$8=ListsFlags!$A$13),$M$6+(s3rad*(COS(PI()*A14/180))),NA()) ->  | P14: =R4 ->  | Q14: =S4 ->  | R14: =IF(AND($Q$4=TRUE,$P$8=ListsFlags!$A$13),$Q$5+(s4rad*(SIN(PI()*A14/180))),NA()) ->  | S14: =IF(AND($Q$4=TRUE,$P$8=ListsFlags!$A$13),$Q$6+(s4rad*(COS(PI()*A14/180))),NA()) ->  | T14: =V4 ->  | U14: =W4 ->  | V14: =IF(AND($U$4=TRUE,$T$8=ListsFlags!$A$13),$U$5+(s5rad*(SIN(PI()*A14/180))),NA()) ->  | W14: =IF(AND($U$4=TRUE,$T$8=ListsFlags!$A$13),$U$6+(s5rad*(COS(PI()*A14/180))),NA()) ->  | X14: =Z4 ->  | Y14: =AA4 ->  | Z14: =IF(AND($Y$4=TRUE,$X$8=ListsFlags!$A$13),$Y$5+(s6rad*(SIN(PI()*A14/180))),NA()) ->  | AA14: =IF(AND($Y$4=TRUE,$X$8=ListsFlags!$A$13),$Y$6+(s6rad*(COS(PI()*A14/180))),NA()) ->  | AB14: =AD4 ->  | AC14: =AE4 ->  | AD14: =IF(AND($AC$4=TRUE,$AB$8=ListsFlags!$A$13),$AC$5+(s7rad*(SIN(PI()*A14/180))),NA()) ->  | AE14: =IF(AND($AC$4=TRUE,$AB$8=ListsFlags!$A$13),$AC$6+(s7rad*(COS(PI()*A14/180))),NA()) ->  | AF14: =AH4 ->  | AG14: =AI4 ->  | AH14: =IF(AND($AG$4=TRUE,$AF$8=ListsFlags!$A$13),$AG$5+(s8rad*(SIN(PI()*A14/180))),NA()) ->  | AI14: =IF(AND($AG$4=TRUE,$AF$8=ListsFlags!$A$13),$AG$6+(s8rad*(COS(PI()*A14/180))),NA()) ->  | AJ14: =AL4 ->  | AK14: =AM4 ->  | AL14: =IF(AND($AK$4=TRUE,$AJ$8=ListsFlags!$A$13),$AK$5+(s9rad*(SIN(PI()*A14/180))),NA()) ->  | AM14: =IF(AND($AK$4=TRUE,$AJ$8=ListsFlags!$A$13),$AK$6+(s9rad*(COS(PI()*A14/180))),NA()) ->  | AN14: =AP4 ->  | AO14: =AQ4 ->  | AP14: =IF(AND($AO$4=TRUE,$AN$8=ListsFlags!$A$13),$AO$5+(s10rad*(SIN(PI()*A14/180))),NA()) ->  | AQ14: =IF(AND($AO$4=TRUE,$AN$8=ListsFlags!$A$13),$AO$6+(s10rad*(COS(PI()*A14/180))),NA()) ->  | AR14: =AT4 ->  | AS14: =AU4 -> 
A15: 55 | B15: SE | C15: =E67 ->  | D15: =F67 ->  | E15: =IF(AND($D$4=TRUE,$C$8=ListsFlags!$A$13),$D$5+(s1rad*(SIN(PI()*Circ!A15/180))),NA()) ->  | F15: =IF(AND($D$4=TRUE,$C$8=ListsFlags!$A$13),$D$6+(s1rad*(COS(PI()*Circ!A15/180))),NA()) ->  | H15: =J67 ->  | I15: =K67 ->  | J15: =IF(AND($I$4=TRUE,$H$8=ListsFlags!$A$13),$I$5+(s2rad*(SIN(PI()*A15/180))),NA()) ->  | K15: =IF(AND($I$4=TRUE,$H$8=ListsFlags!$A$13),$I$6+(s2rad*(COS(PI()*A15/180))),NA()) ->  | L15: =N67 ->  | M15: =O67 ->  | N15: =IF(AND($M$4=TRUE,$L$8=ListsFlags!$A$13),$M$5+(s3rad*(SIN(PI()*A15/180))),NA()) ->  | O15: =IF(AND($M$4=TRUE,$L$8=ListsFlags!$A$13),$M$6+(s3rad*(COS(PI()*A15/180))),NA()) ->  | P15: =R67 ->  | Q15: =S67 ->  | R15: =IF(AND($Q$4=TRUE,$P$8=ListsFlags!$A$13),$Q$5+(s4rad*(SIN(PI()*A15/180))),NA()) ->  | S15: =IF(AND($Q$4=TRUE,$P$8=ListsFlags!$A$13),$Q$6+(s4rad*(COS(PI()*A15/180))),NA()) ->  | T15: =V67 ->  | U15: =W67 ->  | V15: =IF(AND($U$4=TRUE,$T$8=ListsFlags!$A$13),$U$5+(s5rad*(SIN(PI()*A15/180))),NA()) ->  | W15: =IF(AND($U$4=TRUE,$T$8=ListsFlags!$A$13),$U$6+(s5rad*(COS(PI()*A15/180))),NA()) ->  | X15: =Z67 ->  | Y15: =AA67 ->  | Z15: =IF(AND($Y$4=TRUE,$X$8=ListsFlags!$A$13),$Y$5+(s6rad*(SIN(PI()*A15/180))),NA()) ->  | AA15: =IF(AND($Y$4=TRUE,$X$8=ListsFlags!$A$13),$Y$6+(s6rad*(COS(PI()*A15/180))),NA()) ->  | AB15: =AD67 ->  | AC15: =AE67 ->  | AD15: =IF(AND($AC$4=TRUE,$AB$8=ListsFlags!$A$13),$AC$5+(s7rad*(SIN(PI()*A15/180))),NA()) ->  | AE15: =IF(AND($AC$4=TRUE,$AB$8=ListsFlags!$A$13),$AC$6+(s7rad*(COS(PI()*A15/180))),NA()) ->  | AF15: =AH67 ->  | AG15: =AI67 ->  | AH15: =IF(AND($AG$4=TRUE,$AF$8=ListsFlags!$A$13),$AG$5+(s8rad*(SIN(PI()*A15/180))),NA()) ->  | AI15: =IF(AND($AG$4=TRUE,$AF$8=ListsFlags!$A$13),$AG$6+(s8rad*(COS(PI()*A15/180))),NA()) ->  | AJ15: =AL67 ->  | AK15: =AM67 ->  | AL15: =IF(AND($AK$4=TRUE,$AJ$8=ListsFlags!$A$13),$AK$5+(s9rad*(SIN(PI()*A15/180))),NA()) ->  | AM15: =IF(AND($AK$4=TRUE,$AJ$8=ListsFlags!$A$13),$AK$6+(s9rad*(COS(PI()*A15/180))),NA()) ->  | AN15: =AP67 ->  | AO15: =AQ67 ->  | AP15: =IF(AND($AO$4=TRUE,$AN$8=ListsFlags!$A$13),$AO$5+(s10rad*(SIN(PI()*A15/180))),NA()) ->  | AQ15: =IF(AND($AO$4=TRUE,$AN$8=ListsFlags!$A$13),$AO$6+(s10rad*(COS(PI()*A15/180))),NA()) ->  | AR15: =AT67 ->  | AS15: =AU67 -> 
A16: 60 | B16: S | C16: =E58 ->  | D16: =F58 ->  | E16: =IF(AND($D$4=TRUE,$C$8=ListsFlags!$A$13),$D$5+(s1rad*(SIN(PI()*Circ!A16/180))),NA()) ->  | F16: =IF(AND($D$4=TRUE,$C$8=ListsFlags!$A$13),$D$6+(s1rad*(COS(PI()*Circ!A16/180))),NA()) ->  | H16: =J58 ->  | I16: =K58 ->  | J16: =IF(AND($I$4=TRUE,$H$8=ListsFlags!$A$13),$I$5+(s2rad*(SIN(PI()*A16/180))),NA()) ->  | K16: =IF(AND($I$4=TRUE,$H$8=ListsFlags!$A$13),$I$6+(s2rad*(COS(PI()*A16/180))),NA()) ->  | L16: =N58 ->  | M16: =O58 ->  | N16: =IF(AND($M$4=TRUE,$L$8=ListsFlags!$A$13),$M$5+(s3rad*(SIN(PI()*A16/180))),NA()) ->  | O16: =IF(AND($M$4=TRUE,$L$8=ListsFlags!$A$13),$M$6+(s3rad*(COS(PI()*A16/180))),NA()) ->  | P16: =R58 ->  | Q16: =S58 ->  | R16: =IF(AND($Q$4=TRUE,$P$8=ListsFlags!$A$13),$Q$5+(s4rad*(SIN(PI()*A16/180))),NA()) ->  | S16: =IF(AND($Q$4=TRUE,$P$8=ListsFlags!$A$13),$Q$6+(s4rad*(COS(PI()*A16/180))),NA()) ->  | T16: =V58 ->  | U16: =W58 ->  | V16: =IF(AND($U$4=TRUE,$T$8=ListsFlags!$A$13),$U$5+(s5rad*(SIN(PI()*A16/180))),NA()) ->  | W16: =IF(AND($U$4=TRUE,$T$8=ListsFlags!$A$13),$U$6+(s5rad*(COS(PI()*A16/180))),NA()) ->  | X16: =Z58 ->  | Y16: =AA58 ->  | Z16: =IF(AND($Y$4=TRUE,$X$8=ListsFlags!$A$13),$Y$5+(s6rad*(SIN(PI()*A16/180))),NA()) ->  | AA16: =IF(AND($Y$4=TRUE,$X$8=ListsFlags!$A$13),$Y$6+(s6rad*(COS(PI()*A16/180))),NA()) ->  | AB16: =AD58 ->  | AC16: =AE58 ->  | AD16: =IF(AND($AC$4=TRUE,$AB$8=ListsFlags!$A$13),$AC$5+(s7rad*(SIN(PI()*A16/180))),NA()) ->  | AE16: =IF(AND($AC$4=TRUE,$AB$8=ListsFlags!$A$13),$AC$6+(s7rad*(COS(PI()*A16/180))),NA()) ->  | AF16: =AH58 ->  | AG16: =AI58 ->  | AH16: =IF(AND($AG$4=TRUE,$AF$8=ListsFlags!$A$13),$AG$5+(s8rad*(SIN(PI()*A16/180))),NA()) ->  | AI16: =IF(AND($AG$4=TRUE,$AF$8=ListsFlags!$A$13),$AG$6+(s8rad*(COS(PI()*A16/180))),NA()) ->  | AJ16: =AL58 ->  | AK16: =AM58 ->  | AL16: =IF(AND($AK$4=TRUE,$AJ$8=ListsFlags!$A$13),$AK$5+(s9rad*(SIN(PI()*A16/180))),NA()) ->  | AM16: =IF(AND($AK$4=TRUE,$AJ$8=ListsFlags!$A$13),$AK$6+(s9rad*(COS(PI()*A16/180))),NA()) ->  | AN16: =AP58 ->  | AO16: =AQ58 ->  | AP16: =IF(AND($AO$4=TRUE,$AN$8=ListsFlags!$A$13),$AO$5+(s10rad*(SIN(PI()*A16/180))),NA()) ->  | AQ16: =IF(AND($AO$4=TRUE,$AN$8=ListsFlags!$A$13),$AO$6+(s10rad*(COS(PI()*A16/180))),NA()) ->  | AR16: =AT58 ->  | AS16: =AU58 -> 
A17: 65 | B17: SW | C17: =E49 ->  | D17: =F49 ->  | E17: =IF(AND($D$4=TRUE,$C$8=ListsFlags!$A$13),$D$5+(s1rad*(SIN(PI()*Circ!A17/180))),NA()) ->  | F17: =IF(AND($D$4=TRUE,$C$8=ListsFlags!$A$13),$D$6+(s1rad*(COS(PI()*Circ!A17/180))),NA()) ->  | H17: =J49 ->  | I17: =K49 ->  | J17: =IF(AND($I$4=TRUE,$H$8=ListsFlags!$A$13),$I$5+(s2rad*(SIN(PI()*A17/180))),NA()) ->  | K17: =IF(AND($I$4=TRUE,$H$8=ListsFlags!$A$13),$I$6+(s2rad*(COS(PI()*A17/180))),NA()) ->  | L17: =N49 ->  | M17: =O49 ->  | N17: =IF(AND($M$4=TRUE,$L$8=ListsFlags!$A$13),$M$5+(s3rad*(SIN(PI()*A17/180))),NA()) ->  | O17: =IF(AND($M$4=TRUE,$L$8=ListsFlags!$A$13),$M$6+(s3rad*(COS(PI()*A17/180))),NA()) ->  | P17: =R49 ->  | Q17: =S49 ->  | R17: =IF(AND($Q$4=TRUE,$P$8=ListsFlags!$A$13),$Q$5+(s4rad*(SIN(PI()*A17/180))),NA()) ->  | S17: =IF(AND($Q$4=TRUE,$P$8=ListsFlags!$A$13),$Q$6+(s4rad*(COS(PI()*A17/180))),NA()) ->  | T17: =V49 ->  | U17: =W49 ->  | V17: =IF(AND($U$4=TRUE,$T$8=ListsFlags!$A$13),$U$5+(s5rad*(SIN(PI()*A17/180))),NA()) ->  | W17: =IF(AND($U$4=TRUE,$T$8=ListsFlags!$A$13),$U$6+(s5rad*(COS(PI()*A17/180))),NA()) ->  | X17: =Z49 ->  | Y17: =AA49 ->  | Z17: =IF(AND($Y$4=TRUE,$X$8=ListsFlags!$A$13),$Y$5+(s6rad*(SIN(PI()*A17/180))),NA()) ->  | AA17: =IF(AND($Y$4=TRUE,$X$8=ListsFlags!$A$13),$Y$6+(s6rad*(COS(PI()*A17/180))),NA()) ->  | AB17: =AD49 ->  | AC17: =AE49 ->  | AD17: =IF(AND($AC$4=TRUE,$AB$8=ListsFlags!$A$13),$AC$5+(s7rad*(SIN(PI()*A17/180))),NA()) ->  | AE17: =IF(AND($AC$4=TRUE,$AB$8=ListsFlags!$A$13),$AC$6+(s7rad*(COS(PI()*A17/180))),NA()) ->  | AF17: =AH49 ->  | AG17: =AI49 ->  | AH17: =IF(AND($AG$4=TRUE,$AF$8=ListsFlags!$A$13),$AG$5+(s8rad*(SIN(PI()*A17/180))),NA()) ->  | AI17: =IF(AND($AG$4=TRUE,$AF$8=ListsFlags!$A$13),$AG$6+(s8rad*(COS(PI()*A17/180))),NA()) ->  | AJ17: =AL49 ->  | AK17: =AM49 ->  | AL17: =IF(AND($AK$4=TRUE,$AJ$8=ListsFlags!$A$13),$AK$5+(s9rad*(SIN(PI()*A17/180))),NA()) ->  | AM17: =IF(AND($AK$4=TRUE,$AJ$8=ListsFlags!$A$13),$AK$6+(s9rad*(COS(PI()*A17/180))),NA()) ->  | AN17: =AP49 ->  | AO17: =AQ49 ->  | AP17: =IF(AND($AO$4=TRUE,$AN$8=ListsFlags!$A$13),$AO$5+(s10rad*(SIN(PI()*A17/180))),NA()) ->  | AQ17: =IF(AND($AO$4=TRUE,$AN$8=ListsFlags!$A$13),$AO$6+(s10rad*(COS(PI()*A17/180))),NA()) ->  | AR17: =AT49 ->  | AS17: =AU49 -> 
A18: 70 | B18: W | C18: =C10 ->  | D18: =D10 ->  | E18: =IF(AND($D$4=TRUE,$C$8=ListsFlags!$A$13),$D$5+(s1rad*(SIN(PI()*Circ!A18/180))),NA()) ->  | F18: =IF(AND($D$4=TRUE,$C$8=ListsFlags!$A$13),$D$6+(s1rad*(COS(PI()*Circ!A18/180))),NA()) ->  | H18: =H10 ->  | I18: =I10 ->  | J18: =IF(AND($I$4=TRUE,$H$8=ListsFlags!$A$13),$I$5+(s2rad*(SIN(PI()*A18/180))),NA()) ->  | K18: =IF(AND($I$4=TRUE,$H$8=ListsFlags!$A$13),$I$6+(s2rad*(COS(PI()*A18/180))),NA()) ->  | L18: =L10 ->  | M18: =M10 ->  | N18: =IF(AND($M$4=TRUE,$L$8=ListsFlags!$A$13),$M$5+(s3rad*(SIN(PI()*A18/180))),NA()) ->  | O18: =IF(AND($M$4=TRUE,$L$8=ListsFlags!$A$13),$M$6+(s3rad*(COS(PI()*A18/180))),NA()) ->  | P18: =P10 ->  | Q18: =Q10 ->  | R18: =IF(AND($Q$4=TRUE,$P$8=ListsFlags!$A$13),$Q$5+(s4rad*(SIN(PI()*A18/180))),NA()) ->  | S18: =IF(AND($Q$4=TRUE,$P$8=ListsFlags!$A$13),$Q$6+(s4rad*(COS(PI()*A18/180))),NA()) ->  | T18: =T10 ->  | U18: =U10 ->  | V18: =IF(AND($U$4=TRUE,$T$8=ListsFlags!$A$13),$U$5+(s5rad*(SIN(PI()*A18/180))),NA()) ->  | W18: =IF(AND($U$4=TRUE,$T$8=ListsFlags!$A$13),$U$6+(s5rad*(COS(PI()*A18/180))),NA()) ->  | X18: =X10 ->  | Y18: =Y10 ->  | Z18: =IF(AND($Y$4=TRUE,$X$8=ListsFlags!$A$13),$Y$5+(s6rad*(SIN(PI()*A18/180))),NA()) ->  | AA18: =IF(AND($Y$4=TRUE,$X$8=ListsFlags!$A$13),$Y$6+(s6rad*(COS(PI()*A18/180))),NA()) ->  | AB18: =AB10 ->  | AC18: =AC10 ->  | AD18: =IF(AND($AC$4=TRUE,$AB$8=ListsFlags!$A$13),$AC$5+(s7rad*(SIN(PI()*A18/180))),NA()) ->  | AE18: =IF(AND($AC$4=TRUE,$AB$8=ListsFlags!$A$13),$AC$6+(s7rad*(COS(PI()*A18/180))),NA()) ->  | AF18: =AF10 ->  | AG18: =AG10 ->  | AH18: =IF(AND($AG$4=TRUE,$AF$8=ListsFlags!$A$13),$AG$5+(s8rad*(SIN(PI()*A18/180))),NA()) ->  | AI18: =IF(AND($AG$4=TRUE,$AF$8=ListsFlags!$A$13),$AG$6+(s8rad*(COS(PI()*A18/180))),NA()) ->  | AJ18: =AJ10 ->  | AK18: =AK10 ->  | AL18: =IF(AND($AK$4=TRUE,$AJ$8=ListsFlags!$A$13),$AK$5+(s9rad*(SIN(PI()*A18/180))),NA()) ->  | AM18: =IF(AND($AK$4=TRUE,$AJ$8=ListsFlags!$A$13),$AK$6+(s9rad*(COS(PI()*A18/180))),NA()) ->  | AN18: =AN10 ->  | AO18: =AO10 ->  | AP18: =IF(AND($AO$4=TRUE,$AN$8=ListsFlags!$A$13),$AO$5+(s10rad*(SIN(PI()*A18/180))),NA()) ->  | AQ18: =IF(AND($AO$4=TRUE,$AN$8=ListsFlags!$A$13),$AO$6+(s10rad*(COS(PI()*A18/180))),NA()) ->  | AR18: =AR10 ->  | AS18: =AS10 -> 
A19: 75 | E19: =IF(AND($D$4=TRUE,$C$8=ListsFlags!$A$13),$D$5+(s1rad*(SIN(PI()*Circ!A19/180))),NA()) ->  | F19: =IF(AND($D$4=TRUE,$C$8=ListsFlags!$A$13),$D$6+(s1rad*(COS(PI()*Circ!A19/180))),NA()) ->  | J19: =IF(AND($I$4=TRUE,$H$8=ListsFlags!$A$13),$I$5+(s2rad*(SIN(PI()*A19/180))),NA()) ->  | K19: =IF(AND($I$4=TRUE,$H$8=ListsFlags!$A$13),$I$6+(s2rad*(COS(PI()*A19/180))),NA()) ->  | N19: =IF(AND($M$4=TRUE,$L$8=ListsFlags!$A$13),$M$5+(s3rad*(SIN(PI()*A19/180))),NA()) ->  | O19: =IF(AND($M$4=TRUE,$L$8=ListsFlags!$A$13),$M$6+(s3rad*(COS(PI()*A19/180))),NA()) ->  | R19: =IF(AND($Q$4=TRUE,$P$8=ListsFlags!$A$13),$Q$5+(s4rad*(SIN(PI()*A19/180))),NA()) ->  | S19: =IF(AND($Q$4=TRUE,$P$8=ListsFlags!$A$13),$Q$6+(s4rad*(COS(PI()*A19/180))),NA()) ->  | V19: =IF(AND($U$4=TRUE,$T$8=ListsFlags!$A$13),$U$5+(s5rad*(SIN(PI()*A19/180))),NA()) ->  | W19: =IF(AND($U$4=TRUE,$T$8=ListsFlags!$A$13),$U$6+(s5rad*(COS(PI()*A19/180))),NA()) ->  | Z19: =IF(AND($Y$4=TRUE,$X$8=ListsFlags!$A$13),$Y$5+(s6rad*(SIN(PI()*A19/180))),NA()) ->  | AA19: =IF(AND($Y$4=TRUE,$X$8=ListsFlags!$A$13),$Y$6+(s6rad*(COS(PI()*A19/180))),NA()) ->  | AD19: =IF(AND($AC$4=TRUE,$AB$8=ListsFlags!$A$13),$AC$5+(s7rad*(SIN(PI()*A19/180))),NA()) ->  | AE19: =IF(AND($AC$4=TRUE,$AB$8=ListsFlags!$A$13),$AC$6+(s7rad*(COS(PI()*A19/180))),NA()) ->  | AH19: =IF(AND($AG$4=TRUE,$AF$8=ListsFlags!$A$13),$AG$5+(s8rad*(SIN(PI()*A19/180))),NA()) ->  | AI19: =IF(AND($AG$4=TRUE,$AF$8=ListsFlags!$A$13),$AG$6+(s8rad*(COS(PI()*A19/180))),NA()) ->  | AL19: =IF(AND($AK$4=TRUE,$AJ$8=ListsFlags!$A$13),$AK$5+(s9rad*(SIN(PI()*A19/180))),NA()) ->  | AM19: =IF(AND($AK$4=TRUE,$AJ$8=ListsFlags!$A$13),$AK$6+(s9rad*(COS(PI()*A19/180))),NA()) ->  | AP19: =IF(AND($AO$4=TRUE,$AN$8=ListsFlags!$A$13),$AO$5+(s10rad*(SIN(PI()*A19/180))),NA()) ->  | AQ19: =IF(AND($AO$4=TRUE,$AN$8=ListsFlags!$A$13),$AO$6+(s10rad*(COS(PI()*A19/180))),NA()) -> 
A20: 80 | E20: =IF(AND($D$4=TRUE,$C$8=ListsFlags!$A$13),$D$5+(s1rad*(SIN(PI()*Circ!A20/180))),NA()) ->  | F20: =IF(AND($D$4=TRUE,$C$8=ListsFlags!$A$13),$D$6+(s1rad*(COS(PI()*Circ!A20/180))),NA()) ->  | J20: =IF(AND($I$4=TRUE,$H$8=ListsFlags!$A$13),$I$5+(s2rad*(SIN(PI()*A20/180))),NA()) ->  | K20: =IF(AND($I$4=TRUE,$H$8=ListsFlags!$A$13),$I$6+(s2rad*(COS(PI()*A20/180))),NA()) ->  | N20: =IF(AND($M$4=TRUE,$L$8=ListsFlags!$A$13),$M$5+(s3rad*(SIN(PI()*A20/180))),NA()) ->  | O20: =IF(AND($M$4=TRUE,$L$8=ListsFlags!$A$13),$M$6+(s3rad*(COS(PI()*A20/180))),NA()) ->  | R20: =IF(AND($Q$4=TRUE,$P$8=ListsFlags!$A$13),$Q$5+(s4rad*(SIN(PI()*A20/180))),NA()) ->  | S20: =IF(AND($Q$4=TRUE,$P$8=ListsFlags!$A$13),$Q$6+(s4rad*(COS(PI()*A20/180))),NA()) ->  | V20: =IF(AND($U$4=TRUE,$T$8=ListsFlags!$A$13),$U$5+(s5rad*(SIN(PI()*A20/180))),NA()) ->  | W20: =IF(AND($U$4=TRUE,$T$8=ListsFlags!$A$13),$U$6+(s5rad*(COS(PI()*A20/180))),NA()) ->  | Z20: =IF(AND($Y$4=TRUE,$X$8=ListsFlags!$A$13),$Y$5+(s6rad*(SIN(PI()*A20/180))),NA()) ->  | AA20: =IF(AND($Y$4=TRUE,$X$8=ListsFlags!$A$13),$Y$6+(s6rad*(COS(PI()*A20/180))),NA()) ->  | AD20: =IF(AND($AC$4=TRUE,$AB$8=ListsFlags!$A$13),$AC$5+(s7rad*(SIN(PI()*A20/180))),NA()) ->  | AE20: =IF(AND($AC$4=TRUE,$AB$8=ListsFlags!$A$13),$AC$6+(s7rad*(COS(PI()*A20/180))),NA()) ->  | AH20: =IF(AND($AG$4=TRUE,$AF$8=ListsFlags!$A$13),$AG$5+(s8rad*(SIN(PI()*A20/180))),NA()) ->  | AI20: =IF(AND($AG$4=TRUE,$AF$8=ListsFlags!$A$13),$AG$6+(s8rad*(COS(PI()*A20/180))),NA()) ->  | AL20: =IF(AND($AK$4=TRUE,$AJ$8=ListsFlags!$A$13),$AK$5+(s9rad*(SIN(PI()*A20/180))),NA()) ->  | AM20: =IF(AND($AK$4=TRUE,$AJ$8=ListsFlags!$A$13),$AK$6+(s9rad*(COS(PI()*A20/180))),NA()) ->  | AP20: =IF(AND($AO$4=TRUE,$AN$8=ListsFlags!$A$13),$AO$5+(s10rad*(SIN(PI()*A20/180))),NA()) ->  | AQ20: =IF(AND($AO$4=TRUE,$AN$8=ListsFlags!$A$13),$AO$6+(s10rad*(COS(PI()*A20/180))),NA()) -> 
A21: 85 | E21: =IF(AND($D$4=TRUE,$C$8=ListsFlags!$A$13),$D$5+(s1rad*(SIN(PI()*Circ!A21/180))),NA()) ->  | F21: =IF(AND($D$4=TRUE,$C$8=ListsFlags!$A$13),$D$6+(s1rad*(COS(PI()*Circ!A21/180))),NA()) ->  | J21: =IF(AND($I$4=TRUE,$H$8=ListsFlags!$A$13),$I$5+(s2rad*(SIN(PI()*A21/180))),NA()) ->  | K21: =IF(AND($I$4=TRUE,$H$8=ListsFlags!$A$13),$I$6+(s2rad*(COS(PI()*A21/180))),NA()) ->  | N21: =IF(AND($M$4=TRUE,$L$8=ListsFlags!$A$13),$M$5+(s3rad*(SIN(PI()*A21/180))),NA()) ->  | O21: =IF(AND($M$4=TRUE,$L$8=ListsFlags!$A$13),$M$6+(s3rad*(COS(PI()*A21/180))),NA()) ->  | R21: =IF(AND($Q$4=TRUE,$P$8=ListsFlags!$A$13),$Q$5+(s4rad*(SIN(PI()*A21/180))),NA()) ->  | S21: =IF(AND($Q$4=TRUE,$P$8=ListsFlags!$A$13),$Q$6+(s4rad*(COS(PI()*A21/180))),NA()) ->  | V21: =IF(AND($U$4=TRUE,$T$8=ListsFlags!$A$13),$U$5+(s5rad*(SIN(PI()*A21/180))),NA()) ->  | W21: =IF(AND($U$4=TRUE,$T$8=ListsFlags!$A$13),$U$6+(s5rad*(COS(PI()*A21/180))),NA()) ->  | Z21: =IF(AND($Y$4=TRUE,$X$8=ListsFlags!$A$13),$Y$5+(s6rad*(SIN(PI()*A21/180))),NA()) ->  | AA21: =IF(AND($Y$4=TRUE,$X$8=ListsFlags!$A$13),$Y$6+(s6rad*(COS(PI()*A21/180))),NA()) ->  | AD21: =IF(AND($AC$4=TRUE,$AB$8=ListsFlags!$A$13),$AC$5+(s7rad*(SIN(PI()*A21/180))),NA()) ->  | AE21: =IF(AND($AC$4=TRUE,$AB$8=ListsFlags!$A$13),$AC$6+(s7rad*(COS(PI()*A21/180))),NA()) ->  | AH21: =IF(AND($AG$4=TRUE,$AF$8=ListsFlags!$A$13),$AG$5+(s8rad*(SIN(PI()*A21/180))),NA()) ->  | AI21: =IF(AND($AG$4=TRUE,$AF$8=ListsFlags!$A$13),$AG$6+(s8rad*(COS(PI()*A21/180))),NA()) ->  | AL21: =IF(AND($AK$4=TRUE,$AJ$8=ListsFlags!$A$13),$AK$5+(s9rad*(SIN(PI()*A21/180))),NA()) ->  | AM21: =IF(AND($AK$4=TRUE,$AJ$8=ListsFlags!$A$13),$AK$6+(s9rad*(COS(PI()*A21/180))),NA()) ->  | AP21: =IF(AND($AO$4=TRUE,$AN$8=ListsFlags!$A$13),$AO$5+(s10rad*(SIN(PI()*A21/180))),NA()) ->  | AQ21: =IF(AND($AO$4=TRUE,$AN$8=ListsFlags!$A$13),$AO$6+(s10rad*(COS(PI()*A21/180))),NA()) -> 
A22: 90 | E22: =IF(AND($D$4=TRUE,$C$8=ListsFlags!$A$13),$D$5+(s1rad*(SIN(PI()*Circ!A22/180))),NA()) ->  | F22: =IF(AND($D$4=TRUE,$C$8=ListsFlags!$A$13),$D$6+(s1rad*(COS(PI()*Circ!A22/180))),NA()) ->  | G22: N | J22: =IF(AND($I$4=TRUE,$H$8=ListsFlags!$A$13),$I$5+(s2rad*(SIN(PI()*A22/180))),NA()) ->  | K22: =IF(AND($I$4=TRUE,$H$8=ListsFlags!$A$13),$I$6+(s2rad*(COS(PI()*A22/180))),NA()) ->  | N22: =IF(AND($M$4=TRUE,$L$8=ListsFlags!$A$13),$M$5+(s3rad*(SIN(PI()*A22/180))),NA()) ->  | O22: =IF(AND($M$4=TRUE,$L$8=ListsFlags!$A$13),$M$6+(s3rad*(COS(PI()*A22/180))),NA()) ->  | R22: =IF(AND($Q$4=TRUE,$P$8=ListsFlags!$A$13),$Q$5+(s4rad*(SIN(PI()*A22/180))),NA()) ->  | S22: =IF(AND($Q$4=TRUE,$P$8=ListsFlags!$A$13),$Q$6+(s4rad*(COS(PI()*A22/180))),NA()) ->  | V22: =IF(AND($U$4=TRUE,$T$8=ListsFlags!$A$13),$U$5+(s5rad*(SIN(PI()*A22/180))),NA()) ->  | W22: =IF(AND($U$4=TRUE,$T$8=ListsFlags!$A$13),$U$6+(s5rad*(COS(PI()*A22/180))),NA()) ->  | Z22: =IF(AND($Y$4=TRUE,$X$8=ListsFlags!$A$13),$Y$5+(s6rad*(SIN(PI()*A22/180))),NA()) ->  | AA22: =IF(AND($Y$4=TRUE,$X$8=ListsFlags!$A$13),$Y$6+(s6rad*(COS(PI()*A22/180))),NA()) ->  | AD22: =IF(AND($AC$4=TRUE,$AB$8=ListsFlags!$A$13),$AC$5+(s7rad*(SIN(PI()*A22/180))),NA()) ->  | AE22: =IF(AND($AC$4=TRUE,$AB$8=ListsFlags!$A$13),$AC$6+(s7rad*(COS(PI()*A22/180))),NA()) ->  | AH22: =IF(AND($AG$4=TRUE,$AF$8=ListsFlags!$A$13),$AG$5+(s8rad*(SIN(PI()*A22/180))),NA()) ->  | AI22: =IF(AND($AG$4=TRUE,$AF$8=ListsFlags!$A$13),$AG$6+(s8rad*(COS(PI()*A22/180))),NA()) ->  | AL22: =IF(AND($AK$4=TRUE,$AJ$8=ListsFlags!$A$13),$AK$5+(s9rad*(SIN(PI()*A22/180))),NA()) ->  | AM22: =IF(AND($AK$4=TRUE,$AJ$8=ListsFlags!$A$13),$AK$6+(s9rad*(COS(PI()*A22/180))),NA()) ->  | AP22: =IF(AND($AO$4=TRUE,$AN$8=ListsFlags!$A$13),$AO$5+(s10rad*(SIN(PI()*A22/180))),NA()) ->  | AQ22: =IF(AND($AO$4=TRUE,$AN$8=ListsFlags!$A$13),$AO$6+(s10rad*(COS(PI()*A22/180))),NA()) -> 
A23: 95 | E23: =IF(AND($D$4=TRUE,$C$8=ListsFlags!$A$13),$D$5+(s1rad*(SIN(PI()*Circ!A23/180))),NA()) ->  | F23: =IF(AND($D$4=TRUE,$C$8=ListsFlags!$A$13),$D$6+(s1rad*(COS(PI()*Circ!A23/180))),NA()) ->  | J23: =IF(AND($I$4=TRUE,$H$8=ListsFlags!$A$13),$I$5+(s2rad*(SIN(PI()*A23/180))),NA()) ->  | K23: =IF(AND($I$4=TRUE,$H$8=ListsFlags!$A$13),$I$6+(s2rad*(COS(PI()*A23/180))),NA()) ->  | N23: =IF(AND($M$4=TRUE,$L$8=ListsFlags!$A$13),$M$5+(s3rad*(SIN(PI()*A23/180))),NA()) ->  | O23: =IF(AND($M$4=TRUE,$L$8=ListsFlags!$A$13),$M$6+(s3rad*(COS(PI()*A23/180))),NA()) ->  | R23: =IF(AND($Q$4=TRUE,$P$8=ListsFlags!$A$13),$Q$5+(s4rad*(SIN(PI()*A23/180))),NA()) ->  | S23: =IF(AND($Q$4=TRUE,$P$8=ListsFlags!$A$13),$Q$6+(s4rad*(COS(PI()*A23/180))),NA()) ->  | V23: =IF(AND($U$4=TRUE,$T$8=ListsFlags!$A$13),$U$5+(s5rad*(SIN(PI()*A23/180))),NA()) ->  | W23: =IF(AND($U$4=TRUE,$T$8=ListsFlags!$A$13),$U$6+(s5rad*(COS(PI()*A23/180))),NA()) ->  | Z23: =IF(AND($Y$4=TRUE,$X$8=ListsFlags!$A$13),$Y$5+(s6rad*(SIN(PI()*A23/180))),NA()) ->  | AA23: =IF(AND($Y$4=TRUE,$X$8=ListsFlags!$A$13),$Y$6+(s6rad*(COS(PI()*A23/180))),NA()) ->  | AD23: =IF(AND($AC$4=TRUE,$AB$8=ListsFlags!$A$13),$AC$5+(s7rad*(SIN(PI()*A23/180))),NA()) ->  | AE23: =IF(AND($AC$4=TRUE,$AB$8=ListsFlags!$A$13),$AC$6+(s7rad*(COS(PI()*A23/180))),NA()) ->  | AH23: =IF(AND($AG$4=TRUE,$AF$8=ListsFlags!$A$13),$AG$5+(s8rad*(SIN(PI()*A23/180))),NA()) ->  | AI23: =IF(AND($AG$4=TRUE,$AF$8=ListsFlags!$A$13),$AG$6+(s8rad*(COS(PI()*A23/180))),NA()) ->  | AL23: =IF(AND($AK$4=TRUE,$AJ$8=ListsFlags!$A$13),$AK$5+(s9rad*(SIN(PI()*A23/180))),NA()) ->  | AM23: =IF(AND($AK$4=TRUE,$AJ$8=ListsFlags!$A$13),$AK$6+(s9rad*(COS(PI()*A23/180))),NA()) ->  | AP23: =IF(AND($AO$4=TRUE,$AN$8=ListsFlags!$A$13),$AO$5+(s10rad*(SIN(PI()*A23/180))),NA()) ->  | AQ23: =IF(AND($AO$4=TRUE,$AN$8=ListsFlags!$A$13),$AO$6+(s10rad*(COS(PI()*A23/180))),NA()) -> 
A24: 100 | E24: =IF(AND($D$4=TRUE,$C$8=ListsFlags!$A$13),$D$5+(s1rad*(SIN(PI()*Circ!A24/180))),NA()) ->  | F24: =IF(AND($D$4=TRUE,$C$8=ListsFlags!$A$13),$D$6+(s1rad*(COS(PI()*Circ!A24/180))),NA()) ->  | J24: =IF(AND($I$4=TRUE,$H$8=ListsFlags!$A$13),$I$5+(s2rad*(SIN(PI()*A24/180))),NA()) ->  | K24: =IF(AND($I$4=TRUE,$H$8=ListsFlags!$A$13),$I$6+(s2rad*(COS(PI()*A24/180))),NA()) ->  | N24: =IF(AND($M$4=TRUE,$L$8=ListsFlags!$A$13),$M$5+(s3rad*(SIN(PI()*A24/180))),NA()) ->  | O24: =IF(AND($M$4=TRUE,$L$8=ListsFlags!$A$13),$M$6+(s3rad*(COS(PI()*A24/180))),NA()) ->  | R24: =IF(AND($Q$4=TRUE,$P$8=ListsFlags!$A$13),$Q$5+(s4rad*(SIN(PI()*A24/180))),NA()) ->  | S24: =IF(AND($Q$4=TRUE,$P$8=ListsFlags!$A$13),$Q$6+(s4rad*(COS(PI()*A24/180))),NA()) ->  | V24: =IF(AND($U$4=TRUE,$T$8=ListsFlags!$A$13),$U$5+(s5rad*(SIN(PI()*A24/180))),NA()) ->  | W24: =IF(AND($U$4=TRUE,$T$8=ListsFlags!$A$13),$U$6+(s5rad*(COS(PI()*A24/180))),NA()) ->  | Z24: =IF(AND($Y$4=TRUE,$X$8=ListsFlags!$A$13),$Y$5+(s6rad*(SIN(PI()*A24/180))),NA()) ->  | AA24: =IF(AND($Y$4=TRUE,$X$8=ListsFlags!$A$13),$Y$6+(s6rad*(COS(PI()*A24/180))),NA()) ->  | AD24: =IF(AND($AC$4=TRUE,$AB$8=ListsFlags!$A$13),$AC$5+(s7rad*(SIN(PI()*A24/180))),NA()) ->  | AE24: =IF(AND($AC$4=TRUE,$AB$8=ListsFlags!$A$13),$AC$6+(s7rad*(COS(PI()*A24/180))),NA()) ->  | AH24: =IF(AND($AG$4=TRUE,$AF$8=ListsFlags!$A$13),$AG$5+(s8rad*(SIN(PI()*A24/180))),NA()) ->  | AI24: =IF(AND($AG$4=TRUE,$AF$8=ListsFlags!$A$13),$AG$6+(s8rad*(COS(PI()*A24/180))),NA()) ->  | AL24: =IF(AND($AK$4=TRUE,$AJ$8=ListsFlags!$A$13),$AK$5+(s9rad*(SIN(PI()*A24/180))),NA()) ->  | AM24: =IF(AND($AK$4=TRUE,$AJ$8=ListsFlags!$A$13),$AK$6+(s9rad*(COS(PI()*A24/180))),NA()) ->  | AP24: =IF(AND($AO$4=TRUE,$AN$8=ListsFlags!$A$13),$AO$5+(s10rad*(SIN(PI()*A24/180))),NA()) ->  | AQ24: =IF(AND($AO$4=TRUE,$AN$8=ListsFlags!$A$13),$AO$6+(s10rad*(COS(PI()*A24/180))),NA()) -> 
A25: 105 | E25: =IF(AND($D$4=TRUE,$C$8=ListsFlags!$A$13),$D$5+(s1rad*(SIN(PI()*Circ!A25/180))),NA()) ->  | F25: =IF(AND($D$4=TRUE,$C$8=ListsFlags!$A$13),$D$6+(s1rad*(COS(PI()*Circ!A25/180))),NA()) ->  | J25: =IF(AND($I$4=TRUE,$H$8=ListsFlags!$A$13),$I$5+(s2rad*(SIN(PI()*A25/180))),NA()) ->  | K25: =IF(AND($I$4=TRUE,$H$8=ListsFlags!$A$13),$I$6+(s2rad*(COS(PI()*A25/180))),NA()) ->  | N25: =IF(AND($M$4=TRUE,$L$8=ListsFlags!$A$13),$M$5+(s3rad*(SIN(PI()*A25/180))),NA()) ->  | O25: =IF(AND($M$4=TRUE,$L$8=ListsFlags!$A$13),$M$6+(s3rad*(COS(PI()*A25/180))),NA()) ->  | R25: =IF(AND($Q$4=TRUE,$P$8=ListsFlags!$A$13),$Q$5+(s4rad*(SIN(PI()*A25/180))),NA()) ->  | S25: =IF(AND($Q$4=TRUE,$P$8=ListsFlags!$A$13),$Q$6+(s4rad*(COS(PI()*A25/180))),NA()) ->  | V25: =IF(AND($U$4=TRUE,$T$8=ListsFlags!$A$13),$U$5+(s5rad*(SIN(PI()*A25/180))),NA()) ->  | W25: =IF(AND($U$4=TRUE,$T$8=ListsFlags!$A$13),$U$6+(s5rad*(COS(PI()*A25/180))),NA()) ->  | Z25: =IF(AND($Y$4=TRUE,$X$8=ListsFlags!$A$13),$Y$5+(s6rad*(SIN(PI()*A25/180))),NA()) ->  | AA25: =IF(AND($Y$4=TRUE,$X$8=ListsFlags!$A$13),$Y$6+(s6rad*(COS(PI()*A25/180))),NA()) ->  | AD25: =IF(AND($AC$4=TRUE,$AB$8=ListsFlags!$A$13),$AC$5+(s7rad*(SIN(PI()*A25/180))),NA()) ->  | AE25: =IF(AND($AC$4=TRUE,$AB$8=ListsFlags!$A$13),$AC$6+(s7rad*(COS(PI()*A25/180))),NA()) ->  | AH25: =IF(AND($AG$4=TRUE,$AF$8=ListsFlags!$A$13),$AG$5+(s8rad*(SIN(PI()*A25/180))),NA()) ->  | AI25: =IF(AND($AG$4=TRUE,$AF$8=ListsFlags!$A$13),$AG$6+(s8rad*(COS(PI()*A25/180))),NA()) ->  | AL25: =IF(AND($AK$4=TRUE,$AJ$8=ListsFlags!$A$13),$AK$5+(s9rad*(SIN(PI()*A25/180))),NA()) ->  | AM25: =IF(AND($AK$4=TRUE,$AJ$8=ListsFlags!$A$13),$AK$6+(s9rad*(COS(PI()*A25/180))),NA()) ->  | AP25: =IF(AND($AO$4=TRUE,$AN$8=ListsFlags!$A$13),$AO$5+(s10rad*(SIN(PI()*A25/180))),NA()) ->  | AQ25: =IF(AND($AO$4=TRUE,$AN$8=ListsFlags!$A$13),$AO$6+(s10rad*(COS(PI()*A25/180))),NA()) -> 
A26: 110 | E26: =IF(AND($D$4=TRUE,$C$8=ListsFlags!$A$13),$D$5+(s1rad*(SIN(PI()*Circ!A26/180))),NA()) ->  | F26: =IF(AND($D$4=TRUE,$C$8=ListsFlags!$A$13),$D$6+(s1rad*(COS(PI()*Circ!A26/180))),NA()) ->  | J26: =IF(AND($I$4=TRUE,$H$8=ListsFlags!$A$13),$I$5+(s2rad*(SIN(PI()*A26/180))),NA()) ->  | K26: =IF(AND($I$4=TRUE,$H$8=ListsFlags!$A$13),$I$6+(s2rad*(COS(PI()*A26/180))),NA()) ->  | N26: =IF(AND($M$4=TRUE,$L$8=ListsFlags!$A$13),$M$5+(s3rad*(SIN(PI()*A26/180))),NA()) ->  | O26: =IF(AND($M$4=TRUE,$L$8=ListsFlags!$A$13),$M$6+(s3rad*(COS(PI()*A26/180))),NA()) ->  | R26: =IF(AND($Q$4=TRUE,$P$8=ListsFlags!$A$13),$Q$5+(s4rad*(SIN(PI()*A26/180))),NA()) ->  | S26: =IF(AND($Q$4=TRUE,$P$8=ListsFlags!$A$13),$Q$6+(s4rad*(COS(PI()*A26/180))),NA()) ->  | V26: =IF(AND($U$4=TRUE,$T$8=ListsFlags!$A$13),$U$5+(s5rad*(SIN(PI()*A26/180))),NA()) ->  | W26: =IF(AND($U$4=TRUE,$T$8=ListsFlags!$A$13),$U$6+(s5rad*(COS(PI()*A26/180))),NA()) ->  | Z26: =IF(AND($Y$4=TRUE,$X$8=ListsFlags!$A$13),$Y$5+(s6rad*(SIN(PI()*A26/180))),NA()) ->  | AA26: =IF(AND($Y$4=TRUE,$X$8=ListsFlags!$A$13),$Y$6+(s6rad*(COS(PI()*A26/180))),NA()) ->  | AD26: =IF(AND($AC$4=TRUE,$AB$8=ListsFlags!$A$13),$AC$5+(s7rad*(SIN(PI()*A26/180))),NA()) ->  | AE26: =IF(AND($AC$4=TRUE,$AB$8=ListsFlags!$A$13),$AC$6+(s7rad*(COS(PI()*A26/180))),NA()) ->  | AH26: =IF(AND($AG$4=TRUE,$AF$8=ListsFlags!$A$13),$AG$5+(s8rad*(SIN(PI()*A26/180))),NA()) ->  | AI26: =IF(AND($AG$4=TRUE,$AF$8=ListsFlags!$A$13),$AG$6+(s8rad*(COS(PI()*A26/180))),NA()) ->  | AL26: =IF(AND($AK$4=TRUE,$AJ$8=ListsFlags!$A$13),$AK$5+(s9rad*(SIN(PI()*A26/180))),NA()) ->  | AM26: =IF(AND($AK$4=TRUE,$AJ$8=ListsFlags!$A$13),$AK$6+(s9rad*(COS(PI()*A26/180))),NA()) ->  | AP26: =IF(AND($AO$4=TRUE,$AN$8=ListsFlags!$A$13),$AO$5+(s10rad*(SIN(PI()*A26/180))),NA()) ->  | AQ26: =IF(AND($AO$4=TRUE,$AN$8=ListsFlags!$A$13),$AO$6+(s10rad*(COS(PI()*A26/180))),NA()) -> 
A27: 115 | E27: =IF(AND($D$4=TRUE,$C$8=ListsFlags!$A$13),$D$5+(s1rad*(SIN(PI()*Circ!A27/180))),NA()) ->  | F27: =IF(AND($D$4=TRUE,$C$8=ListsFlags!$A$13),$D$6+(s1rad*(COS(PI()*Circ!A27/180))),NA()) ->  | J27: =IF(AND($I$4=TRUE,$H$8=ListsFlags!$A$13),$I$5+(s2rad*(SIN(PI()*A27/180))),NA()) ->  | K27: =IF(AND($I$4=TRUE,$H$8=ListsFlags!$A$13),$I$6+(s2rad*(COS(PI()*A27/180))),NA()) ->  | N27: =IF(AND($M$4=TRUE,$L$8=ListsFlags!$A$13),$M$5+(s3rad*(SIN(PI()*A27/180))),NA()) ->  | O27: =IF(AND($M$4=TRUE,$L$8=ListsFlags!$A$13),$M$6+(s3rad*(COS(PI()*A27/180))),NA()) ->  | R27: =IF(AND($Q$4=TRUE,$P$8=ListsFlags!$A$13),$Q$5+(s4rad*(SIN(PI()*A27/180))),NA()) ->  | S27: =IF(AND($Q$4=TRUE,$P$8=ListsFlags!$A$13),$Q$6+(s4rad*(COS(PI()*A27/180))),NA()) ->  | V27: =IF(AND($U$4=TRUE,$T$8=ListsFlags!$A$13),$U$5+(s5rad*(SIN(PI()*A27/180))),NA()) ->  | W27: =IF(AND($U$4=TRUE,$T$8=ListsFlags!$A$13),$U$6+(s5rad*(COS(PI()*A27/180))),NA()) ->  | Z27: =IF(AND($Y$4=TRUE,$X$8=ListsFlags!$A$13),$Y$5+(s6rad*(SIN(PI()*A27/180))),NA()) ->  | AA27: =IF(AND($Y$4=TRUE,$X$8=ListsFlags!$A$13),$Y$6+(s6rad*(COS(PI()*A27/180))),NA()) ->  | AD27: =IF(AND($AC$4=TRUE,$AB$8=ListsFlags!$A$13),$AC$5+(s7rad*(SIN(PI()*A27/180))),NA()) ->  | AE27: =IF(AND($AC$4=TRUE,$AB$8=ListsFlags!$A$13),$AC$6+(s7rad*(COS(PI()*A27/180))),NA()) ->  | AH27: =IF(AND($AG$4=TRUE,$AF$8=ListsFlags!$A$13),$AG$5+(s8rad*(SIN(PI()*A27/180))),NA()) ->  | AI27: =IF(AND($AG$4=TRUE,$AF$8=ListsFlags!$A$13),$AG$6+(s8rad*(COS(PI()*A27/180))),NA()) ->  | AL27: =IF(AND($AK$4=TRUE,$AJ$8=ListsFlags!$A$13),$AK$5+(s9rad*(SIN(PI()*A27/180))),NA()) ->  | AM27: =IF(AND($AK$4=TRUE,$AJ$8=ListsFlags!$A$13),$AK$6+(s9rad*(COS(PI()*A27/180))),NA()) ->  | AP27: =IF(AND($AO$4=TRUE,$AN$8=ListsFlags!$A$13),$AO$5+(s10rad*(SIN(PI()*A27/180))),NA()) ->  | AQ27: =IF(AND($AO$4=TRUE,$AN$8=ListsFlags!$A$13),$AO$6+(s10rad*(COS(PI()*A27/180))),NA()) -> 
A28: 120 | E28: =IF(AND($D$4=TRUE,$C$8=ListsFlags!$A$13),$D$5+(s1rad*(SIN(PI()*Circ!A28/180))),NA()) ->  | F28: =IF(AND($D$4=TRUE,$C$8=ListsFlags!$A$13),$D$6+(s1rad*(COS(PI()*Circ!A28/180))),NA()) ->  | J28: =IF(AND($I$4=TRUE,$H$8=ListsFlags!$A$13),$I$5+(s2rad*(SIN(PI()*A28/180))),NA()) ->  | K28: =IF(AND($I$4=TRUE,$H$8=ListsFlags!$A$13),$I$6+(s2rad*(COS(PI()*A28/180))),NA()) ->  | N28: =IF(AND($M$4=TRUE,$L$8=ListsFlags!$A$13),$M$5+(s3rad*(SIN(PI()*A28/180))),NA()) ->  | O28: =IF(AND($M$4=TRUE,$L$8=ListsFlags!$A$13),$M$6+(s3rad*(COS(PI()*A28/180))),NA()) ->  | R28: =IF(AND($Q$4=TRUE,$P$8=ListsFlags!$A$13),$Q$5+(s4rad*(SIN(PI()*A28/180))),NA()) ->  | S28: =IF(AND($Q$4=TRUE,$P$8=ListsFlags!$A$13),$Q$6+(s4rad*(COS(PI()*A28/180))),NA()) ->  | V28: =IF(AND($U$4=TRUE,$T$8=ListsFlags!$A$13),$U$5+(s5rad*(SIN(PI()*A28/180))),NA()) ->  | W28: =IF(AND($U$4=TRUE,$T$8=ListsFlags!$A$13),$U$6+(s5rad*(COS(PI()*A28/180))),NA()) ->  | Z28: =IF(AND($Y$4=TRUE,$X$8=ListsFlags!$A$13),$Y$5+(s6rad*(SIN(PI()*A28/180))),NA()) ->  | AA28: =IF(AND($Y$4=TRUE,$X$8=ListsFlags!$A$13),$Y$6+(s6rad*(COS(PI()*A28/180))),NA()) ->  | AD28: =IF(AND($AC$4=TRUE,$AB$8=ListsFlags!$A$13),$AC$5+(s7rad*(SIN(PI()*A28/180))),NA()) ->  | AE28: =IF(AND($AC$4=TRUE,$AB$8=ListsFlags!$A$13),$AC$6+(s7rad*(COS(PI()*A28/180))),NA()) ->  | AH28: =IF(AND($AG$4=TRUE,$AF$8=ListsFlags!$A$13),$AG$5+(s8rad*(SIN(PI()*A28/180))),NA()) ->  | AI28: =IF(AND($AG$4=TRUE,$AF$8=ListsFlags!$A$13),$AG$6+(s8rad*(COS(PI()*A28/180))),NA()) ->  | AL28: =IF(AND($AK$4=TRUE,$AJ$8=ListsFlags!$A$13),$AK$5+(s9rad*(SIN(PI()*A28/180))),NA()) ->  | AM28: =IF(AND($AK$4=TRUE,$AJ$8=ListsFlags!$A$13),$AK$6+(s9rad*(COS(PI()*A28/180))),NA()) ->  | AP28: =IF(AND($AO$4=TRUE,$AN$8=ListsFlags!$A$13),$AO$5+(s10rad*(SIN(PI()*A28/180))),NA()) ->  | AQ28: =IF(AND($AO$4=TRUE,$AN$8=ListsFlags!$A$13),$AO$6+(s10rad*(COS(PI()*A28/180))),NA()) -> 
A29: 125 | E29: =IF(AND($D$4=TRUE,$C$8=ListsFlags!$A$13),$D$5+(s1rad*(SIN(PI()*Circ!A29/180))),NA()) ->  | F29: =IF(AND($D$4=TRUE,$C$8=ListsFlags!$A$13),$D$6+(s1rad*(COS(PI()*Circ!A29/180))),NA()) ->  | J29: =IF(AND($I$4=TRUE,$H$8=ListsFlags!$A$13),$I$5+(s2rad*(SIN(PI()*A29/180))),NA()) ->  | K29: =IF(AND($I$4=TRUE,$H$8=ListsFlags!$A$13),$I$6+(s2rad*(COS(PI()*A29/180))),NA()) ->  | N29: =IF(AND($M$4=TRUE,$L$8=ListsFlags!$A$13),$M$5+(s3rad*(SIN(PI()*A29/180))),NA()) ->  | O29: =IF(AND($M$4=TRUE,$L$8=ListsFlags!$A$13),$M$6+(s3rad*(COS(PI()*A29/180))),NA()) ->  | R29: =IF(AND($Q$4=TRUE,$P$8=ListsFlags!$A$13),$Q$5+(s4rad*(SIN(PI()*A29/180))),NA()) ->  | S29: =IF(AND($Q$4=TRUE,$P$8=ListsFlags!$A$13),$Q$6+(s4rad*(COS(PI()*A29/180))),NA()) ->  | V29: =IF(AND($U$4=TRUE,$T$8=ListsFlags!$A$13),$U$5+(s5rad*(SIN(PI()*A29/180))),NA()) ->  | W29: =IF(AND($U$4=TRUE,$T$8=ListsFlags!$A$13),$U$6+(s5rad*(COS(PI()*A29/180))),NA()) ->  | Z29: =IF(AND($Y$4=TRUE,$X$8=ListsFlags!$A$13),$Y$5+(s6rad*(SIN(PI()*A29/180))),NA()) ->  | AA29: =IF(AND($Y$4=TRUE,$X$8=ListsFlags!$A$13),$Y$6+(s6rad*(COS(PI()*A29/180))),NA()) ->  | AD29: =IF(AND($AC$4=TRUE,$AB$8=ListsFlags!$A$13),$AC$5+(s7rad*(SIN(PI()*A29/180))),NA()) ->  | AE29: =IF(AND($AC$4=TRUE,$AB$8=ListsFlags!$A$13),$AC$6+(s7rad*(COS(PI()*A29/180))),NA()) ->  | AH29: =IF(AND($AG$4=TRUE,$AF$8=ListsFlags!$A$13),$AG$5+(s8rad*(SIN(PI()*A29/180))),NA()) ->  | AI29: =IF(AND($AG$4=TRUE,$AF$8=ListsFlags!$A$13),$AG$6+(s8rad*(COS(PI()*A29/180))),NA()) ->  | AL29: =IF(AND($AK$4=TRUE,$AJ$8=ListsFlags!$A$13),$AK$5+(s9rad*(SIN(PI()*A29/180))),NA()) ->  | AM29: =IF(AND($AK$4=TRUE,$AJ$8=ListsFlags!$A$13),$AK$6+(s9rad*(COS(PI()*A29/180))),NA()) ->  | AP29: =IF(AND($AO$4=TRUE,$AN$8=ListsFlags!$A$13),$AO$5+(s10rad*(SIN(PI()*A29/180))),NA()) ->  | AQ29: =IF(AND($AO$4=TRUE,$AN$8=ListsFlags!$A$13),$AO$6+(s10rad*(COS(PI()*A29/180))),NA()) -> 
A30: 130 | E30: =IF(AND($D$4=TRUE,$C$8=ListsFlags!$A$13),$D$5+(s1rad*(SIN(PI()*Circ!A30/180))),NA()) ->  | F30: =IF(AND($D$4=TRUE,$C$8=ListsFlags!$A$13),$D$6+(s1rad*(COS(PI()*Circ!A30/180))),NA()) ->  | J30: =IF(AND($I$4=TRUE,$H$8=ListsFlags!$A$13),$I$5+(s2rad*(SIN(PI()*A30/180))),NA()) ->  | K30: =IF(AND($I$4=TRUE,$H$8=ListsFlags!$A$13),$I$6+(s2rad*(COS(PI()*A30/180))),NA()) ->  | N30: =IF(AND($M$4=TRUE,$L$8=ListsFlags!$A$13),$M$5+(s3rad*(SIN(PI()*A30/180))),NA()) ->  | O30: =IF(AND($M$4=TRUE,$L$8=ListsFlags!$A$13),$M$6+(s3rad*(COS(PI()*A30/180))),NA()) ->  | R30: =IF(AND($Q$4=TRUE,$P$8=ListsFlags!$A$13),$Q$5+(s4rad*(SIN(PI()*A30/180))),NA()) ->  | S30: =IF(AND($Q$4=TRUE,$P$8=ListsFlags!$A$13),$Q$6+(s4rad*(COS(PI()*A30/180))),NA()) ->  | V30: =IF(AND($U$4=TRUE,$T$8=ListsFlags!$A$13),$U$5+(s5rad*(SIN(PI()*A30/180))),NA()) ->  | W30: =IF(AND($U$4=TRUE,$T$8=ListsFlags!$A$13),$U$6+(s5rad*(COS(PI()*A30/180))),NA()) ->  | Z30: =IF(AND($Y$4=TRUE,$X$8=ListsFlags!$A$13),$Y$5+(s6rad*(SIN(PI()*A30/180))),NA()) ->  | AA30: =IF(AND($Y$4=TRUE,$X$8=ListsFlags!$A$13),$Y$6+(s6rad*(COS(PI()*A30/180))),NA()) ->  | AD30: =IF(AND($AC$4=TRUE,$AB$8=ListsFlags!$A$13),$AC$5+(s7rad*(SIN(PI()*A30/180))),NA()) ->  | AE30: =IF(AND($AC$4=TRUE,$AB$8=ListsFlags!$A$13),$AC$6+(s7rad*(COS(PI()*A30/180))),NA()) ->  | AH30: =IF(AND($AG$4=TRUE,$AF$8=ListsFlags!$A$13),$AG$5+(s8rad*(SIN(PI()*A30/180))),NA()) ->  | AI30: =IF(AND($AG$4=TRUE,$AF$8=ListsFlags!$A$13),$AG$6+(s8rad*(COS(PI()*A30/180))),NA()) ->  | AL30: =IF(AND($AK$4=TRUE,$AJ$8=ListsFlags!$A$13),$AK$5+(s9rad*(SIN(PI()*A30/180))),NA()) ->  | AM30: =IF(AND($AK$4=TRUE,$AJ$8=ListsFlags!$A$13),$AK$6+(s9rad*(COS(PI()*A30/180))),NA()) ->  | AP30: =IF(AND($AO$4=TRUE,$AN$8=ListsFlags!$A$13),$AO$5+(s10rad*(SIN(PI()*A30/180))),NA()) ->  | AQ30: =IF(AND($AO$4=TRUE,$AN$8=ListsFlags!$A$13),$AO$6+(s10rad*(COS(PI()*A30/180))),NA()) -> 
A31: 135 | E31: =IF(AND($D$4=TRUE,$C$8=ListsFlags!$A$13),$D$5+(s1rad*(SIN(PI()*Circ!A31/180))),NA()) ->  | F31: =IF(AND($D$4=TRUE,$C$8=ListsFlags!$A$13),$D$6+(s1rad*(COS(PI()*Circ!A31/180))),NA()) ->  | G31: NW | J31: =IF(AND($I$4=TRUE,$H$8=ListsFlags!$A$13),$I$5+(s2rad*(SIN(PI()*A31/180))),NA()) ->  | K31: =IF(AND($I$4=TRUE,$H$8=ListsFlags!$A$13),$I$6+(s2rad*(COS(PI()*A31/180))),NA()) ->  | N31: =IF(AND($M$4=TRUE,$L$8=ListsFlags!$A$13),$M$5+(s3rad*(SIN(PI()*A31/180))),NA()) ->  | O31: =IF(AND($M$4=TRUE,$L$8=ListsFlags!$A$13),$M$6+(s3rad*(COS(PI()*A31/180))),NA()) ->  | R31: =IF(AND($Q$4=TRUE,$P$8=ListsFlags!$A$13),$Q$5+(s4rad*(SIN(PI()*A31/180))),NA()) ->  | S31: =IF(AND($Q$4=TRUE,$P$8=ListsFlags!$A$13),$Q$6+(s4rad*(COS(PI()*A31/180))),NA()) ->  | V31: =IF(AND($U$4=TRUE,$T$8=ListsFlags!$A$13),$U$5+(s5rad*(SIN(PI()*A31/180))),NA()) ->  | W31: =IF(AND($U$4=TRUE,$T$8=ListsFlags!$A$13),$U$6+(s5rad*(COS(PI()*A31/180))),NA()) ->  | Z31: =IF(AND($Y$4=TRUE,$X$8=ListsFlags!$A$13),$Y$5+(s6rad*(SIN(PI()*A31/180))),NA()) ->  | AA31: =IF(AND($Y$4=TRUE,$X$8=ListsFlags!$A$13),$Y$6+(s6rad*(COS(PI()*A31/180))),NA()) ->  | AD31: =IF(AND($AC$4=TRUE,$AB$8=ListsFlags!$A$13),$AC$5+(s7rad*(SIN(PI()*A31/180))),NA()) ->  | AE31: =IF(AND($AC$4=TRUE,$AB$8=ListsFlags!$A$13),$AC$6+(s7rad*(COS(PI()*A31/180))),NA()) ->  | AH31: =IF(AND($AG$4=TRUE,$AF$8=ListsFlags!$A$13),$AG$5+(s8rad*(SIN(PI()*A31/180))),NA()) ->  | AI31: =IF(AND($AG$4=TRUE,$AF$8=ListsFlags!$A$13),$AG$6+(s8rad*(COS(PI()*A31/180))),NA()) ->  | AL31: =IF(AND($AK$4=TRUE,$AJ$8=ListsFlags!$A$13),$AK$5+(s9rad*(SIN(PI()*A31/180))),NA()) ->  | AM31: =IF(AND($AK$4=TRUE,$AJ$8=ListsFlags!$A$13),$AK$6+(s9rad*(COS(PI()*A31/180))),NA()) ->  | AP31: =IF(AND($AO$4=TRUE,$AN$8=ListsFlags!$A$13),$AO$5+(s10rad*(SIN(PI()*A31/180))),NA()) ->  | AQ31: =IF(AND($AO$4=TRUE,$AN$8=ListsFlags!$A$13),$AO$6+(s10rad*(COS(PI()*A31/180))),NA()) -> 
A32: 140 | E32: =IF(AND($D$4=TRUE,$C$8=ListsFlags!$A$13),$D$5+(s1rad*(SIN(PI()*Circ!A32/180))),NA()) ->  | F32: =IF(AND($D$4=TRUE,$C$8=ListsFlags!$A$13),$D$6+(s1rad*(COS(PI()*Circ!A32/180))),NA()) ->  | J32: =IF(AND($I$4=TRUE,$H$8=ListsFlags!$A$13),$I$5+(s2rad*(SIN(PI()*A32/180))),NA()) ->  | K32: =IF(AND($I$4=TRUE,$H$8=ListsFlags!$A$13),$I$6+(s2rad*(COS(PI()*A32/180))),NA()) ->  | N32: =IF(AND($M$4=TRUE,$L$8=ListsFlags!$A$13),$M$5+(s3rad*(SIN(PI()*A32/180))),NA()) ->  | O32: =IF(AND($M$4=TRUE,$L$8=ListsFlags!$A$13),$M$6+(s3rad*(COS(PI()*A32/180))),NA()) ->  | R32: =IF(AND($Q$4=TRUE,$P$8=ListsFlags!$A$13),$Q$5+(s4rad*(SIN(PI()*A32/180))),NA()) ->  | S32: =IF(AND($Q$4=TRUE,$P$8=ListsFlags!$A$13),$Q$6+(s4rad*(COS(PI()*A32/180))),NA()) ->  | V32: =IF(AND($U$4=TRUE,$T$8=ListsFlags!$A$13),$U$5+(s5rad*(SIN(PI()*A32/180))),NA()) ->  | W32: =IF(AND($U$4=TRUE,$T$8=ListsFlags!$A$13),$U$6+(s5rad*(COS(PI()*A32/180))),NA()) ->  | Z32: =IF(AND($Y$4=TRUE,$X$8=ListsFlags!$A$13),$Y$5+(s6rad*(SIN(PI()*A32/180))),NA()) ->  | AA32: =IF(AND($Y$4=TRUE,$X$8=ListsFlags!$A$13),$Y$6+(s6rad*(COS(PI()*A32/180))),NA()) ->  | AD32: =IF(AND($AC$4=TRUE,$AB$8=ListsFlags!$A$13),$AC$5+(s7rad*(SIN(PI()*A32/180))),NA()) ->  | AE32: =IF(AND($AC$4=TRUE,$AB$8=ListsFlags!$A$13),$AC$6+(s7rad*(COS(PI()*A32/180))),NA()) ->  | AH32: =IF(AND($AG$4=TRUE,$AF$8=ListsFlags!$A$13),$AG$5+(s8rad*(SIN(PI()*A32/180))),NA()) ->  | AI32: =IF(AND($AG$4=TRUE,$AF$8=ListsFlags!$A$13),$AG$6+(s8rad*(COS(PI()*A32/180))),NA()) ->  | AL32: =IF(AND($AK$4=TRUE,$AJ$8=ListsFlags!$A$13),$AK$5+(s9rad*(SIN(PI()*A32/180))),NA()) ->  | AM32: =IF(AND($AK$4=TRUE,$AJ$8=ListsFlags!$A$13),$AK$6+(s9rad*(COS(PI()*A32/180))),NA()) ->  | AP32: =IF(AND($AO$4=TRUE,$AN$8=ListsFlags!$A$13),$AO$5+(s10rad*(SIN(PI()*A32/180))),NA()) ->  | AQ32: =IF(AND($AO$4=TRUE,$AN$8=ListsFlags!$A$13),$AO$6+(s10rad*(COS(PI()*A32/180))),NA()) -> 
A33: 145 | E33: =IF(AND($D$4=TRUE,$C$8=ListsFlags!$A$13),$D$5+(s1rad*(SIN(PI()*Circ!A33/180))),NA()) ->  | F33: =IF(AND($D$4=TRUE,$C$8=ListsFlags!$A$13),$D$6+(s1rad*(COS(PI()*Circ!A33/180))),NA()) ->  | J33: =IF(AND($I$4=TRUE,$H$8=ListsFlags!$A$13),$I$5+(s2rad*(SIN(PI()*A33/180))),NA()) ->  | K33: =IF(AND($I$4=TRUE,$H$8=ListsFlags!$A$13),$I$6+(s2rad*(COS(PI()*A33/180))),NA()) ->  | N33: =IF(AND($M$4=TRUE,$L$8=ListsFlags!$A$13),$M$5+(s3rad*(SIN(PI()*A33/180))),NA()) ->  | O33: =IF(AND($M$4=TRUE,$L$8=ListsFlags!$A$13),$M$6+(s3rad*(COS(PI()*A33/180))),NA()) ->  | R33: =IF(AND($Q$4=TRUE,$P$8=ListsFlags!$A$13),$Q$5+(s4rad*(SIN(PI()*A33/180))),NA()) ->  | S33: =IF(AND($Q$4=TRUE,$P$8=ListsFlags!$A$13),$Q$6+(s4rad*(COS(PI()*A33/180))),NA()) ->  | V33: =IF(AND($U$4=TRUE,$T$8=ListsFlags!$A$13),$U$5+(s5rad*(SIN(PI()*A33/180))),NA()) ->  | W33: =IF(AND($U$4=TRUE,$T$8=ListsFlags!$A$13),$U$6+(s5rad*(COS(PI()*A33/180))),NA()) ->  | Z33: =IF(AND($Y$4=TRUE,$X$8=ListsFlags!$A$13),$Y$5+(s6rad*(SIN(PI()*A33/180))),NA()) ->  | AA33: =IF(AND($Y$4=TRUE,$X$8=ListsFlags!$A$13),$Y$6+(s6rad*(COS(PI()*A33/180))),NA()) ->  | AD33: =IF(AND($AC$4=TRUE,$AB$8=ListsFlags!$A$13),$AC$5+(s7rad*(SIN(PI()*A33/180))),NA()) ->  | AE33: =IF(AND($AC$4=TRUE,$AB$8=ListsFlags!$A$13),$AC$6+(s7rad*(COS(PI()*A33/180))),NA()) ->  | AH33: =IF(AND($AG$4=TRUE,$AF$8=ListsFlags!$A$13),$AG$5+(s8rad*(SIN(PI()*A33/180))),NA()) ->  | AI33: =IF(AND($AG$4=TRUE,$AF$8=ListsFlags!$A$13),$AG$6+(s8rad*(COS(PI()*A33/180))),NA()) ->  | AL33: =IF(AND($AK$4=TRUE,$AJ$8=ListsFlags!$A$13),$AK$5+(s9rad*(SIN(PI()*A33/180))),NA()) ->  | AM33: =IF(AND($AK$4=TRUE,$AJ$8=ListsFlags!$A$13),$AK$6+(s9rad*(COS(PI()*A33/180))),NA()) ->  | AP33: =IF(AND($AO$4=TRUE,$AN$8=ListsFlags!$A$13),$AO$5+(s10rad*(SIN(PI()*A33/180))),NA()) ->  | AQ33: =IF(AND($AO$4=TRUE,$AN$8=ListsFlags!$A$13),$AO$6+(s10rad*(COS(PI()*A33/180))),NA()) -> 
A34: 150 | E34: =IF(AND($D$4=TRUE,$C$8=ListsFlags!$A$13),$D$5+(s1rad*(SIN(PI()*Circ!A34/180))),NA()) ->  | F34: =IF(AND($D$4=TRUE,$C$8=ListsFlags!$A$13),$D$6+(s1rad*(COS(PI()*Circ!A34/180))),NA()) ->  | J34: =IF(AND($I$4=TRUE,$H$8=ListsFlags!$A$13),$I$5+(s2rad*(SIN(PI()*A34/180))),NA()) ->  | K34: =IF(AND($I$4=TRUE,$H$8=ListsFlags!$A$13),$I$6+(s2rad*(COS(PI()*A34/180))),NA()) ->  | N34: =IF(AND($M$4=TRUE,$L$8=ListsFlags!$A$13),$M$5+(s3rad*(SIN(PI()*A34/180))),NA()) ->  | O34: =IF(AND($M$4=TRUE,$L$8=ListsFlags!$A$13),$M$6+(s3rad*(COS(PI()*A34/180))),NA()) ->  | R34: =IF(AND($Q$4=TRUE,$P$8=ListsFlags!$A$13),$Q$5+(s4rad*(SIN(PI()*A34/180))),NA()) ->  | S34: =IF(AND($Q$4=TRUE,$P$8=ListsFlags!$A$13),$Q$6+(s4rad*(COS(PI()*A34/180))),NA()) ->  | V34: =IF(AND($U$4=TRUE,$T$8=ListsFlags!$A$13),$U$5+(s5rad*(SIN(PI()*A34/180))),NA()) ->  | W34: =IF(AND($U$4=TRUE,$T$8=ListsFlags!$A$13),$U$6+(s5rad*(COS(PI()*A34/180))),NA()) ->  | Z34: =IF(AND($Y$4=TRUE,$X$8=ListsFlags!$A$13),$Y$5+(s6rad*(SIN(PI()*A34/180))),NA()) ->  | AA34: =IF(AND($Y$4=TRUE,$X$8=ListsFlags!$A$13),$Y$6+(s6rad*(COS(PI()*A34/180))),NA()) ->  | AD34: =IF(AND($AC$4=TRUE,$AB$8=ListsFlags!$A$13),$AC$5+(s7rad*(SIN(PI()*A34/180))),NA()) ->  | AE34: =IF(AND($AC$4=TRUE,$AB$8=ListsFlags!$A$13),$AC$6+(s7rad*(COS(PI()*A34/180))),NA()) ->  | AH34: =IF(AND($AG$4=TRUE,$AF$8=ListsFlags!$A$13),$AG$5+(s8rad*(SIN(PI()*A34/180))),NA()) ->  | AI34: =IF(AND($AG$4=TRUE,$AF$8=ListsFlags!$A$13),$AG$6+(s8rad*(COS(PI()*A34/180))),NA()) ->  | AL34: =IF(AND($AK$4=TRUE,$AJ$8=ListsFlags!$A$13),$AK$5+(s9rad*(SIN(PI()*A34/180))),NA()) ->  | AM34: =IF(AND($AK$4=TRUE,$AJ$8=ListsFlags!$A$13),$AK$6+(s9rad*(COS(PI()*A34/180))),NA()) ->  | AP34: =IF(AND($AO$4=TRUE,$AN$8=ListsFlags!$A$13),$AO$5+(s10rad*(SIN(PI()*A34/180))),NA()) ->  | AQ34: =IF(AND($AO$4=TRUE,$AN$8=ListsFlags!$A$13),$AO$6+(s10rad*(COS(PI()*A34/180))),NA()) -> 
A35: 155 | E35: =IF(AND($D$4=TRUE,$C$8=ListsFlags!$A$13),$D$5+(s1rad*(SIN(PI()*Circ!A35/180))),NA()) ->  | F35: =IF(AND($D$4=TRUE,$C$8=ListsFlags!$A$13),$D$6+(s1rad*(COS(PI()*Circ!A35/180))),NA()) ->  | J35: =IF(AND($I$4=TRUE,$H$8=ListsFlags!$A$13),$I$5+(s2rad*(SIN(PI()*A35/180))),NA()) ->  | K35: =IF(AND($I$4=TRUE,$H$8=ListsFlags!$A$13),$I$6+(s2rad*(COS(PI()*A35/180))),NA()) ->  | N35: =IF(AND($M$4=TRUE,$L$8=ListsFlags!$A$13),$M$5+(s3rad*(SIN(PI()*A35/180))),NA()) ->  | O35: =IF(AND($M$4=TRUE,$L$8=ListsFlags!$A$13),$M$6+(s3rad*(COS(PI()*A35/180))),NA()) ->  | R35: =IF(AND($Q$4=TRUE,$P$8=ListsFlags!$A$13),$Q$5+(s4rad*(SIN(PI()*A35/180))),NA()) ->  | S35: =IF(AND($Q$4=TRUE,$P$8=ListsFlags!$A$13),$Q$6+(s4rad*(COS(PI()*A35/180))),NA()) ->  | V35: =IF(AND($U$4=TRUE,$T$8=ListsFlags!$A$13),$U$5+(s5rad*(SIN(PI()*A35/180))),NA()) ->  | W35: =IF(AND($U$4=TRUE,$T$8=ListsFlags!$A$13),$U$6+(s5rad*(COS(PI()*A35/180))),NA()) ->  | Z35: =IF(AND($Y$4=TRUE,$X$8=ListsFlags!$A$13),$Y$5+(s6rad*(SIN(PI()*A35/180))),NA()) ->  | AA35: =IF(AND($Y$4=TRUE,$X$8=ListsFlags!$A$13),$Y$6+(s6rad*(COS(PI()*A35/180))),NA()) ->  | AD35: =IF(AND($AC$4=TRUE,$AB$8=ListsFlags!$A$13),$AC$5+(s7rad*(SIN(PI()*A35/180))),NA()) ->  | AE35: =IF(AND($AC$4=TRUE,$AB$8=ListsFlags!$A$13),$AC$6+(s7rad*(COS(PI()*A35/180))),NA()) ->  | AH35: =IF(AND($AG$4=TRUE,$AF$8=ListsFlags!$A$13),$AG$5+(s8rad*(SIN(PI()*A35/180))),NA()) ->  | AI35: =IF(AND($AG$4=TRUE,$AF$8=ListsFlags!$A$13),$AG$6+(s8rad*(COS(PI()*A35/180))),NA()) ->  | AL35: =IF(AND($AK$4=TRUE,$AJ$8=ListsFlags!$A$13),$AK$5+(s9rad*(SIN(PI()*A35/180))),NA()) ->  | AM35: =IF(AND($AK$4=TRUE,$AJ$8=ListsFlags!$A$13),$AK$6+(s9rad*(COS(PI()*A35/180))),NA()) ->  | AP35: =IF(AND($AO$4=TRUE,$AN$8=ListsFlags!$A$13),$AO$5+(s10rad*(SIN(PI()*A35/180))),NA()) ->  | AQ35: =IF(AND($AO$4=TRUE,$AN$8=ListsFlags!$A$13),$AO$6+(s10rad*(COS(PI()*A35/180))),NA()) -> 
A36: 160 | E36: =IF(AND($D$4=TRUE,$C$8=ListsFlags!$A$13),$D$5+(s1rad*(SIN(PI()*Circ!A36/180))),NA()) ->  | F36: =IF(AND($D$4=TRUE,$C$8=ListsFlags!$A$13),$D$6+(s1rad*(COS(PI()*Circ!A36/180))),NA()) ->  | J36: =IF(AND($I$4=TRUE,$H$8=ListsFlags!$A$13),$I$5+(s2rad*(SIN(PI()*A36/180))),NA()) ->  | K36: =IF(AND($I$4=TRUE,$H$8=ListsFlags!$A$13),$I$6+(s2rad*(COS(PI()*A36/180))),NA()) ->  | N36: =IF(AND($M$4=TRUE,$L$8=ListsFlags!$A$13),$M$5+(s3rad*(SIN(PI()*A36/180))),NA()) ->  | O36: =IF(AND($M$4=TRUE,$L$8=ListsFlags!$A$13),$M$6+(s3rad*(COS(PI()*A36/180))),NA()) ->  | R36: =IF(AND($Q$4=TRUE,$P$8=ListsFlags!$A$13),$Q$5+(s4rad*(SIN(PI()*A36/180))),NA()) ->  | S36: =IF(AND($Q$4=TRUE,$P$8=ListsFlags!$A$13),$Q$6+(s4rad*(COS(PI()*A36/180))),NA()) ->  | V36: =IF(AND($U$4=TRUE,$T$8=ListsFlags!$A$13),$U$5+(s5rad*(SIN(PI()*A36/180))),NA()) ->  | W36: =IF(AND($U$4=TRUE,$T$8=ListsFlags!$A$13),$U$6+(s5rad*(COS(PI()*A36/180))),NA()) ->  | Z36: =IF(AND($Y$4=TRUE,$X$8=ListsFlags!$A$13),$Y$5+(s6rad*(SIN(PI()*A36/180))),NA()) ->  | AA36: =IF(AND($Y$4=TRUE,$X$8=ListsFlags!$A$13),$Y$6+(s6rad*(COS(PI()*A36/180))),NA()) ->  | AD36: =IF(AND($AC$4=TRUE,$AB$8=ListsFlags!$A$13),$AC$5+(s7rad*(SIN(PI()*A36/180))),NA()) ->  | AE36: =IF(AND($AC$4=TRUE,$AB$8=ListsFlags!$A$13),$AC$6+(s7rad*(COS(PI()*A36/180))),NA()) ->  | AH36: =IF(AND($AG$4=TRUE,$AF$8=ListsFlags!$A$13),$AG$5+(s8rad*(SIN(PI()*A36/180))),NA()) ->  | AI36: =IF(AND($AG$4=TRUE,$AF$8=ListsFlags!$A$13),$AG$6+(s8rad*(COS(PI()*A36/180))),NA()) ->  | AL36: =IF(AND($AK$4=TRUE,$AJ$8=ListsFlags!$A$13),$AK$5+(s9rad*(SIN(PI()*A36/180))),NA()) ->  | AM36: =IF(AND($AK$4=TRUE,$AJ$8=ListsFlags!$A$13),$AK$6+(s9rad*(COS(PI()*A36/180))),NA()) ->  | AP36: =IF(AND($AO$4=TRUE,$AN$8=ListsFlags!$A$13),$AO$5+(s10rad*(SIN(PI()*A36/180))),NA()) ->  | AQ36: =IF(AND($AO$4=TRUE,$AN$8=ListsFlags!$A$13),$AO$6+(s10rad*(COS(PI()*A36/180))),NA()) ->  | AT36: =IF($AS$4=TRUE,$AS$5+(circleradius*(SIN(PI()*A36/180))),"") ->  | AU36: =IF($AS$4=TRUE,$AS$6+(circleradius*(COS(PI()*A36/180))),"") ->  | AY36: =IF(AND(AT36=0,AU36=0),sitelatitude,(DEGREES(ASIN(SIN(RADIANS(sitelatitude))*COS((SQRT(AT36^2+AU36^2)/3.28)/RadiusEarth)+COS(RADIANS(sitelatitude))*SIN((SQRT(AT36^2+AU36^2)/3.28)/RadiusEarth)*COS(RADIANS((IF(AU36>=0,DEGREES(ATAN2(AT36,AU36)),360+DEGREES(ATAN2(AT36,AU36)))))))))) ->  | AZ36: =sitelongitude+IF(AND(AT36=0,AU36=0),0,DEGREES(ATAN2(COS((SQRT(AT36^2+AU36^2)/3.28)/RadiusEarth)-SIN(RADIANS(sitelatitude))*SIN(RADIANS(AY36)),SIN(RADIANS((IF(AU36>=0,DEGREES(ATAN2(AT36,AU36)),360+DEGREES(ATAN2(AT36,AU36))))))*SIN((SQRT(AT36^2+AU36^2)/3.28)/RadiusEarth)*COS(RADIANS(sitelatitude))))) -> 
A37: 165 | E37: =IF(AND($D$4=TRUE,$C$8=ListsFlags!$A$13),$D$5+(s1rad*(SIN(PI()*Circ!A37/180))),NA()) ->  | F37: =IF(AND($D$4=TRUE,$C$8=ListsFlags!$A$13),$D$6+(s1rad*(COS(PI()*Circ!A37/180))),NA()) ->  | J37: =IF(AND($I$4=TRUE,$H$8=ListsFlags!$A$13),$I$5+(s2rad*(SIN(PI()*A37/180))),NA()) ->  | K37: =IF(AND($I$4=TRUE,$H$8=ListsFlags!$A$13),$I$6+(s2rad*(COS(PI()*A37/180))),NA()) ->  | N37: =IF(AND($M$4=TRUE,$L$8=ListsFlags!$A$13),$M$5+(s3rad*(SIN(PI()*A37/180))),NA()) ->  | O37: =IF(AND($M$4=TRUE,$L$8=ListsFlags!$A$13),$M$6+(s3rad*(COS(PI()*A37/180))),NA()) ->  | R37: =IF(AND($Q$4=TRUE,$P$8=ListsFlags!$A$13),$Q$5+(s4rad*(SIN(PI()*A37/180))),NA()) ->  | S37: =IF(AND($Q$4=TRUE,$P$8=ListsFlags!$A$13),$Q$6+(s4rad*(COS(PI()*A37/180))),NA()) ->  | V37: =IF(AND($U$4=TRUE,$T$8=ListsFlags!$A$13),$U$5+(s5rad*(SIN(PI()*A37/180))),NA()) ->  | W37: =IF(AND($U$4=TRUE,$T$8=ListsFlags!$A$13),$U$6+(s5rad*(COS(PI()*A37/180))),NA()) ->  | Z37: =IF(AND($Y$4=TRUE,$X$8=ListsFlags!$A$13),$Y$5+(s6rad*(SIN(PI()*A37/180))),NA()) ->  | AA37: =IF(AND($Y$4=TRUE,$X$8=ListsFlags!$A$13),$Y$6+(s6rad*(COS(PI()*A37/180))),NA()) ->  | AD37: =IF(AND($AC$4=TRUE,$AB$8=ListsFlags!$A$13),$AC$5+(s7rad*(SIN(PI()*A37/180))),NA()) ->  | AE37: =IF(AND($AC$4=TRUE,$AB$8=ListsFlags!$A$13),$AC$6+(s7rad*(COS(PI()*A37/180))),NA()) ->  | AH37: =IF(AND($AG$4=TRUE,$AF$8=ListsFlags!$A$13),$AG$5+(s8rad*(SIN(PI()*A37/180))),NA()) ->  | AI37: =IF(AND($AG$4=TRUE,$AF$8=ListsFlags!$A$13),$AG$6+(s8rad*(COS(PI()*A37/180))),NA()) ->  | AL37: =IF(AND($AK$4=TRUE,$AJ$8=ListsFlags!$A$13),$AK$5+(s9rad*(SIN(PI()*A37/180))),NA()) ->  | AM37: =IF(AND($AK$4=TRUE,$AJ$8=ListsFlags!$A$13),$AK$6+(s9rad*(COS(PI()*A37/180))),NA()) ->  | AP37: =IF(AND($AO$4=TRUE,$AN$8=ListsFlags!$A$13),$AO$5+(s10rad*(SIN(PI()*A37/180))),NA()) ->  | AQ37: =IF(AND($AO$4=TRUE,$AN$8=ListsFlags!$A$13),$AO$6+(s10rad*(COS(PI()*A37/180))),NA()) -> 
A38: 170 | E38: =IF(AND($D$4=TRUE,$C$8=ListsFlags!$A$13),$D$5+(s1rad*(SIN(PI()*Circ!A38/180))),NA()) ->  | F38: =IF(AND($D$4=TRUE,$C$8=ListsFlags!$A$13),$D$6+(s1rad*(COS(PI()*Circ!A38/180))),NA()) ->  | J38: =IF(AND($I$4=TRUE,$H$8=ListsFlags!$A$13),$I$5+(s2rad*(SIN(PI()*A38/180))),NA()) ->  | K38: =IF(AND($I$4=TRUE,$H$8=ListsFlags!$A$13),$I$6+(s2rad*(COS(PI()*A38/180))),NA()) ->  | N38: =IF(AND($M$4=TRUE,$L$8=ListsFlags!$A$13),$M$5+(s3rad*(SIN(PI()*A38/180))),NA()) ->  | O38: =IF(AND($M$4=TRUE,$L$8=ListsFlags!$A$13),$M$6+(s3rad*(COS(PI()*A38/180))),NA()) ->  | R38: =IF(AND($Q$4=TRUE,$P$8=ListsFlags!$A$13),$Q$5+(s4rad*(SIN(PI()*A38/180))),NA()) ->  | S38: =IF(AND($Q$4=TRUE,$P$8=ListsFlags!$A$13),$Q$6+(s4rad*(COS(PI()*A38/180))),NA()) ->  | V38: =IF(AND($U$4=TRUE,$T$8=ListsFlags!$A$13),$U$5+(s5rad*(SIN(PI()*A38/180))),NA()) ->  | W38: =IF(AND($U$4=TRUE,$T$8=ListsFlags!$A$13),$U$6+(s5rad*(COS(PI()*A38/180))),NA()) ->  | Z38: =IF(AND($Y$4=TRUE,$X$8=ListsFlags!$A$13),$Y$5+(s6rad*(SIN(PI()*A38/180))),NA()) ->  | AA38: =IF(AND($Y$4=TRUE,$X$8=ListsFlags!$A$13),$Y$6+(s6rad*(COS(PI()*A38/180))),NA()) ->  | AD38: =IF(AND($AC$4=TRUE,$AB$8=ListsFlags!$A$13),$AC$5+(s7rad*(SIN(PI()*A38/180))),NA()) ->  | AE38: =IF(AND($AC$4=TRUE,$AB$8=ListsFlags!$A$13),$AC$6+(s7rad*(COS(PI()*A38/180))),NA()) ->  | AH38: =IF(AND($AG$4=TRUE,$AF$8=ListsFlags!$A$13),$AG$5+(s8rad*(SIN(PI()*A38/180))),NA()) ->  | AI38: =IF(AND($AG$4=TRUE,$AF$8=ListsFlags!$A$13),$AG$6+(s8rad*(COS(PI()*A38/180))),NA()) ->  | AL38: =IF(AND($AK$4=TRUE,$AJ$8=ListsFlags!$A$13),$AK$5+(s9rad*(SIN(PI()*A38/180))),NA()) ->  | AM38: =IF(AND($AK$4=TRUE,$AJ$8=ListsFlags!$A$13),$AK$6+(s9rad*(COS(PI()*A38/180))),NA()) ->  | AP38: =IF(AND($AO$4=TRUE,$AN$8=ListsFlags!$A$13),$AO$5+(s10rad*(SIN(PI()*A38/180))),NA()) ->  | AQ38: =IF(AND($AO$4=TRUE,$AN$8=ListsFlags!$A$13),$AO$6+(s10rad*(COS(PI()*A38/180))),NA()) -> 
A39: 175 | E39: =IF(AND($D$4=TRUE,$C$8=ListsFlags!$A$13),$D$5+(s1rad*(SIN(PI()*Circ!A39/180))),NA()) ->  | F39: =IF(AND($D$4=TRUE,$C$8=ListsFlags!$A$13),$D$6+(s1rad*(COS(PI()*Circ!A39/180))),NA()) ->  | J39: =IF(AND($I$4=TRUE,$H$8=ListsFlags!$A$13),$I$5+(s2rad*(SIN(PI()*A39/180))),NA()) ->  | K39: =IF(AND($I$4=TRUE,$H$8=ListsFlags!$A$13),$I$6+(s2rad*(COS(PI()*A39/180))),NA()) ->  | N39: =IF(AND($M$4=TRUE,$L$8=ListsFlags!$A$13),$M$5+(s3rad*(SIN(PI()*A39/180))),NA()) ->  | O39: =IF(AND($M$4=TRUE,$L$8=ListsFlags!$A$13),$M$6+(s3rad*(COS(PI()*A39/180))),NA()) ->  | R39: =IF(AND($Q$4=TRUE,$P$8=ListsFlags!$A$13),$Q$5+(s4rad*(SIN(PI()*A39/180))),NA()) ->  | S39: =IF(AND($Q$4=TRUE,$P$8=ListsFlags!$A$13),$Q$6+(s4rad*(COS(PI()*A39/180))),NA()) ->  | V39: =IF(AND($U$4=TRUE,$T$8=ListsFlags!$A$13),$U$5+(s5rad*(SIN(PI()*A39/180))),NA()) ->  | W39: =IF(AND($U$4=TRUE,$T$8=ListsFlags!$A$13),$U$6+(s5rad*(COS(PI()*A39/180))),NA()) ->  | Z39: =IF(AND($Y$4=TRUE,$X$8=ListsFlags!$A$13),$Y$5+(s6rad*(SIN(PI()*A39/180))),NA()) ->  | AA39: =IF(AND($Y$4=TRUE,$X$8=ListsFlags!$A$13),$Y$6+(s6rad*(COS(PI()*A39/180))),NA()) ->  | AD39: =IF(AND($AC$4=TRUE,$AB$8=ListsFlags!$A$13),$AC$5+(s7rad*(SIN(PI()*A39/180))),NA()) ->  | AE39: =IF(AND($AC$4=TRUE,$AB$8=ListsFlags!$A$13),$AC$6+(s7rad*(COS(PI()*A39/180))),NA()) ->  | AH39: =IF(AND($AG$4=TRUE,$AF$8=ListsFlags!$A$13),$AG$5+(s8rad*(SIN(PI()*A39/180))),NA()) ->  | AI39: =IF(AND($AG$4=TRUE,$AF$8=ListsFlags!$A$13),$AG$6+(s8rad*(COS(PI()*A39/180))),NA()) ->  | AL39: =IF(AND($AK$4=TRUE,$AJ$8=ListsFlags!$A$13),$AK$5+(s9rad*(SIN(PI()*A39/180))),NA()) ->  | AM39: =IF(AND($AK$4=TRUE,$AJ$8=ListsFlags!$A$13),$AK$6+(s9rad*(COS(PI()*A39/180))),NA()) ->  | AP39: =IF(AND($AO$4=TRUE,$AN$8=ListsFlags!$A$13),$AO$5+(s10rad*(SIN(PI()*A39/180))),NA()) ->  | AQ39: =IF(AND($AO$4=TRUE,$AN$8=ListsFlags!$A$13),$AO$6+(s10rad*(COS(PI()*A39/180))),NA()) -> 
A40: 180 | E40: =IF(AND($D$4=TRUE,$C$8=ListsFlags!$A$13),$D$5+(s1rad*(SIN(PI()*Circ!A40/180))),NA()) ->  | F40: =IF(AND($D$4=TRUE,$C$8=ListsFlags!$A$13),$D$6+(s1rad*(COS(PI()*Circ!A40/180))),NA()) ->  | G40: W | J40: =IF(AND($I$4=TRUE,$H$8=ListsFlags!$A$13),$I$5+(s2rad*(SIN(PI()*A40/180))),NA()) ->  | K40: =IF(AND($I$4=TRUE,$H$8=ListsFlags!$A$13),$I$6+(s2rad*(COS(PI()*A40/180))),NA()) ->  | N40: =IF(AND($M$4=TRUE,$L$8=ListsFlags!$A$13),$M$5+(s3rad*(SIN(PI()*A40/180))),NA()) ->  | O40: =IF(AND($M$4=TRUE,$L$8=ListsFlags!$A$13),$M$6+(s3rad*(COS(PI()*A40/180))),NA()) ->  | R40: =IF(AND($Q$4=TRUE,$P$8=ListsFlags!$A$13),$Q$5+(s4rad*(SIN(PI()*A40/180))),NA()) ->  | S40: =IF(AND($Q$4=TRUE,$P$8=ListsFlags!$A$13),$Q$6+(s4rad*(COS(PI()*A40/180))),NA()) ->  | V40: =IF(AND($U$4=TRUE,$T$8=ListsFlags!$A$13),$U$5+(s5rad*(SIN(PI()*A40/180))),NA()) ->  | W40: =IF(AND($U$4=TRUE,$T$8=ListsFlags!$A$13),$U$6+(s5rad*(COS(PI()*A40/180))),NA()) ->  | Z40: =IF(AND($Y$4=TRUE,$X$8=ListsFlags!$A$13),$Y$5+(s6rad*(SIN(PI()*A40/180))),NA()) ->  | AA40: =IF(AND($Y$4=TRUE,$X$8=ListsFlags!$A$13),$Y$6+(s6rad*(COS(PI()*A40/180))),NA()) ->  | AD40: =IF(AND($AC$4=TRUE,$AB$8=ListsFlags!$A$13),$AC$5+(s7rad*(SIN(PI()*A40/180))),NA()) ->  | AE40: =IF(AND($AC$4=TRUE,$AB$8=ListsFlags!$A$13),$AC$6+(s7rad*(COS(PI()*A40/180))),NA()) ->  | AH40: =IF(AND($AG$4=TRUE,$AF$8=ListsFlags!$A$13),$AG$5+(s8rad*(SIN(PI()*A40/180))),NA()) ->  | AI40: =IF(AND($AG$4=TRUE,$AF$8=ListsFlags!$A$13),$AG$6+(s8rad*(COS(PI()*A40/180))),NA()) ->  | AL40: =IF(AND($AK$4=TRUE,$AJ$8=ListsFlags!$A$13),$AK$5+(s9rad*(SIN(PI()*A40/180))),NA()) ->  | AM40: =IF(AND($AK$4=TRUE,$AJ$8=ListsFlags!$A$13),$AK$6+(s9rad*(COS(PI()*A40/180))),NA()) ->  | AP40: =IF(AND($AO$4=TRUE,$AN$8=ListsFlags!$A$13),$AO$5+(s10rad*(SIN(PI()*A40/180))),NA()) ->  | AQ40: =IF(AND($AO$4=TRUE,$AN$8=ListsFlags!$A$13),$AO$6+(s10rad*(COS(PI()*A40/180))),NA()) -> 
A41: 185 | E41: =IF(AND($D$4=TRUE,$C$8=ListsFlags!$A$13),$D$5+(s1rad*(SIN(PI()*Circ!A41/180))),NA()) ->  | F41: =IF(AND($D$4=TRUE,$C$8=ListsFlags!$A$13),$D$6+(s1rad*(COS(PI()*Circ!A41/180))),NA()) ->  | J41: =IF(AND($I$4=TRUE,$H$8=ListsFlags!$A$13),$I$5+(s2rad*(SIN(PI()*A41/180))),NA()) ->  | K41: =IF(AND($I$4=TRUE,$H$8=ListsFlags!$A$13),$I$6+(s2rad*(COS(PI()*A41/180))),NA()) ->  | N41: =IF(AND($M$4=TRUE,$L$8=ListsFlags!$A$13),$M$5+(s3rad*(SIN(PI()*A41/180))),NA()) ->  | O41: =IF(AND($M$4=TRUE,$L$8=ListsFlags!$A$13),$M$6+(s3rad*(COS(PI()*A41/180))),NA()) ->  | R41: =IF(AND($Q$4=TRUE,$P$8=ListsFlags!$A$13),$Q$5+(s4rad*(SIN(PI()*A41/180))),NA()) ->  | S41: =IF(AND($Q$4=TRUE,$P$8=ListsFlags!$A$13),$Q$6+(s4rad*(COS(PI()*A41/180))),NA()) ->  | V41: =IF(AND($U$4=TRUE,$T$8=ListsFlags!$A$13),$U$5+(s5rad*(SIN(PI()*A41/180))),NA()) ->  | W41: =IF(AND($U$4=TRUE,$T$8=ListsFlags!$A$13),$U$6+(s5rad*(COS(PI()*A41/180))),NA()) ->  | Z41: =IF(AND($Y$4=TRUE,$X$8=ListsFlags!$A$13),$Y$5+(s6rad*(SIN(PI()*A41/180))),NA()) ->  | AA41: =IF(AND($Y$4=TRUE,$X$8=ListsFlags!$A$13),$Y$6+(s6rad*(COS(PI()*A41/180))),NA()) ->  | AD41: =IF(AND($AC$4=TRUE,$AB$8=ListsFlags!$A$13),$AC$5+(s7rad*(SIN(PI()*A41/180))),NA()) ->  | AE41: =IF(AND($AC$4=TRUE,$AB$8=ListsFlags!$A$13),$AC$6+(s7rad*(COS(PI()*A41/180))),NA()) ->  | AH41: =IF(AND($AG$4=TRUE,$AF$8=ListsFlags!$A$13),$AG$5+(s8rad*(SIN(PI()*A41/180))),NA()) ->  | AI41: =IF(AND($AG$4=TRUE,$AF$8=ListsFlags!$A$13),$AG$6+(s8rad*(COS(PI()*A41/180))),NA()) ->  | AL41: =IF(AND($AK$4=TRUE,$AJ$8=ListsFlags!$A$13),$AK$5+(s9rad*(SIN(PI()*A41/180))),NA()) ->  | AM41: =IF(AND($AK$4=TRUE,$AJ$8=ListsFlags!$A$13),$AK$6+(s9rad*(COS(PI()*A41/180))),NA()) ->  | AP41: =IF(AND($AO$4=TRUE,$AN$8=ListsFlags!$A$13),$AO$5+(s10rad*(SIN(PI()*A41/180))),NA()) ->  | AQ41: =IF(AND($AO$4=TRUE,$AN$8=ListsFlags!$A$13),$AO$6+(s10rad*(COS(PI()*A41/180))),NA()) -> 
A42: 190 | E42: =IF(AND($D$4=TRUE,$C$8=ListsFlags!$A$13),$D$5+(s1rad*(SIN(PI()*Circ!A42/180))),NA()) ->  | F42: =IF(AND($D$4=TRUE,$C$8=ListsFlags!$A$13),$D$6+(s1rad*(COS(PI()*Circ!A42/180))),NA()) ->  | J42: =IF(AND($I$4=TRUE,$H$8=ListsFlags!$A$13),$I$5+(s2rad*(SIN(PI()*A42/180))),NA()) ->  | K42: =IF(AND($I$4=TRUE,$H$8=ListsFlags!$A$13),$I$6+(s2rad*(COS(PI()*A42/180))),NA()) ->  | N42: =IF(AND($M$4=TRUE,$L$8=ListsFlags!$A$13),$M$5+(s3rad*(SIN(PI()*A42/180))),NA()) ->  | O42: =IF(AND($M$4=TRUE,$L$8=ListsFlags!$A$13),$M$6+(s3rad*(COS(PI()*A42/180))),NA()) ->  | R42: =IF(AND($Q$4=TRUE,$P$8=ListsFlags!$A$13),$Q$5+(s4rad*(SIN(PI()*A42/180))),NA()) ->  | S42: =IF(AND($Q$4=TRUE,$P$8=ListsFlags!$A$13),$Q$6+(s4rad*(COS(PI()*A42/180))),NA()) ->  | V42: =IF(AND($U$4=TRUE,$T$8=ListsFlags!$A$13),$U$5+(s5rad*(SIN(PI()*A42/180))),NA()) ->  | W42: =IF(AND($U$4=TRUE,$T$8=ListsFlags!$A$13),$U$6+(s5rad*(COS(PI()*A42/180))),NA()) ->  | Z42: =IF(AND($Y$4=TRUE,$X$8=ListsFlags!$A$13),$Y$5+(s6rad*(SIN(PI()*A42/180))),NA()) ->  | AA42: =IF(AND($Y$4=TRUE,$X$8=ListsFlags!$A$13),$Y$6+(s6rad*(COS(PI()*A42/180))),NA()) ->  | AD42: =IF(AND($AC$4=TRUE,$AB$8=ListsFlags!$A$13),$AC$5+(s7rad*(SIN(PI()*A42/180))),NA()) ->  | AE42: =IF(AND($AC$4=TRUE,$AB$8=ListsFlags!$A$13),$AC$6+(s7rad*(COS(PI()*A42/180))),NA()) ->  | AH42: =IF(AND($AG$4=TRUE,$AF$8=ListsFlags!$A$13),$AG$5+(s8rad*(SIN(PI()*A42/180))),NA()) ->  | AI42: =IF(AND($AG$4=TRUE,$AF$8=ListsFlags!$A$13),$AG$6+(s8rad*(COS(PI()*A42/180))),NA()) ->  | AL42: =IF(AND($AK$4=TRUE,$AJ$8=ListsFlags!$A$13),$AK$5+(s9rad*(SIN(PI()*A42/180))),NA()) ->  | AM42: =IF(AND($AK$4=TRUE,$AJ$8=ListsFlags!$A$13),$AK$6+(s9rad*(COS(PI()*A42/180))),NA()) ->  | AP42: =IF(AND($AO$4=TRUE,$AN$8=ListsFlags!$A$13),$AO$5+(s10rad*(SIN(PI()*A42/180))),NA()) ->  | AQ42: =IF(AND($AO$4=TRUE,$AN$8=ListsFlags!$A$13),$AO$6+(s10rad*(COS(PI()*A42/180))),NA()) -> 
A43: 195 | E43: =IF(AND($D$4=TRUE,$C$8=ListsFlags!$A$13),$D$5+(s1rad*(SIN(PI()*Circ!A43/180))),NA()) ->  | F43: =IF(AND($D$4=TRUE,$C$8=ListsFlags!$A$13),$D$6+(s1rad*(COS(PI()*Circ!A43/180))),NA()) ->  | J43: =IF(AND($I$4=TRUE,$H$8=ListsFlags!$A$13),$I$5+(s2rad*(SIN(PI()*A43/180))),NA()) ->  | K43: =IF(AND($I$4=TRUE,$H$8=ListsFlags!$A$13),$I$6+(s2rad*(COS(PI()*A43/180))),NA()) ->  | N43: =IF(AND($M$4=TRUE,$L$8=ListsFlags!$A$13),$M$5+(s3rad*(SIN(PI()*A43/180))),NA()) ->  | O43: =IF(AND($M$4=TRUE,$L$8=ListsFlags!$A$13),$M$6+(s3rad*(COS(PI()*A43/180))),NA()) ->  | R43: =IF(AND($Q$4=TRUE,$P$8=ListsFlags!$A$13),$Q$5+(s4rad*(SIN(PI()*A43/180))),NA()) ->  | S43: =IF(AND($Q$4=TRUE,$P$8=ListsFlags!$A$13),$Q$6+(s4rad*(COS(PI()*A43/180))),NA()) ->  | V43: =IF(AND($U$4=TRUE,$T$8=ListsFlags!$A$13),$U$5+(s5rad*(SIN(PI()*A43/180))),NA()) ->  | W43: =IF(AND($U$4=TRUE,$T$8=ListsFlags!$A$13),$U$6+(s5rad*(COS(PI()*A43/180))),NA()) ->  | Z43: =IF(AND($Y$4=TRUE,$X$8=ListsFlags!$A$13),$Y$5+(s6rad*(SIN(PI()*A43/180))),NA()) ->  | AA43: =IF(AND($Y$4=TRUE,$X$8=ListsFlags!$A$13),$Y$6+(s6rad*(COS(PI()*A43/180))),NA()) ->  | AD43: =IF(AND($AC$4=TRUE,$AB$8=ListsFlags!$A$13),$AC$5+(s7rad*(SIN(PI()*A43/180))),NA()) ->  | AE43: =IF(AND($AC$4=TRUE,$AB$8=ListsFlags!$A$13),$AC$6+(s7rad*(COS(PI()*A43/180))),NA()) ->  | AH43: =IF(AND($AG$4=TRUE,$AF$8=ListsFlags!$A$13),$AG$5+(s8rad*(SIN(PI()*A43/180))),NA()) ->  | AI43: =IF(AND($AG$4=TRUE,$AF$8=ListsFlags!$A$13),$AG$6+(s8rad*(COS(PI()*A43/180))),NA()) ->  | AL43: =IF(AND($AK$4=TRUE,$AJ$8=ListsFlags!$A$13),$AK$5+(s9rad*(SIN(PI()*A43/180))),NA()) ->  | AM43: =IF(AND($AK$4=TRUE,$AJ$8=ListsFlags!$A$13),$AK$6+(s9rad*(COS(PI()*A43/180))),NA()) ->  | AP43: =IF(AND($AO$4=TRUE,$AN$8=ListsFlags!$A$13),$AO$5+(s10rad*(SIN(PI()*A43/180))),NA()) ->  | AQ43: =IF(AND($AO$4=TRUE,$AN$8=ListsFlags!$A$13),$AO$6+(s10rad*(COS(PI()*A43/180))),NA()) -> 
A44: 200 | E44: =IF(AND($D$4=TRUE,$C$8=ListsFlags!$A$13),$D$5+(s1rad*(SIN(PI()*Circ!A44/180))),NA()) ->  | F44: =IF(AND($D$4=TRUE,$C$8=ListsFlags!$A$13),$D$6+(s1rad*(COS(PI()*Circ!A44/180))),NA()) ->  | J44: =IF(AND($I$4=TRUE,$H$8=ListsFlags!$A$13),$I$5+(s2rad*(SIN(PI()*A44/180))),NA()) ->  | K44: =IF(AND($I$4=TRUE,$H$8=ListsFlags!$A$13),$I$6+(s2rad*(COS(PI()*A44/180))),NA()) ->  | N44: =IF(AND($M$4=TRUE,$L$8=ListsFlags!$A$13),$M$5+(s3rad*(SIN(PI()*A44/180))),NA()) ->  | O44: =IF(AND($M$4=TRUE,$L$8=ListsFlags!$A$13),$M$6+(s3rad*(COS(PI()*A44/180))),NA()) ->  | R44: =IF(AND($Q$4=TRUE,$P$8=ListsFlags!$A$13),$Q$5+(s4rad*(SIN(PI()*A44/180))),NA()) ->  | S44: =IF(AND($Q$4=TRUE,$P$8=ListsFlags!$A$13),$Q$6+(s4rad*(COS(PI()*A44/180))),NA()) ->  | V44: =IF(AND($U$4=TRUE,$T$8=ListsFlags!$A$13),$U$5+(s5rad*(SIN(PI()*A44/180))),NA()) ->  | W44: =IF(AND($U$4=TRUE,$T$8=ListsFlags!$A$13),$U$6+(s5rad*(COS(PI()*A44/180))),NA()) ->  | Z44: =IF(AND($Y$4=TRUE,$X$8=ListsFlags!$A$13),$Y$5+(s6rad*(SIN(PI()*A44/180))),NA()) ->  | AA44: =IF(AND($Y$4=TRUE,$X$8=ListsFlags!$A$13),$Y$6+(s6rad*(COS(PI()*A44/180))),NA()) ->  | AD44: =IF(AND($AC$4=TRUE,$AB$8=ListsFlags!$A$13),$AC$5+(s7rad*(SIN(PI()*A44/180))),NA()) ->  | AE44: =IF(AND($AC$4=TRUE,$AB$8=ListsFlags!$A$13),$AC$6+(s7rad*(COS(PI()*A44/180))),NA()) ->  | AH44: =IF(AND($AG$4=TRUE,$AF$8=ListsFlags!$A$13),$AG$5+(s8rad*(SIN(PI()*A44/180))),NA()) ->  | AI44: =IF(AND($AG$4=TRUE,$AF$8=ListsFlags!$A$13),$AG$6+(s8rad*(COS(PI()*A44/180))),NA()) ->  | AL44: =IF(AND($AK$4=TRUE,$AJ$8=ListsFlags!$A$13),$AK$5+(s9rad*(SIN(PI()*A44/180))),NA()) ->  | AM44: =IF(AND($AK$4=TRUE,$AJ$8=ListsFlags!$A$13),$AK$6+(s9rad*(COS(PI()*A44/180))),NA()) ->  | AP44: =IF(AND($AO$4=TRUE,$AN$8=ListsFlags!$A$13),$AO$5+(s10rad*(SIN(PI()*A44/180))),NA()) ->  | AQ44: =IF(AND($AO$4=TRUE,$AN$8=ListsFlags!$A$13),$AO$6+(s10rad*(COS(PI()*A44/180))),NA()) -> 
A45: 205 | E45: =IF(AND($D$4=TRUE,$C$8=ListsFlags!$A$13),$D$5+(s1rad*(SIN(PI()*Circ!A45/180))),NA()) ->  | F45: =IF(AND($D$4=TRUE,$C$8=ListsFlags!$A$13),$D$6+(s1rad*(COS(PI()*Circ!A45/180))),NA()) ->  | J45: =IF(AND($I$4=TRUE,$H$8=ListsFlags!$A$13),$I$5+(s2rad*(SIN(PI()*A45/180))),NA()) ->  | K45: =IF(AND($I$4=TRUE,$H$8=ListsFlags!$A$13),$I$6+(s2rad*(COS(PI()*A45/180))),NA()) ->  | N45: =IF(AND($M$4=TRUE,$L$8=ListsFlags!$A$13),$M$5+(s3rad*(SIN(PI()*A45/180))),NA()) ->  | O45: =IF(AND($M$4=TRUE,$L$8=ListsFlags!$A$13),$M$6+(s3rad*(COS(PI()*A45/180))),NA()) ->  | R45: =IF(AND($Q$4=TRUE,$P$8=ListsFlags!$A$13),$Q$5+(s4rad*(SIN(PI()*A45/180))),NA()) ->  | S45: =IF(AND($Q$4=TRUE,$P$8=ListsFlags!$A$13),$Q$6+(s4rad*(COS(PI()*A45/180))),NA()) ->  | V45: =IF(AND($U$4=TRUE,$T$8=ListsFlags!$A$13),$U$5+(s5rad*(SIN(PI()*A45/180))),NA()) ->  | W45: =IF(AND($U$4=TRUE,$T$8=ListsFlags!$A$13),$U$6+(s5rad*(COS(PI()*A45/180))),NA()) ->  | Z45: =IF(AND($Y$4=TRUE,$X$8=ListsFlags!$A$13),$Y$5+(s6rad*(SIN(PI()*A45/180))),NA()) ->  | AA45: =IF(AND($Y$4=TRUE,$X$8=ListsFlags!$A$13),$Y$6+(s6rad*(COS(PI()*A45/180))),NA()) ->  | AD45: =IF(AND($AC$4=TRUE,$AB$8=ListsFlags!$A$13),$AC$5+(s7rad*(SIN(PI()*A45/180))),NA()) ->  | AE45: =IF(AND($AC$4=TRUE,$AB$8=ListsFlags!$A$13),$AC$6+(s7rad*(COS(PI()*A45/180))),NA()) ->  | AH45: =IF(AND($AG$4=TRUE,$AF$8=ListsFlags!$A$13),$AG$5+(s8rad*(SIN(PI()*A45/180))),NA()) ->  | AI45: =IF(AND($AG$4=TRUE,$AF$8=ListsFlags!$A$13),$AG$6+(s8rad*(COS(PI()*A45/180))),NA()) ->  | AL45: =IF(AND($AK$4=TRUE,$AJ$8=ListsFlags!$A$13),$AK$5+(s9rad*(SIN(PI()*A45/180))),NA()) ->  | AM45: =IF(AND($AK$4=TRUE,$AJ$8=ListsFlags!$A$13),$AK$6+(s9rad*(COS(PI()*A45/180))),NA()) ->  | AP45: =IF(AND($AO$4=TRUE,$AN$8=ListsFlags!$A$13),$AO$5+(s10rad*(SIN(PI()*A45/180))),NA()) ->  | AQ45: =IF(AND($AO$4=TRUE,$AN$8=ListsFlags!$A$13),$AO$6+(s10rad*(COS(PI()*A45/180))),NA()) -> 
A46: 210 | E46: =IF(AND($D$4=TRUE,$C$8=ListsFlags!$A$13),$D$5+(s1rad*(SIN(PI()*Circ!A46/180))),NA()) ->  | F46: =IF(AND($D$4=TRUE,$C$8=ListsFlags!$A$13),$D$6+(s1rad*(COS(PI()*Circ!A46/180))),NA()) ->  | J46: =IF(AND($I$4=TRUE,$H$8=ListsFlags!$A$13),$I$5+(s2rad*(SIN(PI()*A46/180))),NA()) ->  | K46: =IF(AND($I$4=TRUE,$H$8=ListsFlags!$A$13),$I$6+(s2rad*(COS(PI()*A46/180))),NA()) ->  | N46: =IF(AND($M$4=TRUE,$L$8=ListsFlags!$A$13),$M$5+(s3rad*(SIN(PI()*A46/180))),NA()) ->  | O46: =IF(AND($M$4=TRUE,$L$8=ListsFlags!$A$13),$M$6+(s3rad*(COS(PI()*A46/180))),NA()) ->  | R46: =IF(AND($Q$4=TRUE,$P$8=ListsFlags!$A$13),$Q$5+(s4rad*(SIN(PI()*A46/180))),NA()) ->  | S46: =IF(AND($Q$4=TRUE,$P$8=ListsFlags!$A$13),$Q$6+(s4rad*(COS(PI()*A46/180))),NA()) ->  | V46: =IF(AND($U$4=TRUE,$T$8=ListsFlags!$A$13),$U$5+(s5rad*(SIN(PI()*A46/180))),NA()) ->  | W46: =IF(AND($U$4=TRUE,$T$8=ListsFlags!$A$13),$U$6+(s5rad*(COS(PI()*A46/180))),NA()) ->  | Z46: =IF(AND($Y$4=TRUE,$X$8=ListsFlags!$A$13),$Y$5+(s6rad*(SIN(PI()*A46/180))),NA()) ->  | AA46: =IF(AND($Y$4=TRUE,$X$8=ListsFlags!$A$13),$Y$6+(s6rad*(COS(PI()*A46/180))),NA()) ->  | AD46: =IF(AND($AC$4=TRUE,$AB$8=ListsFlags!$A$13),$AC$5+(s7rad*(SIN(PI()*A46/180))),NA()) ->  | AE46: =IF(AND($AC$4=TRUE,$AB$8=ListsFlags!$A$13),$AC$6+(s7rad*(COS(PI()*A46/180))),NA()) ->  | AH46: =IF(AND($AG$4=TRUE,$AF$8=ListsFlags!$A$13),$AG$5+(s8rad*(SIN(PI()*A46/180))),NA()) ->  | AI46: =IF(AND($AG$4=TRUE,$AF$8=ListsFlags!$A$13),$AG$6+(s8rad*(COS(PI()*A46/180))),NA()) ->  | AL46: =IF(AND($AK$4=TRUE,$AJ$8=ListsFlags!$A$13),$AK$5+(s9rad*(SIN(PI()*A46/180))),NA()) ->  | AM46: =IF(AND($AK$4=TRUE,$AJ$8=ListsFlags!$A$13),$AK$6+(s9rad*(COS(PI()*A46/180))),NA()) ->  | AP46: =IF(AND($AO$4=TRUE,$AN$8=ListsFlags!$A$13),$AO$5+(s10rad*(SIN(PI()*A46/180))),NA()) ->  | AQ46: =IF(AND($AO$4=TRUE,$AN$8=ListsFlags!$A$13),$AO$6+(s10rad*(COS(PI()*A46/180))),NA()) -> 
A47: 215 | E47: =IF(AND($D$4=TRUE,$C$8=ListsFlags!$A$13),$D$5+(s1rad*(SIN(PI()*Circ!A47/180))),NA()) ->  | F47: =IF(AND($D$4=TRUE,$C$8=ListsFlags!$A$13),$D$6+(s1rad*(COS(PI()*Circ!A47/180))),NA()) ->  | J47: =IF(AND($I$4=TRUE,$H$8=ListsFlags!$A$13),$I$5+(s2rad*(SIN(PI()*A47/180))),NA()) ->  | K47: =IF(AND($I$4=TRUE,$H$8=ListsFlags!$A$13),$I$6+(s2rad*(COS(PI()*A47/180))),NA()) ->  | N47: =IF(AND($M$4=TRUE,$L$8=ListsFlags!$A$13),$M$5+(s3rad*(SIN(PI()*A47/180))),NA()) ->  | O47: =IF(AND($M$4=TRUE,$L$8=ListsFlags!$A$13),$M$6+(s3rad*(COS(PI()*A47/180))),NA()) ->  | R47: =IF(AND($Q$4=TRUE,$P$8=ListsFlags!$A$13),$Q$5+(s4rad*(SIN(PI()*A47/180))),NA()) ->  | S47: =IF(AND($Q$4=TRUE,$P$8=ListsFlags!$A$13),$Q$6+(s4rad*(COS(PI()*A47/180))),NA()) ->  | V47: =IF(AND($U$4=TRUE,$T$8=ListsFlags!$A$13),$U$5+(s5rad*(SIN(PI()*A47/180))),NA()) ->  | W47: =IF(AND($U$4=TRUE,$T$8=ListsFlags!$A$13),$U$6+(s5rad*(COS(PI()*A47/180))),NA()) ->  | Z47: =IF(AND($Y$4=TRUE,$X$8=ListsFlags!$A$13),$Y$5+(s6rad*(SIN(PI()*A47/180))),NA()) ->  | AA47: =IF(AND($Y$4=TRUE,$X$8=ListsFlags!$A$13),$Y$6+(s6rad*(COS(PI()*A47/180))),NA()) ->  | AD47: =IF(AND($AC$4=TRUE,$AB$8=ListsFlags!$A$13),$AC$5+(s7rad*(SIN(PI()*A47/180))),NA()) ->  | AE47: =IF(AND($AC$4=TRUE,$AB$8=ListsFlags!$A$13),$AC$6+(s7rad*(COS(PI()*A47/180))),NA()) ->  | AH47: =IF(AND($AG$4=TRUE,$AF$8=ListsFlags!$A$13),$AG$5+(s8rad*(SIN(PI()*A47/180))),NA()) ->  | AI47: =IF(AND($AG$4=TRUE,$AF$8=ListsFlags!$A$13),$AG$6+(s8rad*(COS(PI()*A47/180))),NA()) ->  | AL47: =IF(AND($AK$4=TRUE,$AJ$8=ListsFlags!$A$13),$AK$5+(s9rad*(SIN(PI()*A47/180))),NA()) ->  | AM47: =IF(AND($AK$4=TRUE,$AJ$8=ListsFlags!$A$13),$AK$6+(s9rad*(COS(PI()*A47/180))),NA()) ->  | AP47: =IF(AND($AO$4=TRUE,$AN$8=ListsFlags!$A$13),$AO$5+(s10rad*(SIN(PI()*A47/180))),NA()) ->  | AQ47: =IF(AND($AO$4=TRUE,$AN$8=ListsFlags!$A$13),$AO$6+(s10rad*(COS(PI()*A47/180))),NA()) -> 
A48: 220 | E48: =IF(AND($D$4=TRUE,$C$8=ListsFlags!$A$13),$D$5+(s1rad*(SIN(PI()*Circ!A48/180))),NA()) ->  | F48: =IF(AND($D$4=TRUE,$C$8=ListsFlags!$A$13),$D$6+(s1rad*(COS(PI()*Circ!A48/180))),NA()) ->  | J48: =IF(AND($I$4=TRUE,$H$8=ListsFlags!$A$13),$I$5+(s2rad*(SIN(PI()*A48/180))),NA()) ->  | K48: =IF(AND($I$4=TRUE,$H$8=ListsFlags!$A$13),$I$6+(s2rad*(COS(PI()*A48/180))),NA()) ->  | N48: =IF(AND($M$4=TRUE,$L$8=ListsFlags!$A$13),$M$5+(s3rad*(SIN(PI()*A48/180))),NA()) ->  | O48: =IF(AND($M$4=TRUE,$L$8=ListsFlags!$A$13),$M$6+(s3rad*(COS(PI()*A48/180))),NA()) ->  | R48: =IF(AND($Q$4=TRUE,$P$8=ListsFlags!$A$13),$Q$5+(s4rad*(SIN(PI()*A48/180))),NA()) ->  | S48: =IF(AND($Q$4=TRUE,$P$8=ListsFlags!$A$13),$Q$6+(s4rad*(COS(PI()*A48/180))),NA()) ->  | V48: =IF(AND($U$4=TRUE,$T$8=ListsFlags!$A$13),$U$5+(s5rad*(SIN(PI()*A48/180))),NA()) ->  | W48: =IF(AND($U$4=TRUE,$T$8=ListsFlags!$A$13),$U$6+(s5rad*(COS(PI()*A48/180))),NA()) ->  | Z48: =IF(AND($Y$4=TRUE,$X$8=ListsFlags!$A$13),$Y$5+(s6rad*(SIN(PI()*A48/180))),NA()) ->  | AA48: =IF(AND($Y$4=TRUE,$X$8=ListsFlags!$A$13),$Y$6+(s6rad*(COS(PI()*A48/180))),NA()) ->  | AD48: =IF(AND($AC$4=TRUE,$AB$8=ListsFlags!$A$13),$AC$5+(s7rad*(SIN(PI()*A48/180))),NA()) ->  | AE48: =IF(AND($AC$4=TRUE,$AB$8=ListsFlags!$A$13),$AC$6+(s7rad*(COS(PI()*A48/180))),NA()) ->  | AH48: =IF(AND($AG$4=TRUE,$AF$8=ListsFlags!$A$13),$AG$5+(s8rad*(SIN(PI()*A48/180))),NA()) ->  | AI48: =IF(AND($AG$4=TRUE,$AF$8=ListsFlags!$A$13),$AG$6+(s8rad*(COS(PI()*A48/180))),NA()) ->  | AL48: =IF(AND($AK$4=TRUE,$AJ$8=ListsFlags!$A$13),$AK$5+(s9rad*(SIN(PI()*A48/180))),NA()) ->  | AM48: =IF(AND($AK$4=TRUE,$AJ$8=ListsFlags!$A$13),$AK$6+(s9rad*(COS(PI()*A48/180))),NA()) ->  | AP48: =IF(AND($AO$4=TRUE,$AN$8=ListsFlags!$A$13),$AO$5+(s10rad*(SIN(PI()*A48/180))),NA()) ->  | AQ48: =IF(AND($AO$4=TRUE,$AN$8=ListsFlags!$A$13),$AO$6+(s10rad*(COS(PI()*A48/180))),NA()) -> 
A49: 225 | E49: =IF(AND($D$4=TRUE,$C$8=ListsFlags!$A$13),$D$5+(s1rad*(SIN(PI()*Circ!A49/180))),NA()) ->  | F49: =IF(AND($D$4=TRUE,$C$8=ListsFlags!$A$13),$D$6+(s1rad*(COS(PI()*Circ!A49/180))),NA()) ->  | G49: SW | J49: =IF(AND($I$4=TRUE,$H$8=ListsFlags!$A$13),$I$5+(s2rad*(SIN(PI()*A49/180))),NA()) ->  | K49: =IF(AND($I$4=TRUE,$H$8=ListsFlags!$A$13),$I$6+(s2rad*(COS(PI()*A49/180))),NA()) ->  | N49: =IF(AND($M$4=TRUE,$L$8=ListsFlags!$A$13),$M$5+(s3rad*(SIN(PI()*A49/180))),NA()) ->  | O49: =IF(AND($M$4=TRUE,$L$8=ListsFlags!$A$13),$M$6+(s3rad*(COS(PI()*A49/180))),NA()) ->  | R49: =IF(AND($Q$4=TRUE,$P$8=ListsFlags!$A$13),$Q$5+(s4rad*(SIN(PI()*A49/180))),NA()) ->  | S49: =IF(AND($Q$4=TRUE,$P$8=ListsFlags!$A$13),$Q$6+(s4rad*(COS(PI()*A49/180))),NA()) ->  | V49: =IF(AND($U$4=TRUE,$T$8=ListsFlags!$A$13),$U$5+(s5rad*(SIN(PI()*A49/180))),NA()) ->  | W49: =IF(AND($U$4=TRUE,$T$8=ListsFlags!$A$13),$U$6+(s5rad*(COS(PI()*A49/180))),NA()) ->  | Z49: =IF(AND($Y$4=TRUE,$X$8=ListsFlags!$A$13),$Y$5+(s6rad*(SIN(PI()*A49/180))),NA()) ->  | AA49: =IF(AND($Y$4=TRUE,$X$8=ListsFlags!$A$13),$Y$6+(s6rad*(COS(PI()*A49/180))),NA()) ->  | AD49: =IF(AND($AC$4=TRUE,$AB$8=ListsFlags!$A$13),$AC$5+(s7rad*(SIN(PI()*A49/180))),NA()) ->  | AE49: =IF(AND($AC$4=TRUE,$AB$8=ListsFlags!$A$13),$AC$6+(s7rad*(COS(PI()*A49/180))),NA()) ->  | AH49: =IF(AND($AG$4=TRUE,$AF$8=ListsFlags!$A$13),$AG$5+(s8rad*(SIN(PI()*A49/180))),NA()) ->  | AI49: =IF(AND($AG$4=TRUE,$AF$8=ListsFlags!$A$13),$AG$6+(s8rad*(COS(PI()*A49/180))),NA()) ->  | AL49: =IF(AND($AK$4=TRUE,$AJ$8=ListsFlags!$A$13),$AK$5+(s9rad*(SIN(PI()*A49/180))),NA()) ->  | AM49: =IF(AND($AK$4=TRUE,$AJ$8=ListsFlags!$A$13),$AK$6+(s9rad*(COS(PI()*A49/180))),NA()) ->  | AP49: =IF(AND($AO$4=TRUE,$AN$8=ListsFlags!$A$13),$AO$5+(s10rad*(SIN(PI()*A49/180))),NA()) ->  | AQ49: =IF(AND($AO$4=TRUE,$AN$8=ListsFlags!$A$13),$AO$6+(s10rad*(COS(PI()*A49/180))),NA()) -> 
A50: 230 | E50: =IF(AND($D$4=TRUE,$C$8=ListsFlags!$A$13),$D$5+(s1rad*(SIN(PI()*Circ!A50/180))),NA()) ->  | F50: =IF(AND($D$4=TRUE,$C$8=ListsFlags!$A$13),$D$6+(s1rad*(COS(PI()*Circ!A50/180))),NA()) ->  | J50: =IF(AND($I$4=TRUE,$H$8=ListsFlags!$A$13),$I$5+(s2rad*(SIN(PI()*A50/180))),NA()) ->  | K50: =IF(AND($I$4=TRUE,$H$8=ListsFlags!$A$13),$I$6+(s2rad*(COS(PI()*A50/180))),NA()) ->  | N50: =IF(AND($M$4=TRUE,$L$8=ListsFlags!$A$13),$M$5+(s3rad*(SIN(PI()*A50/180))),NA()) ->  | O50: =IF(AND($M$4=TRUE,$L$8=ListsFlags!$A$13),$M$6+(s3rad*(COS(PI()*A50/180))),NA()) ->  | R50: =IF(AND($Q$4=TRUE,$P$8=ListsFlags!$A$13),$Q$5+(s4rad*(SIN(PI()*A50/180))),NA()) ->  | S50: =IF(AND($Q$4=TRUE,$P$8=ListsFlags!$A$13),$Q$6+(s4rad*(COS(PI()*A50/180))),NA()) ->  | V50: =IF(AND($U$4=TRUE,$T$8=ListsFlags!$A$13),$U$5+(s5rad*(SIN(PI()*A50/180))),NA()) ->  | W50: =IF(AND($U$4=TRUE,$T$8=ListsFlags!$A$13),$U$6+(s5rad*(COS(PI()*A50/180))),NA()) ->  | Z50: =IF(AND($Y$4=TRUE,$X$8=ListsFlags!$A$13),$Y$5+(s6rad*(SIN(PI()*A50/180))),NA()) ->  | AA50: =IF(AND($Y$4=TRUE,$X$8=ListsFlags!$A$13),$Y$6+(s6rad*(COS(PI()*A50/180))),NA()) ->  | AD50: =IF(AND($AC$4=TRUE,$AB$8=ListsFlags!$A$13),$AC$5+(s7rad*(SIN(PI()*A50/180))),NA()) ->  | AE50: =IF(AND($AC$4=TRUE,$AB$8=ListsFlags!$A$13),$AC$6+(s7rad*(COS(PI()*A50/180))),NA()) ->  | AH50: =IF(AND($AG$4=TRUE,$AF$8=ListsFlags!$A$13),$AG$5+(s8rad*(SIN(PI()*A50/180))),NA()) ->  | AI50: =IF(AND($AG$4=TRUE,$AF$8=ListsFlags!$A$13),$AG$6+(s8rad*(COS(PI()*A50/180))),NA()) ->  | AL50: =IF(AND($AK$4=TRUE,$AJ$8=ListsFlags!$A$13),$AK$5+(s9rad*(SIN(PI()*A50/180))),NA()) ->  | AM50: =IF(AND($AK$4=TRUE,$AJ$8=ListsFlags!$A$13),$AK$6+(s9rad*(COS(PI()*A50/180))),NA()) ->  | AP50: =IF(AND($AO$4=TRUE,$AN$8=ListsFlags!$A$13),$AO$5+(s10rad*(SIN(PI()*A50/180))),NA()) ->  | AQ50: =IF(AND($AO$4=TRUE,$AN$8=ListsFlags!$A$13),$AO$6+(s10rad*(COS(PI()*A50/180))),NA()) -> 
A51: 235 | E51: =IF(AND($D$4=TRUE,$C$8=ListsFlags!$A$13),$D$5+(s1rad*(SIN(PI()*Circ!A51/180))),NA()) ->  | F51: =IF(AND($D$4=TRUE,$C$8=ListsFlags!$A$13),$D$6+(s1rad*(COS(PI()*Circ!A51/180))),NA()) ->  | J51: =IF(AND($I$4=TRUE,$H$8=ListsFlags!$A$13),$I$5+(s2rad*(SIN(PI()*A51/180))),NA()) ->  | K51: =IF(AND($I$4=TRUE,$H$8=ListsFlags!$A$13),$I$6+(s2rad*(COS(PI()*A51/180))),NA()) ->  | N51: =IF(AND($M$4=TRUE,$L$8=ListsFlags!$A$13),$M$5+(s3rad*(SIN(PI()*A51/180))),NA()) ->  | O51: =IF(AND($M$4=TRUE,$L$8=ListsFlags!$A$13),$M$6+(s3rad*(COS(PI()*A51/180))),NA()) ->  | R51: =IF(AND($Q$4=TRUE,$P$8=ListsFlags!$A$13),$Q$5+(s4rad*(SIN(PI()*A51/180))),NA()) ->  | S51: =IF(AND($Q$4=TRUE,$P$8=ListsFlags!$A$13),$Q$6+(s4rad*(COS(PI()*A51/180))),NA()) ->  | V51: =IF(AND($U$4=TRUE,$T$8=ListsFlags!$A$13),$U$5+(s5rad*(SIN(PI()*A51/180))),NA()) ->  | W51: =IF(AND($U$4=TRUE,$T$8=ListsFlags!$A$13),$U$6+(s5rad*(COS(PI()*A51/180))),NA()) ->  | Z51: =IF(AND($Y$4=TRUE,$X$8=ListsFlags!$A$13),$Y$5+(s6rad*(SIN(PI()*A51/180))),NA()) ->  | AA51: =IF(AND($Y$4=TRUE,$X$8=ListsFlags!$A$13),$Y$6+(s6rad*(COS(PI()*A51/180))),NA()) ->  | AD51: =IF(AND($AC$4=TRUE,$AB$8=ListsFlags!$A$13),$AC$5+(s7rad*(SIN(PI()*A51/180))),NA()) ->  | AE51: =IF(AND($AC$4=TRUE,$AB$8=ListsFlags!$A$13),$AC$6+(s7rad*(COS(PI()*A51/180))),NA()) ->  | AH51: =IF(AND($AG$4=TRUE,$AF$8=ListsFlags!$A$13),$AG$5+(s8rad*(SIN(PI()*A51/180))),NA()) ->  | AI51: =IF(AND($AG$4=TRUE,$AF$8=ListsFlags!$A$13),$AG$6+(s8rad*(COS(PI()*A51/180))),NA()) ->  | AL51: =IF(AND($AK$4=TRUE,$AJ$8=ListsFlags!$A$13),$AK$5+(s9rad*(SIN(PI()*A51/180))),NA()) ->  | AM51: =IF(AND($AK$4=TRUE,$AJ$8=ListsFlags!$A$13),$AK$6+(s9rad*(COS(PI()*A51/180))),NA()) ->  | AP51: =IF(AND($AO$4=TRUE,$AN$8=ListsFlags!$A$13),$AO$5+(s10rad*(SIN(PI()*A51/180))),NA()) ->  | AQ51: =IF(AND($AO$4=TRUE,$AN$8=ListsFlags!$A$13),$AO$6+(s10rad*(COS(PI()*A51/180))),NA()) -> 
A52: 240 | E52: =IF(AND($D$4=TRUE,$C$8=ListsFlags!$A$13),$D$5+(s1rad*(SIN(PI()*Circ!A52/180))),NA()) ->  | F52: =IF(AND($D$4=TRUE,$C$8=ListsFlags!$A$13),$D$6+(s1rad*(COS(PI()*Circ!A52/180))),NA()) ->  | J52: =IF(AND($I$4=TRUE,$H$8=ListsFlags!$A$13),$I$5+(s2rad*(SIN(PI()*A52/180))),NA()) ->  | K52: =IF(AND($I$4=TRUE,$H$8=ListsFlags!$A$13),$I$6+(s2rad*(COS(PI()*A52/180))),NA()) ->  | N52: =IF(AND($M$4=TRUE,$L$8=ListsFlags!$A$13),$M$5+(s3rad*(SIN(PI()*A52/180))),NA()) ->  | O52: =IF(AND($M$4=TRUE,$L$8=ListsFlags!$A$13),$M$6+(s3rad*(COS(PI()*A52/180))),NA()) ->  | R52: =IF(AND($Q$4=TRUE,$P$8=ListsFlags!$A$13),$Q$5+(s4rad*(SIN(PI()*A52/180))),NA()) ->  | S52: =IF(AND($Q$4=TRUE,$P$8=ListsFlags!$A$13),$Q$6+(s4rad*(COS(PI()*A52/180))),NA()) ->  | V52: =IF(AND($U$4=TRUE,$T$8=ListsFlags!$A$13),$U$5+(s5rad*(SIN(PI()*A52/180))),NA()) ->  | W52: =IF(AND($U$4=TRUE,$T$8=ListsFlags!$A$13),$U$6+(s5rad*(COS(PI()*A52/180))),NA()) ->  | Z52: =IF(AND($Y$4=TRUE,$X$8=ListsFlags!$A$13),$Y$5+(s6rad*(SIN(PI()*A52/180))),NA()) ->  | AA52: =IF(AND($Y$4=TRUE,$X$8=ListsFlags!$A$13),$Y$6+(s6rad*(COS(PI()*A52/180))),NA()) ->  | AD52: =IF(AND($AC$4=TRUE,$AB$8=ListsFlags!$A$13),$AC$5+(s7rad*(SIN(PI()*A52/180))),NA()) ->  | AE52: =IF(AND($AC$4=TRUE,$AB$8=ListsFlags!$A$13),$AC$6+(s7rad*(COS(PI()*A52/180))),NA()) ->  | AH52: =IF(AND($AG$4=TRUE,$AF$8=ListsFlags!$A$13),$AG$5+(s8rad*(SIN(PI()*A52/180))),NA()) ->  | AI52: =IF(AND($AG$4=TRUE,$AF$8=ListsFlags!$A$13),$AG$6+(s8rad*(COS(PI()*A52/180))),NA()) ->  | AL52: =IF(AND($AK$4=TRUE,$AJ$8=ListsFlags!$A$13),$AK$5+(s9rad*(SIN(PI()*A52/180))),NA()) ->  | AM52: =IF(AND($AK$4=TRUE,$AJ$8=ListsFlags!$A$13),$AK$6+(s9rad*(COS(PI()*A52/180))),NA()) ->  | AP52: =IF(AND($AO$4=TRUE,$AN$8=ListsFlags!$A$13),$AO$5+(s10rad*(SIN(PI()*A52/180))),NA()) ->  | AQ52: =IF(AND($AO$4=TRUE,$AN$8=ListsFlags!$A$13),$AO$6+(s10rad*(COS(PI()*A52/180))),NA()) -> 
A53: 245 | E53: =IF(AND($D$4=TRUE,$C$8=ListsFlags!$A$13),$D$5+(s1rad*(SIN(PI()*Circ!A53/180))),NA()) ->  | F53: =IF(AND($D$4=TRUE,$C$8=ListsFlags!$A$13),$D$6+(s1rad*(COS(PI()*Circ!A53/180))),NA()) ->  | J53: =IF(AND($I$4=TRUE,$H$8=ListsFlags!$A$13),$I$5+(s2rad*(SIN(PI()*A53/180))),NA()) ->  | K53: =IF(AND($I$4=TRUE,$H$8=ListsFlags!$A$13),$I$6+(s2rad*(COS(PI()*A53/180))),NA()) ->  | N53: =IF(AND($M$4=TRUE,$L$8=ListsFlags!$A$13),$M$5+(s3rad*(SIN(PI()*A53/180))),NA()) ->  | O53: =IF(AND($M$4=TRUE,$L$8=ListsFlags!$A$13),$M$6+(s3rad*(COS(PI()*A53/180))),NA()) ->  | R53: =IF(AND($Q$4=TRUE,$P$8=ListsFlags!$A$13),$Q$5+(s4rad*(SIN(PI()*A53/180))),NA()) ->  | S53: =IF(AND($Q$4=TRUE,$P$8=ListsFlags!$A$13),$Q$6+(s4rad*(COS(PI()*A53/180))),NA()) ->  | V53: =IF(AND($U$4=TRUE,$T$8=ListsFlags!$A$13),$U$5+(s5rad*(SIN(PI()*A53/180))),NA()) ->  | W53: =IF(AND($U$4=TRUE,$T$8=ListsFlags!$A$13),$U$6+(s5rad*(COS(PI()*A53/180))),NA()) ->  | Z53: =IF(AND($Y$4=TRUE,$X$8=ListsFlags!$A$13),$Y$5+(s6rad*(SIN(PI()*A53/180))),NA()) ->  | AA53: =IF(AND($Y$4=TRUE,$X$8=ListsFlags!$A$13),$Y$6+(s6rad*(COS(PI()*A53/180))),NA()) ->  | AD53: =IF(AND($AC$4=TRUE,$AB$8=ListsFlags!$A$13),$AC$5+(s7rad*(SIN(PI()*A53/180))),NA()) ->  | AE53: =IF(AND($AC$4=TRUE,$AB$8=ListsFlags!$A$13),$AC$6+(s7rad*(COS(PI()*A53/180))),NA()) ->  | AH53: =IF(AND($AG$4=TRUE,$AF$8=ListsFlags!$A$13),$AG$5+(s8rad*(SIN(PI()*A53/180))),NA()) ->  | AI53: =IF(AND($AG$4=TRUE,$AF$8=ListsFlags!$A$13),$AG$6+(s8rad*(COS(PI()*A53/180))),NA()) ->  | AL53: =IF(AND($AK$4=TRUE,$AJ$8=ListsFlags!$A$13),$AK$5+(s9rad*(SIN(PI()*A53/180))),NA()) ->  | AM53: =IF(AND($AK$4=TRUE,$AJ$8=ListsFlags!$A$13),$AK$6+(s9rad*(COS(PI()*A53/180))),NA()) ->  | AP53: =IF(AND($AO$4=TRUE,$AN$8=ListsFlags!$A$13),$AO$5+(s10rad*(SIN(PI()*A53/180))),NA()) ->  | AQ53: =IF(AND($AO$4=TRUE,$AN$8=ListsFlags!$A$13),$AO$6+(s10rad*(COS(PI()*A53/180))),NA()) -> 
A54: 250 | E54: =IF(AND($D$4=TRUE,$C$8=ListsFlags!$A$13),$D$5+(s1rad*(SIN(PI()*Circ!A54/180))),NA()) ->  | F54: =IF(AND($D$4=TRUE,$C$8=ListsFlags!$A$13),$D$6+(s1rad*(COS(PI()*Circ!A54/180))),NA()) ->  | J54: =IF(AND($I$4=TRUE,$H$8=ListsFlags!$A$13),$I$5+(s2rad*(SIN(PI()*A54/180))),NA()) ->  | K54: =IF(AND($I$4=TRUE,$H$8=ListsFlags!$A$13),$I$6+(s2rad*(COS(PI()*A54/180))),NA()) ->  | N54: =IF(AND($M$4=TRUE,$L$8=ListsFlags!$A$13),$M$5+(s3rad*(SIN(PI()*A54/180))),NA()) ->  | O54: =IF(AND($M$4=TRUE,$L$8=ListsFlags!$A$13),$M$6+(s3rad*(COS(PI()*A54/180))),NA()) ->  | R54: =IF(AND($Q$4=TRUE,$P$8=ListsFlags!$A$13),$Q$5+(s4rad*(SIN(PI()*A54/180))),NA()) ->  | S54: =IF(AND($Q$4=TRUE,$P$8=ListsFlags!$A$13),$Q$6+(s4rad*(COS(PI()*A54/180))),NA()) ->  | V54: =IF(AND($U$4=TRUE,$T$8=ListsFlags!$A$13),$U$5+(s5rad*(SIN(PI()*A54/180))),NA()) ->  | W54: =IF(AND($U$4=TRUE,$T$8=ListsFlags!$A$13),$U$6+(s5rad*(COS(PI()*A54/180))),NA()) ->  | Z54: =IF(AND($Y$4=TRUE,$X$8=ListsFlags!$A$13),$Y$5+(s6rad*(SIN(PI()*A54/180))),NA()) ->  | AA54: =IF(AND($Y$4=TRUE,$X$8=ListsFlags!$A$13),$Y$6+(s6rad*(COS(PI()*A54/180))),NA()) ->  | AD54: =IF(AND($AC$4=TRUE,$AB$8=ListsFlags!$A$13),$AC$5+(s7rad*(SIN(PI()*A54/180))),NA()) ->  | AE54: =IF(AND($AC$4=TRUE,$AB$8=ListsFlags!$A$13),$AC$6+(s7rad*(COS(PI()*A54/180))),NA()) ->  | AH54: =IF(AND($AG$4=TRUE,$AF$8=ListsFlags!$A$13),$AG$5+(s8rad*(SIN(PI()*A54/180))),NA()) ->  | AI54: =IF(AND($AG$4=TRUE,$AF$8=ListsFlags!$A$13),$AG$6+(s8rad*(COS(PI()*A54/180))),NA()) ->  | AL54: =IF(AND($AK$4=TRUE,$AJ$8=ListsFlags!$A$13),$AK$5+(s9rad*(SIN(PI()*A54/180))),NA()) ->  | AM54: =IF(AND($AK$4=TRUE,$AJ$8=ListsFlags!$A$13),$AK$6+(s9rad*(COS(PI()*A54/180))),NA()) ->  | AP54: =IF(AND($AO$4=TRUE,$AN$8=ListsFlags!$A$13),$AO$5+(s10rad*(SIN(PI()*A54/180))),NA()) ->  | AQ54: =IF(AND($AO$4=TRUE,$AN$8=ListsFlags!$A$13),$AO$6+(s10rad*(COS(PI()*A54/180))),NA()) -> 
A55: 255 | E55: =IF(AND($D$4=TRUE,$C$8=ListsFlags!$A$13),$D$5+(s1rad*(SIN(PI()*Circ!A55/180))),NA()) ->  | F55: =IF(AND($D$4=TRUE,$C$8=ListsFlags!$A$13),$D$6+(s1rad*(COS(PI()*Circ!A55/180))),NA()) ->  | J55: =IF(AND($I$4=TRUE,$H$8=ListsFlags!$A$13),$I$5+(s2rad*(SIN(PI()*A55/180))),NA()) ->  | K55: =IF(AND($I$4=TRUE,$H$8=ListsFlags!$A$13),$I$6+(s2rad*(COS(PI()*A55/180))),NA()) ->  | N55: =IF(AND($M$4=TRUE,$L$8=ListsFlags!$A$13),$M$5+(s3rad*(SIN(PI()*A55/180))),NA()) ->  | O55: =IF(AND($M$4=TRUE,$L$8=ListsFlags!$A$13),$M$6+(s3rad*(COS(PI()*A55/180))),NA()) ->  | R55: =IF(AND($Q$4=TRUE,$P$8=ListsFlags!$A$13),$Q$5+(s4rad*(SIN(PI()*A55/180))),NA()) ->  | S55: =IF(AND($Q$4=TRUE,$P$8=ListsFlags!$A$13),$Q$6+(s4rad*(COS(PI()*A55/180))),NA()) ->  | V55: =IF(AND($U$4=TRUE,$T$8=ListsFlags!$A$13),$U$5+(s5rad*(SIN(PI()*A55/180))),NA()) ->  | W55: =IF(AND($U$4=TRUE,$T$8=ListsFlags!$A$13),$U$6+(s5rad*(COS(PI()*A55/180))),NA()) ->  | Z55: =IF(AND($Y$4=TRUE,$X$8=ListsFlags!$A$13),$Y$5+(s6rad*(SIN(PI()*A55/180))),NA()) ->  | AA55: =IF(AND($Y$4=TRUE,$X$8=ListsFlags!$A$13),$Y$6+(s6rad*(COS(PI()*A55/180))),NA()) ->  | AD55: =IF(AND($AC$4=TRUE,$AB$8=ListsFlags!$A$13),$AC$5+(s7rad*(SIN(PI()*A55/180))),NA()) ->  | AE55: =IF(AND($AC$4=TRUE,$AB$8=ListsFlags!$A$13),$AC$6+(s7rad*(COS(PI()*A55/180))),NA()) ->  | AH55: =IF(AND($AG$4=TRUE,$AF$8=ListsFlags!$A$13),$AG$5+(s8rad*(SIN(PI()*A55/180))),NA()) ->  | AI55: =IF(AND($AG$4=TRUE,$AF$8=ListsFlags!$A$13),$AG$6+(s8rad*(COS(PI()*A55/180))),NA()) ->  | AL55: =IF(AND($AK$4=TRUE,$AJ$8=ListsFlags!$A$13),$AK$5+(s9rad*(SIN(PI()*A55/180))),NA()) ->  | AM55: =IF(AND($AK$4=TRUE,$AJ$8=ListsFlags!$A$13),$AK$6+(s9rad*(COS(PI()*A55/180))),NA()) ->  | AP55: =IF(AND($AO$4=TRUE,$AN$8=ListsFlags!$A$13),$AO$5+(s10rad*(SIN(PI()*A55/180))),NA()) ->  | AQ55: =IF(AND($AO$4=TRUE,$AN$8=ListsFlags!$A$13),$AO$6+(s10rad*(COS(PI()*A55/180))),NA()) -> 
A56: 260 | E56: =IF(AND($D$4=TRUE,$C$8=ListsFlags!$A$13),$D$5+(s1rad*(SIN(PI()*Circ!A56/180))),NA()) ->  | F56: =IF(AND($D$4=TRUE,$C$8=ListsFlags!$A$13),$D$6+(s1rad*(COS(PI()*Circ!A56/180))),NA()) ->  | J56: =IF(AND($I$4=TRUE,$H$8=ListsFlags!$A$13),$I$5+(s2rad*(SIN(PI()*A56/180))),NA()) ->  | K56: =IF(AND($I$4=TRUE,$H$8=ListsFlags!$A$13),$I$6+(s2rad*(COS(PI()*A56/180))),NA()) ->  | N56: =IF(AND($M$4=TRUE,$L$8=ListsFlags!$A$13),$M$5+(s3rad*(SIN(PI()*A56/180))),NA()) ->  | O56: =IF(AND($M$4=TRUE,$L$8=ListsFlags!$A$13),$M$6+(s3rad*(COS(PI()*A56/180))),NA()) ->  | R56: =IF(AND($Q$4=TRUE,$P$8=ListsFlags!$A$13),$Q$5+(s4rad*(SIN(PI()*A56/180))),NA()) ->  | S56: =IF(AND($Q$4=TRUE,$P$8=ListsFlags!$A$13),$Q$6+(s4rad*(COS(PI()*A56/180))),NA()) ->  | V56: =IF(AND($U$4=TRUE,$T$8=ListsFlags!$A$13),$U$5+(s5rad*(SIN(PI()*A56/180))),NA()) ->  | W56: =IF(AND($U$4=TRUE,$T$8=ListsFlags!$A$13),$U$6+(s5rad*(COS(PI()*A56/180))),NA()) ->  | Z56: =IF(AND($Y$4=TRUE,$X$8=ListsFlags!$A$13),$Y$5+(s6rad*(SIN(PI()*A56/180))),NA()) ->  | AA56: =IF(AND($Y$4=TRUE,$X$8=ListsFlags!$A$13),$Y$6+(s6rad*(COS(PI()*A56/180))),NA()) ->  | AD56: =IF(AND($AC$4=TRUE,$AB$8=ListsFlags!$A$13),$AC$5+(s7rad*(SIN(PI()*A56/180))),NA()) ->  | AE56: =IF(AND($AC$4=TRUE,$AB$8=ListsFlags!$A$13),$AC$6+(s7rad*(COS(PI()*A56/180))),NA()) ->  | AH56: =IF(AND($AG$4=TRUE,$AF$8=ListsFlags!$A$13),$AG$5+(s8rad*(SIN(PI()*A56/180))),NA()) ->  | AI56: =IF(AND($AG$4=TRUE,$AF$8=ListsFlags!$A$13),$AG$6+(s8rad*(COS(PI()*A56/180))),NA()) ->  | AL56: =IF(AND($AK$4=TRUE,$AJ$8=ListsFlags!$A$13),$AK$5+(s9rad*(SIN(PI()*A56/180))),NA()) ->  | AM56: =IF(AND($AK$4=TRUE,$AJ$8=ListsFlags!$A$13),$AK$6+(s9rad*(COS(PI()*A56/180))),NA()) ->  | AP56: =IF(AND($AO$4=TRUE,$AN$8=ListsFlags!$A$13),$AO$5+(s10rad*(SIN(PI()*A56/180))),NA()) ->  | AQ56: =IF(AND($AO$4=TRUE,$AN$8=ListsFlags!$A$13),$AO$6+(s10rad*(COS(PI()*A56/180))),NA()) -> 
A57: 265 | E57: =IF(AND($D$4=TRUE,$C$8=ListsFlags!$A$13),$D$5+(s1rad*(SIN(PI()*Circ!A57/180))),NA()) ->  | F57: =IF(AND($D$4=TRUE,$C$8=ListsFlags!$A$13),$D$6+(s1rad*(COS(PI()*Circ!A57/180))),NA()) ->  | J57: =IF(AND($I$4=TRUE,$H$8=ListsFlags!$A$13),$I$5+(s2rad*(SIN(PI()*A57/180))),NA()) ->  | K57: =IF(AND($I$4=TRUE,$H$8=ListsFlags!$A$13),$I$6+(s2rad*(COS(PI()*A57/180))),NA()) ->  | N57: =IF(AND($M$4=TRUE,$L$8=ListsFlags!$A$13),$M$5+(s3rad*(SIN(PI()*A57/180))),NA()) ->  | O57: =IF(AND($M$4=TRUE,$L$8=ListsFlags!$A$13),$M$6+(s3rad*(COS(PI()*A57/180))),NA()) ->  | R57: =IF(AND($Q$4=TRUE,$P$8=ListsFlags!$A$13),$Q$5+(s4rad*(SIN(PI()*A57/180))),NA()) ->  | S57: =IF(AND($Q$4=TRUE,$P$8=ListsFlags!$A$13),$Q$6+(s4rad*(COS(PI()*A57/180))),NA()) ->  | V57: =IF(AND($U$4=TRUE,$T$8=ListsFlags!$A$13),$U$5+(s5rad*(SIN(PI()*A57/180))),NA()) ->  | W57: =IF(AND($U$4=TRUE,$T$8=ListsFlags!$A$13),$U$6+(s5rad*(COS(PI()*A57/180))),NA()) ->  | Z57: =IF(AND($Y$4=TRUE,$X$8=ListsFlags!$A$13),$Y$5+(s6rad*(SIN(PI()*A57/180))),NA()) ->  | AA57: =IF(AND($Y$4=TRUE,$X$8=ListsFlags!$A$13),$Y$6+(s6rad*(COS(PI()*A57/180))),NA()) ->  | AD57: =IF(AND($AC$4=TRUE,$AB$8=ListsFlags!$A$13),$AC$5+(s7rad*(SIN(PI()*A57/180))),NA()) ->  | AE57: =IF(AND($AC$4=TRUE,$AB$8=ListsFlags!$A$13),$AC$6+(s7rad*(COS(PI()*A57/180))),NA()) ->  | AH57: =IF(AND($AG$4=TRUE,$AF$8=ListsFlags!$A$13),$AG$5+(s8rad*(SIN(PI()*A57/180))),NA()) ->  | AI57: =IF(AND($AG$4=TRUE,$AF$8=ListsFlags!$A$13),$AG$6+(s8rad*(COS(PI()*A57/180))),NA()) ->  | AL57: =IF(AND($AK$4=TRUE,$AJ$8=ListsFlags!$A$13),$AK$5+(s9rad*(SIN(PI()*A57/180))),NA()) ->  | AM57: =IF(AND($AK$4=TRUE,$AJ$8=ListsFlags!$A$13),$AK$6+(s9rad*(COS(PI()*A57/180))),NA()) ->  | AP57: =IF(AND($AO$4=TRUE,$AN$8=ListsFlags!$A$13),$AO$5+(s10rad*(SIN(PI()*A57/180))),NA()) ->  | AQ57: =IF(AND($AO$4=TRUE,$AN$8=ListsFlags!$A$13),$AO$6+(s10rad*(COS(PI()*A57/180))),NA()) -> 
A58: 270 | E58: =IF(AND($D$4=TRUE,$C$8=ListsFlags!$A$13),$D$5+(s1rad*(SIN(PI()*Circ!A58/180))),NA()) ->  | F58: =IF(AND($D$4=TRUE,$C$8=ListsFlags!$A$13),$D$6+(s1rad*(COS(PI()*Circ!A58/180))),NA()) ->  | G58: S | J58: =IF(AND($I$4=TRUE,$H$8=ListsFlags!$A$13),$I$5+(s2rad*(SIN(PI()*A58/180))),NA()) ->  | K58: =IF(AND($I$4=TRUE,$H$8=ListsFlags!$A$13),$I$6+(s2rad*(COS(PI()*A58/180))),NA()) ->  | N58: =IF(AND($M$4=TRUE,$L$8=ListsFlags!$A$13),$M$5+(s3rad*(SIN(PI()*A58/180))),NA()) ->  | O58: =IF(AND($M$4=TRUE,$L$8=ListsFlags!$A$13),$M$6+(s3rad*(COS(PI()*A58/180))),NA()) ->  | R58: =IF(AND($Q$4=TRUE,$P$8=ListsFlags!$A$13),$Q$5+(s4rad*(SIN(PI()*A58/180))),NA()) ->  | S58: =IF(AND($Q$4=TRUE,$P$8=ListsFlags!$A$13),$Q$6+(s4rad*(COS(PI()*A58/180))),NA()) ->  | V58: =IF(AND($U$4=TRUE,$T$8=ListsFlags!$A$13),$U$5+(s5rad*(SIN(PI()*A58/180))),NA()) ->  | W58: =IF(AND($U$4=TRUE,$T$8=ListsFlags!$A$13),$U$6+(s5rad*(COS(PI()*A58/180))),NA()) ->  | Z58: =IF(AND($Y$4=TRUE,$X$8=ListsFlags!$A$13),$Y$5+(s6rad*(SIN(PI()*A58/180))),NA()) ->  | AA58: =IF(AND($Y$4=TRUE,$X$8=ListsFlags!$A$13),$Y$6+(s6rad*(COS(PI()*A58/180))),NA()) ->  | AD58: =IF(AND($AC$4=TRUE,$AB$8=ListsFlags!$A$13),$AC$5+(s7rad*(SIN(PI()*A58/180))),NA()) ->  | AE58: =IF(AND($AC$4=TRUE,$AB$8=ListsFlags!$A$13),$AC$6+(s7rad*(COS(PI()*A58/180))),NA()) ->  | AH58: =IF(AND($AG$4=TRUE,$AF$8=ListsFlags!$A$13),$AG$5+(s8rad*(SIN(PI()*A58/180))),NA()) ->  | AI58: =IF(AND($AG$4=TRUE,$AF$8=ListsFlags!$A$13),$AG$6+(s8rad*(COS(PI()*A58/180))),NA()) ->  | AL58: =IF(AND($AK$4=TRUE,$AJ$8=ListsFlags!$A$13),$AK$5+(s9rad*(SIN(PI()*A58/180))),NA()) ->  | AM58: =IF(AND($AK$4=TRUE,$AJ$8=ListsFlags!$A$13),$AK$6+(s9rad*(COS(PI()*A58/180))),NA()) ->  | AP58: =IF(AND($AO$4=TRUE,$AN$8=ListsFlags!$A$13),$AO$5+(s10rad*(SIN(PI()*A58/180))),NA()) ->  | AQ58: =IF(AND($AO$4=TRUE,$AN$8=ListsFlags!$A$13),$AO$6+(s10rad*(COS(PI()*A58/180))),NA()) -> 
A59: 275 | E59: =IF(AND($D$4=TRUE,$C$8=ListsFlags!$A$13),$D$5+(s1rad*(SIN(PI()*Circ!A59/180))),NA()) ->  | F59: =IF(AND($D$4=TRUE,$C$8=ListsFlags!$A$13),$D$6+(s1rad*(COS(PI()*Circ!A59/180))),NA()) ->  | J59: =IF(AND($I$4=TRUE,$H$8=ListsFlags!$A$13),$I$5+(s2rad*(SIN(PI()*A59/180))),NA()) ->  | K59: =IF(AND($I$4=TRUE,$H$8=ListsFlags!$A$13),$I$6+(s2rad*(COS(PI()*A59/180))),NA()) ->  | N59: =IF(AND($M$4=TRUE,$L$8=ListsFlags!$A$13),$M$5+(s3rad*(SIN(PI()*A59/180))),NA()) ->  | O59: =IF(AND($M$4=TRUE,$L$8=ListsFlags!$A$13),$M$6+(s3rad*(COS(PI()*A59/180))),NA()) ->  | R59: =IF(AND($Q$4=TRUE,$P$8=ListsFlags!$A$13),$Q$5+(s4rad*(SIN(PI()*A59/180))),NA()) ->  | S59: =IF(AND($Q$4=TRUE,$P$8=ListsFlags!$A$13),$Q$6+(s4rad*(COS(PI()*A59/180))),NA()) ->  | V59: =IF(AND($U$4=TRUE,$T$8=ListsFlags!$A$13),$U$5+(s5rad*(SIN(PI()*A59/180))),NA()) ->  | W59: =IF(AND($U$4=TRUE,$T$8=ListsFlags!$A$13),$U$6+(s5rad*(COS(PI()*A59/180))),NA()) ->  | Z59: =IF(AND($Y$4=TRUE,$X$8=ListsFlags!$A$13),$Y$5+(s6rad*(SIN(PI()*A59/180))),NA()) ->  | AA59: =IF(AND($Y$4=TRUE,$X$8=ListsFlags!$A$13),$Y$6+(s6rad*(COS(PI()*A59/180))),NA()) ->  | AD59: =IF(AND($AC$4=TRUE,$AB$8=ListsFlags!$A$13),$AC$5+(s7rad*(SIN(PI()*A59/180))),NA()) ->  | AE59: =IF(AND($AC$4=TRUE,$AB$8=ListsFlags!$A$13),$AC$6+(s7rad*(COS(PI()*A59/180))),NA()) ->  | AH59: =IF(AND($AG$4=TRUE,$AF$8=ListsFlags!$A$13),$AG$5+(s8rad*(SIN(PI()*A59/180))),NA()) ->  | AI59: =IF(AND($AG$4=TRUE,$AF$8=ListsFlags!$A$13),$AG$6+(s8rad*(COS(PI()*A59/180))),NA()) ->  | AL59: =IF(AND($AK$4=TRUE,$AJ$8=ListsFlags!$A$13),$AK$5+(s9rad*(SIN(PI()*A59/180))),NA()) ->  | AM59: =IF(AND($AK$4=TRUE,$AJ$8=ListsFlags!$A$13),$AK$6+(s9rad*(COS(PI()*A59/180))),NA()) ->  | AP59: =IF(AND($AO$4=TRUE,$AN$8=ListsFlags!$A$13),$AO$5+(s10rad*(SIN(PI()*A59/180))),NA()) ->  | AQ59: =IF(AND($AO$4=TRUE,$AN$8=ListsFlags!$A$13),$AO$6+(s10rad*(COS(PI()*A59/180))),NA()) -> 
A60: 280 | E60: =IF(AND($D$4=TRUE,$C$8=ListsFlags!$A$13),$D$5+(s1rad*(SIN(PI()*Circ!A60/180))),NA()) ->  | F60: =IF(AND($D$4=TRUE,$C$8=ListsFlags!$A$13),$D$6+(s1rad*(COS(PI()*Circ!A60/180))),NA()) ->  | J60: =IF(AND($I$4=TRUE,$H$8=ListsFlags!$A$13),$I$5+(s2rad*(SIN(PI()*A60/180))),NA()) ->  | K60: =IF(AND($I$4=TRUE,$H$8=ListsFlags!$A$13),$I$6+(s2rad*(COS(PI()*A60/180))),NA()) ->  | N60: =IF(AND($M$4=TRUE,$L$8=ListsFlags!$A$13),$M$5+(s3rad*(SIN(PI()*A60/180))),NA()) ->  | O60: =IF(AND($M$4=TRUE,$L$8=ListsFlags!$A$13),$M$6+(s3rad*(COS(PI()*A60/180))),NA()) ->  | R60: =IF(AND($Q$4=TRUE,$P$8=ListsFlags!$A$13),$Q$5+(s4rad*(SIN(PI()*A60/180))),NA()) ->  | S60: =IF(AND($Q$4=TRUE,$P$8=ListsFlags!$A$13),$Q$6+(s4rad*(COS(PI()*A60/180))),NA()) ->  | V60: =IF(AND($U$4=TRUE,$T$8=ListsFlags!$A$13),$U$5+(s5rad*(SIN(PI()*A60/180))),NA()) ->  | W60: =IF(AND($U$4=TRUE,$T$8=ListsFlags!$A$13),$U$6+(s5rad*(COS(PI()*A60/180))),NA()) ->  | Z60: =IF(AND($Y$4=TRUE,$X$8=ListsFlags!$A$13),$Y$5+(s6rad*(SIN(PI()*A60/180))),NA()) ->  | AA60: =IF(AND($Y$4=TRUE,$X$8=ListsFlags!$A$13),$Y$6+(s6rad*(COS(PI()*A60/180))),NA()) ->  | AD60: =IF(AND($AC$4=TRUE,$AB$8=ListsFlags!$A$13),$AC$5+(s7rad*(SIN(PI()*A60/180))),NA()) ->  | AE60: =IF(AND($AC$4=TRUE,$AB$8=ListsFlags!$A$13),$AC$6+(s7rad*(COS(PI()*A60/180))),NA()) ->  | AH60: =IF(AND($AG$4=TRUE,$AF$8=ListsFlags!$A$13),$AG$5+(s8rad*(SIN(PI()*A60/180))),NA()) ->  | AI60: =IF(AND($AG$4=TRUE,$AF$8=ListsFlags!$A$13),$AG$6+(s8rad*(COS(PI()*A60/180))),NA()) ->  | AL60: =IF(AND($AK$4=TRUE,$AJ$8=ListsFlags!$A$13),$AK$5+(s9rad*(SIN(PI()*A60/180))),NA()) ->  | AM60: =IF(AND($AK$4=TRUE,$AJ$8=ListsFlags!$A$13),$AK$6+(s9rad*(COS(PI()*A60/180))),NA()) ->  | AP60: =IF(AND($AO$4=TRUE,$AN$8=ListsFlags!$A$13),$AO$5+(s10rad*(SIN(PI()*A60/180))),NA()) ->  | AQ60: =IF(AND($AO$4=TRUE,$AN$8=ListsFlags!$A$13),$AO$6+(s10rad*(COS(PI()*A60/180))),NA()) -> 
A61: 285 | E61: =IF(AND($D$4=TRUE,$C$8=ListsFlags!$A$13),$D$5+(s1rad*(SIN(PI()*Circ!A61/180))),NA()) ->  | F61: =IF(AND($D$4=TRUE,$C$8=ListsFlags!$A$13),$D$6+(s1rad*(COS(PI()*Circ!A61/180))),NA()) ->  | J61: =IF(AND($I$4=TRUE,$H$8=ListsFlags!$A$13),$I$5+(s2rad*(SIN(PI()*A61/180))),NA()) ->  | K61: =IF(AND($I$4=TRUE,$H$8=ListsFlags!$A$13),$I$6+(s2rad*(COS(PI()*A61/180))),NA()) ->  | N61: =IF(AND($M$4=TRUE,$L$8=ListsFlags!$A$13),$M$5+(s3rad*(SIN(PI()*A61/180))),NA()) ->  | O61: =IF(AND($M$4=TRUE,$L$8=ListsFlags!$A$13),$M$6+(s3rad*(COS(PI()*A61/180))),NA()) ->  | R61: =IF(AND($Q$4=TRUE,$P$8=ListsFlags!$A$13),$Q$5+(s4rad*(SIN(PI()*A61/180))),NA()) ->  | S61: =IF(AND($Q$4=TRUE,$P$8=ListsFlags!$A$13),$Q$6+(s4rad*(COS(PI()*A61/180))),NA()) ->  | V61: =IF(AND($U$4=TRUE,$T$8=ListsFlags!$A$13),$U$5+(s5rad*(SIN(PI()*A61/180))),NA()) ->  | W61: =IF(AND($U$4=TRUE,$T$8=ListsFlags!$A$13),$U$6+(s5rad*(COS(PI()*A61/180))),NA()) ->  | Z61: =IF(AND($Y$4=TRUE,$X$8=ListsFlags!$A$13),$Y$5+(s6rad*(SIN(PI()*A61/180))),NA()) ->  | AA61: =IF(AND($Y$4=TRUE,$X$8=ListsFlags!$A$13),$Y$6+(s6rad*(COS(PI()*A61/180))),NA()) ->  | AD61: =IF(AND($AC$4=TRUE,$AB$8=ListsFlags!$A$13),$AC$5+(s7rad*(SIN(PI()*A61/180))),NA()) ->  | AE61: =IF(AND($AC$4=TRUE,$AB$8=ListsFlags!$A$13),$AC$6+(s7rad*(COS(PI()*A61/180))),NA()) ->  | AH61: =IF(AND($AG$4=TRUE,$AF$8=ListsFlags!$A$13),$AG$5+(s8rad*(SIN(PI()*A61/180))),NA()) ->  | AI61: =IF(AND($AG$4=TRUE,$AF$8=ListsFlags!$A$13),$AG$6+(s8rad*(COS(PI()*A61/180))),NA()) ->  | AL61: =IF(AND($AK$4=TRUE,$AJ$8=ListsFlags!$A$13),$AK$5+(s9rad*(SIN(PI()*A61/180))),NA()) ->  | AM61: =IF(AND($AK$4=TRUE,$AJ$8=ListsFlags!$A$13),$AK$6+(s9rad*(COS(PI()*A61/180))),NA()) ->  | AP61: =IF(AND($AO$4=TRUE,$AN$8=ListsFlags!$A$13),$AO$5+(s10rad*(SIN(PI()*A61/180))),NA()) ->  | AQ61: =IF(AND($AO$4=TRUE,$AN$8=ListsFlags!$A$13),$AO$6+(s10rad*(COS(PI()*A61/180))),NA()) -> 
A62: 290 | E62: =IF(AND($D$4=TRUE,$C$8=ListsFlags!$A$13),$D$5+(s1rad*(SIN(PI()*Circ!A62/180))),NA()) ->  | F62: =IF(AND($D$4=TRUE,$C$8=ListsFlags!$A$13),$D$6+(s1rad*(COS(PI()*Circ!A62/180))),NA()) ->  | J62: =IF(AND($I$4=TRUE,$H$8=ListsFlags!$A$13),$I$5+(s2rad*(SIN(PI()*A62/180))),NA()) ->  | K62: =IF(AND($I$4=TRUE,$H$8=ListsFlags!$A$13),$I$6+(s2rad*(COS(PI()*A62/180))),NA()) ->  | N62: =IF(AND($M$4=TRUE,$L$8=ListsFlags!$A$13),$M$5+(s3rad*(SIN(PI()*A62/180))),NA()) ->  | O62: =IF(AND($M$4=TRUE,$L$8=ListsFlags!$A$13),$M$6+(s3rad*(COS(PI()*A62/180))),NA()) ->  | R62: =IF(AND($Q$4=TRUE,$P$8=ListsFlags!$A$13),$Q$5+(s4rad*(SIN(PI()*A62/180))),NA()) ->  | S62: =IF(AND($Q$4=TRUE,$P$8=ListsFlags!$A$13),$Q$6+(s4rad*(COS(PI()*A62/180))),NA()) ->  | V62: =IF(AND($U$4=TRUE,$T$8=ListsFlags!$A$13),$U$5+(s5rad*(SIN(PI()*A62/180))),NA()) ->  | W62: =IF(AND($U$4=TRUE,$T$8=ListsFlags!$A$13),$U$6+(s5rad*(COS(PI()*A62/180))),NA()) ->  | Z62: =IF(AND($Y$4=TRUE,$X$8=ListsFlags!$A$13),$Y$5+(s6rad*(SIN(PI()*A62/180))),NA()) ->  | AA62: =IF(AND($Y$4=TRUE,$X$8=ListsFlags!$A$13),$Y$6+(s6rad*(COS(PI()*A62/180))),NA()) ->  | AD62: =IF(AND($AC$4=TRUE,$AB$8=ListsFlags!$A$13),$AC$5+(s7rad*(SIN(PI()*A62/180))),NA()) ->  | AE62: =IF(AND($AC$4=TRUE,$AB$8=ListsFlags!$A$13),$AC$6+(s7rad*(COS(PI()*A62/180))),NA()) ->  | AH62: =IF(AND($AG$4=TRUE,$AF$8=ListsFlags!$A$13),$AG$5+(s8rad*(SIN(PI()*A62/180))),NA()) ->  | AI62: =IF(AND($AG$4=TRUE,$AF$8=ListsFlags!$A$13),$AG$6+(s8rad*(COS(PI()*A62/180))),NA()) ->  | AL62: =IF(AND($AK$4=TRUE,$AJ$8=ListsFlags!$A$13),$AK$5+(s9rad*(SIN(PI()*A62/180))),NA()) ->  | AM62: =IF(AND($AK$4=TRUE,$AJ$8=ListsFlags!$A$13),$AK$6+(s9rad*(COS(PI()*A62/180))),NA()) ->  | AP62: =IF(AND($AO$4=TRUE,$AN$8=ListsFlags!$A$13),$AO$5+(s10rad*(SIN(PI()*A62/180))),NA()) ->  | AQ62: =IF(AND($AO$4=TRUE,$AN$8=ListsFlags!$A$13),$AO$6+(s10rad*(COS(PI()*A62/180))),NA()) -> 
A63: 295 | E63: =IF(AND($D$4=TRUE,$C$8=ListsFlags!$A$13),$D$5+(s1rad*(SIN(PI()*Circ!A63/180))),NA()) ->  | F63: =IF(AND($D$4=TRUE,$C$8=ListsFlags!$A$13),$D$6+(s1rad*(COS(PI()*Circ!A63/180))),NA()) ->  | J63: =IF(AND($I$4=TRUE,$H$8=ListsFlags!$A$13),$I$5+(s2rad*(SIN(PI()*A63/180))),NA()) ->  | K63: =IF(AND($I$4=TRUE,$H$8=ListsFlags!$A$13),$I$6+(s2rad*(COS(PI()*A63/180))),NA()) ->  | N63: =IF(AND($M$4=TRUE,$L$8=ListsFlags!$A$13),$M$5+(s3rad*(SIN(PI()*A63/180))),NA()) ->  | O63: =IF(AND($M$4=TRUE,$L$8=ListsFlags!$A$13),$M$6+(s3rad*(COS(PI()*A63/180))),NA()) ->  | R63: =IF(AND($Q$4=TRUE,$P$8=ListsFlags!$A$13),$Q$5+(s4rad*(SIN(PI()*A63/180))),NA()) ->  | S63: =IF(AND($Q$4=TRUE,$P$8=ListsFlags!$A$13),$Q$6+(s4rad*(COS(PI()*A63/180))),NA()) ->  | V63: =IF(AND($U$4=TRUE,$T$8=ListsFlags!$A$13),$U$5+(s5rad*(SIN(PI()*A63/180))),NA()) ->  | W63: =IF(AND($U$4=TRUE,$T$8=ListsFlags!$A$13),$U$6+(s5rad*(COS(PI()*A63/180))),NA()) ->  | Z63: =IF(AND($Y$4=TRUE,$X$8=ListsFlags!$A$13),$Y$5+(s6rad*(SIN(PI()*A63/180))),NA()) ->  | AA63: =IF(AND($Y$4=TRUE,$X$8=ListsFlags!$A$13),$Y$6+(s6rad*(COS(PI()*A63/180))),NA()) ->  | AD63: =IF(AND($AC$4=TRUE,$AB$8=ListsFlags!$A$13),$AC$5+(s7rad*(SIN(PI()*A63/180))),NA()) ->  | AE63: =IF(AND($AC$4=TRUE,$AB$8=ListsFlags!$A$13),$AC$6+(s7rad*(COS(PI()*A63/180))),NA()) ->  | AH63: =IF(AND($AG$4=TRUE,$AF$8=ListsFlags!$A$13),$AG$5+(s8rad*(SIN(PI()*A63/180))),NA()) ->  | AI63: =IF(AND($AG$4=TRUE,$AF$8=ListsFlags!$A$13),$AG$6+(s8rad*(COS(PI()*A63/180))),NA()) ->  | AL63: =IF(AND($AK$4=TRUE,$AJ$8=ListsFlags!$A$13),$AK$5+(s9rad*(SIN(PI()*A63/180))),NA()) ->  | AM63: =IF(AND($AK$4=TRUE,$AJ$8=ListsFlags!$A$13),$AK$6+(s9rad*(COS(PI()*A63/180))),NA()) ->  | AP63: =IF(AND($AO$4=TRUE,$AN$8=ListsFlags!$A$13),$AO$5+(s10rad*(SIN(PI()*A63/180))),NA()) ->  | AQ63: =IF(AND($AO$4=TRUE,$AN$8=ListsFlags!$A$13),$AO$6+(s10rad*(COS(PI()*A63/180))),NA()) -> 
A64: 300 | E64: =IF(AND($D$4=TRUE,$C$8=ListsFlags!$A$13),$D$5+(s1rad*(SIN(PI()*Circ!A64/180))),NA()) ->  | F64: =IF(AND($D$4=TRUE,$C$8=ListsFlags!$A$13),$D$6+(s1rad*(COS(PI()*Circ!A64/180))),NA()) ->  | J64: =IF(AND($I$4=TRUE,$H$8=ListsFlags!$A$13),$I$5+(s2rad*(SIN(PI()*A64/180))),NA()) ->  | K64: =IF(AND($I$4=TRUE,$H$8=ListsFlags!$A$13),$I$6+(s2rad*(COS(PI()*A64/180))),NA()) ->  | N64: =IF(AND($M$4=TRUE,$L$8=ListsFlags!$A$13),$M$5+(s3rad*(SIN(PI()*A64/180))),NA()) ->  | O64: =IF(AND($M$4=TRUE,$L$8=ListsFlags!$A$13),$M$6+(s3rad*(COS(PI()*A64/180))),NA()) ->  | R64: =IF(AND($Q$4=TRUE,$P$8=ListsFlags!$A$13),$Q$5+(s4rad*(SIN(PI()*A64/180))),NA()) ->  | S64: =IF(AND($Q$4=TRUE,$P$8=ListsFlags!$A$13),$Q$6+(s4rad*(COS(PI()*A64/180))),NA()) ->  | V64: =IF(AND($U$4=TRUE,$T$8=ListsFlags!$A$13),$U$5+(s5rad*(SIN(PI()*A64/180))),NA()) ->  | W64: =IF(AND($U$4=TRUE,$T$8=ListsFlags!$A$13),$U$6+(s5rad*(COS(PI()*A64/180))),NA()) ->  | Z64: =IF(AND($Y$4=TRUE,$X$8=ListsFlags!$A$13),$Y$5+(s6rad*(SIN(PI()*A64/180))),NA()) ->  | AA64: =IF(AND($Y$4=TRUE,$X$8=ListsFlags!$A$13),$Y$6+(s6rad*(COS(PI()*A64/180))),NA()) ->  | AD64: =IF(AND($AC$4=TRUE,$AB$8=ListsFlags!$A$13),$AC$5+(s7rad*(SIN(PI()*A64/180))),NA()) ->  | AE64: =IF(AND($AC$4=TRUE,$AB$8=ListsFlags!$A$13),$AC$6+(s7rad*(COS(PI()*A64/180))),NA()) ->  | AH64: =IF(AND($AG$4=TRUE,$AF$8=ListsFlags!$A$13),$AG$5+(s8rad*(SIN(PI()*A64/180))),NA()) ->  | AI64: =IF(AND($AG$4=TRUE,$AF$8=ListsFlags!$A$13),$AG$6+(s8rad*(COS(PI()*A64/180))),NA()) ->  | AL64: =IF(AND($AK$4=TRUE,$AJ$8=ListsFlags!$A$13),$AK$5+(s9rad*(SIN(PI()*A64/180))),NA()) ->  | AM64: =IF(AND($AK$4=TRUE,$AJ$8=ListsFlags!$A$13),$AK$6+(s9rad*(COS(PI()*A64/180))),NA()) ->  | AP64: =IF(AND($AO$4=TRUE,$AN$8=ListsFlags!$A$13),$AO$5+(s10rad*(SIN(PI()*A64/180))),NA()) ->  | AQ64: =IF(AND($AO$4=TRUE,$AN$8=ListsFlags!$A$13),$AO$6+(s10rad*(COS(PI()*A64/180))),NA()) -> 
A65: 305 | E65: =IF(AND($D$4=TRUE,$C$8=ListsFlags!$A$13),$D$5+(s1rad*(SIN(PI()*Circ!A65/180))),NA()) ->  | F65: =IF(AND($D$4=TRUE,$C$8=ListsFlags!$A$13),$D$6+(s1rad*(COS(PI()*Circ!A65/180))),NA()) ->  | J65: =IF(AND($I$4=TRUE,$H$8=ListsFlags!$A$13),$I$5+(s2rad*(SIN(PI()*A65/180))),NA()) ->  | K65: =IF(AND($I$4=TRUE,$H$8=ListsFlags!$A$13),$I$6+(s2rad*(COS(PI()*A65/180))),NA()) ->  | N65: =IF(AND($M$4=TRUE,$L$8=ListsFlags!$A$13),$M$5+(s3rad*(SIN(PI()*A65/180))),NA()) ->  | O65: =IF(AND($M$4=TRUE,$L$8=ListsFlags!$A$13),$M$6+(s3rad*(COS(PI()*A65/180))),NA()) ->  | R65: =IF(AND($Q$4=TRUE,$P$8=ListsFlags!$A$13),$Q$5+(s4rad*(SIN(PI()*A65/180))),NA()) ->  | S65: =IF(AND($Q$4=TRUE,$P$8=ListsFlags!$A$13),$Q$6+(s4rad*(COS(PI()*A65/180))),NA()) ->  | V65: =IF(AND($U$4=TRUE,$T$8=ListsFlags!$A$13),$U$5+(s5rad*(SIN(PI()*A65/180))),NA()) ->  | W65: =IF(AND($U$4=TRUE,$T$8=ListsFlags!$A$13),$U$6+(s5rad*(COS(PI()*A65/180))),NA()) ->  | Z65: =IF(AND($Y$4=TRUE,$X$8=ListsFlags!$A$13),$Y$5+(s6rad*(SIN(PI()*A65/180))),NA()) ->  | AA65: =IF(AND($Y$4=TRUE,$X$8=ListsFlags!$A$13),$Y$6+(s6rad*(COS(PI()*A65/180))),NA()) ->  | AD65: =IF(AND($AC$4=TRUE,$AB$8=ListsFlags!$A$13),$AC$5+(s7rad*(SIN(PI()*A65/180))),NA()) ->  | AE65: =IF(AND($AC$4=TRUE,$AB$8=ListsFlags!$A$13),$AC$6+(s7rad*(COS(PI()*A65/180))),NA()) ->  | AH65: =IF(AND($AG$4=TRUE,$AF$8=ListsFlags!$A$13),$AG$5+(s8rad*(SIN(PI()*A65/180))),NA()) ->  | AI65: =IF(AND($AG$4=TRUE,$AF$8=ListsFlags!$A$13),$AG$6+(s8rad*(COS(PI()*A65/180))),NA()) ->  | AL65: =IF(AND($AK$4=TRUE,$AJ$8=ListsFlags!$A$13),$AK$5+(s9rad*(SIN(PI()*A65/180))),NA()) ->  | AM65: =IF(AND($AK$4=TRUE,$AJ$8=ListsFlags!$A$13),$AK$6+(s9rad*(COS(PI()*A65/180))),NA()) ->  | AP65: =IF(AND($AO$4=TRUE,$AN$8=ListsFlags!$A$13),$AO$5+(s10rad*(SIN(PI()*A65/180))),NA()) ->  | AQ65: =IF(AND($AO$4=TRUE,$AN$8=ListsFlags!$A$13),$AO$6+(s10rad*(COS(PI()*A65/180))),NA()) -> 
A66: 310 | E66: =IF(AND($D$4=TRUE,$C$8=ListsFlags!$A$13),$D$5+(s1rad*(SIN(PI()*Circ!A66/180))),NA()) ->  | F66: =IF(AND($D$4=TRUE,$C$8=ListsFlags!$A$13),$D$6+(s1rad*(COS(PI()*Circ!A66/180))),NA()) ->  | J66: =IF(AND($I$4=TRUE,$H$8=ListsFlags!$A$13),$I$5+(s2rad*(SIN(PI()*A66/180))),NA()) ->  | K66: =IF(AND($I$4=TRUE,$H$8=ListsFlags!$A$13),$I$6+(s2rad*(COS(PI()*A66/180))),NA()) ->  | N66: =IF(AND($M$4=TRUE,$L$8=ListsFlags!$A$13),$M$5+(s3rad*(SIN(PI()*A66/180))),NA()) ->  | O66: =IF(AND($M$4=TRUE,$L$8=ListsFlags!$A$13),$M$6+(s3rad*(COS(PI()*A66/180))),NA()) ->  | R66: =IF(AND($Q$4=TRUE,$P$8=ListsFlags!$A$13),$Q$5+(s4rad*(SIN(PI()*A66/180))),NA()) ->  | S66: =IF(AND($Q$4=TRUE,$P$8=ListsFlags!$A$13),$Q$6+(s4rad*(COS(PI()*A66/180))),NA()) ->  | V66: =IF(AND($U$4=TRUE,$T$8=ListsFlags!$A$13),$U$5+(s5rad*(SIN(PI()*A66/180))),NA()) ->  | W66: =IF(AND($U$4=TRUE,$T$8=ListsFlags!$A$13),$U$6+(s5rad*(COS(PI()*A66/180))),NA()) ->  | Z66: =IF(AND($Y$4=TRUE,$X$8=ListsFlags!$A$13),$Y$5+(s6rad*(SIN(PI()*A66/180))),NA()) ->  | AA66: =IF(AND($Y$4=TRUE,$X$8=ListsFlags!$A$13),$Y$6+(s6rad*(COS(PI()*A66/180))),NA()) ->  | AD66: =IF(AND($AC$4=TRUE,$AB$8=ListsFlags!$A$13),$AC$5+(s7rad*(SIN(PI()*A66/180))),NA()) ->  | AE66: =IF(AND($AC$4=TRUE,$AB$8=ListsFlags!$A$13),$AC$6+(s7rad*(COS(PI()*A66/180))),NA()) ->  | AH66: =IF(AND($AG$4=TRUE,$AF$8=ListsFlags!$A$13),$AG$5+(s8rad*(SIN(PI()*A66/180))),NA()) ->  | AI66: =IF(AND($AG$4=TRUE,$AF$8=ListsFlags!$A$13),$AG$6+(s8rad*(COS(PI()*A66/180))),NA()) ->  | AL66: =IF(AND($AK$4=TRUE,$AJ$8=ListsFlags!$A$13),$AK$5+(s9rad*(SIN(PI()*A66/180))),NA()) ->  | AM66: =IF(AND($AK$4=TRUE,$AJ$8=ListsFlags!$A$13),$AK$6+(s9rad*(COS(PI()*A66/180))),NA()) ->  | AP66: =IF(AND($AO$4=TRUE,$AN$8=ListsFlags!$A$13),$AO$5+(s10rad*(SIN(PI()*A66/180))),NA()) ->  | AQ66: =IF(AND($AO$4=TRUE,$AN$8=ListsFlags!$A$13),$AO$6+(s10rad*(COS(PI()*A66/180))),NA()) -> 
A67: 315 | E67: =IF(AND($D$4=TRUE,$C$8=ListsFlags!$A$13),$D$5+(s1rad*(SIN(PI()*Circ!A67/180))),NA()) ->  | F67: =IF(AND($D$4=TRUE,$C$8=ListsFlags!$A$13),$D$6+(s1rad*(COS(PI()*Circ!A67/180))),NA()) ->  | G67: SE | J67: =IF(AND($I$4=TRUE,$H$8=ListsFlags!$A$13),$I$5+(s2rad*(SIN(PI()*A67/180))),NA()) ->  | K67: =IF(AND($I$4=TRUE,$H$8=ListsFlags!$A$13),$I$6+(s2rad*(COS(PI()*A67/180))),NA()) ->  | N67: =IF(AND($M$4=TRUE,$L$8=ListsFlags!$A$13),$M$5+(s3rad*(SIN(PI()*A67/180))),NA()) ->  | O67: =IF(AND($M$4=TRUE,$L$8=ListsFlags!$A$13),$M$6+(s3rad*(COS(PI()*A67/180))),NA()) ->  | R67: =IF(AND($Q$4=TRUE,$P$8=ListsFlags!$A$13),$Q$5+(s4rad*(SIN(PI()*A67/180))),NA()) ->  | S67: =IF(AND($Q$4=TRUE,$P$8=ListsFlags!$A$13),$Q$6+(s4rad*(COS(PI()*A67/180))),NA()) ->  | V67: =IF(AND($U$4=TRUE,$T$8=ListsFlags!$A$13),$U$5+(s5rad*(SIN(PI()*A67/180))),NA()) ->  | W67: =IF(AND($U$4=TRUE,$T$8=ListsFlags!$A$13),$U$6+(s5rad*(COS(PI()*A67/180))),NA()) ->  | Z67: =IF(AND($Y$4=TRUE,$X$8=ListsFlags!$A$13),$Y$5+(s6rad*(SIN(PI()*A67/180))),NA()) ->  | AA67: =IF(AND($Y$4=TRUE,$X$8=ListsFlags!$A$13),$Y$6+(s6rad*(COS(PI()*A67/180))),NA()) ->  | AD67: =IF(AND($AC$4=TRUE,$AB$8=ListsFlags!$A$13),$AC$5+(s7rad*(SIN(PI()*A67/180))),NA()) ->  | AE67: =IF(AND($AC$4=TRUE,$AB$8=ListsFlags!$A$13),$AC$6+(s7rad*(COS(PI()*A67/180))),NA()) ->  | AH67: =IF(AND($AG$4=TRUE,$AF$8=ListsFlags!$A$13),$AG$5+(s8rad*(SIN(PI()*A67/180))),NA()) ->  | AI67: =IF(AND($AG$4=TRUE,$AF$8=ListsFlags!$A$13),$AG$6+(s8rad*(COS(PI()*A67/180))),NA()) ->  | AL67: =IF(AND($AK$4=TRUE,$AJ$8=ListsFlags!$A$13),$AK$5+(s9rad*(SIN(PI()*A67/180))),NA()) ->  | AM67: =IF(AND($AK$4=TRUE,$AJ$8=ListsFlags!$A$13),$AK$6+(s9rad*(COS(PI()*A67/180))),NA()) ->  | AP67: =IF(AND($AO$4=TRUE,$AN$8=ListsFlags!$A$13),$AO$5+(s10rad*(SIN(PI()*A67/180))),NA()) ->  | AQ67: =IF(AND($AO$4=TRUE,$AN$8=ListsFlags!$A$13),$AO$6+(s10rad*(COS(PI()*A67/180))),NA()) -> 
A68: 320 | E68: =IF(AND($D$4=TRUE,$C$8=ListsFlags!$A$13),$D$5+(s1rad*(SIN(PI()*Circ!A68/180))),NA()) ->  | F68: =IF(AND($D$4=TRUE,$C$8=ListsFlags!$A$13),$D$6+(s1rad*(COS(PI()*Circ!A68/180))),NA()) ->  | J68: =IF(AND($I$4=TRUE,$H$8=ListsFlags!$A$13),$I$5+(s2rad*(SIN(PI()*A68/180))),NA()) ->  | K68: =IF(AND($I$4=TRUE,$H$8=ListsFlags!$A$13),$I$6+(s2rad*(COS(PI()*A68/180))),NA()) ->  | N68: =IF(AND($M$4=TRUE,$L$8=ListsFlags!$A$13),$M$5+(s3rad*(SIN(PI()*A68/180))),NA()) ->  | O68: =IF(AND($M$4=TRUE,$L$8=ListsFlags!$A$13),$M$6+(s3rad*(COS(PI()*A68/180))),NA()) ->  | R68: =IF(AND($Q$4=TRUE,$P$8=ListsFlags!$A$13),$Q$5+(s4rad*(SIN(PI()*A68/180))),NA()) ->  | S68: =IF(AND($Q$4=TRUE,$P$8=ListsFlags!$A$13),$Q$6+(s4rad*(COS(PI()*A68/180))),NA()) ->  | V68: =IF(AND($U$4=TRUE,$T$8=ListsFlags!$A$13),$U$5+(s5rad*(SIN(PI()*A68/180))),NA()) ->  | W68: =IF(AND($U$4=TRUE,$T$8=ListsFlags!$A$13),$U$6+(s5rad*(COS(PI()*A68/180))),NA()) ->  | Z68: =IF(AND($Y$4=TRUE,$X$8=ListsFlags!$A$13),$Y$5+(s6rad*(SIN(PI()*A68/180))),NA()) ->  | AA68: =IF(AND($Y$4=TRUE,$X$8=ListsFlags!$A$13),$Y$6+(s6rad*(COS(PI()*A68/180))),NA()) ->  | AD68: =IF(AND($AC$4=TRUE,$AB$8=ListsFlags!$A$13),$AC$5+(s7rad*(SIN(PI()*A68/180))),NA()) ->  | AE68: =IF(AND($AC$4=TRUE,$AB$8=ListsFlags!$A$13),$AC$6+(s7rad*(COS(PI()*A68/180))),NA()) ->  | AH68: =IF(AND($AG$4=TRUE,$AF$8=ListsFlags!$A$13),$AG$5+(s8rad*(SIN(PI()*A68/180))),NA()) ->  | AI68: =IF(AND($AG$4=TRUE,$AF$8=ListsFlags!$A$13),$AG$6+(s8rad*(COS(PI()*A68/180))),NA()) ->  | AL68: =IF(AND($AK$4=TRUE,$AJ$8=ListsFlags!$A$13),$AK$5+(s9rad*(SIN(PI()*A68/180))),NA()) ->  | AM68: =IF(AND($AK$4=TRUE,$AJ$8=ListsFlags!$A$13),$AK$6+(s9rad*(COS(PI()*A68/180))),NA()) ->  | AP68: =IF(AND($AO$4=TRUE,$AN$8=ListsFlags!$A$13),$AO$5+(s10rad*(SIN(PI()*A68/180))),NA()) ->  | AQ68: =IF(AND($AO$4=TRUE,$AN$8=ListsFlags!$A$13),$AO$6+(s10rad*(COS(PI()*A68/180))),NA()) ->  | AT68: =IF($AS$4=TRUE,$AS$5+(circleradius*(SIN(PI()*A68/180))),"") ->  | AU68: =IF($AS$4=TRUE,$AS$6+(circleradius*(COS(PI()*A68/180))),"") ->  | AY68: =IF(AND(AT68=0,AU68=0),sitelatitude,(DEGREES(ASIN(SIN(RADIANS(sitelatitude))*COS((SQRT(AT68^2+AU68^2)/3.28)/RadiusEarth)+COS(RADIANS(sitelatitude))*SIN((SQRT(AT68^2+AU68^2)/3.28)/RadiusEarth)*COS(RADIANS((IF(AU68>=0,DEGREES(ATAN2(AT68,AU68)),360+DEGREES(ATAN2(AT68,AU68)))))))))) ->  | AZ68: =sitelongitude+IF(AND(AT68=0,AU68=0),0,DEGREES(ATAN2(COS((SQRT(AT68^2+AU68^2)/3.28)/RadiusEarth)-SIN(RADIANS(sitelatitude))*SIN(RADIANS(AY68)),SIN(RADIANS((IF(AU68>=0,DEGREES(ATAN2(AT68,AU68)),360+DEGREES(ATAN2(AT68,AU68))))))*SIN((SQRT(AT68^2+AU68^2)/3.28)/RadiusEarth)*COS(RADIANS(sitelatitude))))) -> 
A69: 325 | E69: =IF(AND($D$4=TRUE,$C$8=ListsFlags!$A$13),$D$5+(s1rad*(SIN(PI()*Circ!A69/180))),NA()) ->  | F69: =IF(AND($D$4=TRUE,$C$8=ListsFlags!$A$13),$D$6+(s1rad*(COS(PI()*Circ!A69/180))),NA()) ->  | J69: =IF(AND($I$4=TRUE,$H$8=ListsFlags!$A$13),$I$5+(s2rad*(SIN(PI()*A69/180))),NA()) ->  | K69: =IF(AND($I$4=TRUE,$H$8=ListsFlags!$A$13),$I$6+(s2rad*(COS(PI()*A69/180))),NA()) ->  | N69: =IF(AND($M$4=TRUE,$L$8=ListsFlags!$A$13),$M$5+(s3rad*(SIN(PI()*A69/180))),NA()) ->  | O69: =IF(AND($M$4=TRUE,$L$8=ListsFlags!$A$13),$M$6+(s3rad*(COS(PI()*A69/180))),NA()) ->  | R69: =IF(AND($Q$4=TRUE,$P$8=ListsFlags!$A$13),$Q$5+(s4rad*(SIN(PI()*A69/180))),NA()) ->  | S69: =IF(AND($Q$4=TRUE,$P$8=ListsFlags!$A$13),$Q$6+(s4rad*(COS(PI()*A69/180))),NA()) ->  | V69: =IF(AND($U$4=TRUE,$T$8=ListsFlags!$A$13),$U$5+(s5rad*(SIN(PI()*A69/180))),NA()) ->  | W69: =IF(AND($U$4=TRUE,$T$8=ListsFlags!$A$13),$U$6+(s5rad*(COS(PI()*A69/180))),NA()) ->  | Z69: =IF(AND($Y$4=TRUE,$X$8=ListsFlags!$A$13),$Y$5+(s6rad*(SIN(PI()*A69/180))),NA()) ->  | AA69: =IF(AND($Y$4=TRUE,$X$8=ListsFlags!$A$13),$Y$6+(s6rad*(COS(PI()*A69/180))),NA()) ->  | AD69: =IF(AND($AC$4=TRUE,$AB$8=ListsFlags!$A$13),$AC$5+(s7rad*(SIN(PI()*A69/180))),NA()) ->  | AE69: =IF(AND($AC$4=TRUE,$AB$8=ListsFlags!$A$13),$AC$6+(s7rad*(COS(PI()*A69/180))),NA()) ->  | AH69: =IF(AND($AG$4=TRUE,$AF$8=ListsFlags!$A$13),$AG$5+(s8rad*(SIN(PI()*A69/180))),NA()) ->  | AI69: =IF(AND($AG$4=TRUE,$AF$8=ListsFlags!$A$13),$AG$6+(s8rad*(COS(PI()*A69/180))),NA()) ->  | AL69: =IF(AND($AK$4=TRUE,$AJ$8=ListsFlags!$A$13),$AK$5+(s9rad*(SIN(PI()*A69/180))),NA()) ->  | AM69: =IF(AND($AK$4=TRUE,$AJ$8=ListsFlags!$A$13),$AK$6+(s9rad*(COS(PI()*A69/180))),NA()) ->  | AP69: =IF(AND($AO$4=TRUE,$AN$8=ListsFlags!$A$13),$AO$5+(s10rad*(SIN(PI()*A69/180))),NA()) ->  | AQ69: =IF(AND($AO$4=TRUE,$AN$8=ListsFlags!$A$13),$AO$6+(s10rad*(COS(PI()*A69/180))),NA()) -> 
A70: 330 | E70: =IF(AND($D$4=TRUE,$C$8=ListsFlags!$A$13),$D$5+(s1rad*(SIN(PI()*Circ!A70/180))),NA()) ->  | F70: =IF(AND($D$4=TRUE,$C$8=ListsFlags!$A$13),$D$6+(s1rad*(COS(PI()*Circ!A70/180))),NA()) ->  | J70: =IF(AND($I$4=TRUE,$H$8=ListsFlags!$A$13),$I$5+(s2rad*(SIN(PI()*A70/180))),NA()) ->  | K70: =IF(AND($I$4=TRUE,$H$8=ListsFlags!$A$13),$I$6+(s2rad*(COS(PI()*A70/180))),NA()) ->  | N70: =IF(AND($M$4=TRUE,$L$8=ListsFlags!$A$13),$M$5+(s3rad*(SIN(PI()*A70/180))),NA()) ->  | O70: =IF(AND($M$4=TRUE,$L$8=ListsFlags!$A$13),$M$6+(s3rad*(COS(PI()*A70/180))),NA()) ->  | R70: =IF(AND($Q$4=TRUE,$P$8=ListsFlags!$A$13),$Q$5+(s4rad*(SIN(PI()*A70/180))),NA()) ->  | S70: =IF(AND($Q$4=TRUE,$P$8=ListsFlags!$A$13),$Q$6+(s4rad*(COS(PI()*A70/180))),NA()) ->  | V70: =IF(AND($U$4=TRUE,$T$8=ListsFlags!$A$13),$U$5+(s5rad*(SIN(PI()*A70/180))),NA()) ->  | W70: =IF(AND($U$4=TRUE,$T$8=ListsFlags!$A$13),$U$6+(s5rad*(COS(PI()*A70/180))),NA()) ->  | Z70: =IF(AND($Y$4=TRUE,$X$8=ListsFlags!$A$13),$Y$5+(s6rad*(SIN(PI()*A70/180))),NA()) ->  | AA70: =IF(AND($Y$4=TRUE,$X$8=ListsFlags!$A$13),$Y$6+(s6rad*(COS(PI()*A70/180))),NA()) ->  | AD70: =IF(AND($AC$4=TRUE,$AB$8=ListsFlags!$A$13),$AC$5+(s7rad*(SIN(PI()*A70/180))),NA()) ->  | AE70: =IF(AND($AC$4=TRUE,$AB$8=ListsFlags!$A$13),$AC$6+(s7rad*(COS(PI()*A70/180))),NA()) ->  | AH70: =IF(AND($AG$4=TRUE,$AF$8=ListsFlags!$A$13),$AG$5+(s8rad*(SIN(PI()*A70/180))),NA()) ->  | AI70: =IF(AND($AG$4=TRUE,$AF$8=ListsFlags!$A$13),$AG$6+(s8rad*(COS(PI()*A70/180))),NA()) ->  | AL70: =IF(AND($AK$4=TRUE,$AJ$8=ListsFlags!$A$13),$AK$5+(s9rad*(SIN(PI()*A70/180))),NA()) ->  | AM70: =IF(AND($AK$4=TRUE,$AJ$8=ListsFlags!$A$13),$AK$6+(s9rad*(COS(PI()*A70/180))),NA()) ->  | AP70: =IF(AND($AO$4=TRUE,$AN$8=ListsFlags!$A$13),$AO$5+(s10rad*(SIN(PI()*A70/180))),NA()) ->  | AQ70: =IF(AND($AO$4=TRUE,$AN$8=ListsFlags!$A$13),$AO$6+(s10rad*(COS(PI()*A70/180))),NA()) -> 
A71: 335 | E71: =IF(AND($D$4=TRUE,$C$8=ListsFlags!$A$13),$D$5+(s1rad*(SIN(PI()*Circ!A71/180))),NA()) ->  | F71: =IF(AND($D$4=TRUE,$C$8=ListsFlags!$A$13),$D$6+(s1rad*(COS(PI()*Circ!A71/180))),NA()) ->  | J71: =IF(AND($I$4=TRUE,$H$8=ListsFlags!$A$13),$I$5+(s2rad*(SIN(PI()*A71/180))),NA()) ->  | K71: =IF(AND($I$4=TRUE,$H$8=ListsFlags!$A$13),$I$6+(s2rad*(COS(PI()*A71/180))),NA()) ->  | N71: =IF(AND($M$4=TRUE,$L$8=ListsFlags!$A$13),$M$5+(s3rad*(SIN(PI()*A71/180))),NA()) ->  | O71: =IF(AND($M$4=TRUE,$L$8=ListsFlags!$A$13),$M$6+(s3rad*(COS(PI()*A71/180))),NA()) ->  | R71: =IF(AND($Q$4=TRUE,$P$8=ListsFlags!$A$13),$Q$5+(s4rad*(SIN(PI()*A71/180))),NA()) ->  | S71: =IF(AND($Q$4=TRUE,$P$8=ListsFlags!$A$13),$Q$6+(s4rad*(COS(PI()*A71/180))),NA()) ->  | V71: =IF(AND($U$4=TRUE,$T$8=ListsFlags!$A$13),$U$5+(s5rad*(SIN(PI()*A71/180))),NA()) ->  | W71: =IF(AND($U$4=TRUE,$T$8=ListsFlags!$A$13),$U$6+(s5rad*(COS(PI()*A71/180))),NA()) ->  | Z71: =IF(AND($Y$4=TRUE,$X$8=ListsFlags!$A$13),$Y$5+(s6rad*(SIN(PI()*A71/180))),NA()) ->  | AA71: =IF(AND($Y$4=TRUE,$X$8=ListsFlags!$A$13),$Y$6+(s6rad*(COS(PI()*A71/180))),NA()) ->  | AD71: =IF(AND($AC$4=TRUE,$AB$8=ListsFlags!$A$13),$AC$5+(s7rad*(SIN(PI()*A71/180))),NA()) ->  | AE71: =IF(AND($AC$4=TRUE,$AB$8=ListsFlags!$A$13),$AC$6+(s7rad*(COS(PI()*A71/180))),NA()) ->  | AH71: =IF(AND($AG$4=TRUE,$AF$8=ListsFlags!$A$13),$AG$5+(s8rad*(SIN(PI()*A71/180))),NA()) ->  | AI71: =IF(AND($AG$4=TRUE,$AF$8=ListsFlags!$A$13),$AG$6+(s8rad*(COS(PI()*A71/180))),NA()) ->  | AL71: =IF(AND($AK$4=TRUE,$AJ$8=ListsFlags!$A$13),$AK$5+(s9rad*(SIN(PI()*A71/180))),NA()) ->  | AM71: =IF(AND($AK$4=TRUE,$AJ$8=ListsFlags!$A$13),$AK$6+(s9rad*(COS(PI()*A71/180))),NA()) ->  | AP71: =IF(AND($AO$4=TRUE,$AN$8=ListsFlags!$A$13),$AO$5+(s10rad*(SIN(PI()*A71/180))),NA()) ->  | AQ71: =IF(AND($AO$4=TRUE,$AN$8=ListsFlags!$A$13),$AO$6+(s10rad*(COS(PI()*A71/180))),NA()) -> 
A72: 340 | E72: =IF(AND($D$4=TRUE,$C$8=ListsFlags!$A$13),$D$5+(s1rad*(SIN(PI()*Circ!A72/180))),NA()) ->  | F72: =IF(AND($D$4=TRUE,$C$8=ListsFlags!$A$13),$D$6+(s1rad*(COS(PI()*Circ!A72/180))),NA()) ->  | J72: =IF(AND($I$4=TRUE,$H$8=ListsFlags!$A$13),$I$5+(s2rad*(SIN(PI()*A72/180))),NA()) ->  | K72: =IF(AND($I$4=TRUE,$H$8=ListsFlags!$A$13),$I$6+(s2rad*(COS(PI()*A72/180))),NA()) ->  | N72: =IF(AND($M$4=TRUE,$L$8=ListsFlags!$A$13),$M$5+(s3rad*(SIN(PI()*A72/180))),NA()) ->  | O72: =IF(AND($M$4=TRUE,$L$8=ListsFlags!$A$13),$M$6+(s3rad*(COS(PI()*A72/180))),NA()) ->  | R72: =IF(AND($Q$4=TRUE,$P$8=ListsFlags!$A$13),$Q$5+(s4rad*(SIN(PI()*A72/180))),NA()) ->  | S72: =IF(AND($Q$4=TRUE,$P$8=ListsFlags!$A$13),$Q$6+(s4rad*(COS(PI()*A72/180))),NA()) ->  | V72: =IF(AND($U$4=TRUE,$T$8=ListsFlags!$A$13),$U$5+(s5rad*(SIN(PI()*A72/180))),NA()) ->  | W72: =IF(AND($U$4=TRUE,$T$8=ListsFlags!$A$13),$U$6+(s5rad*(COS(PI()*A72/180))),NA()) ->  | Z72: =IF(AND($Y$4=TRUE,$X$8=ListsFlags!$A$13),$Y$5+(s6rad*(SIN(PI()*A72/180))),NA()) ->  | AA72: =IF(AND($Y$4=TRUE,$X$8=ListsFlags!$A$13),$Y$6+(s6rad*(COS(PI()*A72/180))),NA()) ->  | AD72: =IF(AND($AC$4=TRUE,$AB$8=ListsFlags!$A$13),$AC$5+(s7rad*(SIN(PI()*A72/180))),NA()) ->  | AE72: =IF(AND($AC$4=TRUE,$AB$8=ListsFlags!$A$13),$AC$6+(s7rad*(COS(PI()*A72/180))),NA()) ->  | AH72: =IF(AND($AG$4=TRUE,$AF$8=ListsFlags!$A$13),$AG$5+(s8rad*(SIN(PI()*A72/180))),NA()) ->  | AI72: =IF(AND($AG$4=TRUE,$AF$8=ListsFlags!$A$13),$AG$6+(s8rad*(COS(PI()*A72/180))),NA()) ->  | AL72: =IF(AND($AK$4=TRUE,$AJ$8=ListsFlags!$A$13),$AK$5+(s9rad*(SIN(PI()*A72/180))),NA()) ->  | AM72: =IF(AND($AK$4=TRUE,$AJ$8=ListsFlags!$A$13),$AK$6+(s9rad*(COS(PI()*A72/180))),NA()) ->  | AP72: =IF(AND($AO$4=TRUE,$AN$8=ListsFlags!$A$13),$AO$5+(s10rad*(SIN(PI()*A72/180))),NA()) ->  | AQ72: =IF(AND($AO$4=TRUE,$AN$8=ListsFlags!$A$13),$AO$6+(s10rad*(COS(PI()*A72/180))),NA()) -> 
A73: 345 | E73: =IF(AND($D$4=TRUE,$C$8=ListsFlags!$A$13),$D$5+(s1rad*(SIN(PI()*Circ!A73/180))),NA()) ->  | F73: =IF(AND($D$4=TRUE,$C$8=ListsFlags!$A$13),$D$6+(s1rad*(COS(PI()*Circ!A73/180))),NA()) ->  | J73: =IF(AND($I$4=TRUE,$H$8=ListsFlags!$A$13),$I$5+(s2rad*(SIN(PI()*A73/180))),NA()) ->  | K73: =IF(AND($I$4=TRUE,$H$8=ListsFlags!$A$13),$I$6+(s2rad*(COS(PI()*A73/180))),NA()) ->  | N73: =IF(AND($M$4=TRUE,$L$8=ListsFlags!$A$13),$M$5+(s3rad*(SIN(PI()*A73/180))),NA()) ->  | O73: =IF(AND($M$4=TRUE,$L$8=ListsFlags!$A$13),$M$6+(s3rad*(COS(PI()*A73/180))),NA()) ->  | R73: =IF(AND($Q$4=TRUE,$P$8=ListsFlags!$A$13),$Q$5+(s4rad*(SIN(PI()*A73/180))),NA()) ->  | S73: =IF(AND($Q$4=TRUE,$P$8=ListsFlags!$A$13),$Q$6+(s4rad*(COS(PI()*A73/180))),NA()) ->  | V73: =IF(AND($U$4=TRUE,$T$8=ListsFlags!$A$13),$U$5+(s5rad*(SIN(PI()*A73/180))),NA()) ->  | W73: =IF(AND($U$4=TRUE,$T$8=ListsFlags!$A$13),$U$6+(s5rad*(COS(PI()*A73/180))),NA()) ->  | Z73: =IF(AND($Y$4=TRUE,$X$8=ListsFlags!$A$13),$Y$5+(s6rad*(SIN(PI()*A73/180))),NA()) ->  | AA73: =IF(AND($Y$4=TRUE,$X$8=ListsFlags!$A$13),$Y$6+(s6rad*(COS(PI()*A73/180))),NA()) ->  | AD73: =IF(AND($AC$4=TRUE,$AB$8=ListsFlags!$A$13),$AC$5+(s7rad*(SIN(PI()*A73/180))),NA()) ->  | AE73: =IF(AND($AC$4=TRUE,$AB$8=ListsFlags!$A$13),$AC$6+(s7rad*(COS(PI()*A73/180))),NA()) ->  | AH73: =IF(AND($AG$4=TRUE,$AF$8=ListsFlags!$A$13),$AG$5+(s8rad*(SIN(PI()*A73/180))),NA()) ->  | AI73: =IF(AND($AG$4=TRUE,$AF$8=ListsFlags!$A$13),$AG$6+(s8rad*(COS(PI()*A73/180))),NA()) ->  | AL73: =IF(AND($AK$4=TRUE,$AJ$8=ListsFlags!$A$13),$AK$5+(s9rad*(SIN(PI()*A73/180))),NA()) ->  | AM73: =IF(AND($AK$4=TRUE,$AJ$8=ListsFlags!$A$13),$AK$6+(s9rad*(COS(PI()*A73/180))),NA()) ->  | AP73: =IF(AND($AO$4=TRUE,$AN$8=ListsFlags!$A$13),$AO$5+(s10rad*(SIN(PI()*A73/180))),NA()) ->  | AQ73: =IF(AND($AO$4=TRUE,$AN$8=ListsFlags!$A$13),$AO$6+(s10rad*(COS(PI()*A73/180))),NA()) -> 
A74: 350 | E74: =IF(AND($D$4=TRUE,$C$8=ListsFlags!$A$13),$D$5+(s1rad*(SIN(PI()*Circ!A74/180))),NA()) ->  | F74: =IF(AND($D$4=TRUE,$C$8=ListsFlags!$A$13),$D$6+(s1rad*(COS(PI()*Circ!A74/180))),NA()) ->  | J74: =IF(AND($I$4=TRUE,$H$8=ListsFlags!$A$13),$I$5+(s2rad*(SIN(PI()*A74/180))),NA()) ->  | K74: =IF(AND($I$4=TRUE,$H$8=ListsFlags!$A$13),$I$6+(s2rad*(COS(PI()*A74/180))),NA()) ->  | N74: =IF(AND($M$4=TRUE,$L$8=ListsFlags!$A$13),$M$5+(s3rad*(SIN(PI()*A74/180))),NA()) ->  | O74: =IF(AND($M$4=TRUE,$L$8=ListsFlags!$A$13),$M$6+(s3rad*(COS(PI()*A74/180))),NA()) ->  | R74: =IF(AND($Q$4=TRUE,$P$8=ListsFlags!$A$13),$Q$5+(s4rad*(SIN(PI()*A74/180))),NA()) ->  | S74: =IF(AND($Q$4=TRUE,$P$8=ListsFlags!$A$13),$Q$6+(s4rad*(COS(PI()*A74/180))),NA()) ->  | V74: =IF(AND($U$4=TRUE,$T$8=ListsFlags!$A$13),$U$5+(s5rad*(SIN(PI()*A74/180))),NA()) ->  | W74: =IF(AND($U$4=TRUE,$T$8=ListsFlags!$A$13),$U$6+(s5rad*(COS(PI()*A74/180))),NA()) ->  | Z74: =IF(AND($Y$4=TRUE,$X$8=ListsFlags!$A$13),$Y$5+(s6rad*(SIN(PI()*A74/180))),NA()) ->  | AA74: =IF(AND($Y$4=TRUE,$X$8=ListsFlags!$A$13),$Y$6+(s6rad*(COS(PI()*A74/180))),NA()) ->  | AD74: =IF(AND($AC$4=TRUE,$AB$8=ListsFlags!$A$13),$AC$5+(s7rad*(SIN(PI()*A74/180))),NA()) ->  | AE74: =IF(AND($AC$4=TRUE,$AB$8=ListsFlags!$A$13),$AC$6+(s7rad*(COS(PI()*A74/180))),NA()) ->  | AH74: =IF(AND($AG$4=TRUE,$AF$8=ListsFlags!$A$13),$AG$5+(s8rad*(SIN(PI()*A74/180))),NA()) ->  | AI74: =IF(AND($AG$4=TRUE,$AF$8=ListsFlags!$A$13),$AG$6+(s8rad*(COS(PI()*A74/180))),NA()) ->  | AL74: =IF(AND($AK$4=TRUE,$AJ$8=ListsFlags!$A$13),$AK$5+(s9rad*(SIN(PI()*A74/180))),NA()) ->  | AM74: =IF(AND($AK$4=TRUE,$AJ$8=ListsFlags!$A$13),$AK$6+(s9rad*(COS(PI()*A74/180))),NA()) ->  | AP74: =IF(AND($AO$4=TRUE,$AN$8=ListsFlags!$A$13),$AO$5+(s10rad*(SIN(PI()*A74/180))),NA()) ->  | AQ74: =IF(AND($AO$4=TRUE,$AN$8=ListsFlags!$A$13),$AO$6+(s10rad*(COS(PI()*A74/180))),NA()) -> 
A75: 355 | E75: =IF(AND($D$4=TRUE,$C$8=ListsFlags!$A$13),$D$5+(s1rad*(SIN(PI()*Circ!A75/180))),NA()) ->  | F75: =IF(AND($D$4=TRUE,$C$8=ListsFlags!$A$13),$D$6+(s1rad*(COS(PI()*Circ!A75/180))),NA()) ->  | J75: =IF(AND($I$4=TRUE,$H$8=ListsFlags!$A$13),$I$5+(s2rad*(SIN(PI()*A75/180))),NA()) ->  | K75: =IF(AND($I$4=TRUE,$H$8=ListsFlags!$A$13),$I$6+(s2rad*(COS(PI()*A75/180))),NA()) ->  | N75: =IF(AND($M$4=TRUE,$L$8=ListsFlags!$A$13),$M$5+(s3rad*(SIN(PI()*A75/180))),NA()) ->  | O75: =IF(AND($M$4=TRUE,$L$8=ListsFlags!$A$13),$M$6+(s3rad*(COS(PI()*A75/180))),NA()) ->  | R75: =IF(AND($Q$4=TRUE,$P$8=ListsFlags!$A$13),$Q$5+(s4rad*(SIN(PI()*A75/180))),NA()) ->  | S75: =IF(AND($Q$4=TRUE,$P$8=ListsFlags!$A$13),$Q$6+(s4rad*(COS(PI()*A75/180))),NA()) ->  | V75: =IF(AND($U$4=TRUE,$T$8=ListsFlags!$A$13),$U$5+(s5rad*(SIN(PI()*A75/180))),NA()) ->  | W75: =IF(AND($U$4=TRUE,$T$8=ListsFlags!$A$13),$U$6+(s5rad*(COS(PI()*A75/180))),NA()) ->  | Z75: =IF(AND($Y$4=TRUE,$X$8=ListsFlags!$A$13),$Y$5+(s6rad*(SIN(PI()*A75/180))),NA()) ->  | AA75: =IF(AND($Y$4=TRUE,$X$8=ListsFlags!$A$13),$Y$6+(s6rad*(COS(PI()*A75/180))),NA()) ->  | AD75: =IF(AND($AC$4=TRUE,$AB$8=ListsFlags!$A$13),$AC$5+(s7rad*(SIN(PI()*A75/180))),NA()) ->  | AE75: =IF(AND($AC$4=TRUE,$AB$8=ListsFlags!$A$13),$AC$6+(s7rad*(COS(PI()*A75/180))),NA()) ->  | AH75: =IF(AND($AG$4=TRUE,$AF$8=ListsFlags!$A$13),$AG$5+(s8rad*(SIN(PI()*A75/180))),NA()) ->  | AI75: =IF(AND($AG$4=TRUE,$AF$8=ListsFlags!$A$13),$AG$6+(s8rad*(COS(PI()*A75/180))),NA()) ->  | AL75: =IF(AND($AK$4=TRUE,$AJ$8=ListsFlags!$A$13),$AK$5+(s9rad*(SIN(PI()*A75/180))),NA()) ->  | AM75: =IF(AND($AK$4=TRUE,$AJ$8=ListsFlags!$A$13),$AK$6+(s9rad*(COS(PI()*A75/180))),NA()) ->  | AP75: =IF(AND($AO$4=TRUE,$AN$8=ListsFlags!$A$13),$AO$5+(s10rad*(SIN(PI()*A75/180))),NA()) ->  | AQ75: =IF(AND($AO$4=TRUE,$AN$8=ListsFlags!$A$13),$AO$6+(s10rad*(COS(PI()*A75/180))),NA()) -> 
A76: 360 | E76: =IF(AND($D$4=TRUE,$C$8=ListsFlags!$A$13),$D$5+(s1rad*(SIN(PI()*Circ!A76/180))),NA()) ->  | F76: =IF(AND($D$4=TRUE,$C$8=ListsFlags!$A$13),$D$6+(s1rad*(COS(PI()*Circ!A76/180))),NA()) ->  | G76: E | J76: =IF(AND($I$4=TRUE,$H$8=ListsFlags!$A$13),$I$5+(s2rad*(SIN(PI()*A76/180))),NA()) ->  | K76: =IF(AND($I$4=TRUE,$H$8=ListsFlags!$A$13),$I$6+(s2rad*(COS(PI()*A76/180))),NA()) ->  | N76: =IF(AND($M$4=TRUE,$L$8=ListsFlags!$A$13),$M$5+(s3rad*(SIN(PI()*A76/180))),NA()) ->  | O76: =IF(AND($M$4=TRUE,$L$8=ListsFlags!$A$13),$M$6+(s3rad*(COS(PI()*A76/180))),NA()) ->  | R76: =IF(AND($Q$4=TRUE,$P$8=ListsFlags!$A$13),$Q$5+(s4rad*(SIN(PI()*A76/180))),NA()) ->  | S76: =IF(AND($Q$4=TRUE,$P$8=ListsFlags!$A$13),$Q$6+(s4rad*(COS(PI()*A76/180))),NA()) ->  | V76: =IF(AND($U$4=TRUE,$T$8=ListsFlags!$A$13),$U$5+(s5rad*(SIN(PI()*A76/180))),NA()) ->  | W76: =IF(AND($U$4=TRUE,$T$8=ListsFlags!$A$13),$U$6+(s5rad*(COS(PI()*A76/180))),NA()) ->  | Z76: =IF(AND($Y$4=TRUE,$X$8=ListsFlags!$A$13),$Y$5+(s6rad*(SIN(PI()*A76/180))),NA()) ->  | AA76: =IF(AND($Y$4=TRUE,$X$8=ListsFlags!$A$13),$Y$6+(s6rad*(COS(PI()*A76/180))),NA()) ->  | AD76: =IF(AND($AC$4=TRUE,$AB$8=ListsFlags!$A$13),$AC$5+(s7rad*(SIN(PI()*A76/180))),NA()) ->  | AE76: =IF(AND($AC$4=TRUE,$AB$8=ListsFlags!$A$13),$AC$6+(s7rad*(COS(PI()*A76/180))),NA()) ->  | AH76: =IF(AND($AG$4=TRUE,$AF$8=ListsFlags!$A$13),$AG$5+(s8rad*(SIN(PI()*A76/180))),NA()) ->  | AI76: =IF(AND($AG$4=TRUE,$AF$8=ListsFlags!$A$13),$AG$6+(s8rad*(COS(PI()*A76/180))),NA()) ->  | AL76: =IF(AND($AK$4=TRUE,$AJ$8=ListsFlags!$A$13),$AK$5+(s9rad*(SIN(PI()*A76/180))),NA()) ->  | AM76: =IF(AND($AK$4=TRUE,$AJ$8=ListsFlags!$A$13),$AK$6+(s9rad*(COS(PI()*A76/180))),NA()) ->  | AP76: =IF(AND($AO$4=TRUE,$AN$8=ListsFlags!$A$13),$AO$5+(s10rad*(SIN(PI()*A76/180))),NA()) ->  | AQ76: =IF(AND($AO$4=TRUE,$AN$8=ListsFlags!$A$13),$AO$6+(s10rad*(COS(PI()*A76/180))),NA()) -> 
A77: Minimum | E77: =IF(ISNUMBER(E4),MIN(E4:E76),"") ->  | F77: =IF(ISNUMBER(F4),MIN(F4:F76),"") ->  | J77: =IF(ISNUMBER(J4),MIN(J4:J76),"") ->  | K77: =IF(ISNUMBER(K4),MIN(K4:K76),"") ->  | N77: =IF(ISNUMBER(N4),MIN(N4:N76),"") ->  | O77: =IF(ISNUMBER(O4),MIN(O4:O76),"") ->  | R77: =IF(ISNUMBER(R4),MIN(R4:R76),"") ->  | S77: =IF(ISNUMBER(S4),MIN(S4:S76),"") ->  | V77: =IF(ISNUMBER(V4),MIN(V4:V76),"") ->  | W77: =IF(ISNUMBER(W4),MIN(W4:W76),"") ->  | Z77: =IF(ISNUMBER(Z4),MIN(Z4:Z76),"") ->  | AA77: =IF(ISNUMBER(AA4),MIN(AA4:AA76),"") ->  | AD77: =IF(ISNUMBER(AD4),MIN(AD4:AD76),"") ->  | AE77: =IF(ISNUMBER(AE4),MIN(AE4:AE76),"") ->  | AH77: =IF(ISNUMBER(AH4),MIN(AH4:AH76),"") ->  | AI77: =IF(ISNUMBER(AI4),MIN(AI4:AI76),"") ->  | AL77: =IF(ISNUMBER(AL4),MIN(AL4:AL76),"") ->  | AM77: =IF(ISNUMBER(AM4),MIN(AM4:AM76),"") ->  | AP77: =IF(ISNUMBER(AP4),MIN(AP4:AP76),"") ->  | AQ77: =IF(ISNUMBER(AQ4),MIN(AQ4:AQ76),"") ->  | AT77: =IF(ISNUMBER(AT4),MIN(AT4:AT76),"") ->  | AU77: =IF(ISNUMBER(AU4),MIN(AU4:AU76),"") ->  | AY77: =IF(ISNUMBER(AY4),MIN(AY4:AY76),"") ->  | AZ77: =IF(ISNUMBER(AZ4),MIN(AZ4:AZ76),"") -> 
A78: Maximum | E78: =IF(ISNUMBER(E4),MAX(E4:E76),"") ->  | F78: =IF(ISNUMBER(F4),MAX(F4:F76),"") ->  | J78: =IF(ISNUMBER(J4),MAX(J4:J76),"") ->  | K78: =IF(ISNUMBER(K4),MAX(K4:K76),"") ->  | N78: =IF(ISNUMBER(N4),MAX(N4:N76),"") ->  | O78: =IF(ISNUMBER(O4),MAX(O4:O76),"") ->  | R78: =IF(ISNUMBER(R4),MAX(R4:R76),"") ->  | S78: =IF(ISNUMBER(S4),MAX(S4:S76),"") ->  | V78: =IF(ISNUMBER(V4),MAX(V4:V76),"") ->  | W78: =IF(ISNUMBER(W4),MAX(W4:W76),"") ->  | Z78: =IF(ISNUMBER(Z4),MAX(Z4:Z76),"") ->  | AA78: =IF(ISNUMBER(AA4),MAX(AA4:AA76),"") ->  | AD78: =IF(ISNUMBER(AD4),MAX(AD4:AD76),"") ->  | AE78: =IF(ISNUMBER(AE4),MAX(AE4:AE76),"") ->  | AH78: =IF(ISNUMBER(AH4),MAX(AH4:AH76),"") ->  | AI78: =IF(ISNUMBER(AI4),MAX(AI4:AI76),"") ->  | AL78: =IF(ISNUMBER(AL4),MAX(AL4:AL76),"") ->  | AM78: =IF(ISNUMBER(AM4),MAX(AM4:AM76),"") ->  | AP78: =IF(ISNUMBER(AP4),MAX(AP4:AP76),"") ->  | AQ78: =IF(ISNUMBER(AQ4),MAX(AQ4:AQ76),"") ->  | AT78: =IF(ISNUMBER(AT4),MAX(AT4:AT76),"") ->  | AU78: =IF(ISNUMBER(AU4),MAX(AU4:AU76),"") ->  | AY78: =IF(ISNUMBER(AY4),MAX(AY4:AY76),"") ->  | AZ78: =IF(ISNUMBER(AZ4),MAX(AZ4:AZ76),"") -> 
C80: C E_max | D80: =IF(AND($D5="",$I5="",$AK5="",$M5="",$Q5="",$U5="",$Y5="",$AC5="",$AG5="",$AO5=""),"",MIN(F78,K78,O78,S78,W78,AA78,AE78,AI78,AM78,AQ78)) ->  | E80: C E_min | F80: =IF(AND($D5="",$I5="",$AK5="",$M5="",$Q5="",$U5="",$Y5="",$AC5="",$AG5="",$AO5=""),"",MIN(F77,K77,O77,S77,W77,AA77,AE77,AI77,AM77,AQ77)) -> 
C81: C N_max | D81: =IF(AND($D5="",$I5="",$AK5="",$M5="",$Q5="",$U5="",$Y5="",$AC5="",$AG5="",$AO5=""),"",MIN(E78,J78,N78,R78,V78,Z78,AD78,AH78,AL78,AP78)) ->  | E81: C N_min | F81: =IF(AND($D5="",$I5="",$AK5="",$M5="",$Q5="",$U5="",$Y5="",$AC5="",$AG5="",$AO5=""),"",MIN(E77,J77,N77,R77,V77,Z77,AD77,AH77,AL77,AP77)) -> 

Sheet notes (hidden)
A2: Model Worksheet
A3: Labeled number of sources
A4: Introduced Vlookup function into the Factor worksheet for Manure Removal factor.
A5: Introduced Vlookup function into the Factor worksheet for Manure Dilution factor.
A6: Condensed long equations for source-specific abatement factors
A7: Corrected errors found in the Model sheet where the validation references were incorrect.
A8: Removed white space in model worksheet on left
A9: Commented on lable s1name.
A10: Put label names in cell c4 of setback worksheet.
A11: Found error that if L/W ratio = 8, "" was assigned as shape factor. This was fixed in "Lists & Calcs" > Emission Source Plotting routine > Shape FCTR column.
A12: Introduced Vlookup function into the Shape FCTR column referencing ShapeFactorTable on the Factor Worksheet.
A13: Eliminated N/A when circle and rectangle dimensions by adding "IF(sxshape="Circle"…. To hypotenuse calculations in "Lists & Calcs".
A14: Changed the logic in Cir Plot to If a Circle rather than If not a space or Rectangle.
A15: Introduced vlookup functions into the manure removal flags in "Lists & Calcs"
A16: Introduced vlookup functions into the manure dilution flags in "Lists & Calcs"
A17: Labeled basic site setback calculations in "Lists & Calcs"
A18: Changed the logic in Lists & Calcsfor calculating source rectangle coordinates to if a SW point rather than if not an SW point.
A19: Labeled North_max, North_min, East_max and East_min.
A20: Shortened COM x and y calculations using labels and sumproducts in Setback Plot worksheet.
A21: Labeled setbacks and coordinates
A22: Found error in setback adjustments for diagonals
A23: Fixed adjusted setback calculations for the diagonals on Lists & Calcs page.
A24: Labeled Rectangle_shape and Circle_shape in Setback Plot worksheet
A25: Removed nonsensical SUMS column from Manure worksheet.
A26: 5-21-13 can access the Google lat long find from Excel.
A27: labeled site latitude and longitude
A28: http://www.movable-type.co.uk/scripts/latlong.html
A29: Corrected error in lat/long calculation. All calculated angles are radians!
A30: How to use excel to calculate bearing between two points: http://www.ehow.com/how_10034591_use-excel-calculate-bearing-between-two-points.html
A31: 5-31-13: Solved calculating bearing and distance in "Setback Plot" worksheet.
A32: 6-1-13: Moved actual setpoint to GE Points worksheet.
A33: 6-19-13: Evan updated instructions and GEPoints settings
A34: 6-30-13: circle is not circular on GE. Fixed 7-2-13.
A35: Arial font. Fixed 7-1-13.
A36: Provide a workspace to do various calculations. 7-2-13.
A37: Try to get Google Maps in Excel. Solved.
A38: 2-4-14: reduced topography factor from a nested if statement to a simple vlookup function in factors worksheet. Also named topotable.
A39: 2-4-14: did the same to the land use factor using defined table landusetable in the lists worksheet.
A40: 2-7-14: reorganized Swine worksheet.
A41: 2-10-14: noted that Sarah used the word "perimeter" to indicate that land use and topo was the same in all directions.
A42: 2-13-14: Reorganized SrcFactors worksheet to combine all source related variables into one table.
A43: 2-12-14: Reorganized DirSpec worksheet to combine all direction specific variables into one table.
A44: 3-18-14: After one-month hiatus, set up Layers and Layertable in Eggs worksheet.
A45: 3-19-14: Removed duplicate names that referred to "Macrotester.xlsm" in another spreadsheet. Also introduced layer manure removal frequency table
A46: 3-24-14: Removed old dairy related names, now need to search for swine and layer names made obsolete by introduction of vlookup tables.
A47: 3-24-14: Removed old swine and layer names. Check out topography in DirSpec … blank cells?
A48: 3-28-14: Replaced several lists with one "Yes-No" list for several data validation cells. Figured out how allterrain flag works to bring in the list or not.
A49: 3-28-14: Need to automatically erase "other variables" when No is changed to yes.
A50: 3-29-14: Worked all day to improve and streamline input and calculation of topography and land use factors, and setbacks. Deleted DirSpec page. Deleted pland and pter flagging approach
A51: PALLTERRAIN (Model A60): User enters whether terrain is uniform or directional and PALLTERRAIN is YES or NO.
A52: If PALLTERRAIN=Yes: User picks from TOPOTABLE list to give the value of PALLTYPE (Model B60). Text remains even if PALLTERRAIN changes to No.
A53: If PALLTERRAIN=No: User picks from TOPOTABLE list to give the values of directional terrain (Model A73:H73). Text remains even in PALLTERRAIN changes to Yes
A54: Directional terrains used in calculations are either uniform or directional (Model A76:H76)
A55: Direction Specific Topography Factors obtained from lookup table (TOPOTABLE) in INPUTS worksheet and used to calculate setback in the SETBACK worksheet
A56: Added Ohio to list of states for wind stations
A57: Improved Wind Rose Selections. Defined table for each state and collection of states.
A58: 3-30-14: Cleaned up Wind worksheet.
A59: 3-31-14: Corrected name errors in inputs worksheet.
A60: 4-1-14: Ran macro to list the named ranges which produced a new worksheet called NamedRanges2. Ran first two macros which take you to Excel to KLM and GPS Visualizer web sites.
A61: 4-1-14: Talked to Mike Schutz about dairy manure management. Need to fix error with abatement and harmonize manure factors among species.
A62: 4-2-14: Assigned table names to layer worksheet. Need to add layers to odor emission rates
A63: 4-3-14: Fixed odor flag column in "Model" to include layer abatement tables. Fixed errors in "Model" and added check for wrong Source. Need to fix column K in SrcFactors, works for swine.
A64: 4-3-14: Figured out how to color a cell that has the wrong selection in it.
A65: 4-4-14: Finished adding layers to the model. Troubleshooting next.
A66: 4-5-14: Added conditional formatting to turn cells red with wrong inputs for source, removal and dilution columns. Copied this section of model to srcfactors worksheet. Added false to vlookups
A67: 4-5-14: Added dairy and layer removal factors to the removal and dilution factor column in scrcfactors.
A68: 4-5-14: Add "false" to vlookups and removed letters a, b, c from selection lists.
A69: 4-6-14: Fixed abatement selection error. Added wind frequency from station on Model worksheet. Need to finish final look of wind frequency.
A70: 6-10-14: Finished adding broilers to the model and changed layers to poultry.
A71: 6-12-14: Linked to Google Earth Online Longitude and Latitude finder. | B71: 40.576901 | C71: -86.60227
A72: 6-15-14: Finished compr worksheet to compare IA, IL, MDS-II, NSW and OFFSET models from their respective worksheets. Also inserted a nice graph.
A73: 6-15-14: Added powerexpo named variable and put input on cmpr worksheet.
A74: 6-15-14: Settled on high rise layer emission of 0.098 (with pit fans).
A75: 6-16-14: Studied Daylay data and concluded that belt houses do not reduce emissions very much.
A76: 6-16-14: Need to fix the standard circle. It is messed up on Google Earth. Figures worksheet looks ok. Done.
A77: 6-16-14: Need to include layers in the AU calculator. Done. Also make standard circle from edges of farm rather than center? Not now.
A78: 6-17-14: Presented to Jay County Manure Forum including Mike Veenhuizen and Andy Tauer. Error when saving scenario21. Fixed.
A79: 6-18-14: Fixed and significantly improved the AU calculator.
A80: 6-19-14: Fixed toggle switches for the MDS that didn't work at the 6-17 meeting because they weren't there.
A81: 6-20-14: Recovered working Maps CommandButton from model saved prior to meeting … had to redo the AU calculator. Also fixd the toggle switches for the MDS again.
A82: 6-20-14: Contemplated revising standard circle to be a standard setback (polygon) but decided not to for now.
A83: 6-21-14: Revamped the Model worksheet.
A84: 6-22-14: Fixed plotting errors.
A85: For a circular source, the source setback is based on the circle whereas the site setback is based on the rectangle. Need to make them the same I think, but how?
A86: http://www.techrepublic.com/blog/microsoft-office/two-ways-to-build-dynamic-charts-in-excel/ shows how to have dynamic ranges but that is not useful to me.
A87: Trying to figure out how to keep the charts from plotting zeros when the formula gives a "" for the cell. Solution was to use NA() instead of "" because it won't plot NA() as zero.
A88: The solution was found at: http://stackoverflow.com/questions/15013911/creating-a-chart-in-excel-that-ignores-n-a-or-blank-cells
A89: 6-23-14: Rewrote "Maps" worksheet. Still need to figure out how to let the user determine the folder. Found this from web:
A90: Cell that contains Output folder
A91: FPath = Range("F31").Value
A92: 'Cell that contains the name
A93: ThisFile = Range("D2").Value
A94: 'Save
A95: ActiveWorkbook.SaveAs filename:=FPath & "\" & ThisFile
A96: This is the CommandButton1 now:
A97: Private Sub CommandButton1_Click()
A98: 'Declare Variables
A99: Dim wbNew As Workbook, wbCur As Workbook
A100: 'select sheet
A101: Sheets("GEPoints").Select
A102: 'Make PurdueSetback Active spreadsheet
A103: Set wbCur = ActiveWorkbook
A104: 'Copies GE Points worksheet
A105: ThisWorkbook.Worksheets("GEPoints").Copy
A106: 'Save the new GEPoints spreadsheet and close
A107: ActiveWorkbook.SaveAs Range("B5") ….. ActiveWorkbook.SaveAs Filename:=Range("B5").Value did not work but ActiveWorkbook.SaveAs Range("B5").Value does work.
A108: ActiveWorkbook.Close
A109: 'Go back to PurdueSetback and make "Maps" the current worksheet
A110: Set wbCur = ActiveWorkbook
A111: ThisWorkbook.Worksheets("Maps").Select
A112: Also this:
A113: strPath = "c:\"
A114: ActiveWorkbook.SaveAs Filename:=strPath & Range("A1").Value
A117: ActiveWorkbook.SaveAs Filename:=Range("A1").Value
A118: You may also need to qualify the range with its worksheet, eg: Filename:=ThisWorkbook.Worksheets("Sheet1").Range("A1").Value
A120: ActiveWorkbook.SaveAs FileName:=CurrentPath & "\" & NewFileName & Format(Now, " - hh.mm.ss_mm-dd-yy") & ".xls",FileFormat:=xlWorkbookNormal
A122: Private Sub CommandButton1_Click()
A123: Const Folder As String = "q:visidata"
A124: Dim FileName As String
A125: Dim LastCell As String
A126: FileName = Folder & ThisWorkbook.Worksheets("Sheet1").Range("A1").Value
A127: LastCell = ThisWorkbook.Worksheets("Sheet1").Range("K65536").End(xlUp).Address
A128: ThisWorkbook.Worksheets("Sheet1").Range("C1:" & LastCell).Copy
A129: Workbooks.Add
A130: ActiveCell.PasteSpecial (xlValues)
A131: Application.DisplayAlerts = False
A132: ActiveWorkbook.SaveAs FileName:=FileName, FileFormat:=xlCSV
A133: ActiveWorkbook.Close Savechanges:=False
A134: Application.DisplayAlerts = True
A135: End Sub
A137: Dim part1 As String
A138: Dim part2 As String
A139: part1 = Range("C5").Value
A140: part2 = Range("C8").Value
A141: ActiveWorkbook.SaveAs Filename:= _
A142: "C:\-docs\cmat\Desktop\pieteikumi\" & part1 & " " & part2 & ".xlsm"
A144: 6-23-14: http://peltiertech.com/Excel/Charts/SquareGrid.html might be a way to force x and y to have the same range so as to force proper scaling of the maps.
A145: 6-23-14: Maybe add the lagoon design spreadsheet?
A146: 6-23-14: See comment in L12 of Plotdata to see solution to disagreement between plotted setbacks when there is one circular source.
A147: 6-23-14: Have not compared manure storages from other models.
A148: 7-27-14: Reformatted the front page (Model) a bit.
A149: 7-28-14: Introduced conditional formatting to directional wind frequencies used in setback calculations - turns red if there is an error.
A150: 7-28-14: Introduced conditional formatting to manure management options - turns red if manure storage because they don't apply. Modified chks in SrcFactors.
A151: Make the model more user-friendly with a guestbook for comments, links to sponsor/related Indiana organizations
A152: 7-29-14: Added links to Information page. Need to add manual to that page as well.
A153: 7-30-14: Need to fix the dairy storage abatement factors.
A154: 4-22-15: Need to move data validations for ws from ListFlags to Wind. Done for Illinois.
A155: 4-22-15: Modified the frequency factor slope from 0.75+1*f/100 to 0.635+2*f/100 which keeps the overall averaqe the same as before.
A156: 5-6-15: Found lat long for Indiana sites and guessed it was at Peru Airport
A157: 5-6-15: Calculate distance to nearest weather station is complete but need lat long for external WS
A158: 5-6-15: Finds nearest weather station - Indiana only for now since lat long not found yet for other states.
A159: 6-23-15: Troubleshot prior to posting on web. Removed blank choices in some pull down menus, which cause N/A for setbacks.
A160: 6-23-15: Modified names of states and cities to Wind worksheet and deleted duplications from ListFlags worksheet.
A165: Meeting with ISA
A166: Maybe remove all the abatement options if only biofilter is listed. Rather keep the % and give some guidances for various options.
A167: Most new layer houses are going up as belt houses.
A168: Annotate the figures chart to show what each curve is.
A169: Finish layers.
A170: Add more wind sites
A172: Ideas
A173: Calculate how far away the weather stations
A174: Create default manure management options or give an error if nothing entered when it is needed, e.g. swine
A175: Calculate wind exposure angle effects
A176: Account for directions other than strictly N:S and E:W
A177: Add 20% for separate source to check overlaps per Victory code.
A178: Test for 1/2 distance to nearest receptor and compare to separation between facilities to determine whether they should be considered separately or together.
A179: See formulas in Balog Agribusiness Report by I Farran.pdf for broiler emissions vs. temperature and broiler age.
A180: Prevent user from mixing layer and broiler settings under poultry?
A181: Add abatement technologies for broilers (trees, litter amendments, biofilters, mortalities?)
A182: Need to fix site locator
A183: Ask for county to make it easier for user to get the nearest weather station.
A184: Need to add land application window
A185: Check manure storage against other setbacks.
A186: With a guestbook for comments, links to sponsor/related Indiana organizations
A187: Need to fix the dairy storage abatement factors.
A190: Observations
A191: Comparing PU with OFFSET reveals that the land use effect is vary narrow for PU compared with OFFSET meaning that our assignements of odor free % was quite arbitrary.
A192: OFFSET: They found atmospheric conditions that correspond to the 75 OEN/m3 concentration but arbitrarily assigned percentages to those conditions?
A193: OFFSET: 99% is <1.3 m/s F, 98% is < 3.1 m/s 98%, 97% is <3.1 m/s E, 96% is <5.4 m/s E, 94% is <5.4 m/s D, and 91% is < 8.0 m/s D.
A194: OFFSET: "The odor-annoyance-free frequencies in various directions fro these six weather conditions can be determined by the windstar chart of the area of interest."
A195: OFFSET: They looked at the 1984-1992 data from six weather stations in Minnesota to see what percentage times these weather conditions occurred.
A196: OFFSET: "Six stable or neutral weather conditions that favor odor transport were identified, and their historical occurrence frequencies in or for all 16 directions at
A197: six weather stations in MN were obtained. The occurrence frequencies of these weather conditions were used to determine odor occurrence frequencies."
A198: OK, so the 99% weather condition occurs 1% of the time in all directions but it does not occur that often in any given direction to a given receptor.
A199: OK, if the 99% weather condition occurs 0.1% of the time toward a given neighber, will that neighbor be odor-free 99.9% of the time?
A200: OFFSET: What about stability F with wind > 3.1 m/s? Would you have missed some occurrences because you cut off >3.1%
A201: OFFSET: This is huge. Variation was not considered. Hourly emissions vs. constant year round value. Maximum odor would coincide with more frequent weather conditions that could cause more occurrences.
A202: OFFSET: The scaling factor of 35 was used on the odor emission rates to obtain model results = to the measured results. Field used 1-5 intensity no wonder.
A203: OFFSET: The occurrence was based on 22.5 degree wind angles. Wind exposure angles less than 22.5 would mean less occurrence of odor.
A204: OFFSET: Based on annual frequency without considering odor in summer.
A205: OFFSET: Based on the worst case direction and applied to all directions.
A206: OFFSET: If a fudge factor was applied to the odor emission rates, then why measure them?
A209: Purdue Guideline: Experience-based setback guideline based on baseline odor emission data and study of existing setback guidelines
A210: To be used by land-use planners, animal producers, and concerned rural residents.
A212: What the User Sees:
A214: Model Worksheet
A215: All the inputs go in this worksheet.
A216: Need to lock the manure dilution and removal factor entries when lagoon is selected.
A218: SWINE INPUTS in SWINE Worksheet
A219: Pop lists for swine type, manure dilution ratio, manure removal frequency, and abatement methods for barns and storages
... 29 more rows

Sheet SrcFactors (hidden)
I1: =IF(ISTEXT(VLOOKUP(s2dil,INDIRECT(s2mandil),1,"FALSE")),"OK","Wrong") | V1: =IF(SrcFactors!AK6="SBARN",VLOOKUP(s1dil,DRTable,2,"false"),"") | AO1: =VLOOKUP(s4source,SWINETABLE,2,"false") ->  | CD1: =IF(s1plot="NO",NA(),IF(s1shape=rectangle_shape,SrcFactors!CE9+I5,IF(s1shape=circle_shape,Circ!C11+I5,NA())))
B3: [snname] | C3: [sntype] | D3: [snsource] | F3: [snrmvl] | H3: [sndil] | J3: [snnumber] | K3: s1shape | L3: s1SWy | M3: s1SWx | N3: s1ORNT | O3: s1L | P3: s1W | Q3: s1rad | R3: s1plot | T3: [snrate] | U3: [snemsn] | V3: [snrmvlfctr] | W3: [snrmvlfctr] | X3: [snt1fctr] | Y3: [snt2fctr] | Z3: [snt3fctr] | AA3: [snofctr] | AN3: SOURCE-SPECIFIC VALUES FOR SELECTED SWINE INPUTS | AZ3: SOURCE-SPECIFIC VALUES FOR SELECTED DAIRY INPUTS | BL3: SOURCE-SPECIFIC VALUES FOR SELECTED POULTRY INPUTS
A4: FACTORS (COPIED FROM MODEL PAGE) | X4: ODOR ABATEMENT | AC4: COM DISTANCES, ft | AF4: Selection Lists | AH4: EMISSION SOURCE PLOTTING | AL4: d-SHAPE FCTR | AM4: HYPOTENUSE | AN4: EMISSION FACTORS | AQ4: TECHNIQUE 1 | AT4: TECHNIQUE 2 | AW4: TECHNIQUE 3 | AZ4: EMISSION FACTORS | BC4: TECHNIQUE 1 | BF4: TECHNIQUE 2 | BI4: TECHNIQUE 3 | BL4: EMISSION FACTORS | BO4: TECHNIQUE 1 | BR4: TECHNIQUE 2 | BU4: TECHNIQUE 3 | BX4: SOURCE | BY4: ABATEMENT
A5: Source | B5: Name | C5: Type | D5: Source | E5: Chk | F5: Removal | G5: Chk | H5: Dilution | I5: Chk | J5: #/AU | K5: SHAPE | L5: N Dist, ft | M5: E Dist, ft | N5: Ornt. | O5: Len, ft | P5: Wid, ft | Q5: Rad, ft | R5: Plot? | S5: In Dir | T5: Std Rate | U5: Emissions (OU/s) | V5: Removal Factor | W5: Dilution Factor | X5: T 1 | Y5: T 2 | Z5: T 3 | AA5: T Oth | AB5: Abate Factor | AC5: Shape | AD5: N | AE5: E | AF5: Manure Removal | AG5: Manure Dilution | AH5: SWx? | AI5: Shape | AJ5: N Cgeo | AK5: E Cgeo | AM5: (from ref pt) | AN5: SOURCE | AO5: FACTOR | AP5: TYPE | AQ5: BARN | AR5: STORAGE | AS5: TOTAL1 | AT5: BARN | AU5: STORAGE | AV5: TOTAL2 | AW5: BARN | AX5: STORAGE | AY5: TOTAL 3 | AZ5: SOURCE | BA5: FACTOR | BB5: TYPE | BC5: BARN | BD5: STORAGE | BE5: TOTAL1 | BF5: BARN | BG5: STORAGE | BH5: TOTAL2 | BI5: BARN | BJ5: STORAGE | BK5: TOTAL 3 | BL5: SOURCE | BM5: FACTOR | BN5: TYPE | BO5: BARN | BP5: STORAGE | BQ5: TOTAL1 | BR5: BARN | BS5: STORAGE | BT5: TOTAL2 | BU5: BARN | BV5: STORAGE | BW5: TOTAL 3 | BX5: TYPE | BY5: TABLE NAMES | CA5: E-W Scale Factor | CB5: 1 | CD5: EMISSION SOURCE PLOTTING DATA (IF RECTANGULAR SHAPE, IF CIRCULAR, PLOTTING DATA COMES FROM WORKSHEET "Circ")
A6: S1 | B6: =Model!A29 ->  | C6: =Model!B29 -> 0 | D6: =Model!C29 -> 0 | E6: =IF(ISTEXT(VLOOKUP(s1source,INDIRECT(s1type),1,"FALSE")),"OK","Wrong") -> Wrong | F6: =Model!E29 -> 0 | G6: =IF(D6="Manure Storage","Wrong",IF(ISTEXT(VLOOKUP(F6,INDIRECT(s1manrmv),1,"FALSE")),"OK","Wrong")) -> Wrong | H6: =Model!F29 -> 0 | I6: =IF(D6="Manure Storage","Wrong",IF(ISTEXT(VLOOKUP(H6,INDIRECT(s1mandil),1,"FALSE")),"OK","Wrong")) -> Wrong | J6: =Model!D29 -> 0 | K6: =Model!B15 -> 0 | L6: =Model!C15 -> 0 | M6: =Model!D15 -> 0 | N6: =Model!E15 -> 0 | O6: =Model!F15 -> 0 | P6: =Model!G15 -> 0 | Q6: =Model!H15 -> 0 | R6: =Model!G29 -> 0 | S6: =IF(s1ORNT="N : S","North",IF(s1ORNT="E : W","East","")) ->  | T6: =IF(OR(SrcFactors!AP6="SBARN",SrcFactors!AP6="SMAN"),SrcFactors!AO6,IF(OR(SrcFactors!BB6="DBARN",SrcFactors!BB6="DMAN"),SrcFactors!BA6,IF(OR(SrcFactors!BN6="LBARN",SrcFactors!BN6="LMAN"),SrcFactors!BM6,""))) ->  | U6: =IF(s1rate="","",IF(s1rate="N/A","N/A",IF(s1rate="SOURCE ERROR","CALC ERROR",s1rate*s1number))) ->  | V6: =IF(SrcFactors!BX6="SBARN",VLOOKUP(s1rmvl,MRTable,2,"FALSE"),IF(SrcFactors!BX6="DBARN",VLOOKUP(s1rmvl,DAIRYMRTABLE,2,"FALSE"),IF(SrcFactors!BX6="LBARN",VLOOKUP(s1rmvl,LAYERSMRTABLE,2,"FALSE"),""))) ->  | W6: =IF(SrcFactors!BX6="SBARN",VLOOKUP(s1dil,DRTable,2,"FALSE"),IF(SrcFactors!BX6="DBARN",VLOOKUP(s1dil,DAIRYDRTABLE,2,"FALSE"),IF(SrcFactors!BX6="LBARN",VLOOKUP(s1dil,layerdrtable,2,"FALSE"),""))) ->  | X6: =IF(OR(BY6="Sbabe",BY6="Smabe"),SrcFactors!AS6,IF(OR(BY6="dairysbabe",BY6="dairysmabe"),SrcFactors!BE6,IF(OR(BY6="layerssbabe",BY6="layersmbabe"),SrcFactors!BQ6,""))) ->  | Y6: =IF(OR(BY6="Sbabe",BY6="Smabe"),SrcFactors!AV6,IF(OR(BY6="dairysbabe",BY6="dairysmabe"),SrcFactors!BH6,IF(OR(BY6="layerssbabe",BY6="layersmbabe"),SrcFactors!BT6,""))) ->  | Z6: =IF(OR(BY6="Sbabe",BY6="Smabe"),SrcFactors!AY6,IF(OR(BY6="dairysbabe",BY6="dairysmabe"),SrcFactors!BK6,IF(OR(BY6="layerssbabe",BY6="layersmbabe"),SrcFactors!BW6,""))) ->  | AA6: =IF(s1other="","",(100-s1other)/100) ->  | AB6: =IF(AND(s1t1="",s1t2="",s1t3="",s1other=""),"",IF(ISTEXT(s1t1),s1t1fctr,1)*IF(ISTEXT(s1t2),s1t2fctr,1)*IF(ISTEXT(s1t3),s1t3fctr,1)*IF(ISNUMBER(s1other),s1ofctr,1)) ->  | AC6: =IF(s1shape="","",s1shape) ->  | AD6: =IF(AC6=rectangle_shape,SrcFactors!AJ6,IF(AC6=circle_shape,Circ!D5,IF(AC6=Blank_shape,0))) -> 0 | AE6: =IF(AC6=rectangle_shape,SrcFactors!AK6,IF(AC6=circle_shape,Circ!D6,IF(AC6=Blank_shape,0))) -> 0 | AF6: =VLOOKUP(s1type,ManFLagTable,2,"false") ->  | AG6: =VLOOKUP(s1type,ManFLagTable,3,"false") ->  | AH6: =ISNUMBER(s1SWy) -> FALSE | AI6: =IF(s1shape="","",s1shape) ->  | AJ6: =IF(CE9="",0,(((CE9-CE8)/2)+CE8)) ->  | AK6: =IF(CF10="",0,(((CF10-CF9)/2)+CF9)) ->  | AL6: =IF(s1shape=rectangle_shape,IF(s1L="","",VLOOKUP(s1L/s1W,ShapeFactorTable,2,TRUE)),0) -> 0 | AM6: =IF(s1shape="circle","",IF(AH6=TRUE,"",SQRT(((CE10^2)+((CF10^2)))))) ->  | AN6: S1 | AO6: =IF(s1type="swine",VLOOKUP(s1source,SWINETABLE,2,"false"),"") ->  | AP6: =IF(s1type="swine",VLOOKUP(s1source,SWINETABLE,3,"false"),"") ->  | AQ6: =IF(AND($AP6="sbarn",ISTEXT(VLOOKUP(s1t1,BARNABATETABLE,1,"false"))),VLOOKUP(s1t1,BARNABATETABLE,2,"false")/100,"") ->  | AR6: =IF(AND($AP6="SMAN",ISTEXT(VLOOKUP(s1t1,STORAGEABATETABLE,1,"false"))),VLOOKUP(s1t1,STORAGEABATETABLE,2,"false")/100,"") ->  | AS6: =IF(AND(AQ6="",AR6=""),"",IF(AQ6="",AR6,AQ6)) ->  | AT6: =IF(AND($AP6="sbarn",ISTEXT(VLOOKUP(s1t2,BARNABATETABLE,1,"false"))),VLOOKUP(s1t2,BARNABATETABLE,2,"false")/100,"") ->  | AU6: =IF(AND($AP6="SMAN",ISTEXT(VLOOKUP(s1t2,STORAGEABATETABLE,1,"false"))),VLOOKUP(s1t2,STORAGEABATETABLE,2,"false")/100,"") ->  | AV6: =IF(AND(AT6="",AU6=""),"",IF(AT6="",AU6,AT6)) ->  | AW6: =IF(AND($AP6="sbarn",ISTEXT(VLOOKUP(s1t3,BARNABATETABLE,1,"false"))),VLOOKUP(s1t3,BARNABATETABLE,2,"false")/100,"") ->  | AX6: =IF(AND($AP6="SMAN",ISTEXT(VLOOKUP(s1t3,STORAGEABATETABLE,1,"false"))),VLOOKUP(s1t3,STORAGEABATETABLE,2,"false")/100,"") ->  | AY6: =IF(AND(AW6="",AX6=""),"",IF(AW6="",AX6,AW6)) ->  | AZ6: S1 | BA6: =IF(s1type="dairy",VLOOKUP(s1source,DAIRYTABLE,2,"false"),"") ->  | BB6: =IF(s1type="dairy",VLOOKUP(s1source,DAIRYTABLE,3,"false"),"") ->  | BC6: =IF(AND($BB6="DBARN",ISTEXT(VLOOKUP(s1t1,DAIRYBARNABATETABLE,1,"false"))),VLOOKUP(s1t1,DAIRYBARNABATETABLE,2,"false")/100,"") ->  | BD6: =IF(AND($BB6="DMAN",ISTEXT(VLOOKUP(s1t1,DAIRYSTORAGEABATETABLE,1,"false"))),VLOOKUP(s1t1,DAIRYSTORAGEABATETABLE,2,"false")/100,"") ->  | BE6: =IF(AND(BC6="",BD6=""),"",IF(BC6="",BD6,BC6)) ->  | BF6: =IF(AND($BB6="DBARN",ISTEXT(VLOOKUP(s1t2,DAIRYBARNABATETABLE,1,"false"))),VLOOKUP(s1t2,DAIRYBARNABATETABLE,2,"false")/100,"") ->  | BG6: =IF(AND($BB6="DMAN",ISTEXT(VLOOKUP(s1t2,DAIRYSTORAGEABATETABLE,1,"false"))),VLOOKUP(s1t2,DAIRYSTORAGEABATETABLE,2,"false")/100,"") ->  | BH6: =IF(AND(BF6="",BG6=""),"",IF(BF6="",BG6,BF6)) ->  | BI6: =IF(AND($BB6="DBARN",ISTEXT(VLOOKUP(s1t3,DAIRYBARNABATETABLE,1,"false"))),VLOOKUP(s1t3,DAIRYBARNABATETABLE,2,"false")/100,"") ->  | BJ6: =IF(AND($BB6="DMAN",ISTEXT(VLOOKUP(s1t3,DAIRYSTORAGEABATETABLE,1,"false"))),VLOOKUP(s1t3,DAIRYSTORAGEABATETABLE,2,"false")/100,"") ->  | BK6: =IF(AND(BI6="",BJ6=""),"",IF(BI6="",BJ6,BI6)) ->  | BL6: S1 | BM6: =IF(s1type="poultry",VLOOKUP(s1source,LAYERTABLE,2,"false"),"") ->  | BN6: =IF(s1type="poultry",VLOOKUP(s1source,LAYERTABLE,3,"false"),"") ->  | BO6: =IF(AND($BN6="LBARN",ISTEXT(VLOOKUP(s1t1,LAYERSBARNABATETABLE,1))),VLOOKUP(s1t1,LAYERSBARNABATETABLE,2,"false")/100,"") ->  | BP6: =IF(AND($BN6="LMAN",ISTEXT(VLOOKUP(s1t1,layersstorageabatetable,1))),VLOOKUP(s1t1,layersstorageabatetable,2,"false")/100,"") ->  | BQ6: =IF(AND(BO6="",BP6=""),"",IF(BO6="",BP6,BO6)) ->  | BR6: =IF(AND($BN6="LBARN",ISTEXT(VLOOKUP(s1t2,LAYERSBARNABATETABLE,1))),VLOOKUP(s1t2,LAYERSBARNABATETABLE,2,"false")/100,"") ->  | BS6: =IF(AND($BN6="LMAN",ISTEXT(VLOOKUP(s1t2,layersstorageabatetable,1))),VLOOKUP(s1t2,layersstorageabatetable,2,"false")/100,"") ->  | BT6: =IF(AND(BR6="",BS6=""),"",IF(BR6="",BS6,BR6)) ->  | BU6: =IF(AND($BN6="LBARN",ISTEXT(VLOOKUP(s1t3,LAYERSBARNABATETABLE,1))),VLOOKUP(s1t3,LAYERSBARNABATETABLE,2,"false")/100,"") ->  | BV6: =IF(AND($BN6="LMAN",ISTEXT(VLOOKUP(s1t3,layersstorageabatetable,1))),VLOOKUP(s1t3,layersstorageabatetable,2,"false")/100,"") ->  | BW6: =IF(AND(BU6="",BV6=""),"",IF(BU6="",BV6,BU6)) ->  | BX6: =IF(s1type="swine",VLOOKUP(s1source,SWINETABLE,3,"false"),IF(s1type="dairy",VLOOKUP(s1source,DAIRYTABLE,3,"false"),IF(s1type="poultry",VLOOKUP(s1source,LAYERTABLE,3,"false"),""))) ->  | BY6: =IF(ISTEXT(VLOOKUP(SrcFactors!BX6,Abatementflag,2,"false")),VLOOKUP(SrcFactors!BX6,Abatementflag,2,"false"),"") ->  | CA6: Site hypotenuse | CB6: =SQRT(((Plotdata!L7^2)+((Plotdata!M7^2)))) -> 0 | CD6: Corners | CE6: S1 | CF6: S1 | CG6: S2 | CH6: S2 | CI6: S3 | CJ6: S3 | CK6: S4 | CL6: S4 | CM6: S5 | CN6: S5 | CO6: S6 | CP6: S6 | CQ6: S7 | CR6: S7 | CS6: S8 | CT6: S8 | CU6: S9 | CV6: S9 | CW6: S10 | CX6: S10
A7: S2 | B7: =Model!A30 ->  | C7: =Model!B30 -> 0 | D7: =Model!C30 -> 0 | E7: =IF(ISTEXT(VLOOKUP(s2source,INDIRECT(s2type),1,"FALSE")),"OK","Wrong") -> Wrong | F7: =Model!E30 -> 0 | G7: =IF(D7="Manure Storage","Wrong",IF(ISTEXT(VLOOKUP(F7,INDIRECT(s2manrmv),1,"FALSE")),"OK","Wrong")) -> Wrong | H7: =Model!F30 -> 0 | I7: =IF(D7="Manure Storage","Wrong",IF(ISTEXT(VLOOKUP(H7,INDIRECT(s2mandil),1,"FALSE")),"OK","Wrong")) -> Wrong | J7: =Model!D30 -> 0 | K7: =Model!B16 -> 0 | L7: =Model!C16 -> 0 | M7: =Model!D16 -> 0 | N7: =Model!E16 -> 0 | O7: =Model!F16 -> 0 | P7: =Model!G16 -> 0 | Q7: =Model!H16 -> 0 | R7: =Model!G30 -> 0 | S7: =IF(s2ORNT="N : S","North",IF(s2ORNT="E : W","East","")) ->  | T7: =IF(OR(SrcFactors!AP7="SBARN",SrcFactors!AP7="SMAN"),SrcFactors!AO7,IF(OR(SrcFactors!BB7="DBARN",SrcFactors!BB7="DMAN"),SrcFactors!BA7,IF(OR(SrcFactors!BN7="LBARN",SrcFactors!BN7="LMAN"),SrcFactors!BM7,""))) ->  | U7: =IF(s2rate="","",IF(s2rate="N/A","N/A",IF(s2rate="SOURCE ERROR","CALC ERROR",s2rate*s2number))) ->  | V7: =IF(SrcFactors!BX7="SBARN",VLOOKUP(s2rmvl,MRTable,2,"FALSE"),IF(SrcFactors!BX7="DBARN",VLOOKUP(s2rmvl,DAIRYMRTABLE,2,"FALSE"),IF(SrcFactors!BX7="LBARN",VLOOKUP(s2rmvl,LAYERSMRTABLE,2,"FALSE"),""))) ->  | W7: =IF(SrcFactors!BX7="SBARN",VLOOKUP(s2dil,DRTable,2,"FALSE"),IF(SrcFactors!BX7="DBARN",VLOOKUP(s2dil,DAIRYDRTABLE,2,"FALSE"),IF(SrcFactors!BX7="LBARN",VLOOKUP(s2dil,layerdrtable,2,"FALSE"),""))) ->  | X7: =IF(OR(BY7="Sbabe",BY7="Smabe"),SrcFactors!AS7,IF(OR(BY7="dairysbabe",BY7="dairysmabe"),SrcFactors!BE7,IF(OR(BY7="layerssbabe",BY7="layersmbabe"),SrcFactors!BQ7,""))) ->  | Y7: =IF(OR(BY7="Sbabe",BY7="Smabe"),SrcFactors!AV7,IF(OR(BY7="dairysbabe",BY7="dairysmabe"),SrcFactors!BH7,IF(OR(BY7="layerssbabe",BY7="layersmbabe"),SrcFactors!BT7,""))) ->  | Z7: =IF(OR(BY7="Sbabe",BY7="Smabe"),SrcFactors!AY7,IF(OR(BY7="dairysbabe",BY7="dairysmabe"),SrcFactors!BK7,IF(OR(BY7="layerssbabe",BY7="layersmbabe"),SrcFactors!BW7,""))) ->  | AA7: =IF(s2other="","",(100-s2other)/100) ->  | AB7: =IF(AND(s2t1="",s2t2="",s2t3="",s2other=""),"",IF(ISTEXT(s2t1),s2t1fctr,1)*IF(ISTEXT(s2t2),s2t2fctr,1)*IF(ISTEXT(s2t3),s2t3fctr,1)*IF(ISNUMBER(s2other),s2ofctr,1)) ->  | AC7: =IF(s2shape="","",s2shape) ->  | AD7: =IF(AC7=rectangle_shape,SrcFactors!AJ7,IF(AC7=circle_shape,Circ!I5,IF(AC7=Blank_shape,0))) -> 0 | AE7: =IF(AC7=rectangle_shape,SrcFactors!AK7,IF(AC7=circle_shape,Circ!I6,IF(AC7=Blank_shape,0))) -> 0 | AF7: =VLOOKUP(s2type,ManFLagTable,2,"false") ->  | AG7: =VLOOKUP(s2type,ManFLagTable,3,"false") ->  | AH7: =ISNUMBER(s2SWy) -> FALSE | AI7: =IF(s2shape="","",s2shape) ->  | AJ7: =IF(CG9="",0,(((CG9-CG8)/2)+CG8)) ->  | AK7: =IF(CH10="",0,(((CH10-CH9)/2)+CH9)) ->  | AL7: =IF(s2shape=rectangle_shape,IF(s2L="","",VLOOKUP(s2L/s2W,ShapeFactorTable,2,TRUE)),0) -> 0 | AM7: =IF(s2shape="circle","",IF(AH7=TRUE,"",SQRT(((CG10^2)+((CH10^2)))))) ->  | AN7: S2 | AO7: =IF(s2type="swine",VLOOKUP(s2source,SWINETABLE,2,"false"),"") ->  | AP7: =IF(s2type="swine",VLOOKUP(s2source,SWINETABLE,3,"false"),"") ->  | AQ7: =IF(AND($AP7="sbarn",ISTEXT(VLOOKUP(s2t1,BARNABATETABLE,1,"false"))),VLOOKUP(s2t1,BARNABATETABLE,2,"false")/100,"") ->  | AR7: =IF(AND($AP7="SMAN",ISTEXT(VLOOKUP(s2t1,STORAGEABATETABLE,1,"false"))),VLOOKUP(s2t1,STORAGEABATETABLE,2,"false")/100,"") ->  | AT7: =IF(AND($AP7="sbarn",ISTEXT(VLOOKUP(s2t2,BARNABATETABLE,1,"false"))),VLOOKUP(s2t2,BARNABATETABLE,2,"false")/100,"") ->  | AU7: =IF(AND($AP7="SMAN",ISTEXT(VLOOKUP(s2t2,STORAGEABATETABLE,1,"false"))),VLOOKUP(s2t2,STORAGEABATETABLE,2,"false")/100,"") ->  | AW7: =IF(AND($AP7="sbarn",ISTEXT(VLOOKUP(s2t3,BARNABATETABLE,1,"false"))),VLOOKUP(s2t3,BARNABATETABLE,2,"false")/100,"") ->  | AX7: =IF(AND($AP7="SMAN",ISTEXT(VLOOKUP(s2t3,STORAGEABATETABLE,1,"false"))),VLOOKUP(s2t3,STORAGEABATETABLE,2,"false")/100,"") ->  | AZ7: S2 | BA7: =IF(s2type="dairy",VLOOKUP(s2source,DAIRYTABLE,2,"false"),"") ->  | BB7: =IF(s2type="dairy",VLOOKUP(s2source,DAIRYTABLE,3,"false"),"") ->  | BC7: =IF(AND($BB7="DBARN",ISTEXT(VLOOKUP(s2t1,DAIRYBARNABATETABLE,1,"false"))),VLOOKUP(s2t1,DAIRYBARNABATETABLE,2,"false")/100,"") ->  | BD7: =IF(AND($BB7="DMAN",ISTEXT(VLOOKUP(s2t1,DAIRYSTORAGEABATETABLE,1,"false"))),VLOOKUP(s2t1,DAIRYSTORAGEABATETABLE,2,"false")/100,"") ->  | BE7: =IF(AND(BC7="",BD7=""),"",IF(BC7="",BD7,BC7)) ->  | BF7: =IF(AND($BB7="DBARN",ISTEXT(VLOOKUP(s2t2,DAIRYBARNABATETABLE,1,"false"))),VLOOKUP(s2t2,DAIRYBARNABATETABLE,2,"false")/100,"") ->  | BG7: =IF(AND($BB7="DMAN",ISTEXT(VLOOKUP(s2t2,DAIRYSTORAGEABATETABLE,1,"false"))),VLOOKUP(s2t2,DAIRYSTORAGEABATETABLE,2,"false")/100,"") ->  | BI7: =IF(AND($BB7="DBARN",ISTEXT(VLOOKUP(s2t3,DAIRYBARNABATETABLE,1,"false"))),VLOOKUP(s2t3,DAIRYBARNABATETABLE,2,"false")/100,"") ->  | BJ7: =IF(AND($BB7="DMAN",ISTEXT(VLOOKUP(s2t3,DAIRYSTORAGEABATETABLE,1,"false"))),VLOOKUP(s2t3,DAIRYSTORAGEABATETABLE,2,"false")/100,"") ->  | BL7: S2 | BM7: =IF(s2type="poultry",VLOOKUP(s2source,LAYERTABLE,2,"false"),"") ->  | BN7: =IF(s2type="poultry",VLOOKUP(s2source,LAYERTABLE,3,"false"),"") ->  | BO7: =IF(AND($BN7="LBARN",ISTEXT(VLOOKUP(s2t1,LAYERSBARNABATETABLE,1))),VLOOKUP(s2t1,LAYERSBARNABATETABLE,2,"false")/100,"") ->  | BP7: =IF(AND($BN7="LMAN",ISTEXT(VLOOKUP(s2t1,layersstorageabatetable,1))),VLOOKUP(s2t1,layersstorageabatetable,2,"false")/100,"") ->  | BR7: =IF(AND($BN7="LBARN",ISTEXT(VLOOKUP(s2t2,LAYERSBARNABATETABLE,1))),VLOOKUP(s2t2,LAYERSBARNABATETABLE,2,"false")/100,"") ->  | BS7: =IF(AND($BN7="LMAN",ISTEXT(VLOOKUP(s2t2,layersstorageabatetable,1))),VLOOKUP(s2t2,layersstorageabatetable,2,"false")/100,"") ->  | BU7: =IF(AND($BN7="LBARN",ISTEXT(VLOOKUP(s2t3,LAYERSBARNABATETABLE,1))),VLOOKUP(s2t3,LAYERSBARNABATETABLE,2,"false")/100,"") ->  | BV7: =IF(AND($BN7="LMAN",ISTEXT(VLOOKUP(s2t3,layersstorageabatetable,1))),VLOOKUP(s2t3,layersstorageabatetable,2,"false")/100,"") ->  | BX7: =IF(s2type="swine",VLOOKUP(s2source,SWINETABLE,3,"false"),IF(s2type="dairy",VLOOKUP(s2source,DAIRYTABLE,3,"false"),IF(s2type="poultry",VLOOKUP(s2source,LAYERTABLE,3,"false"),""))) ->  | BY7: =IF(ISTEXT(VLOOKUP(SrcFactors!BX7,Abatementflag,2,"false")),VLOOKUP(SrcFactors!BX7,Abatementflag,2,"false"),"") ->  | CA7: Hypotenuse/2 = | CB7: =CB6/2 -> 0 | CE7: N-DIR | CF7: E-DIR | CG7: N-DIR | CH7: E-DIR | CI7: N-DIR | CJ7: E-DIR | CK7: N-DIR | CL7: E-DIR | CM7: N-DIR | CN7: E-DIR | CO7: N-DIR | CP7: E-DIR | CQ7: N-DIR | CR7: E-DIR | CS7: N-DIR | CT7: E-DIR | CU7: N-DIR | CV7: E-DIR | CW7: N-DIR | CX7: E-DIR
A8: S3 | B8: =Model!A31 ->  | C8: =Model!B31 -> 0 | D8: =Model!C31 -> 0 | E8: =IF(ISTEXT(VLOOKUP(s3source,INDIRECT(s3type),1,"FALSE")),"OK","Wrong") -> Wrong | F8: =Model!E31 -> 0 | G8: =IF(D8="Manure Storage","Wrong",IF(ISTEXT(VLOOKUP(F8,INDIRECT(s3manrmv),1,"FALSE")),"OK","Wrong")) -> Wrong | H8: =Model!F31 -> 0 | I8: =IF(D8="Manure Storage","Wrong",IF(ISTEXT(VLOOKUP(H8,INDIRECT(s3mandil),1,"FALSE")),"OK","Wrong")) -> Wrong | J8: =Model!D31 -> 0 | K8: =Model!B17 -> 0 | L8: =Model!C17 -> 0 | M8: =Model!D17 -> 0 | N8: =Model!E17 -> 0 | O8: =Model!F17 -> 0 | P8: =Model!G17 -> 0 | Q8: =Model!H17 -> 0 | R8: =Model!G31 -> 0 | S8: =IF(s3ORNT="N : S","North",IF(s3ORNT="E : W","East","")) ->  | T8: =IF(OR(SrcFactors!AP8="SBARN",SrcFactors!AP8="SMAN"),SrcFactors!AO8,IF(OR(SrcFactors!BB8="DBARN",SrcFactors!BB8="DMAN"),SrcFactors!BA8,IF(OR(SrcFactors!BN8="LBARN",SrcFactors!BN8="LMAN"),SrcFactors!BM8,""))) ->  | U8: =IF(s3rate="","",IF(s3rate="N/A","N/A",IF(s3rate="SOURCE ERROR","CALC ERROR",s3rate*s3number))) ->  | V8: =IF(SrcFactors!BX8="SBARN",VLOOKUP(s3rmvl,MRTable,2,"FALSE"),IF(SrcFactors!BX8="DBARN",VLOOKUP(s3rmvl,DAIRYMRTABLE,2,"FALSE"),IF(SrcFactors!BX8="LBARN",VLOOKUP(s3rmvl,LAYERSMRTABLE,2,"FALSE"),""))) ->  | W8: =IF(SrcFactors!BX8="SBARN",VLOOKUP(s3dil,DRTable,2,"FALSE"),IF(SrcFactors!BX8="DBARN",VLOOKUP(s3dil,DAIRYDRTABLE,2,"FALSE"),IF(SrcFactors!BX8="LBARN",VLOOKUP(s3dil,layerdrtable,2,"FALSE"),""))) ->  | X8: =IF(OR(BY8="Sbabe",BY8="Smabe"),SrcFactors!AS8,IF(OR(BY8="dairysbabe",BY8="dairysmabe"),SrcFactors!BE8,IF(OR(BY8="layerssbabe",BY8="layersmbabe"),SrcFactors!BQ8,""))) ->  | Y8: =IF(OR(BY8="Sbabe",BY8="Smabe"),SrcFactors!AV8,IF(OR(BY8="dairysbabe",BY8="dairysmabe"),SrcFactors!BH8,IF(OR(BY8="layerssbabe",BY8="layersmbabe"),SrcFactors!BT8,""))) ->  | Z8: =IF(OR(BY8="Sbabe",BY8="Smabe"),SrcFactors!AY8,IF(OR(BY8="dairysbabe",BY8="dairysmabe"),SrcFactors!BK8,IF(OR(BY8="layerssbabe",BY8="layersmbabe"),SrcFactors!BW8,""))) ->  | AA8: =IF(s3other="","",(100-s3other)/100) ->  | AB8: =IF(AND(s3t1="",s3t2="",s3t3="",s3other=""),"",IF(ISTEXT(s3t1),s3t1fctr,1)*IF(ISTEXT(s3t2),s3t2fctr,1)*IF(ISTEXT(s3t3),s3t3fctr,1)*IF(ISNUMBER(s3other),s3ofctr,1)) ->  | AC8: =IF(s3shape="","",s3shape) ->  | AD8: =IF(AC8=rectangle_shape,SrcFactors!AJ8,IF(AC8=circle_shape,Circ!M5,IF(AC8=Blank_shape,0))) -> 0 | AE8: =IF(AC8=rectangle_shape,SrcFactors!AK8,IF(AC8=circle_shape,Circ!M6,IF(AC8=Blank_shape,0))) -> 0 | AF8: =VLOOKUP(s3type,ManFLagTable,2,"false") ->  | AG8: =VLOOKUP(s3type,ManFLagTable,3,"false") ->  | AH8: =ISNUMBER(s3SWy) -> FALSE | AI8: =IF(s3shape="","",s3shape) ->  | AJ8: =IF(CI9="",0,(((CI9-CI8)/2)+CI8)) ->  | AK8: =IF(CJ10="",0,(((CJ10-CJ9)/2)+CJ9)) ->  | AL8: =IF(s3shape=rectangle_shape,IF(s3L="","",VLOOKUP(s3L/s3W,ShapeFactorTable,2,TRUE)),0) -> 0 | AM8: =IF(s3shape="circle","",IF(AH8=TRUE,"",SQRT(((CI10^2)+((CJ10^2)))))) ->  | AN8: S3 | AO8: =IF(s3type="swine",VLOOKUP(s3source,SWINETABLE,2,"false"),"") ->  | AP8: =IF(s3type="swine",VLOOKUP(s3source,SWINETABLE,3,"false"),"") ->  | AQ8: =IF(AND($AP8="sbarn",ISTEXT(VLOOKUP(s3t1,BARNABATETABLE,1,"false"))),VLOOKUP(s3t1,BARNABATETABLE,2,"false")/100,"") ->  | AR8: =IF(AND($AP8="SMAN",ISTEXT(VLOOKUP(s3t1,STORAGEABATETABLE,1,"false"))),VLOOKUP(s3t1,STORAGEABATETABLE,2,"false")/100,"") ->  | AT8: =IF(AND($AP8="sbarn",ISTEXT(VLOOKUP(s3t2,BARNABATETABLE,1,"false"))),VLOOKUP(s3t2,BARNABATETABLE,2,"false")/100,"") ->  | AU8: =IF(AND($AP8="SMAN",ISTEXT(VLOOKUP(s3t2,STORAGEABATETABLE,1,"false"))),VLOOKUP(s3t2,STORAGEABATETABLE,2,"false")/100,"") ->  | AW8: =IF(AND($AP8="sbarn",ISTEXT(VLOOKUP(s3t3,BARNABATETABLE,1,"false"))),VLOOKUP(s3t3,BARNABATETABLE,2,"false")/100,"") ->  | AX8: =IF(AND($AP8="SMAN",ISTEXT(VLOOKUP(s3t3,STORAGEABATETABLE,1,"false"))),VLOOKUP(s3t3,STORAGEABATETABLE,2,"false")/100,"") ->  | AZ8: S3 | BA8: =IF(s3type="dairy",VLOOKUP(s3source,DAIRYTABLE,2,"false"),"") ->  | BB8: =IF(s3type="dairy",VLOOKUP(s3source,DAIRYTABLE,3,"false"),"") ->  | BC8: =IF(AND($BB8="DBARN",ISTEXT(VLOOKUP(s3t1,DAIRYBARNABATETABLE,1,"false"))),VLOOKUP(s3t1,DAIRYBARNABATETABLE,2,"false")/100,"") ->  | BD8: =IF(AND($BB8="DMAN",ISTEXT(VLOOKUP(s3t1,DAIRYSTORAGEABATETABLE,1,"false"))),VLOOKUP(s3t1,DAIRYSTORAGEABATETABLE,2,"false")/100,"") ->  | BF8: =IF(AND($BB8="DBARN",ISTEXT(VLOOKUP(s3t2,DAIRYBARNABATETABLE,1,"false"))),VLOOKUP(s3t2,DAIRYBARNABATETABLE,2,"false")/100,"") ->  | BG8: =IF(AND($BB8="DMAN",ISTEXT(VLOOKUP(s3t2,DAIRYSTORAGEABATETABLE,1,"false"))),VLOOKUP(s3t2,DAIRYSTORAGEABATETABLE,2,"false")/100,"") ->  | BI8: =IF(AND($BB8="DBARN",ISTEXT(VLOOKUP(s3t3,DAIRYBARNABATETABLE,1,"false"))),VLOOKUP(s3t3,DAIRYBARNABATETABLE,2,"false")/100,"") ->  | BJ8: =IF(AND($BB8="DMAN",ISTEXT(VLOOKUP(s3t3,DAIRYSTORAGEABATETABLE,1,"false"))),VLOOKUP(s3t3,DAIRYSTORAGEABATETABLE,2,"false")/100,"") ->  | BL8: S3 | BM8: =IF(s3type="poultry",VLOOKUP(s3source,LAYERTABLE,2,"false"),"") ->  | BN8: =IF(s3type="poultry",VLOOKUP(s3source,LAYERTABLE,3,"false"),"") ->  | BO8: =IF(AND($BN8="LBARN",ISTEXT(VLOOKUP(s3t1,LAYERSBARNABATETABLE,1))),VLOOKUP(s3t1,LAYERSBARNABATETABLE,2,"false")/100,"") ->  | BP8: =IF(AND($BN8="LMAN",ISTEXT(VLOOKUP(s3t1,layersstorageabatetable,1))),VLOOKUP(s3t1,layersstorageabatetable,2,"false")/100,"") ->  | BR8: =IF(AND($BN8="LBARN",ISTEXT(VLOOKUP(s3t2,LAYERSBARNABATETABLE,1))),VLOOKUP(s3t2,LAYERSBARNABATETABLE,2,"false")/100,"") ->  | BS8: =IF(AND($BN8="LMAN",ISTEXT(VLOOKUP(s3t2,layersstorageabatetable,1))),VLOOKUP(s3t2,layersstorageabatetable,2,"false")/100,"") ->  | BU8: =IF(AND($BN8="LBARN",ISTEXT(VLOOKUP(s3t3,LAYERSBARNABATETABLE,1))),VLOOKUP(s3t3,LAYERSBARNABATETABLE,2,"false")/100,"") ->  | BV8: =IF(AND($BN8="LMAN",ISTEXT(VLOOKUP(s3t3,layersstorageabatetable,1))),VLOOKUP(s3t3,layersstorageabatetable,2,"false")/100,"") ->  | BX8: =IF(s3type="swine",VLOOKUP(s3source,SWINETABLE,3,"false"),IF(s3type="dairy",VLOOKUP(s3source,DAIRYTABLE,3,"false"),IF(s3type="poultry",VLOOKUP(s3source,LAYERTABLE,3,"false"),""))) ->  | BY8: =IF(ISTEXT(VLOOKUP(SrcFactors!BX8,Abatementflag,2,"false")),VLOOKUP(SrcFactors!BX8,Abatementflag,2,"false"),"") ->  | CA8: R_EMAX= | CB8: =MAX(CF13,CH13,CJ13,CL13,CN13,CP13,CR13,CT13,CV13,CX13) -> 0 | CD8: SW | CE8: =IF(AND(AH6=TRUE,AI6=rectangle_shape), s1SWy, NA()) ->  | CF8: =IF(AND(AH6=TRUE,AI6=rectangle_shape), s1SWx*scalefctr, NA()) ->  | CG8: =IF(AND(AH7=TRUE,AI7=rectangle_shape), s2SWy, NA()) ->  | CH8: =IF(AND(AH7=TRUE,AI7=rectangle_shape), s2SWx*scalefctr, NA()) ->  | CI8: =IF(AND(AH8=TRUE,AI8=rectangle_shape), s3SWy, NA()) ->  | CJ8: =IF(AND(AH8=TRUE,AI8=rectangle_shape), s3SWx, NA()) ->  | CK8: =IF(AND(AH9=TRUE,AI9=rectangle_shape), s4SWy, NA()) ->  | CL8: =IF(AND(AH9=TRUE,AI9=rectangle_shape), s4SWx, NA()) ->  | CM8: =IF(AND(AH10=TRUE,AI10=rectangle_shape), s5SWy, NA()) ->  | CN8: =IF(AND(AH10=TRUE,AI10=rectangle_shape), s5SWx, NA()) ->  | CO8: =IF(AND(AH11=TRUE,AI11=rectangle_shape), s6SWy, NA()) ->  | CP8: =IF(AND(AH11=TRUE,AI11=rectangle_shape), s6SWx, NA()) ->  | CQ8: =IF(AND(AH12=TRUE,AI12=rectangle_shape), s7SWy, NA()) ->  | CR8: =IF(AND(AH12=TRUE,AI12=rectangle_shape), s7SWx, NA()) ->  | CS8: =IF(AND(AH13=TRUE,AI13=rectangle_shape), s8SWy, NA()) ->  | CT8: =IF(AND(AH13=TRUE,AI13=rectangle_shape), s8SWx, NA()) ->  | CU8: =IF(AND(AH14=TRUE,AI14=rectangle_shape), s9SWy, NA()) ->  | CV8: =IF(AND(AH14=TRUE,AI14=rectangle_shape), s9SWx, NA()) ->  | CW8: =IF(AND(AH15=TRUE,AI15=rectangle_shape), s10SWy, NA()) ->  | CX8: =IF(AND(AH15=TRUE,AI15=rectangle_shape), s10SWx, NA()) -> 
A9: S4 | B9: =Model!A32 ->  | C9: =Model!B32 -> 0 | D9: =Model!C32 -> 0 | E9: =IF(ISTEXT(VLOOKUP(s4source,INDIRECT(s4type),1,"FALSE")),"OK","Wrong") -> Wrong | F9: =Model!E32 -> 0 | G9: =IF(D9="Manure Storage","Wrong",IF(ISTEXT(VLOOKUP(F9,INDIRECT(s4manrmv),1,"FALSE")),"OK","Wrong")) -> Wrong | H9: =Model!F32 -> 0 | I9: =IF(D9="Manure Storage","Wrong",IF(ISTEXT(VLOOKUP(H9,INDIRECT(s4mandil),1,"FALSE")),"OK","Wrong")) -> Wrong | J9: =Model!D32 -> 0 | K9: =Model!B18 -> 0 | L9: =Model!C18 -> 0 | M9: =Model!D18 -> 0 | N9: =Model!E18 -> 0 | O9: =Model!F18 -> 0 | P9: =Model!G18 -> 0 | Q9: =Model!H18 -> 0 | R9: =Model!G32 -> 0 | S9: =IF(s4ORNT="N : S","North",IF(s4ORNT="E : W","East","")) ->  | T9: =IF(OR(SrcFactors!AP9="SBARN",SrcFactors!AP9="SMAN"),SrcFactors!AO9,IF(OR(SrcFactors!BB9="DBARN",SrcFactors!BB9="DMAN"),SrcFactors!BA9,IF(OR(SrcFactors!BN9="LBARN",SrcFactors!BN9="LMAN"),SrcFactors!BM9,""))) ->  | U9: =IF(s4rate="","",IF(s4rate="N/A","N/A",IF(s4rate="SOURCE ERROR","CALC ERROR",s4rate*s4number))) ->  | V9: =IF(SrcFactors!BX9="SBARN",VLOOKUP(s4rmvl,MRTable,2,"FALSE"),IF(SrcFactors!BX9="DBARN",VLOOKUP(s4rmvl,DAIRYMRTABLE,2,"FALSE"),IF(SrcFactors!BX9="LBARN",VLOOKUP(s4rmvl,LAYERSMRTABLE,2,"FALSE"),""))) ->  | W9: =IF(SrcFactors!BX9="SBARN",VLOOKUP(s4dil,DRTable,2,"FALSE"),IF(SrcFactors!BX9="DBARN",VLOOKUP(s4dil,DAIRYDRTABLE,2,"FALSE"),IF(SrcFactors!BX9="LBARN",VLOOKUP(s4dil,layerdrtable,2,"FALSE"),""))) ->  | X9: =IF(OR(BY9="Sbabe",BY9="Smabe"),SrcFactors!AS9,IF(OR(BY9="dairysbabe",BY9="dairysmabe"),SrcFactors!BE9,IF(OR(BY9="layerssbabe",BY9="layersmbabe"),SrcFactors!BQ9,""))) ->  | Y9: =IF(OR(BY9="Sbabe",BY9="Smabe"),SrcFactors!AV9,IF(OR(BY9="dairysbabe",BY9="dairysmabe"),SrcFactors!BH9,IF(OR(BY9="layerssbabe",BY9="layersmbabe"),SrcFactors!BT9,""))) ->  | Z9: =IF(OR(BY9="Sbabe",BY9="Smabe"),SrcFactors!AY9,IF(OR(BY9="dairysbabe",BY9="dairysmabe"),SrcFactors!BK9,IF(OR(BY9="layerssbabe",BY9="layersmbabe"),SrcFactors!BW9,""))) ->  | AA9: =IF(s4other="","",(100-s4other)/100) ->  | AB9: =IF(AND(s4t1="",s4t2="",s4t3="",s4other=""),"",IF(ISTEXT(s4t1),s4t1fctr,1)*IF(ISTEXT(s4t2),s4t2fctr,1)*IF(ISTEXT(s4t3),s4t3fctr,1)*IF(ISNUMBER(s4other),s4ofctr,1)) ->  | AC9: =IF(s4shape="","",s4shape) ->  | AD9: =IF(AC9=rectangle_shape,SrcFactors!AJ9,IF(AC9=circle_shape,Circ!Q5,IF(AC9=Blank_shape,0))) -> 0 | AE9: =IF(AC9=rectangle_shape,SrcFactors!AK9,IF(AC9=circle_shape,Circ!Q6,IF(AC9=Blank_shape,0))) -> 0 | AF9: =VLOOKUP(s4type,ManFLagTable,2,"false") ->  | AG9: =VLOOKUP(s4type,ManFLagTable,3,"false") ->  | AH9: =ISNUMBER(s4SWy) -> FALSE | AI9: =IF(s4shape="","",s4shape) ->  | AJ9: =IF(CK9="",0,(((CK9-CK8)/2)+CK8)) ->  | AK9: =IF(CL10="",0,(((CL10-CL9)/2)+CL9)) ->  | AL9: =IF(s4shape=rectangle_shape,IF(s4L="","",VLOOKUP(s4L/s4W,ShapeFactorTable,2,TRUE)),0) -> 0 | AM9: =IF(s4shape="circle","",IF(AH9=TRUE,"",SQRT(((CK10^2)+((CL10^2)))))) ->  | AN9: S4 | AO9: =IF(s4type="swine",VLOOKUP(s4source,SWINETABLE,2,"false"),"") ->  | AP9: =IF(s4type="swine",VLOOKUP(s4source,SWINETABLE,3,"false"),"") ->  | AQ9: =IF(AND($AP9="sbarn",ISTEXT(VLOOKUP(s4t1,BARNABATETABLE,1,"false"))),VLOOKUP(s4t1,BARNABATETABLE,2,"false")/100,"") ->  | AR9: =IF(AND($AP9="SMAN",ISTEXT(VLOOKUP(s4t1,STORAGEABATETABLE,1,"false"))),VLOOKUP(s4t1,STORAGEABATETABLE,2,"false")/100,"") ->  | AT9: =IF(AND($AP9="sbarn",ISTEXT(VLOOKUP(s4t2,BARNABATETABLE,1,"false"))),VLOOKUP(s4t2,BARNABATETABLE,2,"false")/100,"") ->  | AU9: =IF(AND($AP9="SMAN",ISTEXT(VLOOKUP(s4t2,STORAGEABATETABLE,1,"false"))),VLOOKUP(s4t2,STORAGEABATETABLE,2,"false")/100,"") ->  | AW9: =IF(AND($AP9="sbarn",ISTEXT(VLOOKUP(s4t3,BARNABATETABLE,1,"false"))),VLOOKUP(s4t3,BARNABATETABLE,2,"false")/100,"") ->  | AX9: =IF(AND($AP9="SMAN",ISTEXT(VLOOKUP(s4t3,STORAGEABATETABLE,1,"false"))),VLOOKUP(s4t3,STORAGEABATETABLE,2,"false")/100,"") ->  | AZ9: S4 | BA9: =IF(s4type="dairy",VLOOKUP(s4source,DAIRYTABLE,2,"false"),"") ->  | BB9: =IF(s4type="dairy",VLOOKUP(s4source,DAIRYTABLE,3,"false"),"") ->  | BC9: =IF(AND($BB9="DBARN",ISTEXT(VLOOKUP(s4t1,DAIRYBARNABATETABLE,1,"false"))),VLOOKUP(s4t1,DAIRYBARNABATETABLE,2,"false")/100,"") ->  | BD9: =IF(AND($BB9="DMAN",ISTEXT(VLOOKUP(s4t1,DAIRYSTORAGEABATETABLE,1,"false"))),VLOOKUP(s4t1,DAIRYSTORAGEABATETABLE,2,"false")/100,"") ->  | BF9: =IF(AND($BB9="DBARN",ISTEXT(VLOOKUP(s4t2,DAIRYBARNABATETABLE,1,"false"))),VLOOKUP(s4t2,DAIRYBARNABATETABLE,2,"false")/100,"") ->  | BG9: =IF(AND($BB9="DMAN",ISTEXT(VLOOKUP(s4t2,DAIRYSTORAGEABATETABLE,1,"false"))),VLOOKUP(s4t2,DAIRYSTORAGEABATETABLE,2,"false")/100,"") ->  | BI9: =IF(AND($BB9="DBARN",ISTEXT(VLOOKUP(s4t3,DAIRYBARNABATETABLE,1,"false"))),VLOOKUP(s4t3,DAIRYBARNABATETABLE,2,"false")/100,"") ->  | BJ9: =IF(AND($BB9="DMAN",ISTEXT(VLOOKUP(s4t3,DAIRYSTORAGEABATETABLE,1,"false"))),VLOOKUP(s4t3,DAIRYSTORAGEABATETABLE,2,"false")/100,"") ->  | BL9: S4 | BM9: =IF(s4type="poultry",VLOOKUP(s4source,LAYERTABLE,2,"false"),"") ->  | BN9: =IF(s4type="poultry",VLOOKUP(s4source,LAYERTABLE,3,"false"),"") ->  | BO9: =IF(AND($BN9="LBARN",ISTEXT(VLOOKUP(s4t1,LAYERSBARNABATETABLE,1))),VLOOKUP(s4t1,LAYERSBARNABATETABLE,2,"false")/100,"") ->  | BP9: =IF(AND($BN9="LMAN",ISTEXT(VLOOKUP(s4t1,layersstorageabatetable,1))),VLOOKUP(s4t1,layersstorageabatetable,2,"false")/100,"") ->  | BR9: =IF(AND($BN9="LBARN",ISTEXT(VLOOKUP(s4t2,LAYERSBARNABATETABLE,1))),VLOOKUP(s4t2,LAYERSBARNABATETABLE,2,"false")/100,"") ->  | BS9: =IF(AND($BN9="LMAN",ISTEXT(VLOOKUP(s4t2,layersstorageabatetable,1))),VLOOKUP(s4t2,layersstorageabatetable,2,"false")/100,"") ->  | BU9: =IF(AND($BN9="LBARN",ISTEXT(VLOOKUP(s4t3,LAYERSBARNABATETABLE,1))),VLOOKUP(s4t3,LAYERSBARNABATETABLE,2,"false")/100,"") ->  | BV9: =IF(AND($BN9="LMAN",ISTEXT(VLOOKUP(s4t3,layersstorageabatetable,1))),VLOOKUP(s4t3,layersstorageabatetable,2,"false")/100,"") ->  | BX9: =IF(s4type="swine",VLOOKUP(s4source,SWINETABLE,3,"false"),IF(s4type="dairy",VLOOKUP(s4source,DAIRYTABLE,3,"false"),IF(s4type="poultry",VLOOKUP(s4source,LAYERTABLE,3,"false"),""))) ->  | BY9: =IF(ISTEXT(VLOOKUP(SrcFactors!BX9,Abatementflag,2,"false")),VLOOKUP(SrcFactors!BX9,Abatementflag,2,"false"),"") ->  | CA9: R_NMAX= | CB9: =MAX(CE13,CG13,CI13,CK13,CM13,CO13,CQ13,CS13,CU13,CW13) -> 0 | CD9: NW | CE9: =IF(AND(AH6=TRUE,AI6=rectangle_shape),IF(s1ORNT="N : S", s1SWy +s1L, IF(s1ORNT="E : W", s1SWy+s1W, NA())),NA()) ->  | CF9: =IF(AND(AH6=TRUE,AI6=rectangle_shape), s1SWx*scalefctr, NA()) ->  | CG9: =IF(AND(AH7=TRUE,AI7=rectangle_shape),IF(s2ORNT="N : S", s2SWy +s2L, IF(s2ORNT="E : W", s2SWy+s2W, NA())),NA()) ->  | CH9: =IF(AND(AH7=TRUE,AI7=rectangle_shape), s2SWx*scalefctr, NA()) ->  | CI9: =IF(AND(AH8=TRUE,AI8=rectangle_shape),IF(s3ORNT="N : S", s3SWy+s3L, IF(s3ORNT="E : W", s3SWy+s3W, NA())),NA()) ->  | CJ9: =IF(AND(AH8=TRUE,AI8=rectangle_shape), s3SWx, NA()) ->  | CK9: =IF(AND(AH9=TRUE,AI9=rectangle_shape),IF(s4ORNT="N : S", s4SWy+s4L, IF(s4ORNT="E : W", s4SWy+s4W, NA())),NA()) ->  | CL9: =IF(AND(AH9=TRUE,AI9=rectangle_shape), s4SWx, NA()) ->  | CM9: =IF(AND(AH10=TRUE,AI10=rectangle_shape),IF(s5ORNT="N : S", s5SWy+s5L, IF(s5ORNT="E : W", s5SWy+s5W, NA())),NA()) ->  | CN9: =IF(AND(AH10=TRUE,AI10=rectangle_shape), s5SWx, NA()) ->  | CO9: =IF(AND(AH11=TRUE,AI11=rectangle_shape),IF(s6ORNT="N : S", s6SWy+s6L, IF(s6ORNT="E : W", s6SWy+s6W, NA())),NA()) ->  | CP9: =IF(AND(AH11=TRUE,AI11=rectangle_shape), s6SWx, NA()) ->  | CQ9: =IF(AND(AH12=TRUE,AI12=rectangle_shape),IF(s7ORNT="N : S", s7SWy+s7L, IF(s7ORNT="E : W", s7SWy+s7W, NA())),NA()) ->  | CR9: =IF(AND(AH12=TRUE,AI12=rectangle_shape), s7SWx, NA()) ->  | CS9: =IF(AND(AH13=TRUE,AI13=rectangle_shape),IF(s8ORNT="N : S", s8SWy+s8L, IF(s8ORNT="E : W", s8SWy+s8W, NA())),NA()) ->  | CT9: =IF(AND(AH13=TRUE,AI13=rectangle_shape), s8SWx, NA()) ->  | CU9: =IF(AND(AH14=TRUE,AI14=rectangle_shape),IF(s9ORNT="N : S", s9SWy+s9L, IF(s9ORNT="E : W", s9SWy+s9W, NA())),NA()) ->  | CV9: =IF(AND(AH14=TRUE,AI14=rectangle_shape), s9SWx, NA()) ->  | CW9: =IF(AND(AH15=TRUE,AI15=rectangle_shape),IF(s10ORNT="N : S", s10SWy+s10L, IF(s10ORNT="E : W", s10SWy+s10W, NA())),NA()) ->  | CX9: =IF(AND(AH15=TRUE,AI15=rectangle_shape), s10SWx, NA()) -> 
